Workbook

Sheet Innehåll
B8: Månadsstatistik om premiepension
B10: INNEHÅLLSFÖRTECKNING
B11: (klicka på resp rubrik för att komma till sidan)
B13: Fondval och aktuellt marknadsvärde
B14: De tio mest valda fonderna m.m
B15: Fondstatistik
B16: Fondstatistik - Hållbarhet
B17: Värdeutveckling - individuella konton
B18: Värdeutveckling - pensionssystemet
B19: Värdeutveckling för fondrörelsen per kalenderår
B20: Marknadsvärde och tillfört kapital till fondrörelsen
B21: Värdeutveckling för premiepensionsfondernas index
B22: Värdeutveckling för fondrörelsen i genomsnitt per år
B23: Beskrivning av mått
B24: Info makro

Sheet Fondval & marknadsvärde
Q4: Totalt marknadsvärde
Q5: =ROUND(SUM(H24:H430)/1000000000,0) -> 3294
A6: 2026-06-30 | B6: Antal fondval och marknadsvärde i fonderna | Q6: miljarder kronor
A7: Nästa uppdatering: 2026-08-13
A8: Antal fondval, visar aktuellt läge vid månadsslut.
A9: Marknadsvärde = Fondandelar * Fondkurs * Valutakurs.
A10: =CONCATENATE(Q4,Q5,Q6) -> Totalt marknadsvärde 3294 miljarder kronor
A11: * Fotnot om rysslandsfonder och östeuropafonder
B19: Total: | C19: =SUBTOTAL(9,C$24:C$430) -> 6151747 | D19: 6709282 | E19: 12861029 | F19: 1.476448975e+12 | G19: 1.817954273e+12 | H19: 3.294403248e+12
A20: Klicka på kolumnnamnen för att sortera på respektive kolumn.
D22: Antal fondval | G22: Marknadsvärde | M22: Aktiv/ | N22: Svensk/ | O22: Upphandlad
A23: Fondnummer | B23: Fondnamn | C23: Kvinnor | D23: Män | E23: Total | F23: Kvinnor | G23: Män | H23: Total | I23: Handel, netto | J23: Fondkategori | K23: Fondtyp | L23: Förvaltare | M23: Passiv | N23: Utländsk | O23: fond
A24: 1 | B24: AP7 Såfa - Statens årskullsförvaltningsalternativ | C24: 2762471 | D24: 3043307 | E24: 5805778 | F24: 7.704861594e+11 | G24: 9.407612448e+11 | H24: 1.711247404e+12 | J24: Statens förvaltningsalternativ | K24: Generationsfonder | L24: Sjunde AP-Fonden | M24: Aktiv | N24: Svensk
A25: 283408 | B25: Swedbank Robur Technology A | C25: 144528 | D25: 178602 | E25: 323130 | F25: 6.38527724e+10 | G25: 9.122980177e+10 | H25: 1.550825742e+11 | I25: 904622391.7 | J25: IT och kommunikation | K25: Branschfonder | L25: Swedbank Robur Fonder AB | M25: Aktiv | N25: Svensk
A26: 581371 | B26: AP7 Aktiefond | C26: 67463 | D26: 103307 | E26: 170770 | F26: 2.708359625e+10 | G26: 4.543640215e+10 | H26: 7.25199984e+10 | I26: -2976995362 | J26: Global | K26: Regionala fonder | L26: Sjunde AP-Fonden | M26: Aktiv | N26: Svensk
A27: 681783 | B27: AMF Aktiefond Sverige | C27: 83445 | D27: 85712 | E27: 169157 | F27: 1.340773659e+10 | G27: 1.712884165e+10 | H27: 3.053657824e+10 | I27: -159090259.4 | J27: Sverige | K27: Svenska Aktiefonder | L27: AMF Fonder AB | M27: Aktiv | N27: Svensk | O27: Upphandlad
A28: 114819 | B28: Swedbank Robur Access Global A | C28: 78958 | D28: 81776 | E28: 160734 | F28: 1.808606336e+10 | G28: 2.178515712e+10 | H28: 3.987122049e+10 | I28: 126924676.4 | J28: Global | K28: Regionala fonder | L28: Swedbank Robur Fonder AB | M28: Passiv | N28: Svensk | O28: Upphandlad
A29: 645952 | B29: AMF Aktiefond Världen | C29: 78419 | D29: 78380 | E29: 156799 | F29: 1.420968335e+10 | G29: 1.781699158e+10 | H29: 3.202667493e+10 | I29: -131156093.2 | J29: Global och Sverige | K29: Regionala fonder | L29: AMF Fonder AB | M29: Aktiv | N29: Svensk
A30: 785022 | B30: Swedbank Robur Aktiefond Pension | C30: 86148 | D30: 70613 | E30: 156761 | F30: 2.496053884e+10 | G30: 2.46937375e+10 | H30: 4.965427634e+10 | I30: -78243276.49 | J30: Global och Sverige | K30: Regionala fonder | L30: Swedbank Robur Fonder AB | M30: Aktiv | N30: Svensk
A31: 291906 | B31: D&G Aktiefond | C31: 73305 | D31: 73798 | E31: 147103 | F31: 1.222037679e+10 | G31: 1.486569518e+10 | H31: 2.708607197e+10 | I31: -181065593.3 | J31: Sverige | K31: Svenska Aktiefonder | L31: Carnegie Fonder AB | M31: Aktiv | N31: Svensk | O31: Upphandlad
A32: 719674 | B32: Swedbank Robur Access Sverige A | C32: 74760 | D32: 67307 | E32: 142067 | F32: 1.098574126e+10 | G32: 1.199441197e+10 | H32: 2.298015324e+10 | I32: -132108036.1 | J32: Sverige | K32: Svenska Aktiefonder | L32: Swedbank Robur Fonder AB | M32: Passiv | N32: Svensk | O32: Upphandlad
A33: 747899 | B33: Swedbank Robur Transfer 80 | C33: 60423 | D33: 58093 | E33: 118516 | F33: 3.311619247e+10 | G33: 3.825654172e+10 | H33: 7.13727342e+10 | I33: -44462139.64 | J33: Pension om mer än 10 år | K33: Generationsfonder | L33: Swedbank Robur Fonder AB | M33: Aktiv | N33: Svensk
A34: 783720 | B34: Swedbank Robur Transfer 70 | C34: 61867 | D34: 47927 | E34: 109794 | F34: 3.25350777e+10 | G34: 2.90438626e+10 | H34: 6.15789403e+10 | I34: -73880206.53 | J34: Pension om mer än 10 år | K34: Generationsfonder | L34: Swedbank Robur Fonder AB | M34: Aktiv | N34: Svensk
A35: 290072 | B35: Aktiespararna Topp Sverige | C35: 39686 | D35: 59893 | E35: 99579 | F35: 6772716078 | G35: 1.197131895e+10 | H35: 1.874403503e+10 | I35: 476630823.3 | J35: Sverige | K35: Svenska Aktiefonder | L35: Cicero Fonder AB | M35: Passiv | N35: Svensk | O35: Upphandlad
A36: 734491 | B36: Avanza Zero | C36: 37186 | D36: 60141 | E36: 97327 | F36: 1607426896 | G36: 2934846714 | H36: 4542273611 | I36: -3090254183 | J36: Sverige | K36: Svenska Aktiefonder | L36: Avanza Fonder AB | M36: Passiv | N36: Svensk
A37: 928341 | B37: Swedbank Robur Healthcare A | C37: 47637 | D37: 43946 | E37: 91583 | F37: 4868480218 | G37: 5750995158 | H37: 1.061947538e+10 | I37: -45528027.83 | J37: Läkemedel och bioteknik | K37: Branschfonder | L37: Swedbank Robur Fonder AB | M37: Aktiv | N37: Svensk
A38: 610121 | B38: AMF Balansfond | C38: 45530 | D38: 39515 | E38: 85045 | F38: 5430761691 | G38: 5970179054 | H38: 1.140094075e+10 | I38: -56235149.81 | J38: Varierande | K38: Blandfonder | L38: AMF Fonder AB | M38: Aktiv | N38: Svensk
A39: 271478 | B39: Indecap Guide 2 C | C39: 42926 | D39: 39238 | E39: 82164 | F39: 1.738389875e+10 | G39: 2.003463087e+10 | H39: 3.741852962e+10 | I39: -154693963 | J39: Global och Sverige | K39: Regionala fonder | L39: Indecap Fonder AB | M39: Aktiv | N39: Svensk
A40: 755504 | B40: Swedbank Robur Access Europa A | C40: 41335 | D40: 40652 | E40: 81987 | F40: 4926918018 | G40: 5851995399 | H40: 1.077891342e+10 | I40: -31357756.17 | J40: Europa | K40: Regionala fonder | L40: Swedbank Robur Fonder AB | M40: Passiv | N40: Svensk | O40: Upphandlad
A41: 359315 | B41: Nordea Generationsfond 60-tal | C41: 44278 | D41: 35500 | E41: 79778 | F41: 2.605615361e+10 | G41: 2.430269888e+10 | H41: 5.035885249e+10 | I41: -108342867.5 | J41: Pension om mindre än 10 år | K41: Generationsfonder | L41: Nordea Funds Ab | M41: Aktiv | N41: Svensk
A42: 287656 | B42: Nordea Generationsfond 70-tal | C42: 43515 | D42: 35595 | E42: 79110 | F42: 2.573606699e+10 | G42: 2.440272606e+10 | H42: 5.013879304e+10 | I42: -67414056.23 | J42: Pension om mer än 10 år | K42: Generationsfonder | L42: Nordea Funds Ab | M42: Aktiv | N42: Svensk
A43: 307306 | B43: Indecap Guide 1 C | C43: 40957 | D43: 36885 | E43: 77842 | F43: 3215460398 | G43: 3272910022 | H43: 6488370420 | I43: -36354268.34 | J43: Försiktig | K43: Blandfonder | L43: Indecap Fonder AB | M43: Aktiv | N43: Svensk
A44: 465914 | B44: Handelsbanken Sverige 100 Index Criteria A1 | C44: 34302 | D44: 42382 | E44: 76684 | F44: 5242584402 | G44: 7660843282 | H44: 1.290342768e+10 | I44: 407038943.7 | J44: Sverige | K44: Svenska Aktiefonder | L44: Handelsbanken Fonder AB | M44: Passiv | N44: Svensk | O44: Upphandlad
A45: 463141 | B45: SPP Generation 60-tal | C45: 41751 | D45: 33636 | E45: 75387 | F45: 1.23301316e+10 | G45: 1.174955337e+10 | H45: 2.407968497e+10 | I45: -74345860.72 | J45: Pension om mindre än 10 år | K45: Generationsfonder | L45: Storebrand Asset Management AS | M45: Aktiv | N45: Svensk
A46: 677534 | B46: Swedbank Robur Obligation A | C46: 41236 | D46: 30620 | E46: 71856 | F46: 1744238617 | G46: 1599009573 | H46: 3343248190 | I46: -10300069.73 | J46: Sverige lång och realränta | K46: Räntefonder | L46: Swedbank Robur Fonder AB | M46: Aktiv | N46: Svensk
A47: 602979 | B47: Handelsbanken Sverige LM Index (A1 SEK) | C47: 29992 | D47: 40156 | E47: 70148 | F47: 4425727581 | G47: 6831787436 | H47: 1.125751502e+10 | I47: 780356632.1 | J47: Sverige | K47: Svenska Aktiefonder | L47: Handelsbanken Fonder AB | M47: Passiv | N47: Svensk | O47: Upphandlad
A48: 978981 | B48: Swedbank Robur Access Asien A | C48: 29536 | D48: 38745 | E48: 68281 | F48: 3452206372 | G48: 5592231497 | H48: 9044437869 | I48: 152692829.4 | J48: Asien | K48: Regionala fonder | L48: Swedbank Robur Fonder AB | M48: Passiv | N48: Svensk
A49: 638809 | B49: Handelsbanken Sverige Index Criteria (A1 SEK) | C49: 28363 | D49: 38910 | E49: 67273 | F49: 4164585174 | G49: 6567934835 | H49: 1.073252001e+10 | I49: 857143671.2 | J49: Sverige | K49: Svenska Aktiefonder | L49: Handelsbanken Fonder AB | M49: Passiv | N49: Svensk | O49: Upphandlad
A50: 785907 | B50: Handelsbanken Global Index Criteria A1 | C50: 27928 | D50: 38383 | E50: 66311 | F50: 3919924414 | G50: 5885511410 | H50: 9805435824 | I50: 306919047.3 | J50: Global | K50: Regionala fonder | L50: Handelsbanken Fonder AB | M50: Passiv | N50: Svensk | O50: Upphandlad
A51: 976928 | B51: Folksam LO Sverige | C51: 32943 | D51: 33256 | E51: 66199 | F51: 6193962003 | G51: 8001087184 | H51: 1.419504919e+10 | I51: -54698056.52 | J51: Sverige | K51: Svenska Aktiefonder | L51: Swedbank Robur Fonder AB | M51: Aktiv | N51: Svensk | O51: Upphandlad
A52: 491233 | B52: Handelsbanken Developed Markets Index Criteria A1 | C52: 26957 | D52: 38080 | E52: 65037 | F52: 4469506183 | G52: 6702078049 | H52: 1.117158423e+10 | I52: 48027635.63 | J52: Global | K52: Regionala fonder | L52: Handelsbanken Fonder AB | M52: Passiv | N52: Svensk | O52: Upphandlad
A53: 215996 | B53: Nordea Generationsfond 80-tal | C53: 33976 | D53: 29096 | E53: 63072 | F53: 1.331834807e+10 | G53: 1.345601537e+10 | H53: 2.677436344e+10 | I53: -48106403 | J53: Pension om mer än 10 år | K53: Generationsfonder | L53: Nordea Funds Ab | M53: Aktiv | N53: Svensk
A54: 964767 | B54: Lannebo Global A | C54: 32401 | D54: 29977 | E54: 62378 | F54: 5444015722 | G54: 6055520577 | H54: 1.14995363e+10 | I54: -40343626.63 | J54: Global | K54: Regionala fonder | L54: Lannebo Kapitalförvaltning AB | M54: Aktiv | N54: Svensk
A55: 443895 | B55: C WorldWide Healthcare Select 1A | C55: 32162 | D55: 28724 | E55: 60886 | F55: 2941126459 | G55: 3125027122 | H55: 6066153581 | I55: -29554125.54 | J55: Läkemedel och bioteknik | K55: Branschfonder | L55: C WorldWide Fund Management S.A. | M55: Aktiv | N55: Utländsk
A56: 896761 | B56: Swedbank Robur Small Cap Europe A | C56: 30955 | D56: 29731 | E56: 60686 | F56: 2469175196 | G56: 2926599664 | H56: 5395774860 | I56: -34079786.28 | J56: Europa småbolag | K56: Regionala fonder | L56: Swedbank Robur Fonder AB | M56: Aktiv | N56: Svensk
A57: 941096 | B57: Folksam LO Världen | C57: 30237 | D57: 29188 | E57: 59425 | F57: 5568510499 | G57: 6709610453 | H57: 1.227812095e+10 | I57: -43108441.63 | J57: Global | K57: Regionala fonder | L57: Swedbank Robur Fonder AB | M57: Aktiv | N57: Svensk
A58: 140673 | B58: Storebrand Europa A | C58: 28446 | D58: 29970 | E58: 58416 | F58: 3039202214 | G58: 3793131792 | H58: 6832334006 | I58: -22299480 | J58: Europa | K58: Regionala fonder | L58: Storebrand Asset Management AS | M58: Passiv | N58: Svensk | O58: Upphandlad
A59: 430975 | B59: Nordea Generationsfond 50-tal | C59: 33383 | D59: 24996 | E59: 58379 | F59: 7847407408 | G59: 6836100661 | H59: 1.468350807e+10 | I59: -84650048.91 | J59: Pension om mindre än 10 år | K59: Generationsfonder | L59: Nordea Funds Ab | M59: Aktiv | N59: Svensk
A60: 391482 | B60: SPP Generation 40-tal | C60: 30643 | D60: 27116 | E60: 57759 | F60: 973120884.4 | G60: 1121434446 | H60: 2094555330 | I60: -15495262.69 | J60: Pension om mindre än 10 år | K60: Generationsfonder | L60: Storebrand Asset Management AS | M60: Aktiv | N60: Svensk
A61: 819557 | B61: Swedbank Robur Transfer 60 | C61: 34298 | D61: 23367 | E61: 57665 | F61: 1.221243291e+10 | G61: 9681938568 | H61: 2.189437148e+10 | I61: 17232826.59 | J61: Pension om mindre än 10 år | K61: Generationsfonder | L61: Swedbank Robur Fonder AB | M61: Aktiv | N61: Svensk
A62: 427310 | B62: SPP Generation 50-tal | C62: 29939 | D62: 26977 | E62: 56916 | F62: 3857911088 | G62: 4264493393 | H62: 8122404481 | I62: -44715346.83 | J62: Pension om mindre än 10 år | K62: Generationsfonder | L62: Storebrand Asset Management AS | M62: Aktiv | N62: Svensk
A63: 498972 | B63: SPP Generation 70-tal | C63: 32599 | D63: 23050 | E63: 55649 | F63: 1.034560148e+10 | G63: 8500829679 | H63: 1.884643116e+10 | I63: -22141124.76 | J63: Pension om mer än 10 år | K63: Generationsfonder | L63: Storebrand Asset Management AS | M63: Aktiv | N63: Svensk
A64: 229922 | B64: SEB Läkemedelsfond | C64: 28297 | D64: 27216 | E64: 55513 | F64: 3746209101 | G64: 4378289809 | H64: 8124498910 | I64: -38467350.61 | J64: Läkemedel och bioteknik | K64: Branschfonder | L64: SEB Funds AB | M64: Aktiv | N64: Svensk
A65: 248161 | B65: Storebrand USA A | C65: 24219 | D65: 31021 | E65: 55240 | F65: 4879393706 | G65: 7083794947 | H65: 1.196318865e+10 | I65: -70699694.26 | J65: USA och Nordamerika | K65: Regionala fonder | L65: Storebrand Asset Management AS | M65: Passiv | N65: Svensk
A66: 750075 | B66: Handelsbanken Emerging Markets Index A1 | C66: 21441 | D66: 30208 | E66: 51649 | F66: 2387544443 | G66: 3989093153 | H66: 6376637595 | I66: 169593146.5 | J66: Nya marknader | K66: Regionala fonder | L66: Handelsbanken Fonder AB | M66: Passiv | N66: Svensk
A67: 338590 | B67: BlackRock - World Gold A2 | C67: 18355 | D67: 30885 | E67: 49240 | F67: 3105953876 | G67: 6408152549 | H67: 9514106425 | I67: -1137976344 | J67: Råvaror och energi | K67: Branschfonder | L67: BlackRock Luxembourg S.A. | M67: Aktiv | N67: Utländsk
A68: 989491 | B68: Ålandsbanken Global Aktie B Placeringsfond | C68: 23387 | D68: 24545 | E68: 47932 | F68: 8863228063 | G68: 1.063485806e+10 | H68: 1.949808612e+10 | I68: -51821096.95 | J68: Global | K68: Regionala fonder | L68: Ålandsbanken Fondbolag Ab | M68: Aktiv | N68: Utländsk
A69: 629543 | B69: Handelsbanken Europa Index Criteria A1 | C69: 20864 | D69: 27046 | E69: 47910 | F69: 2411957857 | G69: 3762079315 | H69: 6174037172 | I69: -35512006.87 | J69: Europa | K69: Regionala fonder | L69: Handelsbanken Fonder AB | M69: Passiv | N69: Svensk | O69: Upphandlad
A70: 549552 | B70: Handelsbanken Global Småbolag Index Criteria A1 | C70: 19313 | D70: 28130 | E70: 47443 | F70: 2075675080 | G70: 3759468402 | H70: 5835143482 | I70: 137442723 | J70: Global | K70: Regionala fonder | L70: Handelsbanken Fonder AB | M70: Passiv | N70: Svensk
A71: 749192 | B71: Swedbank Robur Mixfond Pension | C71: 27429 | D71: 18730 | E71: 46159 | F71: 3103893027 | G71: 2730419375 | H71: 5834312402 | I71: -6668218.45 | J71: Varierande | K71: Blandfonder | L71: Swedbank Robur Fonder AB | M71: Aktiv | N71: Svensk
A72: 538462 | B72: AMF Aktiefond Europa | C72: 19656 | D72: 25594 | E72: 45250 | F72: 2471990055 | G72: 3975334590 | H72: 6447324644 | I72: -46275801.17 | J72: Europa | K72: Regionala fonder | L72: AMF Fonder AB | M72: Aktiv | N72: Svensk | O72: Upphandlad
A73: 224493 | B73: KPA Blandfond | C73: 28390 | D73: 16136 | E73: 44526 | F73: 3510188885 | G73: 2166414768 | H73: 5676603653 | I73: -19636987.28 | J73: Varierande | K73: Blandfonder | L73: Swedbank Robur Fonder AB | M73: Passiv | N73: Svensk
A74: 150649 | B74: Swedbank Robur Access USA A | C74: 19862 | D74: 24612 | E74: 44474 | F74: 3875015023 | G74: 5742972734 | H74: 9617987757 | I74: -26870570.58 | J74: USA och Nordamerika | K74: Regionala fonder | L74: Swedbank Robur Fonder AB | M74: Passiv | N74: Svensk
A75: 545426 | B75: Skandia Global Exponering A | C75: 17837 | D75: 26173 | E75: 44010 | F75: 2868237725 | G75: 4554081179 | H75: 7422318905 | I75: -6165486.15 | J75: Global | K75: Regionala fonder | L75: Skandia Fonder AB | M75: Passiv | N75: Svensk | O75: Upphandlad
A76: 856682 | B76: Swedbank Robur Småbolagsfond Sverige A | C76: 19127 | D76: 24148 | E76: 43275 | F76: 3018622810 | G76: 4691133279 | H76: 7709756089 | I76: -51526215.47 | J76: Sverige småbolag | K76: Svenska Aktiefonder | L76: Swedbank Robur Fonder AB | M76: Aktiv | N76: Svensk
A77: 717611 | B77: Swedbank Robur Räntefond Kort A | C77: 23883 | D77: 19058 | E77: 42941 | F77: 1799758689 | G77: 2381941902 | H77: 4181700591 | I77: -48117293.9 | J77: Sverige kortränta | K77: Räntefonder | L77: Swedbank Robur Fonder AB | M77: Aktiv | N77: Svensk
A78: 814772 | B78: Länsförsäkringar Sparmål 2015 | C78: 21202 | D78: 21319 | E78: 42521 | F78: 1060715846 | G78: 1304492355 | H78: 2365208200 | I78: -16407762.95 | J78: Pension om mindre än 10 år | K78: Generationsfonder | L78: Länsförsäkringar Fondförvaltning AB (publ) | M78: Aktiv | N78: Svensk
A79: 278853 | B79: Handelsbanken Pension 70 A12 | C79: 20117 | D79: 21714 | E79: 41831 | F79: 7905328117 | G79: 7707907805 | H79: 1.561323592e+10 | I79: 53093832.37 | J79: Pension om mer än 10 år | K79: Generationsfonder | L79: Handelsbanken Fonder AB | M79: Aktiv | N79: Svensk
A80: 515554 | B80: C WorldWide Global Equities 1A | C80: 21810 | D80: 19586 | E80: 41396 | F80: 3125801500 | G80: 3207687967 | H80: 6333489468 | I80: -32402350.54 | J80: Global | K80: Regionala fonder | L80: C WorldWide Fund Management S.A. | M80: Aktiv | N80: Utländsk
A81: 984187 | B81: SKAGEN Global E | C81: 20672 | D81: 20653 | E81: 41325 | F81: 2483583783 | G81: 2956800230 | H81: 5440384013 | I81: -44144525.23 | J81: Global | K81: Regionala fonder | L81: Storebrand Asset Management AS | M81: Aktiv | N81: Utländsk
A82: 286294 | B82: Nordea Småbolagsfond Norden | C82: 18896 | D82: 20534 | E82: 39430 | F82: 3247829910 | G82: 4280175399 | H82: 7528005309 | I82: -47943322.83 | J82: Norden småbolag | K82: Regionala fonder | L82: Nordea Funds Ab | M82: Aktiv | N82: Utländsk | O82: Upphandlad
A83: 313742 | B83: Länsförsäkringar Fastighetsfond A | C83: 17471 | D83: 21863 | E83: 39334 | F83: 1916441707 | G83: 2823191310 | H83: 4739633017 | I83: -66994533.89 | J83: Fastighet | K83: Branschfonder | L83: Länsförsäkringar Fondförvaltning AB (publ) | M83: Aktiv | N83: Svensk
A84: 574293 | B84: AMF Räntefond Lång | C84: 20158 | D84: 17569 | E84: 37727 | F84: 1626102860 | G84: 1833103624 | H84: 3459206484 | I84: 3165349.62 | J84: Sverige lång och realränta | K84: Räntefonder | L84: AMF Fonder AB | M84: Aktiv | N84: Svensk
A85: 269357 | B85: AMF Aktiefond Småbolag | C85: 15371 | D85: 21409 | E85: 36780 | F85: 1966561414 | G85: 3244351050 | H85: 5210912465 | I85: -61440882.95 | J85: Sverige småbolag | K85: Svenska Aktiefonder | L85: AMF Fonder AB | M85: Aktiv | N85: Svensk
A86: 196097 | B86: Nordea European Sustainable Stars Equity Fund | C86: 18390 | D86: 18233 | E86: 36623 | F86: 2132046393 | G86: 2563741701 | H86: 4695788094 | I86: -6298891.76 | J86: Europa | K86: Regionala fonder | L86: Nordea Investment Funds S.A. | M86: Aktiv | N86: Utländsk | O86: Upphandlad
A87: 194092 | B87: SEB Teknologifond | C87: 16341 | D87: 20185 | E87: 36526 | F87: 4032344639 | G87: 5995330318 | H87: 1.002767496e+10 | I87: -3191730.64 | J87: IT och kommunikation | K87: Branschfonder | L87: SEB Funds AB | M87: Aktiv | N87: Svensk
A88: 446088 | B88: BlackRock - World Technology A2 | C88: 12104 | D88: 24299 | E88: 36403 | F88: 2894295064 | G88: 6642750940 | H88: 9537046003 | I88: 756346726.2 | J88: IT och kommunikation | K88: Branschfonder | L88: BlackRock Luxembourg S.A. | M88: Aktiv | N88: Utländsk
A89: 855387 | B89: Swedbank Robur Transfer 50 | C89: 22255 | D89: 13672 | E89: 35927 | F89: 3347743001 | G89: 2467493402 | H89: 5815236403 | I89: -23390887.18 | J89: Pension om mindre än 10 år | K89: Generationsfonder | L89: Swedbank Robur Fonder AB | M89: Aktiv | N89: Svensk
A90: 687509 | B90: Handelsbanken Hållbar Energi A1 | C90: 13906 | D90: 21770 | E90: 35676 | F90: 1800493012 | G90: 3335238168 | H90: 5135731180 | I90: -182957873.7 | J90: Råvaror och energi | K90: Branschfonder | L90: Handelsbanken Fonder AB | M90: Aktiv | N90: Svensk
A91: 282517 | B91: Nordea Global | C91: 17094 | D91: 17925 | E91: 35019 | F91: 3234521093 | G91: 4177554693 | H91: 7412075786 | I91: 26889258.62 | J91: Global | K91: Regionala fonder | L91: Nordea Funds Ab | M91: Aktiv | N91: Utländsk
A92: 952010 | B92: Handelsbanken Svenska Småbolag A1 | C92: 15967 | D92: 18830 | E92: 34797 | F92: 2282442104 | G92: 3295132042 | H92: 5577574146 | I92: -42441398.03 | J92: Sverige småbolag | K92: Svenska Aktiefonder | L92: Handelsbanken Fonder AB | M92: Aktiv | N92: Svensk
A93: 501981 | B93: SKAGEN Kon-Tiki F | C93: 16162 | D93: 16902 | E93: 33064 | F93: 1644489242 | G93: 2074842319 | H93: 3719331561 | I93: -27895220.33 | J93: Nya marknader | K93: Regionala fonder | L93: Storebrand Asset Management AS | M93: Aktiv | N93: Utländsk
A94: 842690 | B94: Lannebo Småbolag | C94: 15628 | D94: 17401 | E94: 33029 | F94: 2722371508 | G94: 3682378978 | H94: 6404750486 | I94: -55826642.89 | J94: Sverige småbolag | K94: Svenska Aktiefonder | L94: Lannebo Kapitalförvaltning AB | M94: Aktiv | N94: Svensk
A95: 502633 | B95: Nordea Generationsfond Senior | C95: 19007 | D95: 13029 | E95: 32036 | F95: 859504275.1 | G95: 734078284.7 | H95: 1593582560 | I95: -12356939.01 | J95: Pension om mindre än 10 år | K95: Generationsfonder | L95: Nordea Funds Ab | M95: Aktiv | N95: Svensk
A96: 495482 | B96: SEB Sverigefond | C96: 13928 | D96: 17663 | E96: 31591 | F96: 2135574180 | G96: 3288681426 | H96: 5424255605 | I96: -58952618.18 | J96: Sverige | K96: Svenska Aktiefonder | L96: SEB Funds AB | M96: Aktiv | N96: Svensk | O96: Upphandlad
A97: 439471 | B97: Skandia Time Global | C97: 13327 | D97: 17982 | E97: 31309 | F97: 3741163283 | G97: 5810647658 | H97: 9551810941 | I97: -25736749.04 | J97: IT och kommunikation | K97: Branschfonder | L97: Skandia Fonder AB | M97: Aktiv | N97: Svensk
A98: 545541 | B98: AP7 Räntefond | C98: 12522 | D98: 16348 | E98: 28870 | F98: 2211486017 | G98: 3933286441 | H98: 6144772458 | I98: 3538347940 | J98: Sverige lång och realränta | K98: Räntefonder | L98: Sjunde AP-Fonden | M98: Aktiv | N98: Svensk
A99: 879114 | B99: SEB Världenfond | C99: 15344 | D99: 12968 | E99: 28312 | F99: 2979903485 | G99: 2907598015 | H99: 5887501500 | I99: -26036165.54 | J99: Aggressiv | K99: Blandfonder | L99: SEB Funds AB | M99: Aktiv | N99: Svensk
A100: 527060 | B100: Storebrand Global Indeks A4 | C100: 11458 | D100: 16471 | E100: 27929 | F100: 1924261143 | G100: 3022272994 | H100: 4946534137 | I100: -231278.71 | J100: Global | K100: Regionala fonder | L100: Storebrand Asset Management AS | M100: Passiv | N100: Utländsk | O100: Upphandlad
A101: 929224 | B101: Handelsbanken USA Index Criteria A1 | C101: 10895 | D101: 17000 | E101: 27895 | F101: 1788043603 | G101: 3237761165 | H101: 5025804769 | I101: -4055613.49 | J101: USA och Nordamerika | K101: Regionala fonder | L101: Handelsbanken Fonder AB | M101: Passiv | N101: Svensk
A102: 987842 | B102: Handelsbanken Tillväxtmarknad Tema A1 | C102: 12142 | D102: 14025 | E102: 26167 | F102: 1521792932 | G102: 2141585267 | H102: 3663378199 | I102: 11724476.48 | J102: Nya marknader | K102: Regionala fonder | L102: Handelsbanken Fonder AB | M102: Aktiv | N102: Svensk
A103: 465147 | B103: Spiltan Globalfond Investmentbolag | C103: 7993 | D103: 18057 | E103: 26050 | F103: 1022620299 | G103: 2396233565 | H103: 3418853864 | I103: -97135055.15 | J103: Global | K103: Regionala fonder | L103: Spiltan Fonder AB | M103: Aktiv | N103: Svensk
A104: 350512 | B104: Handelsbanken Pension 60 A12 | C104: 13716 | D104: 11525 | E104: 25241 | F104: 7397909259 | G104: 6825058406 | H104: 1.422296766e+10 | I104: 33124389.55 | J104: Pension om mindre än 10 år | K104: Generationsfonder | L104: Handelsbanken Fonder AB | M104: Aktiv | N104: Svensk
A105: 357483 | B105: Carnegie Strategifond A | C105: 11987 | D105: 13227 | E105: 25214 | F105: 1650284911 | G105: 2175135318 | H105: 3825420229 | I105: -31666950.9 | J105: Varierande | K105: Blandfonder | L105: Carnegie Fonder AB | M105: Aktiv | N105: Svensk
A106: 771030 | B106: Lannebo Teknik | C106: 10828 | D106: 13428 | E106: 24256 | F106: 2169373336 | G106: 3061972361 | H106: 5231345697 | I106: -46462964.17 | J106: IT och kommunikation | K106: Branschfonder | L106: Lannebo Kapitalförvaltning AB | M106: Aktiv | N106: Svensk
A107: 393314 | B107: Carnegie Sverigefond A | C107: 10782 | D107: 13224 | E107: 24006 | F107: 1692277759 | G107: 2530226707 | H107: 4222504466 | I107: -34247345.45 | J107: Sverige | K107: Svenska Aktiefonder | L107: Carnegie Fonder AB | M107: Aktiv | N107: Svensk | O107: Upphandlad
A108: 140491 | B108: D&G Småbolag | C108: 10792 | D108: 13096 | E108: 23888 | F108: 1389591393 | G108: 1964469759 | H108: 3354061152 | I108: -51508236.86 | J108: Sverige småbolag | K108: Svenska Aktiefonder | L108: Carnegie Fonder AB | M108: Aktiv | N108: Svensk
A109: 475301 | B109: Skandia Världen | C109: 13241 | D109: 10591 | E109: 23832 | F109: 1661595250 | G109: 1493294961 | H109: 3154890211 | I109: -9928554.25 | J109: Global | K109: Regionala fonder | L109: Skandia Fonder AB | M109: Aktiv | N109: Svensk
A110: 511139 | B110: Skandia USA | C110: 10628 | D110: 13079 | E110: 23707 | F110: 1490106809 | G110: 2101098592 | H110: 3591205401 | I110: -13485856.42 | J110: USA och Nordamerika | K110: Regionala fonder | L110: Skandia Fonder AB | M110: Aktiv | N110: Svensk
A111: 521104 | B111: Ålandsbanken Norden Aktie Placeringsfond | C111: 10570 | D111: 12762 | E111: 23332 | F111: 1146217329 | G111: 1628063891 | H111: 2774281220 | I111: -16613332.3 | J111: Norden | K111: Regionala fonder | L111: Ålandsbanken Fondbolag Ab | M111: Aktiv | N111: Utländsk | O111: Upphandlad
A112: 459652 | B112: Handelsbanken Sverige Selektiv (A1 SEK) | C112: 11145 | D112: 12108 | E112: 23253 | F112: 1532723471 | G112: 1962317245 | H112: 3495040716 | I112: -2240432.12 | J112: Sverige | K112: Svenska Aktiefonder | L112: Handelsbanken Fonder AB | M112: Aktiv | N112: Svensk | O112: Upphandlad
A113: 995571 | B113: Nordea Globala Tillväxtmarknader | C113: 10103 | D113: 12901 | E113: 23004 | F113: 1286155662 | G113: 2115977878 | H113: 3402133540 | I113: 138981122.8 | J113: Nya marknader | K113: Regionala fonder | L113: Nordea Funds Ab | M113: Aktiv | N113: Utländsk
A114: 567140 | B114: Simplicity Sverige | C114: 10699 | D114: 12115 | E114: 22814 | F114: 1587395684 | G114: 2100393693 | H114: 3687789377 | I114: 321206.16 | J114: Sverige | K114: Svenska Aktiefonder | L114: Simplicity AB | M114: Aktiv | N114: Svensk | O114: Upphandlad
A115: 183343 | B115: DNB Teknologi S | C115: 7929 | D115: 14753 | E115: 22682 | F115: 1967665985 | G115: 4083645016 | H115: 6051311001 | I115: -22993094.03 | J115: IT och kommunikation | K115: Branschfonder | L115: DNB Asset Management AS | M115: Aktiv | N115: Utländsk
A116: 607226 | B116: Swedbank Robur Sverige A | C116: 10673 | D116: 11605 | E116: 22278 | F116: 1524533373 | G116: 1945523357 | H116: 3470056730 | I116: -14516244.17 | J116: Sverige | K116: Svenska Aktiefonder | L116: Swedbank Robur Fonder AB | M116: Aktiv | N116: Svensk | O116: Upphandlad
A117: 423822 | B117: Cliens Sverige | C117: 10638 | D117: 11609 | E117: 22247 | F117: 1523012714 | G117: 1979184473 | H117: 3502197187 | I117: -451222.46 | J117: Sverige | K117: Svenska Aktiefonder | L117: Cliens Kapitalförvaltning AB | M117: Aktiv | N117: Svensk | O117: Upphandlad
A118: 343665 | B118: Mercer Passive Sustainable Global Equity UCITS CCF | C118: 8800 | D118: 13055 | E118: 21855 | F118: 1835116857 | G118: 2774305671 | H118: 4609422528 | I118: -46379612.38 | J118: Global | K118: Regionala fonder | L118: Mercer Global Investments Management Limited | M118: Passiv | N118: Utländsk | O118: Upphandlad
A119: 305185 | B119: AMF Räntefond Kort | C119: 9952 | D119: 11433 | E119: 21385 | F119: 1263372822 | G119: 2274401378 | H119: 3537774199 | I119: 266273496.5 | J119: Sverige kortränta | K119: Räntefonder | L119: AMF Fonder AB | M119: Aktiv | N119: Svensk
A120: 520759 | B120: SEB Dynamisk Aktiefond | C120: 11902 | D120: 9333 | E120: 21235 | F120: 3705741894 | G120: 3369744211 | H120: 7075486104 | I120: -21217453.45 | J120: Global | K120: Regionala fonder | L120: SEB Funds AB | M120: Aktiv | N120: Svensk
A121: 303701 | B121: Sensor Sverige Select | C121: 10495 | D121: 10500 | E121: 20995 | F121: 1705957859 | G121: 2054345407 | H121: 3760303266 | I121: -15372975.75 | J121: Varierande | K121: Blandfonder | L121: Sensor Fonder AB | M121: Aktiv | N121: Svensk
A122: 243022 | B122: Handelsbanken Pension 80 A12 | C122: 10816 | D122: 10102 | E122: 20918 | F122: 3419294225 | G122: 3551193639 | H122: 6970487864 | I122: 23264308.76 | J122: Pension om mer än 10 år | K122: Generationsfonder | L122: Handelsbanken Fonder AB | M122: Aktiv | N122: Svensk
A123: 531310 | B123: SEB 3 - SEB Sweden Equity Fund | C123: 10306 | D123: 10446 | E123: 20752 | F123: 1676550246 | G123: 2040256940 | H123: 3716807186 | I123: -15166110.86 | J123: Sverige | K123: Svenska Aktiefonder | L123: SEB Funds AB | M123: Aktiv | N123: Utländsk | O123: Upphandlad
A124: 123679 | B124: Handelsbanken Global Tema A1 | C124: 10471 | D124: 9952 | E124: 20423 | F124: 1474025089 | G124: 1625961646 | H124: 3099986735 | I124: -10350752.05 | J124: Global | K124: Regionala fonder | L124: Handelsbanken Fonder AB | M124: Aktiv | N124: Svensk
A125: 908277 | B125: AMF Aktiefond Global | C125: 9220 | D125: 11090 | E125: 20310 | F125: 1887904375 | G125: 2591153054 | H125: 4479057429 | I125: -8342236.71 | J125: Global | K125: Regionala fonder | L125: AMF Fonder AB | M125: Aktiv | N125: Svensk
A126: 861757 | B126: Nordea Nordic Fund | C126: 9681 | D126: 10420 | E126: 20101 | F126: 1056979057 | G126: 1359172239 | H126: 2416151297 | I126: -11893928.67 | J126: Norden | K126: Regionala fonder | L126: Nordea Funds Ab | M126: Aktiv | N126: Utländsk | O126: Upphandlad
A127: 674630 | B127: Handelsbanken Norden Selektiv (A1 SEK) | C127: 9556 | D127: 9768 | E127: 19324 | F127: 1170550733 | G127: 1437081406 | H127: 2607632139 | I127: -10209870.86 | J127: Norden | K127: Regionala fonder | L127: Handelsbanken Fonder AB | M127: Aktiv | N127: Svensk | O127: Upphandlad
A128: 330324 | B128: CPR Invest Global Gold Mines A2 | C128: 6739 | D128: 12544 | E128: 19283 | F128: 1164900545 | G128: 2544347687 | H128: 3709248232 | I128: -507228743.5 | J128: Råvaror och energi | K128: Branschfonder | L128: CPR Asset Management | M128: Aktiv | N128: Utländsk
A129: 334409 | B129: Baring Hong Kong China A | C129: 8248 | D129: 10748 | E129: 18996 | F129: 689173385.6 | G129: 1120721656 | H129: 1809895041 | I129: -11837973.9 | J129: Kina | K129: Länderfonder | L129: Baring International Fund Managers (Ireland) Ltd | M129: Aktiv | N129: Utländsk
A130: 551507 | B130: Länsförsäkringar USA Index | C130: 5799 | D130: 12660 | E130: 18459 | F130: 876441452.7 | G130: 2050230956 | H130: 2926672409 | I130: -3309777.17 | J130: USA och Nordamerika | K130: Regionala fonder | L130: Länsförsäkringar Fondförvaltning AB (publ) | M130: Passiv | N130: Svensk
A131: 563965 | B131: Länsförsäkringar Global Vision A | C131: 9108 | D131: 9229 | E131: 18337 | F131: 1320960880 | G131: 1548509413 | H131: 2869470293 | I131: 4474813.85 | J131: Global | K131: Regionala fonder | L131: Länsförsäkringar Fondförvaltning AB (publ) | M131: Aktiv | N131: Svensk
A132: 341362 | B132: Carnegie Listed Private Equity A | C132: 8830 | D132: 9235 | E132: 18065 | F132: 779216966.8 | G132: 990347485 | H132: 1769564452 | I132: -19863912.66 | J132: Global | K132: Regionala fonder | L132: Carnegie Fonder AB | M132: Aktiv | N132: Svensk
A133: 3 | B133: AP7 Balanserad | C133: 8666 | D133: 9362 | E133: 18028 | F133: 2987925889 | G133: 3561945376 | H133: 6549871265 | J133: Statens förvaltningsalternativ | K133: Blandfonder | L133: Sjunde AP-Fonden | M133: Aktiv | N133: Svensk
A134: 176503 | B134: Storebrand Japan A | C134: 7601 | D134: 10288 | E134: 17889 | F134: 578850181.4 | G134: 940416889.6 | H134: 1519267071 | I134: 16995448.85 | J134: Japan | K134: Länderfonder | L134: Storebrand Asset Management AS | M134: Passiv | N134: Svensk
A135: 152181 | B135: Spiltan Småbolagsfond | C135: 6129 | D135: 11569 | E135: 17698 | F135: 735054998.1 | G135: 1482898497 | H135: 2217953495 | I135: -59580014.65 | J135: Sverige småbolag | K135: Svenska Aktiefonder | L135: Spiltan Fonder AB | M135: Aktiv | N135: Svensk
A136: 144501 | B136: Ålandsbanken Euro Bond S Placeringsfond | C136: 8452 | D136: 9131 | E136: 17583 | F136: 404667093.6 | G136: 508188253.7 | H136: 912855347.3 | I136: 311491.39 | J136: Europa ränta | K136: Räntefonder | L136: Ålandsbanken Fondbolag Ab | M136: Aktiv | N136: Utländsk
A137: 422709 | B137: BMC Global Select fund | C137: 8137 | D137: 8873 | E137: 17010 | F137: 2589933621 | G137: 3312733075 | H137: 5902666696 | I137: -27254755.14 | J137: Global | K137: Regionala fonder | L137: Waystone Management Company (Lux) S.A | M137: Aktiv | N137: Utländsk
A138: 861229 | B138: Tundra Sustainable Frontier Fund A | C138: 8432 | D138: 8432 | E138: 16864 | F138: 454779592.7 | G138: 582398217.9 | H138: 1037177811 | I138: -7679581.13 | J138: Nya marknader | K138: Regionala fonder | L138: Tundra Fonder AB | M138: Aktiv | N138: Svensk
A139: 4 | B139: AP7 Offensiv | C139: 6012 | D139: 10540 | E139: 16552 | F139: 2935388521 | G139: 5480807463 | H139: 8416195984 | J139: Statens förvaltningsalternativ | K139: Blandfonder | L139: Sjunde AP-Fonden | M139: Aktiv | N139: Svensk
A140: 484923 | B140: SEB Nordenfond | C140: 7403 | D140: 8923 | E140: 16326 | F140: 1082463747 | G140: 1579567891 | H140: 2662031638 | I140: -17555808.08 | J140: Norden | K140: Regionala fonder | L140: SEB Funds AB | M140: Aktiv | N140: Svensk | O140: Upphandlad
A141: 972497 | B141: Spiltan Räntefond Sverige | C141: 7073 | D141: 9159 | E141: 16232 | F141: 1082197317 | G141: 1863234799 | H141: 2945432116 | I141: -47738246.73 | J141: Sverige kortränta | K141: Räntefonder | L141: Spiltan Fonder AB | M141: Aktiv | N141: Svensk
A142: 320762 | B142: Swedbank Robur Transfer 90 | C142: 8044 | D142: 7973 | E142: 16017 | F142: 1822641777 | G142: 2175425439 | H142: 3998067216 | I142: -2913386.09 | J142: Pension om mer än 10 år | K142: Generationsfonder | L142: Swedbank Robur Fonder AB | M142: Aktiv | N142: Svensk
A143: 434274 | B143: Länsförsäkringar Tillväxtmarknad Index A | C143: 6160 | D143: 9183 | E143: 15343 | F143: 681731935.4 | G143: 1189091162 | H143: 1870823097 | I143: 11439855.1 | J143: Nya marknader | K143: Regionala fonder | L143: Länsförsäkringar Fondförvaltning AB (publ) | M143: Passiv | N143: Svensk
A144: 968420 | B144: Swedbank Robur Fastighet A | C144: 7154 | D144: 7935 | E144: 15089 | F144: 714586239 | G144: 955784326.5 | H144: 1670370565 | I144: -9496116.08 | J144: Fastighet | K144: Branschfonder | L144: Swedbank Robur Fonder AB | M144: Aktiv | N144: Svensk
A145: 517748 | B145: BlackRock - World Energy A2 | C145: 5002 | D145: 9827 | E145: 14829 | F145: 705315166.1 | G145: 1639664120 | H145: 2344979286 | I145: -665705454.6 | J145: Råvaror och energi | K145: Branschfonder | L145: BlackRock Luxembourg S.A. | M145: Aktiv | N145: Utländsk
A146: 596429 | B146: Nordea Generationsfond 90-tal | C146: 8150 | D146: 6624 | E146: 14774 | F146: 1515253443 | G146: 1505216189 | H146: 3020469632 | I146: -2404623.09 | J146: Pension om mer än 10 år | K146: Generationsfonder | L146: Nordea Funds Ab | M146: Aktiv | N146: Svensk
A147: 707281 | B147: Länsförsäkringar Sparmål 2030 | C147: 7875 | D147: 6771 | E147: 14646 | F147: 2604767222 | G147: 2696120038 | H147: 5300887261 | I147: -8942630.68 | J147: Pension om mindre än 10 år | K147: Generationsfonder | L147: Länsförsäkringar Fondförvaltning AB (publ) | M147: Aktiv | N147: Svensk
A148: 520692 | B148: AMF Aktiefond Nordamerika | C148: 5508 | D148: 9069 | E148: 14577 | F148: 1010666851 | G148: 1926092698 | H148: 2936759549 | I148: -17121550.1 | J148: USA och Nordamerika | K148: Regionala fonder | L148: AMF Fonder AB | M148: Aktiv | N148: Svensk
A149: 959502 | B149: Cicero Hållbar Mix A | C149: 5992 | D149: 8574 | E149: 14566 | F149: 2071077867 | G149: 3584605410 | H149: 5655683277 | I149: -24724148.39 | J149: Varierande | K149: Blandfonder | L149: Cicero Fonder AB | M149: Aktiv | N149: Svensk
A150: 988600 | B150: SEB Europe Equity Fund | C150: 7025 | D150: 7033 | E150: 14058 | F150: 739604582.6 | G150: 864001099.4 | H150: 1603605682 | I150: -2482849.71 | J150: Europa | K150: Regionala fonder | L150: SEB Funds AB | M150: Aktiv | N150: Utländsk | O150: Upphandlad
A151: 124438 | B151: JPMorgan Funds - Europe Sustainable Equity Fund | C151: 6842 | D151: 7184 | E151: 14026 | F151: 633517362.9 | G151: 784456192.1 | H151: 1417973555 | I151: -6508043.06 | J151: Europa | K151: Regionala fonder | L151: J.P. Morgan Asset Management (Europe) S.à.r.l. | M151: Aktiv | N151: Utländsk | O151: Upphandlad
A152: 481911 | B152: BlackRock - World Mining A2 | C152: 4452 | D152: 9343 | E152: 13795 | F152: 550007643.4 | G152: 1425203752 | H152: 1975211395 | I152: -171009762.4 | J152: Råvaror och energi | K152: Branschfonder | L152: BlackRock Luxembourg S.A. | M152: Aktiv | N152: Utländsk
A153: 160267 | B153: Swedbank Robur Europafond A | C153: 6700 | D153: 7090 | E153: 13790 | F153: 542950058.4 | G153: 679803911.8 | H153: 1222753970 | I153: -5403575.29 | J153: Europa | K153: Regionala fonder | L153: Swedbank Robur Fonder AB | M153: Aktiv | N153: Svensk | O153: Upphandlad
A154: 743112 | B154: Länsförsäkringar Sparmål 2025 | C154: 7182 | D154: 6469 | E154: 13651 | F154: 1927391477 | G154: 2026618568 | H154: 3954010045 | I154: -16011410.52 | J154: Pension om mindre än 10 år | K154: Generationsfonder | L154: Länsförsäkringar Fondförvaltning AB (publ) | M154: Aktiv | N154: Svensk
A155: 840090 | B155: Nordea Stratega Ränta | C155: 8123 | D155: 5517 | E155: 13640 | F155: 885818855.5 | G155: 690025230.6 | H155: 1575844086 | I155: -4566253.96 | J155: Övriga räntefonder | K155: Räntefonder | L155: Nordea Funds Ab | M155: Aktiv | N155: Utländsk
A156: 314682 | B156: Handelsbanken Pension 50 A12 | C156: 7403 | D156: 6138 | E156: 13541 | F156: 2061402886 | G156: 1941328446 | H156: 4002731332 | I156: -21579497.4 | J156: Pension om mindre än 10 år | K156: Generationsfonder | L156: Handelsbanken Fonder AB | M156: Aktiv | N156: Svensk
A157: 654459 | B157: Skandia Europa Exponering | C157: 5863 | D157: 7487 | E157: 13350 | F157: 713162254.2 | G157: 1071520887 | H157: 1784683142 | I157: -11133715.9 | J157: Europa | K157: Regionala fonder | L157: Skandia Fonder AB | M157: Passiv | N157: Svensk | O157: Upphandlad
A158: 429316 | B158: Storebrand Emerging Markets Plus A | C158: 5093 | D158: 8043 | E158: 13136 | F158: 414560805.3 | G158: 772251096 | H158: 1186811901 | I158: 49939156.54 | J158: Nya marknader | K158: Regionala fonder | L158: Storebrand Asset Management AS | M158: Passiv | N158: Svensk
A159: 584912 | B159: Carnegie Småbolagsfond A | C159: 4961 | D159: 7877 | E159: 12838 | F159: 786148368.5 | G159: 1473157506 | H159: 2259305875 | I159: -45943021.34 | J159: Sverige småbolag | K159: Svenska Aktiefonder | L159: Carnegie Fonder AB | M159: Aktiv | N159: Svensk
A160: 778944 | B160: Länsförsäkringar Sparmål 2020 | C160: 6550 | D160: 6256 | E160: 12806 | F160: 1039693932 | G160: 1190372854 | H160: 2230066786 | I160: -13181730.83 | J160: Pension om mindre än 10 år | K160: Generationsfonder | L160: Länsförsäkringar Fondförvaltning AB (publ) | M160: Aktiv | N160: Svensk
A161: 952770 | B161: abrdn SICAV I - European Sustainable Equity Fund I Acc EUR | C161: 6229 | D161: 6355 | E161: 12584 | F161: 402671419 | G161: 466965471.5 | H161: 869636890.5 | I161: -2495086.99 | J161: Europa | K161: Regionala fonder | L161: abrdn Investments Luxembourg S.A | M161: Aktiv | N161: Utländsk | O161: Upphandlad
A162: 844522 | B162: SPP Generation 80-tal | C162: 6618 | D162: 5602 | E162: 12220 | F162: 1964246850 | G162: 1972742833 | H162: 3936989683 | I162: -8987986.95 | J162: Pension om mer än 10 år | K162: Generationsfonder | L162: Storebrand Asset Management AS | M162: Aktiv | N162: Svensk
A163: 644005 | B163: Handelsbanken Hälsovård Tema A1 | C163: 4801 | D163: 7124 | E163: 11925 | F163: 605457585.3 | G163: 1079640260 | H163: 1685097845 | I163: -22569942.44 | J163: Läkemedel och bioteknik | K163: Branschfonder | L163: Handelsbanken Fonder AB | M163: Aktiv | N163: Svensk
A164: 599795 | B164: Länsförsäkringar Mix Vision A | C164: 6680 | D164: 5166 | E164: 11846 | F164: 520405058.1 | G164: 473181836.3 | H164: 993586894.4 | I164: -4039535.02 | J164: Balanserad | K164: Blandfonder | L164: Länsförsäkringar Fondförvaltning AB (publ) | M164: Aktiv | N164: Svensk
A165: 671453 | B165: Länsförsäkringar Sparmål 2035 | C165: 6564 | D165: 5249 | E165: 11813 | F165: 2207946624 | G165: 2175479939 | H165: 4383426563 | I165: 7227007.53 | J165: Pension om mer än 10 år | K165: Generationsfonder | L165: Länsförsäkringar Fondförvaltning AB (publ) | M165: Aktiv | N165: Svensk
A166: 504100 | B166: Handelsbanken Asien Tema A1 | C166: 4569 | D166: 6989 | E166: 11558 | F166: 625140132.3 | G166: 1168009588 | H166: 1793149721 | I166: 250402582.8 | J166: Asien | K166: Regionala fonder | L166: Handelsbanken Fonder AB | M166: Aktiv | N166: Svensk
A167: 950774 | B167: SEB Emerging Marketsfond | C167: 5048 | D167: 6173 | E167: 11221 | F167: 614840890.3 | G167: 985955122.5 | H167: 1600796013 | I167: 62537118.44 | J167: Nya marknader | K167: Regionala fonder | L167: SEB Funds AB | M167: Aktiv | N167: Svensk
A168: 751495 | B168: Handelsbanken Nordiska Småbolag A1 | C168: 5191 | D168: 5801 | E168: 10992 | F168: 741852388.8 | G168: 966913411.5 | H168: 1708765800 | I168: -23858716.16 | J168: Norden småbolag | K168: Regionala fonder | L168: Handelsbanken Fonder AB | M168: Aktiv | N168: Svensk | O168: Upphandlad
A169: 2 | B169: AP7 Försiktig | C169: 5311 | D169: 5491 | E169: 10802 | F169: 1349453506 | G169: 1679280623 | H169: 3028734129 | J169: Statens förvaltningsalternativ | K169: Blandfonder | L169: Sjunde AP-Fonden | M169: Aktiv | N169: Svensk
A170: 117002 | B170: Lärarfond Balanserad | C170: 7554 | D170: 3246 | E170: 10800 | F170: 775270460.6 | G170: 315098896.2 | H170: 1090369357 | I170: -7053701.42 | J170: Varierande | K170: Blandfonder | L170: Lannebo Kapitalförvaltning AB | M170: Aktiv | N170: Svensk
A171: 456475 | B171: Länsförsäkringar USA Aktiv A | C171: 4539 | D171: 6093 | E171: 10632 | F171: 850463235.5 | G171: 1332518155 | H171: 2182981390 | I171: -7685373.54 | J171: USA och Nordamerika | K171: Regionala fonder | L171: Länsförsäkringar Fondförvaltning AB (publ) | M171: Aktiv | N171: Svensk
A172: 260919 | B172: Pictet Biotech R | C172: 4831 | D172: 5710 | E172: 10541 | F172: 734370129.9 | G172: 1030082565 | H172: 1764452695 | I172: 4987046.27 | J172: Läkemedel och bioteknik | K172: Branschfonder | L172: Pictet Asset Management (Europe) S.A. | M172: Aktiv | N172: Utländsk
A173: 505586 | B173: Carnegie Indienfond A | C173: 4097 | D173: 6351 | E173: 10448 | F173: 370362279 | G173: 715339936.3 | H173: 1085702215 | I173: -11539326.59 | J173: Indien | K173: Länderfonder | L173: Carnegie Fonder AB | M173: Aktiv | N173: Svensk
A174: 469692 | B174: Nordea Indienfond | C174: 3589 | D174: 6666 | E174: 10255 | F174: 314065457 | G174: 763344411.1 | H174: 1077409868 | I174: -3191746.8 | J174: Indien | K174: Länderfonder | L174: Nordea Funds Ab | M174: Aktiv | N174: Utländsk
A175: 152835 | B175: Lärarfond Offensiv | C175: 7297 | D175: 2932 | E175: 10229 | F175: 2019273161 | G175: 866984867.5 | H175: 2886258029 | I175: -10937390.66 | J175: Global och Sverige | K175: Regionala fonder | L175: Lannebo Kapitalförvaltning AB | M175: Aktiv | N175: Svensk
A176: 305243 | B176: JPMorgan Emerging Markets Equity A | C176: 4712 | D176: 5302 | E176: 10014 | F176: 469093989.1 | G176: 668265146.5 | H176: 1137359136 | I176: 11509173.44 | J176: Nya marknader | K176: Regionala fonder | L176: J.P. Morgan Asset Management (Europe) S.à.r.l. | M176: Aktiv | N176: Utländsk
A177: 635623 | B177: Länsförsäkringar Sparmål 2040 | C177: 5469 | D177: 4486 | E177: 9955 | F177: 1820020380 | G177: 1822216476 | H177: 3642236856 | I177: 265665.52 | J177: Pension om mer än 10 år | K177: Generationsfonder | L177: Länsförsäkringar Fondförvaltning AB (publ) | M177: Aktiv | N177: Svensk
A178: 420646 | B178: Länsförsäkringar Kort Räntefond | C178: 5158 | D178: 4737 | E178: 9895 | F178: 320838666.7 | G178: 470173878.2 | H178: 791012544.9 | I178: -10443897.37 | J178: Sverige kortränta | K178: Räntefonder | L178: Länsförsäkringar Fondförvaltning AB (publ) | M178: Aktiv | N178: Svensk
A179: 479550 | B179: Seligson & Co Global Top 25 Brands A | C179: 5059 | D179: 4827 | E179: 9886 | F179: 876988193.3 | G179: 985551158.7 | H179: 1862539352 | I179: -7138671.4 | J179: Global | K179: Regionala fonder | L179: Seligson & Co Fondbolag Abp | M179: Aktiv | N179: Utländsk
A180: 534800 | B180: Storebrand Obligation A | C180: 5511 | D180: 4262 | E180: 9773 | F180: 270237928.5 | G180: 288574924.5 | H180: 558812853 | I180: -1959523.92 | J180: Sverige lång och realränta | K180: Räntefonder | L180: Storebrand Asset Management AS | M180: Aktiv | N180: Svensk
A181: 191080 | B181: Baring Global Emerging Markets A | C181: 4825 | D181: 4862 | E181: 9687 | F181: 414891291.5 | G181: 577829100.5 | H181: 992720392 | I181: -1055130.34 | J181: Nya marknader | K181: Regionala fonder | L181: Baring International Fund Managers (Ireland) Ltd | M181: Aktiv | N181: Utländsk
A182: 546960 | B182: Skandia Balanserad | C182: 5160 | D182: 4238 | E182: 9398 | F182: 487559543.8 | G182: 479366632 | H182: 966926175.9 | I182: -2975217.32 | J182: Balanserad | K182: Blandfonder | L182: Skandia Fonder AB | M182: Aktiv | N182: Svensk
A183: 914945 | B183: SEB Asienfond ex Japan | C183: 3718 | D183: 5448 | E183: 9166 | F183: 517839063.5 | G183: 959401706.4 | H183: 1477240770 | I183: 240432852.7 | J183: Asien | K183: Regionala fonder | L183: SEB Funds AB | M183: Aktiv | N183: Svensk
A184: 715955 | B184: Avanza Emerging Markets | C184: 2891 | D184: 6171 | E184: 9062 | F184: 429091694.7 | G184: 973636884.9 | H184: 1402728580 | I184: 108705243.1 | J184: Nya marknader | K184: Regionala fonder | L184: Avanza Fonder AB | M184: Passiv | N184: Svensk
A185: 840033 | B185: Handelsbanken Amerika Tema A1 | C185: 3844 | D185: 5113 | E185: 8957 | F185: 695610984 | G185: 1104235611 | H185: 1799846595 | I185: -7080435.04 | J185: USA och Nordamerika | K185: Regionala fonder | L185: Handelsbanken Fonder AB | M185: Aktiv | N185: Svensk
A186: 670091 | B186: S-Bank Emerging Markets Equity Fund | C186: 3815 | D186: 5090 | E186: 8905 | F186: 338689302.2 | G186: 536217443 | H186: 874906745.1 | I186: -2979510.61 | J186: Nya marknader | K186: Regionala fonder | L186: S-Bank Fund Management Ltd. | M186: Aktiv | N186: Utländsk
A187: 653097 | B187: Nordea Kinafond | C187: 2997 | D187: 4930 | E187: 7927 | F187: 215094431.9 | G187: 488264607.7 | H187: 703359039.7 | I187: -76080018.28 | J187: Kina | K187: Länderfonder | L187: Nordea Funds Ab | M187: Aktiv | N187: Utländsk
A188: 301580 | B188: SEB Aktiesparfond | C188: 3932 | D188: 3822 | E188: 7754 | F188: 796338324.3 | G188: 880236447.1 | H188: 1676574771 | I188: -4593459.66 | J188: Global och Sverige | K188: Regionala fonder | L188: SEB Funds AB | M188: Aktiv | N188: Svensk
A189: 878520 | B189: Lannebo Mixfond | C189: 3763 | D189: 3593 | E189: 7356 | F189: 497619457.6 | G189: 599598258.6 | H189: 1097217716 | I189: -6426587.89 | J189: Varierande | K189: Blandfonder | L189: Lannebo Kapitalförvaltning AB | M189: Aktiv | N189: Svensk
A190: 726117 | B190: Skandia Obligationsfond | C190: 3908 | D190: 3317 | E190: 7225 | F190: 183025554.8 | G190: 187382014.9 | H190: 370407569.7 | I190: -3639978.05 | J190: Sverige lång och realränta | K190: Räntefonder | L190: Skandia Fonder AB | M190: Aktiv | N190: Svensk
A191: 823096 | B191: AMF Aktiefond Asien Stilla Havet | C191: 2644 | D191: 4332 | E191: 6976 | F191: 337838234.9 | G191: 695598469.2 | H191: 1033436704 | I191: 49939623.29 | J191: Asien | K191: Regionala fonder | L191: AMF Fonder AB | M191: Aktiv | N191: Svensk
A192: 416982 | B192: Seligson & Co Global Top 25 Pharmaceuticals A | C192: 3451 | D192: 3414 | E192: 6865 | F192: 415370277.6 | G192: 478792045 | H192: 894162322.6 | I192: -11279587.82 | J192: Läkemedel och bioteknik | K192: Branschfonder | L192: Seligson & Co Fondbolag Abp | M192: Aktiv | N192: Utländsk
A193: 233585 | B193: JPMorgan China A | C193: 2682 | D193: 4112 | E193: 6794 | F193: 209649254.9 | G193: 393496716.9 | H193: 603145971.8 | I193: -7695080.77 | J193: Kina | K193: Länderfonder | L193: J.P. Morgan Asset Management (Europe) S.à.r.l. | M193: Aktiv | N193: Utländsk
A194: 541235 | B194: D&G Global All Cap | C194: 3230 | D194: 3443 | E194: 6673 | F194: 363999293.3 | G194: 473919732 | H194: 837919025.4 | I194: -13002037.66 | J194: Global | K194: Regionala fonder | L194: Carnegie Fonder AB | M194: Aktiv | N194: Svensk
A195: 848069 | B195: abrdn SICAV I - Future Global Equity Fund | C195: 2665 | D195: 4008 | E195: 6673 | F195: 295260425.9 | G195: 534106216.8 | H195: 829366642.7 | I195: -3882967.05 | J195: IT och kommunikation | K195: Branschfonder | L195: abrdn Investments Luxembourg S.A | M195: Aktiv | N195: Utländsk
A196: 515676 | B196: Länsförsäkringar Småbolag Sverige Vision A | C196: 2424 | D196: 3817 | E196: 6241 | F196: 251629749.2 | G196: 471875031.1 | H196: 723504780.3 | I196: -13031959.21 | J196: Sverige småbolag | K196: Svenska Aktiefonder | L196: Länsförsäkringar Fondförvaltning AB (publ) | M196: Aktiv | N196: Svensk
A197: 997403 | B197: SEB Pension Fund C | C197: 3613 | D197: 2627 | E197: 6240 | F197: 1296191278 | G197: 1058205655 | H197: 2354396932 | I197: -9846652.01 | J197: Balanserad | K197: Blandfonder | L197: SEB Funds AB | M197: Aktiv | N197: Utländsk
A198: 556589 | B198: SEB Europafond Småbolag | C198: 2703 | D198: 3473 | E198: 6176 | F198: 273179360 | G198: 419039639.7 | H198: 692218999.7 | I198: -2358004.76 | J198: Europa småbolag | K198: Regionala fonder | L198: SEB Funds AB | M198: Aktiv | N198: Svensk
A199: 502922 | B199: Allianz Global Metals and Mining A | C199: 1843 | D199: 4124 | E199: 5967 | F199: 248738076.4 | G199: 650007031.6 | H199: 898745108 | I199: -81962610.61 | J199: Råvaror och energi | K199: Branschfonder | L199: Allianz Global Investors GmbH | M199: Aktiv | N199: Utländsk
A200: 718205 | B200: Handelsbanken Kortränta A1 | C200: 2933 | D200: 2900 | E200: 5833 | F200: 285863086.5 | G200: 524361333.8 | H200: 810224420.3 | I200: -12332245.12 | J200: Sverige kortränta | K200: Räntefonder | L200: Handelsbanken Fonder AB | M200: Aktiv | N200: Svensk
A201: 183178 | B201: Alfred Berg Norge C | C201: 2526 | D201: 3215 | E201: 5741 | F201: 366724268.7 | G201: 553064844.8 | H201: 919789113.5 | I201: -323903315.1 | J201: Övriga länder | K201: Länderfonder | L201: Alfred Berg Kapitalforvaltning AS | M201: Aktiv | N201: Utländsk
A202: 123901 | B202: Ålandsbanken Kapitalförvaltning Placeringsfond | C202: 3058 | D202: 2587 | E202: 5645 | F202: 759544330.2 | G202: 683870875.3 | H202: 1443415205 | I202: -6025504.26 | J202: Varierande | K202: Blandfonder | L202: Ålandsbanken Fondbolag Ab | M202: Aktiv | N202: Utländsk
A203: 184119 | B203: Storebrand Global Solutions A | C203: 2528 | D203: 2814 | E203: 5342 | F203: 372868363.3 | G203: 467818834.2 | H203: 840687197.5 | I203: -1050175.27 | J203: Global | K203: Regionala fonder | L203: Storebrand Asset Management AS | M203: Aktiv | N203: Svensk
A204: 870907 | B204: East Capital Global Frontier Markets A | C204: 1972 | D204: 3203 | E204: 5175 | F204: 330697891.4 | G204: 585626722.5 | H204: 916324613.9 | I204: -5074808.92 | J204: Nya marknader | K204: Regionala fonder | L204: East Capital Asset Management S.A. | M204: Aktiv | N204: Utländsk
A205: 727057 | B205: Naventi Offensiv Flex | C205: 2074 | D205: 2972 | E205: 5046 | F205: 908076644.3 | G205: 1518147464 | H205: 2426224109 | I205: -17507556.85 | J205: Aggressiv | K205: Blandfonder | L205: Ruth Asset Management AB | M205: Aktiv | N205: Svensk
A206: 648964 | B206: Nordea Obligationsfond | C206: 2812 | D206: 2212 | E206: 5024 | F206: 148721466.4 | G206: 149384942.8 | H206: 298106409.2 | I206: -1579050.52 | J206: Sverige lång och realränta | K206: Räntefonder | L206: Nordea Funds Ab | M206: Aktiv | N206: Svensk
A207: 694539 | B207: Lannebo Small Cap Oppurtunities A | C207: 2398 | D207: 2622 | E207: 5020 | F207: 373843215.9 | G207: 492137008.7 | H207: 865980224.6 | I207: -7550929.94 | J207: Sverige småbolag | K207: Svenska Aktiefonder | L207: Lannebo Kapitalförvaltning AB | M207: Aktiv | N207: Svensk
A208: 405704 | B208: SEB Green Bond Fund C | C208: 2890 | D208: 2063 | E208: 4953 | F208: 197602320 | G208: 160866389 | H208: 358468708.9 | I208: -1814144.42 | J208: Global ränta | K208: Räntefonder | L208: SEB Funds AB | M208: Aktiv | N208: Utländsk
A209: 469817 | B209: Skandia Realräntefond | C209: 2596 | D209: 2290 | E209: 4886 | F209: 131889628.1 | G209: 143895855.6 | H209: 275785483.7 | I209: -2770648.63 | J209: Sverige lång och realränta | K209: Räntefonder | L209: Skandia Fonder AB | M209: Aktiv | N209: Svensk
A210: 416867 | B210: Lannebo Sweden Micro Cap | C210: 1930 | D210: 2893 | E210: 4823 | F210: 277342569.8 | G210: 479444314.8 | H210: 756786884.6 | I210: -10075457.54 | J210: Sverige småbolag | K210: Svenska Aktiefonder | L210: Lannebo Kapitalförvaltning AB | M210: Aktiv | N210: Svensk
A211: 916354 | B211: SEB Nordamerikafond Små och Medelstora Bolag A | C211: 2045 | D211: 2757 | E211: 4802 | F211: 241226296 | G211: 395854963.3 | H211: 637081259.3 | I211: -2005724.6 | J211: USA och Nordamerika | K211: Regionala fonder | L211: SEB Funds AB | M211: Aktiv | N211: Svensk
... 190 more rows

Sheet 10 fonder...
B5: =Fondstatistik!A5 -> Fondstatistik per 2026-06-30
B6: ='Fondval & marknadsvärde'!A7 -> Nästa uppdatering: 2026-08-13
B9: De tio mest valda fonderna
B10: Fondnamn | C10: Antal fondval | F10: Marknadsvärde | I10: Värdeutveckling
C11: Kvinnor | D11: Män | E11: Total | F11: Kvinnor | G11: Män | H11: Total | I11: i år
B12: =B24 -> AP7 Såfa - Statens årskullsförvaltningsalternativ | C12: =C24 -> 2762471 | D12: 3043307 | E12: 5805778 | F12: 7.704861594e+11 | G12: 9.407612448e+11 | H12: 1.711247404e+12
B13: =B25 -> Swedbank Robur Technology A | C13: 144528 | D13: 178602 | E13: 323130 | F13: 6.38527724e+10 | G13: 9.122980177e+10 | H13: 1.550825742e+11 | I13: =VLOOKUP($B$12:$B$21,Fondstatistik!$B$22:$Q$429,2,FALSE) -> 41.29345
B14: =B26 -> AP7 Aktiefond | C14: 67463 | D14: 103307 | E14: 170770 | F14: 2.708359625e+10 | G14: 4.543640215e+10 | H14: 7.25199984e+10 | I14: =VLOOKUP($B$12:$B$21,Fondstatistik!$B$22:$Q$429,2,FALSE) -> 20.03334
B15: =B27 -> AMF Aktiefond Sverige | C15: 83445 | D15: 85712 | E15: 169157 | F15: 1.340773659e+10 | G15: 1.712884165e+10 | H15: 3.053657824e+10 | I15: =VLOOKUP($B$12:$B$21,Fondstatistik!$B$22:$Q$429,2,FALSE) -> 6.43878
B16: =B28 -> Swedbank Robur Access Global A | C16: 78958 | D16: 81776 | E16: 160734 | F16: 1.808606336e+10 | G16: 2.178515712e+10 | H16: 3.987122049e+10 | I16: =VLOOKUP($B$12:$B$21,Fondstatistik!$B$22:$Q$429,2,FALSE) -> 14.37951
B17: =B29 -> AMF Aktiefond Världen | C17: 78419 | D17: 78380 | E17: 156799 | F17: 1.420968335e+10 | G17: 1.781699158e+10 | H17: 3.202667493e+10 | I17: =VLOOKUP($B$12:$B$21,Fondstatistik!$B$22:$Q$429,2,FALSE) -> 10.76988
B18: =B30 -> Swedbank Robur Aktiefond Pension | C18: 86148 | D18: 70613 | E18: 156761 | F18: 2.496053884e+10 | G18: 2.46937375e+10 | H18: 4.965427634e+10 | I18: =VLOOKUP($B$12:$B$21,Fondstatistik!$B$22:$Q$429,2,FALSE) -> 15.12642
B19: =B31 -> D&G Aktiefond | C19: 73305 | D19: 73798 | E19: 147103 | F19: 1.222037679e+10 | G19: 1.486569518e+10 | H19: 2.708607197e+10 | I19: =VLOOKUP($B$12:$B$21,Fondstatistik!$B$22:$Q$429,2,FALSE) -> 1.89725
B20: =B32 -> Swedbank Robur Access Sverige A | C20: 74760 | D20: 67307 | E20: 142067 | F20: 1.098574126e+10 | G20: 1.199441197e+10 | H20: 2.298015324e+10 | I20: =VLOOKUP($B$12:$B$21,Fondstatistik!$B$22:$Q$429,2,FALSE) -> 10.91195
B21: =B33 -> Swedbank Robur Transfer 80 | C21: 60423 | D21: 58093 | E21: 118516 | F21: 3.311619247e+10 | G21: 3.825654172e+10 | H21: 7.13727342e+10 | I21: =VLOOKUP($B$12:$B$21,Fondstatistik!$B$22:$Q$429,2,FALSE) -> 19.48705
B23: Fondnamn | C23: Kvinnor | D23: Män | E23: Total | F23: Kvinnor | G23: Män | H23: Total | K23: Nr | L23: Totalt antal fondval | M23: Rad
B24: =INDEX('Fondval & marknadsvärde'!B:B,$M24) -> AP7 Såfa - Statens årskullsförvaltningsalternativ | C24: =INDEX('Fondval & marknadsvärde'!C:C,$M24) -> 2762471 | D24: =INDEX('Fondval & marknadsvärde'!D:D,$M24) -> 3043307 | E24: =INDEX('Fondval & marknadsvärde'!E:E,$M24) -> 5805778 | F24: =INDEX('Fondval & marknadsvärde'!F:F,$M24) -> 7.704861594e+11 | G24: =INDEX('Fondval & marknadsvärde'!G:G,$M24) -> 9.407612448e+11 | H24: =INDEX('Fondval & marknadsvärde'!H:H,$M24) -> 1.711247404e+12 | K24: 1 | L24: =_xlfn.AGGREGATE(14,6,'Fondval & marknadsvärde'!E$24:E$430,K24) -> 5805778 | M24: =MATCH(L24,'Fondval & marknadsvärde'!E:E,0) -> 24
B25: =INDEX('Fondval & marknadsvärde'!B:B,$M25) -> Swedbank Robur Technology A | C25: =INDEX('Fondval & marknadsvärde'!C:C,$M25) -> 144528 | D25: =INDEX('Fondval & marknadsvärde'!D:D,$M25) -> 178602 | E25: =INDEX('Fondval & marknadsvärde'!E:E,$M25) -> 323130 | F25: =INDEX('Fondval & marknadsvärde'!F:F,$M25) -> 6.38527724e+10 | G25: =INDEX('Fondval & marknadsvärde'!G:G,$M25) -> 9.122980177e+10 | H25: =INDEX('Fondval & marknadsvärde'!H:H,$M25) -> 1.550825742e+11 | K25: 2 | L25: =_xlfn.AGGREGATE(14,6,'Fondval & marknadsvärde'!E$24:E$430,K25) -> 323130 | M25: =MATCH(L25,'Fondval & marknadsvärde'!E:E,0) -> 25
B26: =INDEX('Fondval & marknadsvärde'!B:B,$M26) -> AP7 Aktiefond | C26: =INDEX('Fondval & marknadsvärde'!C:C,$M26) -> 67463 | D26: =INDEX('Fondval & marknadsvärde'!D:D,$M26) -> 103307 | E26: =INDEX('Fondval & marknadsvärde'!E:E,$M26) -> 170770 | F26: =INDEX('Fondval & marknadsvärde'!F:F,$M26) -> 2.708359625e+10 | G26: =INDEX('Fondval & marknadsvärde'!G:G,$M26) -> 4.543640215e+10 | H26: =INDEX('Fondval & marknadsvärde'!H:H,$M26) -> 7.25199984e+10 | K26: 3 | L26: =_xlfn.AGGREGATE(14,6,'Fondval & marknadsvärde'!E$24:E$430,K26) -> 170770 | M26: =MATCH(L26,'Fondval & marknadsvärde'!E:E,0) -> 26
B27: =INDEX('Fondval & marknadsvärde'!B:B,$M27) -> AMF Aktiefond Sverige | C27: =INDEX('Fondval & marknadsvärde'!C:C,$M27) -> 83445 | D27: =INDEX('Fondval & marknadsvärde'!D:D,$M27) -> 85712 | E27: =INDEX('Fondval & marknadsvärde'!E:E,$M27) -> 169157 | F27: =INDEX('Fondval & marknadsvärde'!F:F,$M27) -> 1.340773659e+10 | G27: =INDEX('Fondval & marknadsvärde'!G:G,$M27) -> 1.712884165e+10 | H27: =INDEX('Fondval & marknadsvärde'!H:H,$M27) -> 3.053657824e+10 | K27: 4 | L27: =_xlfn.AGGREGATE(14,6,'Fondval & marknadsvärde'!E$24:E$430,K27) -> 169157 | M27: =MATCH(L27,'Fondval & marknadsvärde'!E:E,0) -> 27
B28: =INDEX('Fondval & marknadsvärde'!B:B,$M28) -> Swedbank Robur Access Global A | C28: =INDEX('Fondval & marknadsvärde'!C:C,$M28) -> 78958 | D28: =INDEX('Fondval & marknadsvärde'!D:D,$M28) -> 81776 | E28: =INDEX('Fondval & marknadsvärde'!E:E,$M28) -> 160734 | F28: =INDEX('Fondval & marknadsvärde'!F:F,$M28) -> 1.808606336e+10 | G28: =INDEX('Fondval & marknadsvärde'!G:G,$M28) -> 2.178515712e+10 | H28: =INDEX('Fondval & marknadsvärde'!H:H,$M28) -> 3.987122049e+10 | K28: 5 | L28: =_xlfn.AGGREGATE(14,6,'Fondval & marknadsvärde'!E$24:E$430,K28) -> 160734 | M28: =MATCH(L28,'Fondval & marknadsvärde'!E:E,0) -> 28
B29: =INDEX('Fondval & marknadsvärde'!B:B,$M29) -> AMF Aktiefond Världen | C29: =INDEX('Fondval & marknadsvärde'!C:C,$M29) -> 78419 | D29: =INDEX('Fondval & marknadsvärde'!D:D,$M29) -> 78380 | E29: =INDEX('Fondval & marknadsvärde'!E:E,$M29) -> 156799 | F29: =INDEX('Fondval & marknadsvärde'!F:F,$M29) -> 1.420968335e+10 | G29: =INDEX('Fondval & marknadsvärde'!G:G,$M29) -> 1.781699158e+10 | H29: =INDEX('Fondval & marknadsvärde'!H:H,$M29) -> 3.202667493e+10 | K29: 6 | L29: =_xlfn.AGGREGATE(14,6,'Fondval & marknadsvärde'!E$24:E$430,K29) -> 156799 | M29: =MATCH(L29,'Fondval & marknadsvärde'!E:E,0) -> 29
B30: =INDEX('Fondval & marknadsvärde'!B:B,$M30) -> Swedbank Robur Aktiefond Pension | C30: =INDEX('Fondval & marknadsvärde'!C:C,$M30) -> 86148 | D30: =INDEX('Fondval & marknadsvärde'!D:D,$M30) -> 70613 | E30: =INDEX('Fondval & marknadsvärde'!E:E,$M30) -> 156761 | F30: =INDEX('Fondval & marknadsvärde'!F:F,$M30) -> 2.496053884e+10 | G30: =INDEX('Fondval & marknadsvärde'!G:G,$M30) -> 2.46937375e+10 | H30: =INDEX('Fondval & marknadsvärde'!H:H,$M30) -> 4.965427634e+10 | K30: 7 | L30: =_xlfn.AGGREGATE(14,6,'Fondval & marknadsvärde'!E$24:E$430,K30) -> 156761 | M30: =MATCH(L30,'Fondval & marknadsvärde'!E:E,0) -> 30
B31: =INDEX('Fondval & marknadsvärde'!B:B,$M31) -> D&G Aktiefond | C31: =INDEX('Fondval & marknadsvärde'!C:C,$M31) -> 73305 | D31: =INDEX('Fondval & marknadsvärde'!D:D,$M31) -> 73798 | E31: =INDEX('Fondval & marknadsvärde'!E:E,$M31) -> 147103 | F31: =INDEX('Fondval & marknadsvärde'!F:F,$M31) -> 1.222037679e+10 | G31: =INDEX('Fondval & marknadsvärde'!G:G,$M31) -> 1.486569518e+10 | H31: =INDEX('Fondval & marknadsvärde'!H:H,$M31) -> 2.708607197e+10 | K31: 8 | L31: =_xlfn.AGGREGATE(14,6,'Fondval & marknadsvärde'!E$24:E$430,K31) -> 147103 | M31: =MATCH(L31,'Fondval & marknadsvärde'!E:E,0) -> 31
B32: =INDEX('Fondval & marknadsvärde'!B:B,$M32) -> Swedbank Robur Access Sverige A | C32: =INDEX('Fondval & marknadsvärde'!C:C,$M32) -> 74760 | D32: =INDEX('Fondval & marknadsvärde'!D:D,$M32) -> 67307 | E32: =INDEX('Fondval & marknadsvärde'!E:E,$M32) -> 142067 | F32: =INDEX('Fondval & marknadsvärde'!F:F,$M32) -> 1.098574126e+10 | G32: =INDEX('Fondval & marknadsvärde'!G:G,$M32) -> 1.199441197e+10 | H32: =INDEX('Fondval & marknadsvärde'!H:H,$M32) -> 2.298015324e+10 | K32: 9 | L32: =_xlfn.AGGREGATE(14,6,'Fondval & marknadsvärde'!E$24:E$430,K32) -> 142067 | M32: =MATCH(L32,'Fondval & marknadsvärde'!E:E,0) -> 32
B33: =INDEX('Fondval & marknadsvärde'!B:B,$M33) -> Swedbank Robur Transfer 80 | C33: =INDEX('Fondval & marknadsvärde'!C:C,$M33) -> 60423 | D33: =INDEX('Fondval & marknadsvärde'!D:D,$M33) -> 58093 | E33: =INDEX('Fondval & marknadsvärde'!E:E,$M33) -> 118516 | F33: =INDEX('Fondval & marknadsvärde'!F:F,$M33) -> 3.311619247e+10 | G33: =INDEX('Fondval & marknadsvärde'!G:G,$M33) -> 3.825654172e+10 | H33: =INDEX('Fondval & marknadsvärde'!H:H,$M33) -> 7.13727342e+10 | K33: 10 | L33: =_xlfn.AGGREGATE(14,6,'Fondval & marknadsvärde'!E$24:E$430,K33) -> 118516 | M33: =MATCH(L33,'Fondval & marknadsvärde'!E:E,0) -> 33
B35: De tio fonderna med mest kapital
B36: Fondnamn | C36: Antal fondval | F36: Marknadsvärde | I36: Värdeutveckling
C37: Kvinnor | D37: Män | E37: Total | F37: Kvinnor | G37: Män | H37: Total | I37: i år
B38: =B50 -> AP7 Såfa - Statens årskullsförvaltningsalternativ | C38: =C50 -> 2762471 | D38: 3043307 | E38: 5805778 | F38: 7.704861594e+11 | G38: 9.407612448e+11 | H38: 1.711247404e+12
B39: =B51 -> Swedbank Robur Technology A | C39: 144528 | D39: 178602 | E39: 323130 | F39: 6.38527724e+10 | G39: 9.122980177e+10 | H39: 1.550825742e+11 | I39: =VLOOKUP($B$39:$B$47,Fondstatistik!$B$22:$Q$429,2,FALSE) -> 41.29345
B40: =B52 -> AP7 Aktiefond | C40: 67463 | D40: 103307 | E40: 170770 | F40: 2.708359625e+10 | G40: 4.543640215e+10 | H40: 7.25199984e+10 | I40: =VLOOKUP($B$39:$B$47,Fondstatistik!$B$22:$Q$429,2,FALSE) -> 20.03334
B41: =B53 -> Swedbank Robur Transfer 80 | C41: 60423 | D41: 58093 | E41: 118516 | F41: 3.311619247e+10 | G41: 3.825654172e+10 | H41: 7.13727342e+10 | I41: =VLOOKUP($B$39:$B$47,Fondstatistik!$B$22:$Q$429,2,FALSE) -> 19.48705
B42: =B54 -> Swedbank Robur Transfer 70 | C42: 61867 | D42: 47927 | E42: 109794 | F42: 3.25350777e+10 | G42: 2.90438626e+10 | H42: 6.15789403e+10 | I42: =VLOOKUP($B$39:$B$47,Fondstatistik!$B$22:$Q$429,2,FALSE) -> 14.75113
B43: =B55 -> Nordea Generationsfond 60-tal | C43: 44278 | D43: 35500 | E43: 79778 | F43: 2.605615361e+10 | G43: 2.430269888e+10 | H43: 5.035885249e+10 | I43: =VLOOKUP($B$39:$B$47,Fondstatistik!$B$22:$Q$429,2,FALSE) -> 9.638
B44: =B56 -> Nordea Generationsfond 70-tal | C44: 43515 | D44: 35595 | E44: 79110 | F44: 2.573606699e+10 | G44: 2.440272606e+10 | H44: 5.013879304e+10 | I44: =VLOOKUP($B$39:$B$47,Fondstatistik!$B$22:$Q$429,2,FALSE) -> 14.85039
B45: =B57 -> Swedbank Robur Aktiefond Pension | C45: 86148 | D45: 70613 | E45: 156761 | F45: 2.496053884e+10 | G45: 2.46937375e+10 | H45: 4.965427634e+10 | I45: =VLOOKUP($B$39:$B$47,Fondstatistik!$B$22:$Q$429,2,FALSE) -> 15.12642
B46: =B58 -> Swedbank Robur Access Global A | C46: 78958 | D46: 81776 | E46: 160734 | F46: 1.808606336e+10 | G46: 2.178515712e+10 | H46: 3.987122049e+10 | I46: =VLOOKUP($B$39:$B$47,Fondstatistik!$B$22:$Q$429,2,FALSE) -> 14.37951
B47: =B59 -> Indecap Guide 2 C | C47: 42926 | D47: 39238 | E47: 82164 | F47: 1.738389875e+10 | G47: 2.003463087e+10 | H47: 3.741852962e+10 | I47: =VLOOKUP($B$39:$B$47,Fondstatistik!$B$22:$Q$429,2,FALSE) -> 12.95113
B49: Fondnamn | C49: Kvinnor | D49: Män | E49: Total | F49: Kvinnor | G49: Män | H49: Total | K49: Nr | L49: Totalt marknadsvärde | M49: Rad
B50: =INDEX('Fondval & marknadsvärde'!B:B,$M50) -> AP7 Såfa - Statens årskullsförvaltningsalternativ | C50: =INDEX('Fondval & marknadsvärde'!C:C,$M50) -> 2762471 | D50: =INDEX('Fondval & marknadsvärde'!D:D,$M50) -> 3043307 | E50: =INDEX('Fondval & marknadsvärde'!E:E,$M50) -> 5805778 | F50: =INDEX('Fondval & marknadsvärde'!F:F,$M50) -> 7.704861594e+11 | G50: =INDEX('Fondval & marknadsvärde'!G:G,$M50) -> 9.407612448e+11 | H50: =INDEX('Fondval & marknadsvärde'!H:H,$M50) -> 1.711247404e+12 | K50: 1 | L50: =_xlfn.AGGREGATE(14,6,'Fondval & marknadsvärde'!H$24:H$430,K50) -> 1.711247404e+12 | M50: =MATCH(L50,'Fondval & marknadsvärde'!H:H,0) -> 24
B51: =INDEX('Fondval & marknadsvärde'!B:B,$M51) -> Swedbank Robur Technology A | C51: =INDEX('Fondval & marknadsvärde'!C:C,$M51) -> 144528 | D51: =INDEX('Fondval & marknadsvärde'!D:D,$M51) -> 178602 | E51: =INDEX('Fondval & marknadsvärde'!E:E,$M51) -> 323130 | F51: =INDEX('Fondval & marknadsvärde'!F:F,$M51) -> 6.38527724e+10 | G51: =INDEX('Fondval & marknadsvärde'!G:G,$M51) -> 9.122980177e+10 | H51: =INDEX('Fondval & marknadsvärde'!H:H,$M51) -> 1.550825742e+11 | K51: 2 | L51: =_xlfn.AGGREGATE(14,6,'Fondval & marknadsvärde'!H$24:H$430,K51) -> 1.550825742e+11 | M51: =MATCH(L51,'Fondval & marknadsvärde'!H:H,0) -> 25
B52: =INDEX('Fondval & marknadsvärde'!B:B,$M52) -> AP7 Aktiefond | C52: =INDEX('Fondval & marknadsvärde'!C:C,$M52) -> 67463 | D52: =INDEX('Fondval & marknadsvärde'!D:D,$M52) -> 103307 | E52: =INDEX('Fondval & marknadsvärde'!E:E,$M52) -> 170770 | F52: =INDEX('Fondval & marknadsvärde'!F:F,$M52) -> 2.708359625e+10 | G52: =INDEX('Fondval & marknadsvärde'!G:G,$M52) -> 4.543640215e+10 | H52: =INDEX('Fondval & marknadsvärde'!H:H,$M52) -> 7.25199984e+10 | K52: 3 | L52: =_xlfn.AGGREGATE(14,6,'Fondval & marknadsvärde'!H$24:H$430,K52) -> 7.25199984e+10 | M52: =MATCH(L52,'Fondval & marknadsvärde'!H:H,0) -> 26
B53: =INDEX('Fondval & marknadsvärde'!B:B,$M53) -> Swedbank Robur Transfer 80 | C53: =INDEX('Fondval & marknadsvärde'!C:C,$M53) -> 60423 | D53: =INDEX('Fondval & marknadsvärde'!D:D,$M53) -> 58093 | E53: =INDEX('Fondval & marknadsvärde'!E:E,$M53) -> 118516 | F53: =INDEX('Fondval & marknadsvärde'!F:F,$M53) -> 3.311619247e+10 | G53: =INDEX('Fondval & marknadsvärde'!G:G,$M53) -> 3.825654172e+10 | H53: =INDEX('Fondval & marknadsvärde'!H:H,$M53) -> 7.13727342e+10 | K53: 4 | L53: =_xlfn.AGGREGATE(14,6,'Fondval & marknadsvärde'!H$24:H$430,K53) -> 7.13727342e+10 | M53: =MATCH(L53,'Fondval & marknadsvärde'!H:H,0) -> 33
B54: =INDEX('Fondval & marknadsvärde'!B:B,$M54) -> Swedbank Robur Transfer 70 | C54: =INDEX('Fondval & marknadsvärde'!C:C,$M54) -> 61867 | D54: =INDEX('Fondval & marknadsvärde'!D:D,$M54) -> 47927 | E54: =INDEX('Fondval & marknadsvärde'!E:E,$M54) -> 109794 | F54: =INDEX('Fondval & marknadsvärde'!F:F,$M54) -> 3.25350777e+10 | G54: =INDEX('Fondval & marknadsvärde'!G:G,$M54) -> 2.90438626e+10 | H54: =INDEX('Fondval & marknadsvärde'!H:H,$M54) -> 6.15789403e+10 | K54: 5 | L54: =_xlfn.AGGREGATE(14,6,'Fondval & marknadsvärde'!H$24:H$430,K54) -> 6.15789403e+10 | M54: =MATCH(L54,'Fondval & marknadsvärde'!H:H,0) -> 34
B55: =INDEX('Fondval & marknadsvärde'!B:B,$M55) -> Nordea Generationsfond 60-tal | C55: =INDEX('Fondval & marknadsvärde'!C:C,$M55) -> 44278 | D55: =INDEX('Fondval & marknadsvärde'!D:D,$M55) -> 35500 | E55: =INDEX('Fondval & marknadsvärde'!E:E,$M55) -> 79778 | F55: =INDEX('Fondval & marknadsvärde'!F:F,$M55) -> 2.605615361e+10 | G55: =INDEX('Fondval & marknadsvärde'!G:G,$M55) -> 2.430269888e+10 | H55: =INDEX('Fondval & marknadsvärde'!H:H,$M55) -> 5.035885249e+10 | K55: 6 | L55: =_xlfn.AGGREGATE(14,6,'Fondval & marknadsvärde'!H$24:H$430,K55) -> 5.035885249e+10 | M55: =MATCH(L55,'Fondval & marknadsvärde'!H:H,0) -> 41
B56: =INDEX('Fondval & marknadsvärde'!B:B,$M56) -> Nordea Generationsfond 70-tal | C56: =INDEX('Fondval & marknadsvärde'!C:C,$M56) -> 43515 | D56: =INDEX('Fondval & marknadsvärde'!D:D,$M56) -> 35595 | E56: =INDEX('Fondval & marknadsvärde'!E:E,$M56) -> 79110 | F56: =INDEX('Fondval & marknadsvärde'!F:F,$M56) -> 2.573606699e+10 | G56: =INDEX('Fondval & marknadsvärde'!G:G,$M56) -> 2.440272606e+10 | H56: =INDEX('Fondval & marknadsvärde'!H:H,$M56) -> 5.013879304e+10 | K56: 7 | L56: =_xlfn.AGGREGATE(14,6,'Fondval & marknadsvärde'!H$24:H$430,K56) -> 5.013879304e+10 | M56: =MATCH(L56,'Fondval & marknadsvärde'!H:H,0) -> 42
B57: =INDEX('Fondval & marknadsvärde'!B:B,$M57) -> Swedbank Robur Aktiefond Pension | C57: =INDEX('Fondval & marknadsvärde'!C:C,$M57) -> 86148 | D57: =INDEX('Fondval & marknadsvärde'!D:D,$M57) -> 70613 | E57: =INDEX('Fondval & marknadsvärde'!E:E,$M57) -> 156761 | F57: =INDEX('Fondval & marknadsvärde'!F:F,$M57) -> 2.496053884e+10 | G57: =INDEX('Fondval & marknadsvärde'!G:G,$M57) -> 2.46937375e+10 | H57: =INDEX('Fondval & marknadsvärde'!H:H,$M57) -> 4.965427634e+10 | K57: 8 | L57: =_xlfn.AGGREGATE(14,6,'Fondval & marknadsvärde'!H$24:H$430,K57) -> 4.965427634e+10 | M57: =MATCH(L57,'Fondval & marknadsvärde'!H:H,0) -> 30
B58: =INDEX('Fondval & marknadsvärde'!B:B,$M58) -> Swedbank Robur Access Global A | C58: =INDEX('Fondval & marknadsvärde'!C:C,$M58) -> 78958 | D58: =INDEX('Fondval & marknadsvärde'!D:D,$M58) -> 81776 | E58: =INDEX('Fondval & marknadsvärde'!E:E,$M58) -> 160734 | F58: =INDEX('Fondval & marknadsvärde'!F:F,$M58) -> 1.808606336e+10 | G58: =INDEX('Fondval & marknadsvärde'!G:G,$M58) -> 2.178515712e+10 | H58: =INDEX('Fondval & marknadsvärde'!H:H,$M58) -> 3.987122049e+10 | K58: 9 | L58: =_xlfn.AGGREGATE(14,6,'Fondval & marknadsvärde'!H$24:H$430,K58) -> 3.987122049e+10 | M58: =MATCH(L58,'Fondval & marknadsvärde'!H:H,0) -> 28
B59: =INDEX('Fondval & marknadsvärde'!B:B,$M59) -> Indecap Guide 2 C | C59: =INDEX('Fondval & marknadsvärde'!C:C,$M59) -> 42926 | D59: =INDEX('Fondval & marknadsvärde'!D:D,$M59) -> 39238 | E59: =INDEX('Fondval & marknadsvärde'!E:E,$M59) -> 82164 | F59: =INDEX('Fondval & marknadsvärde'!F:F,$M59) -> 1.738389875e+10 | G59: =INDEX('Fondval & marknadsvärde'!G:G,$M59) -> 2.003463087e+10 | H59: =INDEX('Fondval & marknadsvärde'!H:H,$M59) -> 3.741852962e+10 | K59: 10 | L59: =_xlfn.AGGREGATE(14,6,'Fondval & marknadsvärde'!H$24:H$430,K59) -> 3.741852962e+10 | M59: =MATCH(L59,'Fondval & marknadsvärde'!H:H,0) -> 39
B62: De tio fonderna med högst värdeutveckling, snitt 5 år
B63: Fondnamn | C63: I år | D63: 1 mån | E63: 3 mån. | F63: 6 mån. | G63: 12 mån. | H63: 36 mån. | I63: 60 mån. | J63: Snitt 5 år
B64: =B76 -> Swedbank Robur Technology A | C64: =C76 -> 41.29345 | D64: 7.56662 | E64: 46.61358 | F64: 41.29345 | G64: 50.88187 | H64: 107.82908 | I64: 182.02933 | J64: 23.04355
B65: =B77 -> CPR Invest Global Gold Mines A2 | C65: -6.80273 | D65: -11.01863 | E65: -15.48296 | F65: -6.80273 | G65: 51.53734 | H65: 136.50437 | I65: 170.40666 | J65: 22.01226
B66: =B78 -> BlackRock - World Gold A2 | C66: -7.82151 | D66: -9.09494 | E66: -13.4913 | F66: -7.82151 | G66: 54.16715 | H66: 135.19396 | I66: 153.64296 | J66: 20.46047
B67: =B79 -> DNB Teknologi S | C67: 11.29653 | D67: -4.66829 | E67: 18.74904 | F67: 11.29653 | G67: 26.47063 | H67: 84.15176 | I67: 139.06455 | J67: 19.04277
B68: =B80 -> BlackRock - World Energy A2 | C68: 27.34034 | D68: 0.77523 | E68: -10.54505 | F68: 27.34034 | G68: 29.6558 | H68: 28.53795 | I68: 138.53262 | J68: 18.98975
B69: =B81 -> Franklin Natural Resources Fund A | C69: 20.1051 | D69: -1.89206 | E69: -5.27819 | F69: 20.1051 | G69: 41.22417 | H69: 36.5278 | I69: 130.56149 | J69: 18.18364
B70: =B82 -> Skandia Time Global | C70: 9.26937 | D70: -4.56521 | E70: 20.09491 | F70: 9.26937 | G70: 23.94293 | H70: 76.84507 | I70: 130.05219 | J70: 18.13138
B71: =B83 -> BlackRock - World Financials A2 | C71: 8.29742 | D71: 11.07792 | E71: 19.95457 | F71: 8.29742 | G71: 22.57309 | H71: 99.73035 | I71: 129.85107 | J71: 18.11072
B72: =B84 -> BlackRock - US Flexible Equity A2 | C72: 23.34146 | D72: 3.25488 | E72: 25.83725 | F72: 23.34146 | G72: 38.90655 | H72: 65.23568 | I72: 118.35191 | J72: 16.90455
B73: =B85 -> BlackRock - World Technology A2 | C73: 48.96655 | D73: 6.88656 | E73: 58.02274 | F73: 48.96655 | G73: 59.24742 | H73: 120.50094 | I73: 116.78457 | J73: 16.73623
B75: Fondnamn | C75: I år | D75: 1 mån | E75: 3 mån. | F75: 6 mån. | G75: 12 mån. | H75: 36 mån. | I75: 60 mån. | J75: Snitt 5 år | K75: Nr | L75: Snitt 5 år | M75: Förekomst | N75: Rad
B76: =INDEX(Fondstatistik!B:B,$N76) -> Swedbank Robur Technology A | C76: =INDEX(Fondstatistik!C:C,$N76) -> 41.29345 | D76: =INDEX(Fondstatistik!D:D,$N76) -> 7.56662 | E76: =INDEX(Fondstatistik!E:E,$N76) -> 46.61358 | F76: =INDEX(Fondstatistik!F:F,$N76) -> 41.29345 | G76: =INDEX(Fondstatistik!G:G,$N76) -> 50.88187 | H76: =INDEX(Fondstatistik!H:H,$N76) -> 107.82908 | I76: =INDEX(Fondstatistik!I:I,$N76) -> 182.02933 | J76: =INDEX(Fondstatistik!J:J,$N76) -> 23.04355 | K76: 1 | L76: =_xlfn.AGGREGATE(14,6,Fondstatistik!J$22:J$429,K76) -> 23.04355 | M76: =COUNTIFS($L$76:L76,L76) -> 1 | N76: =IF(M76=1, MATCH(L76,Fondstatistik!J:J,0), SMALL(IF(Fondstatistik!J:J=L76,ROW(Fondstatistik!J:J),""),M76)) -> 177
B77: =INDEX(Fondstatistik!B:B,$N77) -> CPR Invest Global Gold Mines A2 | C77: =INDEX(Fondstatistik!C:C,$N77) -> -6.80273 | D77: =INDEX(Fondstatistik!D:D,$N77) -> -11.01863 | E77: =INDEX(Fondstatistik!E:E,$N77) -> -15.48296 | F77: =INDEX(Fondstatistik!F:F,$N77) -> -6.80273 | G77: =INDEX(Fondstatistik!G:G,$N77) -> 51.53734 | H77: =INDEX(Fondstatistik!H:H,$N77) -> 136.50437 | I77: =INDEX(Fondstatistik!I:I,$N77) -> 170.40666 | J77: =INDEX(Fondstatistik!J:J,$N77) -> 22.01226 | K77: 2 | L77: =_xlfn.AGGREGATE(14,6,Fondstatistik!J$22:J$429,K77) -> 22.01226 | M77: =COUNTIFS($L$76:L77,L77) -> 1 | N77: =IF(M77=1, MATCH(L77,Fondstatistik!J:J,0), SMALL(IF(Fondstatistik!J:J=L77,ROW(Fondstatistik!J:J),""),M77)) -> 344
B78: =INDEX(Fondstatistik!B:B,$N78) -> BlackRock - World Gold A2 | C78: =INDEX(Fondstatistik!C:C,$N78) -> -7.82151 | D78: =INDEX(Fondstatistik!D:D,$N78) -> -9.09494 | E78: =INDEX(Fondstatistik!E:E,$N78) -> -13.4913 | F78: =INDEX(Fondstatistik!F:F,$N78) -> -7.82151 | G78: =INDEX(Fondstatistik!G:G,$N78) -> 54.16715 | H78: =INDEX(Fondstatistik!H:H,$N78) -> 135.19396 | I78: =INDEX(Fondstatistik!I:I,$N78) -> 153.64296 | J78: =INDEX(Fondstatistik!J:J,$N78) -> 20.46047 | K78: 3 | L78: =_xlfn.AGGREGATE(14,6,Fondstatistik!J$22:J$429,K78) -> 20.46047 | M78: =COUNTIFS($L$76:L78,L78) -> 1 | N78: =IF(M78=1, MATCH(L78,Fondstatistik!J:J,0), SMALL(IF(Fondstatistik!J:J=L78,ROW(Fondstatistik!J:J),""),M78)) -> 279
B79: =INDEX(Fondstatistik!B:B,$N79) -> DNB Teknologi S | C79: =INDEX(Fondstatistik!C:C,$N79) -> 11.29653 | D79: =INDEX(Fondstatistik!D:D,$N79) -> -4.66829 | E79: =INDEX(Fondstatistik!E:E,$N79) -> 18.74904 | F79: =INDEX(Fondstatistik!F:F,$N79) -> 11.29653 | G79: =INDEX(Fondstatistik!G:G,$N79) -> 26.47063 | H79: =INDEX(Fondstatistik!H:H,$N79) -> 84.15176 | I79: =INDEX(Fondstatistik!I:I,$N79) -> 139.06455 | J79: =INDEX(Fondstatistik!J:J,$N79) -> 19.04277 | K79: 4 | L79: =_xlfn.AGGREGATE(14,6,Fondstatistik!J$22:J$429,K79) -> 19.04277 | M79: =COUNTIFS($L$76:L79,L79) -> 1 | N79: =IF(M79=1, MATCH(L79,Fondstatistik!J:J,0), SMALL(IF(Fondstatistik!J:J=L79,ROW(Fondstatistik!J:J),""),M79)) -> 210
B80: =INDEX(Fondstatistik!B:B,$N80) -> BlackRock - World Energy A2 | C80: =INDEX(Fondstatistik!C:C,$N80) -> 27.34034 | D80: =INDEX(Fondstatistik!D:D,$N80) -> 0.77523 | E80: =INDEX(Fondstatistik!E:E,$N80) -> -10.54505 | F80: =INDEX(Fondstatistik!F:F,$N80) -> 27.34034 | G80: =INDEX(Fondstatistik!G:G,$N80) -> 29.6558 | H80: =INDEX(Fondstatistik!H:H,$N80) -> 28.53795 | I80: =INDEX(Fondstatistik!I:I,$N80) -> 138.53262 | J80: =INDEX(Fondstatistik!J:J,$N80) -> 18.98975 | K80: 5 | L80: =_xlfn.AGGREGATE(14,6,Fondstatistik!J$22:J$429,K80) -> 18.98975 | M80: =COUNTIFS($L$76:L80,L80) -> 1 | N80: =IF(M80=1, MATCH(L80,Fondstatistik!J:J,0), SMALL(IF(Fondstatistik!J:J=L80,ROW(Fondstatistik!J:J),""),M80)) -> 280
B81: =INDEX(Fondstatistik!B:B,$N81) -> Franklin Natural Resources Fund A | C81: =INDEX(Fondstatistik!C:C,$N81) -> 20.1051 | D81: =INDEX(Fondstatistik!D:D,$N81) -> -1.89206 | E81: =INDEX(Fondstatistik!E:E,$N81) -> -5.27819 | F81: =INDEX(Fondstatistik!F:F,$N81) -> 20.1051 | G81: =INDEX(Fondstatistik!G:G,$N81) -> 41.22417 | H81: =INDEX(Fondstatistik!H:H,$N81) -> 36.5278 | I81: =INDEX(Fondstatistik!I:I,$N81) -> 130.56149 | J81: =INDEX(Fondstatistik!J:J,$N81) -> 18.18364 | K81: 6 | L81: =_xlfn.AGGREGATE(14,6,Fondstatistik!J$22:J$429,K81) -> 18.18364 | M81: =COUNTIFS($L$76:L81,L81) -> 1 | N81: =IF(M81=1, MATCH(L81,Fondstatistik!J:J,0), SMALL(IF(Fondstatistik!J:J=L81,ROW(Fondstatistik!J:J),""),M81)) -> 342
B82: =INDEX(Fondstatistik!B:B,$N82) -> Skandia Time Global | C82: =INDEX(Fondstatistik!C:C,$N82) -> 9.26937 | D82: =INDEX(Fondstatistik!D:D,$N82) -> -4.56521 | E82: =INDEX(Fondstatistik!E:E,$N82) -> 20.09491 | F82: =INDEX(Fondstatistik!F:F,$N82) -> 9.26937 | G82: =INDEX(Fondstatistik!G:G,$N82) -> 23.94293 | H82: =INDEX(Fondstatistik!H:H,$N82) -> 76.84507 | I82: =INDEX(Fondstatistik!I:I,$N82) -> 130.05219 | J82: =INDEX(Fondstatistik!J:J,$N82) -> 18.13138 | K82: 7 | L82: =_xlfn.AGGREGATE(14,6,Fondstatistik!J$22:J$429,K82) -> 18.13138 | M82: =COUNTIFS($L$76:L82,L82) -> 1 | N82: =IF(M82=1, MATCH(L82,Fondstatistik!J:J,0), SMALL(IF(Fondstatistik!J:J=L82,ROW(Fondstatistik!J:J),""),M82)) -> 237
B83: =INDEX(Fondstatistik!B:B,$N83) -> BlackRock - World Financials A2 | C83: =INDEX(Fondstatistik!C:C,$N83) -> 8.29742 | D83: =INDEX(Fondstatistik!D:D,$N83) -> 11.07792 | E83: =INDEX(Fondstatistik!E:E,$N83) -> 19.95457 | F83: =INDEX(Fondstatistik!F:F,$N83) -> 8.29742 | G83: =INDEX(Fondstatistik!G:G,$N83) -> 22.57309 | H83: =INDEX(Fondstatistik!H:H,$N83) -> 99.73035 | I83: =INDEX(Fondstatistik!I:I,$N83) -> 129.85107 | J83: =INDEX(Fondstatistik!J:J,$N83) -> 18.11072 | K83: 8 | L83: =_xlfn.AGGREGATE(14,6,Fondstatistik!J$22:J$429,K83) -> 18.11072 | M83: =COUNTIFS($L$76:L83,L83) -> 1 | N83: =IF(M83=1, MATCH(L83,Fondstatistik!J:J,0), SMALL(IF(Fondstatistik!J:J=L83,ROW(Fondstatistik!J:J),""),M83)) -> 262
B84: =INDEX(Fondstatistik!B:B,$N84) -> BlackRock - US Flexible Equity A2 | C84: =INDEX(Fondstatistik!C:C,$N84) -> 23.34146 | D84: =INDEX(Fondstatistik!D:D,$N84) -> 3.25488 | E84: =INDEX(Fondstatistik!E:E,$N84) -> 25.83725 | F84: =INDEX(Fondstatistik!F:F,$N84) -> 23.34146 | G84: =INDEX(Fondstatistik!G:G,$N84) -> 38.90655 | H84: =INDEX(Fondstatistik!H:H,$N84) -> 65.23568 | I84: =INDEX(Fondstatistik!I:I,$N84) -> 118.35191 | J84: =INDEX(Fondstatistik!J:J,$N84) -> 16.90455 | K84: 9 | L84: =_xlfn.AGGREGATE(14,6,Fondstatistik!J$22:J$429,K84) -> 16.90455 | M84: =COUNTIFS($L$76:L84,L84) -> 1 | N84: =IF(M84=1, MATCH(L84,Fondstatistik!J:J,0), SMALL(IF(Fondstatistik!J:J=L84,ROW(Fondstatistik!J:J),""),M84)) -> 258
B85: =INDEX(Fondstatistik!B:B,$N85) -> BlackRock - World Technology A2 | C85: =INDEX(Fondstatistik!C:C,$N85) -> 48.96655 | D85: =INDEX(Fondstatistik!D:D,$N85) -> 6.88656 | E85: =INDEX(Fondstatistik!E:E,$N85) -> 58.02274 | F85: =INDEX(Fondstatistik!F:F,$N85) -> 48.96655 | G85: =INDEX(Fondstatistik!G:G,$N85) -> 59.24742 | H85: =INDEX(Fondstatistik!H:H,$N85) -> 120.50094 | I85: =INDEX(Fondstatistik!I:I,$N85) -> 116.78457 | J85: =INDEX(Fondstatistik!J:J,$N85) -> 16.73623 | K85: 10 | L85: =_xlfn.AGGREGATE(14,6,Fondstatistik!J$22:J$429,K85) -> 16.73623 | M85: =COUNTIFS($L$76:L85,L85) -> 1 | N85: =IF(M85=1, MATCH(L85,Fondstatistik!J:J,0), SMALL(IF(Fondstatistik!J:J=L85,ROW(Fondstatistik!J:J),""),M85)) -> 259

Sheet Fondstatistik
A5: ="Fondstatistik per "&TEXT('Fondval & marknadsvärde'!$A$6,"ÅÅÅÅ-MM-DD") -> Fondstatistik per 2026-06-30
A6: ='Fondval & marknadsvärde'!A7 -> Nästa uppdatering: 2026-08-13
A9: * Fotnot om rysslandsfonder och östeuropafonder
A10: Klicka på resp rubrik för att sortera (stigande eller fallande)
A18: Klicka på kolumnnamnen för att sortera på respektive kolumn.
C20: Värdeutveckling i SEK (%) | K20: Fondavgift (%) | N20: Sharpe- | O20: Noterings- | Q20: Svensk/ | R20: Upphandlad | U20: Aktiv/
A21: Fondnummer | B21: Fondnamn | C21: I år | D21: 1 mån. | E21: 3 mån. | F21: 6 mån. | G21: 12 mån. | H21: 36 mån. | I21: 60 mån. | J21: Snitt 5 år | K21: Netto | L21: Brutto (TER) | M21: Risk | N21: kvot | O21: valuta | P21: Startdatum | Q21: Utländsk | R21: fond | S21: ISIN-kod | T21: Förvaltare | U21: Passiv | V21: Fondkategori
A22: 734491 | B22: Avanza Zero | C22: 11.67337 | D22: 1.83658 | E22: 9.80337 | F22: 11.67337 | G22: 30.25957 | H22: 49.52788 | I22: 62.47302 | J22: 10.19357 | K22: 0 | L22: 0 | M22: 12.78835 | N22: 0.89728 | O22: SEK | P22: 2006-06-19 | Q22: Svensk | S22: SE0001718388 | T22: Avanza Fonder AB | U22: Passiv | V22: Sverige
A23: 314682 | B23: Handelsbanken Pension 50 A12 | C23: 3.93497 | D23: 1.05251 | E23: 4.88909 | F23: 3.93497 | G23: 5.82541 | H23: 18.37146 | I23: 21.83836 | J23: 4.02957 | K23: 0.00337 | L23: 0.00337 | M23: 3.84462 | N23: 0.76576 | O23: SEK | P23: 2012-09-11 | Q23: Svensk | S23: SE0011307933 | T23: Handelsbanken Fonder AB | U23: Aktiv | V23: Pension om mindre än 10 år
A24: 167114 | B24: Handelsbanken Pension 40 A12 | C24: 3.93837 | D24: 1.04522 | E24: 4.88512 | F24: 3.93837 | G24: 5.83689 | H24: 17.81036 | I24: 18.8951 | J24: 3.52203 | K24: 0.00347 | L24: 0.00347 | M24: 3.69355 | N24: 0.75172 | O24: SEK | P24: 2012-09-11 | Q24: Svensk | S24: SE0011307909 | T24: Handelsbanken Fonder AB | U24: Aktiv | V24: Pension om mindre än 10 år
A25: 350512 | B25: Handelsbanken Pension 60 A12 | C25: 7.86505 | D25: 1.9493 | E25: 9.59062 | F25: 7.86505 | G25: 12.81857 | H25: 27.99167 | I25: 41.51512 | J25: 7.19156 | K25: 0.00594 | L25: 0.00594 | M25: 7.50353 | N25: 0.76716 | O25: SEK | P25: 2012-09-11 | Q25: Svensk | S25: SE0011307966 | T25: Handelsbanken Fonder AB | U25: Aktiv | V25: Pension om mindre än 10 år
A26: 243022 | B26: Handelsbanken Pension 80 A12 | C26: 12.86688 | D26: 3.02456 | E26: 15.68423 | F26: 12.86688 | G26: 21.46831 | H26: 38.35671 | I26: 61.07664 | J26: 10.0035 | K26: 0.00801 | L26: 0.00801 | M26: 11.29939 | N26: 0.7716 | O26: SEK | P26: 2012-09-11 | Q26: Svensk | S26: SE0011308022 | T26: Handelsbanken Fonder AB | U26: Aktiv | V26: Pension om mer än 10 år
A27: 278853 | B27: Handelsbanken Pension 70 A12 | C27: 12.38413 | D27: 2.92304 | E27: 14.87711 | F27: 12.38413 | G27: 21.23947 | H27: 39.22995 | I27: 61.85417 | J27: 10.1095 | K27: 0.00929 | L27: 0.00929 | M27: 11.1946 | N27: 0.79675 | O27: SEK | P27: 2012-09-11 | Q27: Svensk | S27: SE0011307990 | T27: Handelsbanken Fonder AB | U27: Aktiv | V27: Pension om mer än 10 år
A28: 465914 | B28: Handelsbanken Sverige 100 Index Criteria A1 | C28: 10.77607 | D28: 2.53598 | E28: 10.31093 | F28: 10.77607 | G28: 24.54558 | H28: 45.62366 | I28: 44.28162 | J28: 7.60742 | K28: 0.0386 | L28: 0.20233 | M28: 13.53315 | N28: 0.79011 | O28: SEK | P28: 2012-03-21 | Q28: Svensk | R28: Upphandlad | S28: SE0003788587 | T28: Handelsbanken Fonder AB | U28: Passiv | V28: Sverige
A29: 290072 | B29: Aktiespararna Topp Sverige | C29: 12.88767 | D29: 2.24058 | E29: 11.29041 | F29: 12.88767 | G29: 33.23572 | H29: 51.73386 | I29: 62.70762 | J29: 10.22537 | K29: 0.0389 | L29: 0.31087 | M29: 13.39613 | N29: 0.89948 | O29: SEK | P29: 2000-07-05 | Q29: Svensk | R29: Upphandlad | S29: SE0000924649 | T29: Cicero Fonder AB | U29: Passiv | V29: Sverige
A30: 114819 | B30: Swedbank Robur Access Global A | C30: 14.37951 | D30: 4.31681 | E30: 16.23441 | F30: 14.37951 | G30: 23.41291 | H30: 52.87115 | I30: 91.09988 | J30: 13.82878 | K30: 0.039 | L30: 0.20031 | M30: 13.2832 | N30: 0.92711 | O30: SEK | P30: 2015-10-12 | Q30: Svensk | R30: Upphandlad | S30: SE0007074059 | T30: Swedbank Robur Fonder AB | U30: Passiv | V30: Global
A31: 755504 | B31: Swedbank Robur Access Europa A | C31: 12.50281 | D31: 5.56727 | E31: 13.44186 | F31: 12.50281 | G31: 20.05756 | H31: 41.31928 | I31: 76.11258 | J31: 11.98454 | K31: 0.039 | L31: 0.2006 | M31: 10.63007 | N31: 0.8776 | O31: SEK | P31: 2015-09-14 | Q31: Svensk | R31: Upphandlad | S31: SE0007073937 | T31: Swedbank Robur Fonder AB | U31: Passiv | V31: Europa
A32: 719674 | B32: Swedbank Robur Access Sverige A | C32: 10.91195 | D32: 1.4803 | E32: 10.11729 | F32: 10.91195 | G32: 24.77821 | H32: 43.95347 | I32: 37.72719 | J32: 6.61147 | K32: 0.039 | L32: 0.20072 | M32: 13.64031 | N32: 0.75642 | O32: SEK | P32: 2015-09-14 | Q32: Svensk | R32: Upphandlad | S32: SE0007074075 | T32: Swedbank Robur Fonder AB | U32: Passiv | V32: Sverige
A33: 602979 | B33: Handelsbanken Sverige LM Index (A1 SEK) | C33: 10.33509 | D33: 2.14972 | E33: 9.51735 | F33: 10.33509 | K33: 0.0391 | L33: 0.20059 | O33: SEK | P33: 2025-10-02 | Q33: Svensk | R33: Upphandlad | S33: SE0022421335 | T33: Handelsbanken Fonder AB | U33: Passiv | V33: Sverige
A34: 638809 | B34: Handelsbanken Sverige Index Criteria (A1 SEK) | C34: 10.49391 | D34: 2.13746 | E34: 10.75145 | F34: 10.49391 | H34: 43.18845 | I34: 35.49594 | J34: 6.26378 | K34: 0.0393 | L34: 0.65824 | M34: 13.7183 | N34: 0.73995 | O34: SEK | P34: 2025-10-02 | Q34: Svensk | R34: Upphandlad | S34: SE0001466368 | T34: Handelsbanken Fonder AB | U34: Passiv | V34: Sverige
A35: 629543 | B35: Handelsbanken Europa Index Criteria A1 | C35: 13.48377 | D35: 7.39505 | E35: 16.68361 | F35: 13.48377 | G35: 22.5492 | H35: 41.47465 | I35: 74.6395 | J35: 11.79658 | K35: 0.04 | L35: 0.20285 | M35: 11.41594 | N35: 0.82742 | O35: SEK | P35: 2000-07-05 | Q35: Svensk | R35: Upphandlad | S35: SE0000624421 | T35: Handelsbanken Fonder AB | U35: Passiv | V35: Europa
A36: 545541 | B36: AP7 Räntefond | C36: 1.56422 | D36: 0.53565 | E36: 1.99541 | F36: 1.56422 | G36: 2.05607 | H36: 13.17128 | I36: 6.66903 | J36: 1.29959 | K36: 0.0401 | L36: 0.0401 | M36: 2.38901 | N36: 0.58394 | O36: SEK | P36: 2010-05-06 | Q36: Svensk | S36: SE0003299981 | T36: Sjunde AP-Fonden | U36: Aktiv | V36: Sverige lång och realränta
A37: 491233 | B37: Handelsbanken Developed Markets Index Criteria A1 | C37: 14.37076 | D37: 4.0447 | E37: 19.72075 | F37: 14.37076 | G37: 23.9951 | K37: 0.0401 | L37: 0.20172 | O37: SEK | P37: 2025-03-04 | Q37: Svensk | R37: Upphandlad | S37: SE0020846681 | T37: Handelsbanken Fonder AB | U37: Passiv | V37: Global
A38: 785907 | B38: Handelsbanken Global Index Criteria A1 | C38: 16.82629 | D38: 4.11446 | E38: 21.32795 | F38: 16.82629 | G38: 27.50266 | H38: 52.24186 | I38: 83.84267 | J38: 12.95079 | K38: 0.0406 | L38: 0.4051 | M38: 13.70511 | N38: 0.8915 | O38: SEK | P38: 2013-12-03 | Q38: Svensk | R38: Upphandlad | S38: SE0011309707 | T38: Handelsbanken Fonder AB | U38: Passiv | V38: Global
A39: 545426 | B39: Skandia Global Exponering A | C39: 14.00322 | D39: 3.90503 | E39: 19.73725 | F39: 14.00322 | G39: 23.4467 | H39: 50.97018 | I39: 89.64891 | J39: 13.6554 | K39: 0.0444 | L39: 0.25051 | M39: 14.26878 | N39: 0.84268 | O39: SEK | P39: 2013-10-07 | Q39: Svensk | R39: Upphandlad | S39: SE0005281847 | T39: Skandia Fonder AB | U39: Passiv | V39: Global
A40: 654459 | B40: Skandia Europa Exponering | C40: 12.8436 | D40: 6.45649 | E40: 15.24484 | F40: 12.8436 | G40: 20.398 | H40: 38.44055 | I40: 70.33197 | J40: 11.23955 | K40: 0.0454 | L40: 0.25219 | M40: 10.94862 | N40: 0.79192 | O40: SEK | P40: 2000-07-05 | Q40: Svensk | R40: Upphandlad | S40: SE0000810772 | T40: Skandia Fonder AB | U40: Passiv | V40: Europa
A41: 527060 | B41: Storebrand Global Indeks A4 | C41: 15.28094 | D41: 4.16248 | E41: 15.86869 | F41: 15.28094 | G41: 23.36385 | H41: 48.57392 | I41: 92.99426 | J41: 14.05357 | K41: 0.05 | L41: 0.25 | M41: 12.61995 | N41: 0.89318 | O41: USD | P41: 2025-03-04 | Q41: Utländsk | R41: Upphandlad | S41: NO0010839640 | T41: Storebrand Asset Management AS | U41: Passiv | V41: Global
A42: 581371 | B42: AP7 Aktiefond | C42: 20.03334 | D42: 4.39395 | E42: 21.34496 | F42: 20.03334 | G42: 31.07471 | H42: 63.32428 | I42: 97.90968 | J42: 14.62871 | K42: 0.0511 | L42: 0.0511 | M42: 13.71604 | N42: 1.06328 | O42: SEK | P42: 2010-05-06 | Q42: Svensk | S42: SE0003299999 | T42: Sjunde AP-Fonden | U42: Aktiv | V42: Global
A43: 140673 | B43: Storebrand Europa A | C43: 12.97791 | D43: 6.18419 | E43: 14.40685 | F43: 12.97791 | G43: 20.36478 | H43: 43.58826 | I43: 78.21796 | J43: 12.25102 | K43: 0.06 | L43: 0.20917 | M43: 10.90018 | N43: 0.90735 | O43: SEK | P43: 2000-07-05 | Q43: Svensk | R43: Upphandlad | S43: SE0000531881 | T43: Storebrand Asset Management AS | U43: Passiv | V43: Europa
A44: 343665 | B44: Mercer Passive Sustainable Global Equity UCITS CCF | C44: 10.85838 | D44: 2.19118 | E44: 15.9647 | F44: 10.85838 | G44: 19.01542 | K44: 0.0614 | L44: 0.06137 | O44: SEK | P44: 2025-03-04 | Q44: Utländsk | R44: Upphandlad | S44: IE000OYDRUK4 | T44: Mercer Global Investments Management Limited | U44: Passiv | V44: Global
A45: 717611 | B45: Swedbank Robur Räntefond Kort A | C45: 1.15108 | D45: 0.21383 | E45: 0.68027 | F45: 1.15108 | G45: 2.25455 | H45: 10.25289 | I45: 11.13526 | J45: 2.13401 | K45: 0.07312 | L45: 0.10044 | M45: 0.37906 | N45: 1.74428 | O45: SEK | P45: 2000-07-05 | Q45: Svensk | S45: SE0000543043 | T45: Swedbank Robur Fonder AB | U45: Aktiv | V45: Sverige kortränta
A46: 305185 | B46: AMF Räntefond Kort | C46: 1.21704 | D46: 0.18471 | E46: 0.79179 | F46: 1.21704 | G46: 2.33798 | H46: 11.11606 | I46: 11.98384 | J46: 2.2895 | K46: 0.07349 | L46: 0.1 | M46: 0.54148 | N46: 1.69188 | O46: SEK | P46: 2004-05-18 | Q46: Svensk | S46: SE0001184961 | T46: AMF Fonder AB | U46: Aktiv | V46: Sverige kortränta
A47: 574293 | B47: AMF Räntefond Lång | C47: 2.17323 | D47: 0.74125 | E47: 2.5815 | F47: 2.17323 | G47: 2.43856 | H47: 15.43073 | I47: 7.05633 | J47: 1.37304 | K47: 0.07349 | L47: 0.1 | M47: 3.01643 | N47: 0.68908 | O47: SEK | P47: 2000-07-05 | Q47: Svensk | S47: SE0000739187 | T47: AMF Fonder AB | U47: Aktiv | V47: Sverige lång och realränta
A48: 265512 | B48: AMF Räntefond Mix | C48: 0.90963 | D48: 0.5847 | E48: 1.68766 | F48: 0.90963 | G48: 1.52241 | H48: 10.34675 | I48: -0.65283 | J48: -0.13091 | K48: 0.07349 | L48: 0.1 | M48: 3.30486 | N48: 0.16816 | O48: SEK | P48: 2012-01-17 | Q48: Svensk | S48: SE0004324424 | T48: AMF Fonder AB | U48: Aktiv | V48: Sverige lång och realränta
A49: 294918 | B49: Lannebo Kort ränta | C49: 1.10102 | D49: 0.20101 | E49: 0.66353 | F49: 1.10102 | G49: 2.10691 | H49: 9.52082 | I49: 9.61257 | J49: 1.85259 | K49: 0.07525 | L49: 0.10954 | M49: 0.33619 | N49: 1.1717 | O49: SEK | P49: 2001-11-13 | Q49: Svensk | S49: SE0000493504 | T49: Lannebo Kapitalförvaltning AB | U49: Aktiv | V49: Sverige kortränta
A50: 972497 | B50: Spiltan Räntefond Sverige | C50: 1.54598 | D50: 0.2842 | E50: 0.938 | F50: 1.54598 | G50: 2.88872 | H50: 15.34894 | I50: 18.08701 | J50: 3.38093 | K50: 0.07633 | L50: 0.10012 | M50: 0.95933 | N50: 2.42997 | O50: SEK | P50: 2008-04-21 | Q50: Svensk | S50: SE0002152140 | T50: Spiltan Fonder AB | U50: Aktiv | V50: Sverige kortränta
A51: 718205 | B51: Handelsbanken Kortränta A1 | C51: 1.19857 | D51: 0.2939 | E51: 0.95532 | F51: 1.19857 | G51: 2.25357 | H51: 11.22428 | I51: 12.58506 | J51: 2.3991 | K51: 0.07903 | L51: 0.15 | M51: 0.60413 | N51: 1.54341 | O51: SEK | P51: 2000-07-05 | Q51: Svensk | S51: SE0011309491 | T51: Handelsbanken Fonder AB | U51: Aktiv | V51: Sverige kortränta
A52: 538462 | B52: AMF Aktiefond Europa | C52: 12.01095 | D52: 5.97938 | E52: 14.40847 | F52: 12.01095 | G52: 19.14183 | H52: 37.01568 | I52: 67.44574 | J52: 10.85999 | K52: 0.08 | L52: 0.4 | M52: 10.64966 | N52: 0.77774 | O52: SEK | P52: 2000-07-05 | Q52: Svensk | R52: Upphandlad | S52: SE0000739153 | T52: AMF Fonder AB | U52: Aktiv | V52: Europa
A53: 681783 | B53: AMF Aktiefond Sverige | C53: 6.43878 | D53: 1.9125 | E53: 9.47661 | F53: 6.43878 | G53: 16.6734 | H53: 36.03334 | I53: 21.90665 | J53: 4.04123 | K53: 0.08 | L53: 0.4 | M53: 14.08275 | N53: 0.60231 | O53: SEK | P53: 2000-07-05 | Q53: Svensk | R53: Upphandlad | S53: SE0000739195 | T53: AMF Fonder AB | U53: Aktiv | V53: Sverige
A54: 534800 | B54: Storebrand Obligation A | C54: 2.29349 | D54: 0.89865 | E54: 2.57703 | F54: 2.29349 | G54: 1.39064 | H54: 13.0208 | I54: 2.45543 | J54: 0.48633 | K54: 0.08517 | L54: 0.20514 | M54: 3.84501 | N54: 0.36036 | O54: SEK | P54: 2000-07-05 | Q54: Svensk | S54: SE0000522518 | T54: Storebrand Asset Management AS | U54: Aktiv | V54: Sverige lång och realränta
A55: 442897 | B55: Storebrand Kortränta A | C55: 1.15971 | D55: 0.20232 | E55: 0.73596 | F55: 1.15971 | G55: 2.27296 | H55: 10.43985 | I55: 12.61339 | J55: 2.40426 | K55: 0.08522 | L55: 0.20555 | M55: 0.35618 | N55: 2.44047 | O55: SEK | P55: 2010-06-17 | Q55: Svensk | S55: SE0000522500 | T55: Storebrand Asset Management AS | U55: Aktiv | V55: Sverige kortränta
A56: 420646 | B56: Länsförsäkringar Kort Räntefond | C56: 1.25298 | D56: 0.19227 | E56: 0.7643 | F56: 1.25298 | G56: 2.54481 | H56: 11.34791 | I56: 12.47704 | J56: 2.37945 | K56: 0.08631 | L56: 0.1998 | M56: 0.39285 | N56: 3.21507 | O56: SEK | P56: 2000-07-05 | Q56: Svensk | S56: SE0000837247 | T56: Länsförsäkringar Fondförvaltning AB (publ) | U56: Aktiv | V56: Sverige kortränta
A57: 976928 | B57: Folksam LO Sverige | C57: 11.35124 | D57: 1.54023 | E57: 13.90856 | F57: 11.35124 | G57: 25.8435 | H57: 45.06795 | I57: 34.13128 | J57: 6.04886 | K57: 0.089 | L57: 0.40009 | M57: 14.3067 | N57: 0.74577 | O57: SEK | P57: 2000-07-05 | Q57: Svensk | R57: Upphandlad | S57: SE0000540593 | T57: Swedbank Robur Fonder AB | U57: Aktiv | V57: Sverige
A58: 331983 | B58: Skandia Korträntefond | C58: 1.18604 | D58: 0.21171 | E58: 0.74145 | F58: 1.18604 | G58: 2.30061 | H58: 10.56359 | I58: 11.84451 | J58: 2.26404 | K58: 0.09006 | L58: 0.20033 | M58: 0.4445 | N58: 1.72416 | O58: SEK | P58: 2000-07-05 | Q58: Svensk | S58: SE0000810897 | T58: Skandia Fonder AB | U58: Aktiv | V58: Sverige kortränta
A59: 988600 | B59: SEB Europe Equity Fund | C59: 14.30606 | D59: 5.91964 | E59: 12.82045 | F59: 14.30606 | G59: 22.43687 | K59: 0.0921 | L59: 0.0921 | O59: EUR | P59: 2024-05-22 | Q59: Utländsk | R59: Upphandlad | S59: LU2816007293 | T59: SEB Funds AB | U59: Aktiv | V59: Europa
A60: 677534 | B60: Swedbank Robur Obligation A | C60: 1.51188 | D60: 0.57061 | E60: 2.09992 | F60: 1.51188 | G60: 1.51188 | H60: 12.52993 | I60: 2.84464 | J60: 0.56256 | K60: 0.09379 | L60: 0.30233 | M60: 3.00528 | N60: 0.40402 | O60: SEK | P60: 2000-07-05 | Q60: Svensk | S60: SE0000602260 | T60: Swedbank Robur Fonder AB | U60: Aktiv | V60: Sverige lång och realränta
A61: 613133 | B61: Nordea Swedish Bond Stars | C61: 1.36615 | D61: 0.4114 | E61: 1.68657 | F61: 1.36615 | G61: 2.23389 | H61: 13.00309 | I61: 9.51721 | J61: 1.83486 | K61: 0.09453 | L61: 0.30025 | M61: 1.69588 | N61: 0.79446 | O61: SEK | P61: 2001-04-27 | Q61: Svensk | S61: SE0000427817 | T61: Nordea Funds Ab | U61: Aktiv | V61: Sverige lång och realränta
A62: 721506 | B62: Storebrand Grön Obligation A | C62: 1.80689 | D62: 0.59129 | E62: 2.33943 | F62: 1.80689 | G62: 2.5304 | H62: 16.51923 | I62: 10.0039 | J62: 1.92521 | K62: 0.09644 | L62: 0.30549 | M62: 2.48579 | N62: 0.96612 | O62: SEK | P62: 2015-05-26 | Q62: Svensk | S62: SE0006763967 | T62: Storebrand Asset Management AS | U62: Aktiv | V62: Sverige lång och realränta
A63: 418699 | B63: Simplicity Likviditet A | C63: 1.31066 | D63: 0.24703 | E63: 0.83081 | F63: 1.31066 | G63: 2.7536 | H63: 11.91933 | I63: 15.02214 | J63: 2.83863 | K63: 0.09815 | L63: 0.16384 | M63: 0.46537 | N63: 2.61736 | O63: SEK | P63: 2006-11-06 | Q63: Svensk | S63: SE0001827692 | T63: Simplicity AB | U63: Aktiv | V63: Sverige kortränta
A64: 567140 | B64: Simplicity Sverige | C64: 12.79689 | D64: 2.38293 | E64: 10.71262 | F64: 12.79689 | H64: 45.40986 | I64: 41.73779 | J64: 7.22527 | K64: 0.1 | L64: 0.80912 | M64: 12.19578 | N64: 0.85956 | O64: SEK | P64: 2025-10-23 | Q64: Svensk | R64: Upphandlad | S64: SE0006453536 | T64: Simplicity AB | U64: Aktiv | V64: Sverige
A65: 513722 | B65: Lannebo Obligationsfond A | C65: 1.61464 | D65: 0.60066 | E65: 2.13436 | F65: 1.61464 | G65: 1.50538 | H65: 12.5881 | I65: 2.56815 | J65: 0.50844 | K65: 0.10162 | L65: 0.30829 | M65: 3.13254 | N65: 0.39462 | O65: SEK | P65: 2021-03-15 | Q65: Svensk | S65: SE0006338398 | T65: Lannebo Kapitalförvaltning AB | U65: Aktiv | V65: Sverige lång och realränta
A66: 214163 | B66: Carnegie Likviditetsfond A | C66: 1.14512 | D66: 0.19474 | E66: 0.6848 | F66: 1.14512 | G66: 2.31856 | H66: 10.40119 | I66: 12.24585 | J66: 2.33732 | K66: 0.10477 | L66: 0.3 | M66: 0.36152 | N66: 2.40153 | O66: SEK | P66: 2000-07-05 | Q66: Svensk | S66: SE0000429854 | T66: Carnegie Fonder AB | U66: Aktiv | V66: Sverige kortränta
A67: 331686 | B67: Storebrand FRN Företagsobligation A | C67: 1.73275 | D67: 0.31126 | E67: 1.24107 | F67: 1.73275 | G67: 3.56155 | H67: 17.28933 | I67: 16.50185 | J67: 3.10188 | K67: 0.10772 | L67: 0.406 | M67: 0.92099 | N67: 3.2261 | O67: SEK | P67: 2012-10-18 | Q67: Svensk | S67: SE0004807097 | T67: Storebrand Asset Management AS | U67: Aktiv | V67: Norden ränta
A68: 865774 | B68: Danske Invest SICAV - Sverige Kort Ränta SI | C68: 1.39075 | D68: 0.30997 | E68: 1.20597 | F68: 1.39075 | G68: 2.51609 | H68: 12.66824 | I68: 13.5633 | J68: 2.57644 | K68: 0.109 | L68: 0.2 | M68: 0.77194 | N68: 1.77859 | O68: SEK | P68: 2000-07-05 | Q68: Utländsk | S68: LU1349497328 | T68: Danske Invest Management A/S | U68: Aktiv | V68: Sverige kortränta
A69: 131409 | B69: Nordea Realräntefond | C69: 0.59355 | D69: 0.5057 | E69: 0.64243 | F69: 0.59355 | G69: -0.78082 | H69: 5.94295 | I69: 5.92778 | J69: 1.15841 | K69: 0.11578 | L69: 0.49975 | M69: 2.93979 | N69: -0.28324 | O69: SEK | P69: 2008-04-07 | Q69: Utländsk | S69: FI0008813449 | T69: Nordea Funds Ab | U69: Aktiv | V69: Sverige lång och realränta
A70: 126268 | B70: Storebrand Global Corporate Bond IG 4-6Y A SEK H | C70: 0.13041 | D70: 0.26488 | E70: 1.12675 | F70: 0.13041 | G70: 1.43562 | H70: 11.39773 | I70: -1.65452 | J70: -0.33312 | K70: 0.11889 | L70: 0.50552 | M70: 3.20571 | N70: 0.27254 | O70: SEK | P70: 2022-04-28 | Q70: Svensk | S70: SE0010831578 | T70: Storebrand Asset Management AS | U70: Aktiv | V70: Global ränta
A71: 405704 | B71: SEB Green Bond Fund C | C71: 0.50605 | D71: 0.2891 | E71: 1.32114 | F71: 0.50605 | G71: 1.45548 | H71: 11.49668 | I71: 2.78719 | J71: 0.55133 | K71: 0.11916 | L71: 0.4604 | M71: 2.18729 | N71: 0.4059 | O71: SEK | P71: 2015-09-16 | Q71: Utländsk | S71: LU2847674202 | T71: SEB Funds AB | U71: Aktiv | V71: Global ränta
A72: 150649 | B72: Swedbank Robur Access USA A | C72: 15.09478 | D72: 4.15438 | E72: 18.36578 | F72: 15.09478 | G72: 24.80869 | H72: 58.33688 | I72: 99.82561 | J72: 14.8498 | K72: 0.11929 | L72: 0.20073 | M72: 15.61721 | N72: 0.88588 | O72: SEK | P72: 2015-09-25 | Q72: Svensk | S72: SE0007074083 | T72: Swedbank Robur Fonder AB | U72: Passiv | V72: USA och Nordamerika
A73: 929224 | B73: Handelsbanken USA Index Criteria A1 | C73: 14.72925 | D73: 3.34994 | E73: 21.74541 | F73: 14.72925 | G73: 25.35214 | H73: 55.84683 | I73: 101.51654 | J73: 15.04351 | K73: 0.12018 | L73: 0.20023 | M73: 16.26259 | N73: 0.82375 | O73: SEK | P73: 2013-12-03 | Q73: Svensk | S73: SE0004139780 | T73: Handelsbanken Fonder AB | U73: Passiv | V73: USA och Nordamerika
A74: 978981 | B74: Swedbank Robur Access Asien A | C74: 32.08673 | D74: 2.8919 | E74: 29.18602 | F74: 32.08673 | G74: 47.31004 | H74: 71.38801 | I74: 59.99518 | J74: 9.85539 | K74: 0.12048 | L74: 0.21236 | M74: 16.30043 | N74: 1.01368 | O74: SEK | P74: 2015-09-25 | Q74: Svensk | S74: SE0007074117 | T74: Swedbank Robur Fonder AB | U74: Passiv | V74: Asien
A75: 248161 | B75: Storebrand USA A | C75: 15.48066 | D75: 4.10953 | E75: 18.93749 | F75: 15.48066 | G75: 22.66698 | H75: 51.31962 | I75: 91.24412 | J75: 13.84596 | K75: 0.12057 | L75: 0.20412 | M75: 14.56359 | N75: 0.8346 | O75: SEK | P75: 2000-07-05 | Q75: Svensk | S75: SE0000594111 | T75: Storebrand Asset Management AS | U75: Passiv | V75: USA och Nordamerika
A76: 726117 | B76: Skandia Obligationsfond | C76: 1.7672 | D76: 0.64811 | E76: 2.17884 | F76: 1.7672 | G76: 1.71803 | H76: 13.0632 | I76: 3.06261 | J76: 0.60515 | K76: 0.12093 | L76: 0.40083 | M76: 3.0368 | N76: 0.45277 | O76: SEK | P76: 2000-07-05 | Q76: Svensk | S76: SE0000810863 | T76: Skandia Fonder AB | U76: Aktiv | V76: Sverige lång och realränta
A77: 176503 | B77: Storebrand Japan A | C77: 24.52924 | D77: 5.54772 | E77: 21.20371 | F77: 24.52924 | G77: 33.68221 | H77: 49.34794 | I77: 72.08991 | J77: 11.46823 | K77: 0.12109 | L77: 0.20882 | M77: 14.57876 | N77: 0.79974 | O77: SEK | P77: 2000-07-05 | Q77: Svensk | S77: SE0000621393 | T77: Storebrand Asset Management AS | U77: Passiv | V77: Japan
A78: 551507 | B78: Länsförsäkringar USA Index | C78: 12.75198 | D78: 3.70931 | E78: 17.53582 | F78: 12.75198 | G78: 21.60631 | H78: 55.46434 | I78: 110.54812 | J78: 16.05672 | K78: 0.12131 | L78: 0.2 | M78: 15.00238 | N78: 0.87592 | O78: SEK | P78: 2013-07-16 | Q78: Svensk | S78: SE0002793943 | T78: Länsförsäkringar Fondförvaltning AB (publ) | U78: Passiv | V78: USA och Nordamerika
A79: 470104 | B79: Länsförsäkringar Japan Index | C79: 20.28665 | D79: 4.9111 | E79: 17.6597 | F79: 20.28665 | G79: 28.97982 | H79: 42.83166 | I79: 64.99913 | J79: 10.53411 | K79: 0.12155 | L79: 0.20192 | M79: 14.03692 | N79: 0.71889 | O79: SEK | P79: 2014-10-21 | Q79: Svensk | S79: SE0000837296 | T79: Länsförsäkringar Fondförvaltning AB (publ) | U79: Passiv | V79: Japan
A80: 224493 | B80: KPA Blandfond | C80: 9.12757 | D80: 2.23019 | E80: 9.58543 | F80: 9.12757 | G80: 15.97863 | H80: 35.00077 | I80: 39.21843 | J80: 6.84135 | K80: 0.12243 | L80: 0.4067 | M80: 8.31592 | N80: 0.91396 | O80: SEK | P80: 2000-07-05 | Q80: Svensk | S80: SE0000885089 | T80: Swedbank Robur Fonder AB | U80: Passiv | V80: Varierande
A81: 242081 | B81: Länsförsäkringar Lång Räntefond A | C81: 1.71142 | D81: 0.86364 | E81: 1.85015 | F81: 1.71142 | G81: -0.82724 | H81: 6.34576 | I81: 2.26515 | J81: 0.44898 | K81: 0.12429 | L81: 0.50217 | M81: 2.74267 | N81: -0.25813 | O81: SEK | P81: 2001-04-26 | Q81: Svensk | S81: SE0000837254 | T81: Länsförsäkringar Fondförvaltning AB (publ) | U81: Aktiv | V81: Sverige lång och realränta
A82: 427310 | B82: SPP Generation 50-tal | C82: 5.86927 | D82: 1.33905 | E82: 6.0841 | F82: 5.86927 | G82: 9.08218 | H82: 23.79677 | I82: 24.62944 | J82: 4.50189 | K82: 0.12551 | L82: 0.40633 | M82: 4.45967 | N82: 0.99892 | O82: SEK | P82: 2000-07-05 | Q82: Svensk | S82: SE0001095852 | T82: Storebrand Asset Management AS | U82: Aktiv | V82: Pension om mindre än 10 år
A83: 463141 | B83: SPP Generation 60-tal | C83: 9.70993 | D83: 2.15626 | E83: 9.76423 | F83: 9.70993 | G83: 16.5137 | H83: 36.034 | I83: 50.18461 | J83: 8.47386 | K83: 0.12553 | L83: 0.40646 | M83: 7.38772 | N83: 1.05317 | O83: SEK | P83: 2000-07-05 | Q83: Svensk | S83: SE0001095860 | T83: Storebrand Asset Management AS | U83: Aktiv | V83: Pension om mindre än 10 år
A84: 498972 | B84: SPP Generation 70-tal | C84: 14.5618 | D84: 3.22279 | E84: 14.6383 | F84: 14.5618 | G84: 25.31214 | H84: 48.5748 | I84: 71.07364 | J84: 11.33626 | K84: 0.1256 | L84: 0.40707 | M84: 10.27677 | N84: 1.06946 | O84: SEK | P84: 2000-07-05 | Q84: Svensk | S84: SE0001095878 | T84: Storebrand Asset Management AS | U84: Aktiv | V84: Pension om mer än 10 år
A85: 844522 | B85: SPP Generation 80-tal | C85: 15.46167 | D85: 3.36108 | E85: 15.46418 | F85: 15.46167 | G85: 26.89994 | H85: 50.42085 | I85: 73.23573 | J85: 11.61627 | K85: 0.12572 | L85: 0.40816 | M85: 10.70937 | N85: 1.06914 | O85: SEK | P85: 2000-07-05 | Q85: Svensk | S85: SE0000619355 | T85: Storebrand Asset Management AS | U85: Aktiv | V85: Pension om mer än 10 år
A86: 391482 | B86: SPP Generation 40-tal | C86: 5.2441 | D86: 1.21496 | E86: 5.50762 | F86: 5.2441 | G86: 7.88299 | H86: 21.91444 | I86: 19.86277 | J86: 3.69 | K86: 0.12574 | L86: 0.40833 | M86: 4.02715 | N86: 0.97449 | O86: SEK | P86: 2000-07-05 | Q86: Svensk | S86: SE0001095845 | T86: Storebrand Asset Management AS | U86: Aktiv | V86: Pension om mindre än 10 år
A87: 610121 | B87: AMF Balansfond | C87: 7.3659 | D87: 1.98965 | E87: 9.09383 | F87: 7.3659 | G87: 13.85648 | H87: 30.78469 | I87: 29.31124 | J87: 5.27549 | K87: 0.12609 | L87: 0.4 | M87: 8.44071 | N87: 0.77608 | O87: SEK | P87: 2000-07-05 | Q87: Svensk | S87: SE0000739179 | T87: AMF Fonder AB | U87: Aktiv | V87: Varierande
A88: 749192 | B88: Swedbank Robur Mixfond Pension | C88: 10.76779 | D88: 3.07871 | E88: 8.86503 | F88: 10.76779 | G88: 18.33945 | H88: 34.02568 | I88: 42.07366 | J88: 7.27604 | K88: 0.1267 | L88: 0.44835 | M88: 6.78801 | N88: 1.06359 | O88: SEK | P88: 2000-07-05 | Q88: Svensk | S88: SE0000602252 | T88: Swedbank Robur Fonder AB | U88: Aktiv | V88: Varierande
A89: 443721 | B89: Seligson & Co Euroobligation A | C89: 3.68423 | D89: 3.48206 | E89: 3.14909 | F89: 3.68423 | G89: 0.66291 | H89: 1.19636 | I89: -2.6855 | J89: -0.54297 | K89: 0.12704 | L89: 0.28294 | M89: 8.09764 | N89: -0.2559 | O89: EUR | P89: 2000-07-05 | Q89: Utländsk | S89: FI0008801816 | T89: Seligson & Co Fondbolag Abp | U89: Passiv | V89: Europa ränta
A90: 844100 | B90: Lannebo Realräntefond A | C90: 1.14519 | D90: 0.93503 | E90: 1.42134 | F90: 1.14519 | G90: -0.51201 | H90: 5.76118 | I90: 5.39052 | J90: 1.05558 | K90: 0.12848 | L90: 0.51075 | M90: 2.8408 | N90: -0.31465 | O90: SEK | P90: 2018-05-24 | Q90: Svensk | S90: SE0001472952 | T90: Lannebo Kapitalförvaltning AB | U90: Aktiv | V90: Sverige lång och realränta
A91: 648964 | B91: Nordea Obligationsfond | C91: 2.05822 | D91: 0.95468 | E91: 2.50379 | F91: 2.05822 | G91: 0.4444 | H91: 10.22147 | I91: -3.57117 | J91: -0.72466 | K91: 0.12975 | L91: 0.63087 | M91: 4.50278 | N91: 0.12526 | O91: SEK | P91: 2001-04-27 | Q91: Svensk | S91: SE0000427825 | T91: Nordea Funds Ab | U91: Aktiv | V91: Sverige lång och realränta
A92: 134593 | B92: Pareto Räntefond A | C92: 1.73625 | D92: 0.35451 | E92: 1.30908 | F92: 1.73625 | G92: 3.90553 | H92: 16.42165 | I92: 20.41829 | J92: 3.78593 | K92: 0.12996 | L92: 0.26987 | M92: 0.77901 | N92: 3.34104 | O92: SEK | P92: 2001-04-20 | Q92: Svensk | S92: SE0000813933 | T92: Pareto Asset Management AB | U92: Aktiv | V92: Sverige lång och realränta
A93: 291906 | B93: D&G Aktiefond | C93: 1.89725 | D93: 1.98066 | E93: 9.84122 | F93: 1.89725 | G93: 6.7823 | H93: 23.78062 | I93: 8.91518 | J93: 1.72265 | K93: 0.13 | L93: 1.23 | M93: 14.28028 | N93: 0.37371 | O93: SEK | P93: 2000-07-05 | Q93: Svensk | R93: Upphandlad | S93: SE0000428336 | T93: Carnegie Fonder AB | U93: Aktiv | V93: Sverige
A94: 496497 | B94: SEB Realräntefond D | C94: 0.98189 | D94: 0.83719 | E94: 1.23186 | F94: 0.98189 | G94: -0.61333 | H94: 5.61691 | I94: 5.51607 | J94: 1.07965 | K94: 0.13083 | L94: 0.5531 | M94: 2.78258 | N94: -0.33866 | O94: SEK | P94: 2003-12-22 | Q94: Utländsk | S94: LU0055809197 | T94: SEB Funds AB | U94: Aktiv | V94: Sverige lång och realränta
A95: 651679 | B95: SEB Dynamic Bond Fund C | C95: 1.83365 | D95: 0.44885 | E95: 1.85515 | F95: 1.83365 | G95: 2.588 | H95: 20.81368 | I95: 14.97636 | J95: 2.83044 | K95: 0.13117 | L95: 0.5558 | M95: 2.32615 | N95: 1.59541 | O95: SEK | P95: 2014-12-02 | Q95: Utländsk | S95: LU0979738498 | T95: SEB Funds AB | U95: Aktiv | V95: Sverige lång och realränta
A96: 256362 | B96: Skandia Nordamerika Exponering | C96: 13.85414 | D96: 3.2847 | E96: 21.17187 | F96: 13.85414 | G96: 24.076 | H96: 54.64039 | I96: 98.32778 | J96: 14.6771 | K96: 0.13158 | L96: 0.25016 | M96: 16.35769 | N96: 0.80397 | O96: SEK | P96: 2013-05-20 | Q96: Svensk | S96: SE0005065505 | T96: Skandia Fonder AB | U96: Passiv | V96: USA och Nordamerika
A97: 582791 | B97: Skandia Japan Exponering | C97: 23.64397 | D97: 5.85044 | E97: 21.36845 | F97: 23.64397 | G97: 32.63486 | H97: 48.31241 | I97: 73.6305 | J97: 11.66709 | K97: 0.13166 | L97: 0.25071 | M97: 14.38052 | N97: 0.79283 | O97: SEK | P97: 2000-07-05 | Q97: Svensk | S97: SE0000810764 | T97: Skandia Fonder AB | U97: Passiv | V97: Japan
A98: 840090 | B98: Nordea Stratega Ränta | C98: 1.19417 | D98: 0.63399 | E98: 2.44275 | F98: 1.19417 | G98: 2.27849 | H98: 13.29621 | I98: 1.90712 | J98: 0.37855 | K98: 0.13188 | L98: 0.65082 | M98: 3.41167 | N98: 0.42491 | O98: SEK | P98: 2013-12-09 | Q98: Utländsk | S98: FI4000010525 | T98: Nordea Funds Ab | U98: Aktiv | V98: Övriga räntefonder
A99: 783720 | B99: Swedbank Robur Transfer 70 | C99: 14.75113 | D99: 3.35135 | E99: 14.72803 | F99: 14.75113 | G99: 25.2555 | H99: 55.24803 | I99: 86.33317 | J99: 13.25517 | K99: 0.13225 | L99: 0.50261 | M99: 11.36693 | N99: 1.10792 | O99: SEK | P99: 2004-06-15 | Q99: Svensk | S99: SE0001175738 | T99: Swedbank Robur Fonder AB | U99: Aktiv | V99: Pension om mer än 10 år
A100: 819557 | B100: Swedbank Robur Transfer 60 | C100: 10.90089 | D100: 2.06036 | E100: 10.39267 | F100: 10.90089 | G100: 18.21451 | H100: 40.91674 | I100: 58.25946 | J100: 9.616 | K100: 0.13238 | L100: 0.50383 | M100: 7.97153 | N100: 1.1298 | O100: SEK | P100: 2004-06-15 | Q100: Svensk | S100: SE0001175720 | T100: Swedbank Robur Fonder AB | U100: Aktiv | V100: Pension om mindre än 10 år
A101: 747899 | B101: Swedbank Robur Transfer 80 | C101: 19.48705 | D101: 4.06698 | E101: 18.60413 | F101: 19.48705 | G101: 32.89202 | H101: 67.64785 | I101: 104.35066 | J101: 15.3653 | K101: 0.13243 | L101: 0.50437 | M101: 12.71231 | N101: 1.20621 | O101: SEK | P101: 2004-06-15 | Q101: Svensk | S101: SE0001175746 | T101: Swedbank Robur Fonder AB | U101: Aktiv | V101: Pension om mer än 10 år
A102: 320762 | B102: Swedbank Robur Transfer 90 | C102: 14.21915 | D102: 2.6585 | E102: 13.43882 | F102: 14.21915 | G102: 25.13431 | H102: 56.31339 | I102: 90.94146 | J102: 13.8099 | K102: 0.13249 | L102: 0.50492 | M102: 11.90067 | N102: 1.08278 | O102: SEK | P102: 2012-06-27 | Q102: Svensk | S102: SE0004548949 | T102: Swedbank Robur Fonder AB | U102: Aktiv | V102: Pension om mer än 10 år
A103: 855387 | B103: Swedbank Robur Transfer 50 | C103: 5.16761 | D103: 1.34685 | E103: 5.40135 | F103: 5.16761 | G103: 8.49117 | H103: 23.79045 | I103: 22.82118 | J103: 4.19687 | K103: 0.13321 | L103: 0.51195 | M103: 4.29951 | N103: 1.03522 | O103: SEK | P103: 2004-06-15 | Q103: Svensk | S103: SE0001175712 | T103: Swedbank Robur Fonder AB | U103: Aktiv | V103: Pension om mindre än 10 år
A104: 359315 | B104: Nordea Generationsfond 60-tal | C104: 9.638 | D104: 2.59645 | E104: 10.69202 | F104: 9.638 | G104: 17.70657 | H104: 42.47148 | I104: 56.7785 | J104: 9.41007 | K104: 0.13373 | L104: 0.50044 | M104: 7.68197 | N104: 1.21705 | O104: SEK | P104: 2000-07-05 | Q104: Svensk | S104: SE0000653446 | T104: Nordea Funds Ab | U104: Aktiv | V104: Pension om mindre än 10 år
A105: 287656 | B105: Nordea Generationsfond 70-tal | C105: 14.85039 | D105: 3.92219 | E105: 17.01772 | F105: 14.85039 | G105: 26.00042 | H105: 53.68343 | I105: 79.38418 | J105: 12.39755 | K105: 0.13375 | L105: 0.50068 | M105: 11.34825 | N105: 1.07874 | O105: SEK | P105: 2000-07-05 | Q105: Svensk | S105: SE0000653461 | T105: Nordea Funds Ab | U105: Aktiv | V105: Pension om mer än 10 år
A106: 430975 | B106: Nordea Generationsfond 50-tal | C106: 3.52929 | D106: 1.01232 | E106: 3.93664 | F106: 3.52929 | G106: 6.10214 | H106: 22.89144 | I106: 19.52382 | J106: 3.63129 | K106: 0.13377 | L106: 0.50087 | M106: 3.97066 | N106: 1.05779 | O106: SEK | P106: 2000-07-05 | Q106: Svensk | S106: SE0000653420 | T106: Nordea Funds Ab | U106: Aktiv | V106: Pension om mindre än 10 år
A107: 215996 | B107: Nordea Generationsfond 80-tal | C107: 14.84634 | D107: 3.89589 | E107: 17.00959 | F107: 14.84634 | G107: 26.02735 | H107: 53.81064 | I107: 79.44178 | J107: 12.40476 | K107: 0.13397 | L107: 0.50272 | M107: 11.35397 | N107: 1.0807 | O107: SEK | P107: 2000-07-05 | Q107: Svensk | S107: SE0000653487 | T107: Nordea Funds Ab | U107: Aktiv | V107: Pension om mer än 10 år
A108: 502633 | B108: Nordea Generationsfond Senior | C108: 3.51433 | D108: 1.00628 | E108: 3.91671 | F108: 3.51433 | G108: 6.05261 | H108: 22.14194 | I108: 15.95906 | J108: 3.00562 | K108: 0.13451 | L108: 0.50783 | M108: 3.70413 | N108: 1.07561 | O108: SEK | P108: 2000-07-05 | Q108: Svensk | S108: SE0000653370 | T108: Nordea Funds Ab | U108: Aktiv | V108: Pension om mindre än 10 år
A109: 554691 | B109: Carnegie Obligationsfond A | C109: 1.93667 | D109: 0.85593 | E109: 2.35863 | F109: 1.93667 | G109: 0.73902 | H109: 10.46523 | I109: -1.58439 | J109: -0.31891 | K109: 0.135 | L109: 0.5 | M109: 4.16881 | N109: 0.14979 | O109: SEK | P109: 2007-11-07 | Q109: Svensk | S109: SE0000709313 | T109: Carnegie Fonder AB | U109: Aktiv | V109: Sverige lång och realränta
A110: 574582 | B110: Evli Likviditet Placeringsfonden B | C110: 0.96836 | D110: 0.22517 | E110: 0.79824 | F110: 0.96836 | G110: 2.19225 | H110: 11.17956 | I110: 13.3784 | J110: 2.54301 | K110: 0.13527 | L110: 0.29369 | M110: 0.48307 | N110: 2.16438 | O110: SEK | P110: 2013-05-24 | Q110: Utländsk | S110: FI4000058854 | T110: Evli Fondbolag Ab | U110: Aktiv | V110: Norden ränta
A111: 596429 | B111: Nordea Generationsfond 90-tal | C111: 14.74384 | D111: 3.90144 | E111: 16.9272 | F111: 14.74384 | G111: 25.90109 | H111: 53.48956 | I111: 79.14481 | J111: 12.36753 | K111: 0.13582 | L111: 0.52009 | M111: 11.35066 | N111: 1.07481 | O111: SEK | P111: 2014-06-17 | Q111: Svensk | S111: SE0005880093 | T111: Nordea Funds Ab | U111: Aktiv | V111: Pension om mer än 10 år
A112: 469817 | B112: Skandia Realräntefond | C112: 0.87006 | D112: 0.79325 | E112: 0.68463 | F112: 0.87006 | G112: -0.61945 | H112: 5.75976 | I112: 5.48582 | J112: 1.07385 | K112: 0.13627 | L112: 0.50049 | M112: 2.82451 | N112: -0.31728 | O112: SEK | P112: 2001-04-26 | Q112: Svensk | S112: SE0000810871 | T112: Skandia Fonder AB | U112: Aktiv | V112: Sverige lång och realränta
A113: 941096 | B113: Folksam LO Världen | C113: 9.34637 | D113: 4.70721 | E113: 13.59601 | F113: 9.34637 | G113: 16.95643 | H113: 37.49226 | I113: 71.37839 | J113: 11.3759 | K113: 0.1397 | L113: 0.40006 | M113: 13.31671 | N113: 0.65773 | O113: SEK | P113: 2000-07-05 | Q113: Svensk | S113: SE0000540627 | T113: Swedbank Robur Fonder AB | U113: Aktiv | V113: Global
A114: 715955 | B114: Avanza Emerging Markets | C114: 30.26298 | D114: 3.33368 | E114: 24.36286 | F114: 30.26298 | G114: 45.49077 | H114: 66.02661 | I114: 58.72786 | J114: 9.68081 | K114: 0.14163 | L114: 0.24 | M114: 14.69843 | N114: 1.03517 | O114: SEK | P114: 2020-01-27 | Q114: Svensk | S114: SE0012454338 | T114: Avanza Fonder AB | U114: Passiv | V114: Nya marknader
A115: 660829 | B115: Lannebo FRN A | C115: 1.56613 | D115: 0.32933 | E115: 1.11926 | F115: 1.56613 | G115: 3.47551 | H115: 15.75506 | I115: 16.26875 | J115: 3.06058 | K115: 0.14171 | L115: 0.61049 | M115: 0.79911 | N115: 3.0766 | O115: SEK | P115: 2013-02-27 | Q115: Svensk | S115: SE0004951283 | T115: Lannebo Kapitalförvaltning AB | U115: Aktiv | V115: Sverige kortränta
A116: 785022 | B116: Swedbank Robur Aktiefond Pension | C116: 15.12642 | D116: 2.8262 | E116: 14.24798 | F116: 15.12642 | G116: 27.66027 | H116: 63.09175 | I116: 103.55555 | J116: 15.27539 | K116: 0.14201 | L116: 0.42256 | M116: 11.77542 | N116: 1.21469 | O116: SEK | P116: 2000-07-05 | Q116: Svensk | S116: SE0000602278 | T116: Swedbank Robur Fonder AB | U116: Aktiv | V116: Global och Sverige
A117: 635623 | B117: Länsförsäkringar Sparmål 2040 | C117: 12.50244 | D117: 3.24024 | E117: 14.27576 | F117: 12.50244 | G117: 22.3837 | H117: 45.33097 | I117: 58.5547 | J117: 9.65687 | K117: 0.14273 | L117: 0.50975 | M117: 10.965 | N117: 0.94211 | O117: SEK | P117: 2000-07-05 | Q117: Svensk | S117: SE0000837064 | T117: Länsförsäkringar Fondförvaltning AB (publ) | U117: Aktiv | V117: Pension om mer än 10 år
A118: 832360 | B118: Länsförsäkringar Sparmål 2045 | C118: 12.57726 | D118: 3.25534 | E118: 14.35813 | F118: 12.57726 | G118: 22.55309 | H118: 45.46944 | I118: 60.12617 | J118: 9.87338 | K118: 0.14276 | L118: 0.50998 | M118: 11.04363 | N118: 0.93908 | O118: SEK | P118: 2001-08-15 | Q118: Svensk | S118: SE0000837379 | T118: Länsförsäkringar Fondförvaltning AB (publ) | U118: Aktiv | V118: Pension om mer än 10 år
A119: 874560 | B119: Länsförsäkringar Företagsobligation Vision | C119: 2.10268 | D119: 0.61007 | E119: 2.29502 | F119: 2.10268 | G119: 3.47953 | H119: 20.05326 | I119: 12.48397 | J119: 2.38071 | K119: 0.14299 | L119: 0.65105 | M119: 2.17561 | N119: 1.60219 | O119: SEK | P119: 2014-03-10 | Q119: Svensk | S119: SE0005506276 | T119: Länsförsäkringar Fondförvaltning AB (publ) | U119: Aktiv | V119: Norden ränta
A120: 671453 | B120: Länsförsäkringar Sparmål 2035 | C120: 11.24742 | D120: 2.9646 | E120: 12.97751 | F120: 11.24742 | G120: 20.224 | H120: 41.52873 | I120: 51.68749 | J120: 8.69009 | K120: 0.14358 | L120: 0.51654 | M120: 10.19861 | N120: 0.91766 | O120: SEK | P120: 2000-07-05 | Q120: Svensk | S120: SE0000837072 | T120: Länsförsäkringar Fondförvaltning AB (publ) | U120: Aktiv | V120: Pension om mer än 10 år
A121: 520692 | B121: AMF Aktiefond Nordamerika | C121: 12.07077 | D121: 2.46589 | E121: 18.57015 | F121: 12.07077 | G121: 23.58191 | H121: 49.72428 | I121: 106.87464 | J121: 15.64889 | K121: 0.14376 | L121: 0.4 | M121: 16.45426 | N121: 0.73375 | O121: SEK | P121: 2007-10-01 | Q121: Svensk | S121: SE0002042283 | T121: AMF Fonder AB | U121: Aktiv | V121: USA och Nordamerika
A122: 908277 | B122: AMF Aktiefond Global | C122: 13.52844 | D122: 3.89314 | E122: 16.59352 | F122: 13.52844 | G122: 23.7679 | H122: 45.75268 | I122: 85.1382 | J122: 13.10953 | K122: 0.14376 | L122: 0.4 | M122: 13.16174 | N122: 0.81164 | O122: SEK | P122: 2001-12-06 | Q122: Svensk | S122: SE0000862278 | T122: AMF Fonder AB | U122: Aktiv | V122: Global
A123: 823096 | B123: AMF Aktiefond Asien Stilla Havet | C123: 28.37234 | D123: 3.54368 | E123: 25.57229 | F123: 28.37234 | G123: 40.66223 | H123: 59.64376 | I123: 61.00862 | J123: 9.99421 | K123: 0.14376 | L123: 0.4 | M123: 13.48354 | N123: 1.01835 | O123: SEK | P123: 2008-09-29 | Q123: Svensk | S123: SE0002572313 | T123: AMF Fonder AB | U123: Aktiv | V123: Asien
A124: 645952 | B124: AMF Aktiefond Världen | C124: 10.76988 | D124: 3.15957 | E124: 13.20214 | F124: 10.76988 | G124: 21.5137 | H124: 41.6724 | I124: 49.31093 | J124: 8.34736 | K124: 0.14376 | L124: 0.4 | M124: 11.73825 | N124: 0.81449 | O124: SEK | P124: 2000-07-05 | Q124: Svensk | S124: SE0000739161 | T124: AMF Fonder AB | U124: Aktiv | V124: Global och Sverige
A125: 269357 | B125: AMF Aktiefond Småbolag | C125: -1.16439 | D125: 0.31673 | E125: 7.62675 | F125: -1.16439 | G125: -5.09627 | H125: 6.38551 | I125: -15.25784 | J125: -3.25692 | K125: 0.14376 | L125: 0.4 | M125: 16.9379 | N125: 0.03802 | O125: SEK | P125: 2004-05-18 | Q125: Svensk | S125: SE0001185000 | T125: AMF Fonder AB | U125: Aktiv | V125: Sverige småbolag
A126: 459891 | B126: Storebrand Emerging Markets A | C126: 31.05499 | D126: 3.52208 | E126: 27.1014 | F126: 31.05499 | G126: 45.56012 | H126: 71.71939 | I126: 66.73781 | J126: 10.76609 | K126: 0.14513 | L126: 0.42291 | M126: 15.04252 | N126: 1.09051 | O126: SEK | P126: 2011-12-12 | Q126: Svensk | S126: SE0003455658 | T126: Storebrand Asset Management AS | U126: Passiv | V126: Nya marknader
A127: 707281 | B127: Länsförsäkringar Sparmål 2030 | C127: 9.37703 | D127: 2.51997 | E127: 10.80371 | F127: 9.37703 | G127: 16.86979 | H127: 36.24195 | I127: 41.89169 | J127: 7.24854 | K127: 0.1453 | L127: 0.5302 | M127: 8.82905 | N127: 0.90068 | O127: SEK | P127: 2000-07-05 | Q127: Svensk | S127: SE0000837080 | T127: Länsförsäkringar Fondförvaltning AB (publ) | U127: Aktiv | V127: Pension om mindre än 10 år
A128: 524702 | B128: Handelsbanken Långränta A1 | C128: 1.25442 | D128: 0.80028 | E128: 2.04772 | F128: 1.25442 | G128: 0.01745 | H128: 9.12034 | I128: -2.44276 | J128: -0.4934 | K128: 0.14671 | L128: 0.75 | M128: 3.87323 | N128: 0.05183 | O128: SEK | P128: 2016-10-18 | Q128: Svensk | S128: SE0000356297 | T128: Handelsbanken Fonder AB | U128: Aktiv | V128: Sverige lång och realränta
A129: 434274 | B129: Länsförsäkringar Tillväxtmarknad Index A | C129: 18.55635 | D129: 3.81147 | E129: 18.29275 | F129: 18.55635 | G129: 28.99803 | H129: 44.74739 | I129: 37.04181 | J129: 6.50515 | K129: 0.14697 | L129: 0.40427 | M129: 13.23008 | N129: 0.78826 | O129: SEK | P129: 2014-10-21 | Q129: Svensk | S129: SE0005796331 | T129: Länsförsäkringar Fondförvaltning AB (publ) | U129: Passiv | V129: Nya marknader
A130: 743112 | B130: Länsförsäkringar Sparmål 2025 | C130: 6.52894 | D130: 1.79169 | E130: 7.60369 | F130: 6.52894 | G130: 11.82807 | H130: 28.76208 | I130: 28.13312 | J130: 5.08296 | K130: 0.14771 | L130: 0.54935 | M130: 6.58265 | N130: 0.89471 | O130: SEK | P130: 2000-07-05 | Q130: Svensk | S130: SE0000837098 | T130: Länsförsäkringar Fondförvaltning AB (publ) | U130: Aktiv | V130: Pension om mindre än 10 år
A131: 814772 | B131: Länsförsäkringar Sparmål 2015 | C131: 4.33336 | D131: 1.2821 | E131: 5.28536 | F131: 4.33336 | G131: 7.68445 | H131: 21.69955 | I131: 15.30929 | J131: 2.88993 | K131: 0.14965 | L131: 0.56486 | M131: 4.72193 | N131: 0.82522 | O131: SEK | P131: 2000-07-05 | Q131: Svensk | S131: SE0000837114 | T131: Länsförsäkringar Fondförvaltning AB (publ) | U131: Aktiv | V131: Pension om mindre än 10 år
A132: 778944 | B132: Länsförsäkringar Sparmål 2020 | C132: 4.31935 | D132: 1.27917 | E132: 5.28409 | F132: 4.31935 | G132: 7.66772 | H132: 21.71791 | I132: 15.75337 | J132: 2.96906 | K132: 0.14966 | L132: 0.56494 | M132: 4.75236 | N132: 0.82128 | O132: SEK | P132: 2000-07-05 | Q132: Svensk | S132: SE0000837106 | T132: Länsförsäkringar Fondförvaltning AB (publ) | U132: Aktiv | V132: Pension om mindre än 10 år
A133: 607226 | B133: Swedbank Robur Sverige A | C133: 7.38072 | D133: 2.87 | E133: 11.45794 | F133: 7.38072 | H133: 28.052 | I133: 22.82391 | J133: 4.19733 | K133: 0.15 | L133: 1.25022 | M133: 13.58462 | N133: 0.46998 | O133: SEK | P133: 2025-10-23 | Q133: Svensk | R133: Upphandlad | S133: SE0000996233 | T133: Swedbank Robur Fonder AB | U133: Aktiv | V133: Sverige
A134: 117002 | B134: Lärarfond Balanserad | C134: 5.66899 | D134: 1.07941 | E134: 8.97756 | F134: 5.66899 | G134: 12.9199 | H134: 30.18868 | I134: 35.48054 | J134: 6.26136 | K134: 0.15461 | L134: 0.57697 | M134: 9.06368 | N134: 0.71174 | O134: SEK | P134: 2000-07-05 | Q134: Svensk | S134: SE0001112764 | T134: Lannebo Kapitalförvaltning AB | U134: Aktiv | V134: Varierande
A135: 981175 | B135: Lärarfond Försiktig | C135: 2.91214 | D135: 0.676 | E135: 4.56369 | F135: 2.91214 | G135: 6.54062 | H135: 18.53326 | I135: 17.00336 | J135: 3.19049 | K135: 0.15518 | L135: 0.58124 | M135: 4.74422 | N135: 0.63629 | O135: SEK | P135: 2000-07-05 | Q135: Svensk | S135: SE0001112731 | T135: Lannebo Kapitalförvaltning AB | U135: Aktiv | V135: Varierande
A136: 429316 | B136: Storebrand Emerging Markets Plus A | C136: 32.59087 | D136: 2.61178 | E136: 28.07048 | F136: 32.59087 | G136: 47.87609 | H136: 69.16926 | I136: 68.88895 | J136: 11.05043 | K136: 0.15621 | L136: 0.52161 | M136: 15.91571 | N136: 1.00673 | O136: SEK | P136: 2020-01-30 | Q136: Svensk | S136: SE0008129969 | T136: Storebrand Asset Management AS | U136: Passiv | V136: Nya marknader
A137: 521104 | B137: Ålandsbanken Norden Aktie Placeringsfond | C137: 5.74773 | D137: 1.45156 | E137: 9.61305 | F137: 5.74773 | G137: 16.38499 | H137: 28.31957 | I137: 42.17058 | J137: 7.29067 | K137: 0.16 | L137: 1.4 | M137: 11.12728 | N137: 0.55398 | O137: SEK | P137: 2015-04-16 | Q137: Utländsk | R137: Upphandlad | S137: FI4000123245 | T137: Ålandsbanken Fondbolag Ab | U137: Aktiv | V137: Norden
A138: 144501 | B138: Ålandsbanken Euro Bond S Placeringsfond | C138: 0.86048 | D138: 0.25601 | E138: 1.5231 | F138: 0.86048 | G138: 1.88027 | H138: 14.32884 | I138: 8.04176 | J138: 1.55898 | K138: 0.16182 | L138: 0.69 | M138: 1.8109 | N138: 0.98014 | O138: SEK | P138: 2018-09-24 | Q138: Utländsk | S138: FI4000087887 | T138: Ålandsbanken Fondbolag Ab | U138: Aktiv | V138: Europa ränta
A139: 296327 | B139: SKAGEN Vekst C | C139: 10.54909 | D139: -1.16238 | E139: 6.29955 | F139: 10.54909 | G139: 22.18452 | H139: 47.82667 | I139: 84.61103 | J139: 13.04504 | K139: 0.16501 | L139: 0.6 | M139: 10.24736 | N139: 1.05598 | O139: NOK | P139: 2019-08-22 | Q139: Utländsk | S139: NO0010723299 | T139: Storebrand Asset Management AS | U139: Aktiv | V139: Övriga länder
A140: 750075 | B140: Handelsbanken Emerging Markets Index A1 | C140: 34.69481 | D140: 4.06215 | E140: 31.28157 | F140: 34.69481 | G140: 51.69757 | H140: 72.0589 | I140: 68.69028 | J140: 11.02429 | K140: 0.16683 | L140: 0.61378 | M140: 16.39946 | N140: 1.01653 | O140: SEK | P140: 2013-12-03 | Q140: Svensk | S140: SE0011338409 | T140: Handelsbanken Fonder AB | U140: Passiv | V140: Nya marknader
A141: 549552 | B141: Handelsbanken Global Småbolag Index Criteria A1 | C141: 20.83529 | D141: 6.51366 | E141: 21.24569 | F141: 20.83529 | G141: 29.43605 | H141: 40.40056 | I141: 49.36595 | J141: 8.35534 | K141: 0.16696 | L141: 0.61487 | M141: 16.65286 | N141: 0.59599 | O141: SEK | P141: 2021-05-11 | Q141: Svensk | S141: SE0010323675 | T141: Handelsbanken Fonder AB | U141: Passiv | V141: Global
A142: 152835 | B142: Lärarfond Offensiv | C142: 7.20791 | D142: 1.31844 | E142: 11.41764 | F142: 7.20791 | G142: 16.50874 | H142: 36.48249 | I142: 46.1051 | J142: 7.87805 | K142: 0.17222 | L142: 0.57896 | M142: 11.58501 | N142: 0.71558 | O142: SEK | P142: 2000-07-05 | Q142: Svensk | S142: SE0001112749 | T142: Lannebo Kapitalförvaltning AB | U142: Aktiv | V142: Global och Sverige
A143: 495482 | B143: SEB Sverigefond | C143: 12.68143 | D143: 3.06586 | E143: 11.21727 | F143: 12.68143 | H143: 58.84079 | I143: 73.00648 | J143: 11.58671 | K143: 0.175 | L143: 1.3 | M143: 12.19725 | N143: 1.10153 | O143: SEK | P143: 2025-10-23 | Q143: Svensk | R143: Upphandlad | S143: SE0000775298 | T143: SEB Funds AB | U143: Aktiv | V143: Sverige
A144: 531310 | B144: SEB 3 - SEB Sweden Equity Fund | C144: 9.29132 | D144: 2.98754 | E144: 11.13586 | F144: 9.29132 | H144: 35.47036 | K144: 0.175 | L144: 0.9108 | M144: 13.33559 | N144: 0.61716 | O144: SEK | P144: 2025-10-23 | Q144: Utländsk | R144: Upphandlad | S144: LU2352402031 | T144: SEB Funds AB | U144: Aktiv | V144: Sverige
A145: 912220 | B145: Storebrand Global High Dividend Low Volatility A | C145: 9.86059 | D145: 4.37602 | E145: 7.27603 | F145: 9.86059 | G145: 10.32819 | H145: 22.78558 | I145: 60.26037 | J145: 9.89179 | K145: 0.17701 | L145: 0.70691 | M145: 9.95684 | N145: 0.45775 | O145: SEK | P145: 2013-10-30 | Q145: Svensk | S145: SE0005224078 | T145: Storebrand Asset Management AS | U145: Aktiv | V145: Global
A146: 393314 | B146: Carnegie Sverigefond A | C146: 8.32965 | D146: 2.8385 | E146: 8.50805 | F146: 8.32965 | G146: 22.92786 | H146: 45.1893 | I146: 48.41065 | J146: 8.21638 | K146: 0.18 | L146: 1.41 | M146: 11.81731 | N146: 0.8791 | O146: SEK | P146: 2000-07-05 | Q146: Svensk | R146: Upphandlad | S146: SE0000429789 | T146: Carnegie Fonder AB | U146: Aktiv | V146: Sverige
A147: 551804 | B147: BL - Bond Dollar B | C147: 5.73498 | D147: 5.09562 | E147: 1.69272 | F147: 5.73498 | G147: 4.93056 | H147: -3.46744 | I147: 10.39206 | J147: 1.99704 | K147: 0.18002 | L147: 0.46 | M147: 10.0026 | N147: -0.34749 | O147: USD | P147: 2000-07-05 | Q147: Utländsk | S147: LU0093570926 | T147: Banque de Luxembourg Investments | U147: Aktiv | V147: Övriga räntefonder
A148: 384750 | B148: Cicero Avkastning A | C148: 1.5961 | D148: 0.3496 | E148: 1.2239 | F148: 1.5961 | G148: 3.33113 | H148: 15.94746 | I148: 15.45606 | J148: 2.91611 | K148: 0.18078 | L148: 0.51915 | M148: 0.90105 | N148: 2.75964 | O148: SEK | P148: 2003-12-04 | Q148: Svensk | S148: SE0000891772 | T148: Cicero Fonder AB | U148: Aktiv | V148: Sverige lång och realränta
A149: 162099 | B149: Storebrand Global Multifactor A | C149: 27.57096 | D149: 5.98525 | E149: 24.30053 | F149: 27.57096 | G149: 38.16052 | H149: 56.71649 | I149: 91.76126 | J149: 13.90746 | K149: 0.18271 | L149: 0.75765 | M149: 13.14499 | N149: 0.99526 | O149: SEK | P149: 2022-04-28 | Q149: Svensk | S149: SE0011642958 | T149: Storebrand Asset Management AS | U149: Aktiv | V149: Global
A150: 184119 | B150: Storebrand Global Solutions A | C150: 16.34894 | D150: 2.8703 | E150: 16.57845 | F150: 16.34894 | G150: 22.18932 | H150: 31.4033 | I150: 51.19296 | J150: 8.61913 | K150: 0.18284 | L150: 0.7588 | M150: 12.95257 | N150: 0.55266 | O150: SEK | P150: 2012-10-02 | Q150: Svensk | S150: SE0004576452 | T150: Storebrand Asset Management AS | U150: Aktiv | V150: Global
A151: 678128 | B151: Lannebo Marknad USA A | C151: 15.34586 | D151: 3.98479 | E151: 20.16879 | F151: 15.34586 | G151: 23.5754 | H151: 54.54199 | I151: 95.87881 | J151: 14.39248 | K151: 0.18317 | L151: 0.66147 | M151: 15.05177 | N151: 0.85964 | O151: SEK | P151: 2000-07-05 | Q151: Svensk | S151: SE0000577967 | T151: Lannebo Kapitalförvaltning AB | U151: Passiv | V151: USA och Nordamerika
A152: 642298 | B152: Lannebo Marknad Pacific | C152: 7.18245 | D152: 2.28061 | E152: 4.24837 | F152: 7.18245 | G152: 6.24244 | H152: 19.58076 | I152: 34.47209 | J152: 6.1027 | K152: 0.18506 | L152: 0.67574 | M152: 11.5915 | N152: 0.33217 | O152: SEK | P152: 2000-07-05 | Q152: Svensk | S152: SE0000577983 | T152: Lannebo Kapitalförvaltning AB | U152: Passiv | V152: Asien
A153: 882358 | B153: SEB Global High Yield Fund C | C153: 0.87429 | D153: 0.34658 | E153: 2.32237 | F153: 0.87429 | G153: 3.23793 | H153: 19.82553 | I153: 5.97678 | J153: 1.16776 | K153: 0.1871 | L153: 1.0783 | M153: 3.88298 | N153: 0.86625 | O153: SEK | P153: 2019-11-13 | Q153: Utländsk | S153: LU0413134395 | T153: SEB Funds AB | U153: Aktiv | V153: Global ränta
A154: 484923 | B154: SEB Nordenfond | C154: 13.24519 | D154: 2.72926 | E154: 13.27884 | F154: 13.24519 | G154: 26.98952 | H154: 52.06641 | I154: 73.43627 | J154: 11.6421 | K154: 0.19 | L154: 1.3004 | M154: 11.8952 | N154: 1.00416 | O154: SEK | P154: 2005-02-15 | Q154: Svensk | R154: Upphandlad | S154: SE0000984189 | T154: SEB Funds AB | U154: Aktiv | V154: Norden
A155: 751495 | B155: Handelsbanken Nordiska Småbolag A1 | C155: -2.02566 | D155: -1.95674 | E155: 6.55759 | F155: -2.02566 | G155: 0.25656 | H155: 21.06055 | I155: -3.49869 | J155: -0.70974 | K155: 0.19 | L155: 1.60693 | M155: 12.7161 | N155: 0.34556 | O155: SEK | P155: 2006-11-27 | Q155: Svensk | R155: Upphandlad | S155: SE0000522724 | T155: Handelsbanken Fonder AB | U155: Aktiv | V155: Norden småbolag
A156: 237834 | B156: Fondita Nordic Small Cap Placeringsfond B | C156: -2.7274 | D156: -0.3383 | E156: 9.63124 | F156: -2.7274 | G156: -4.73568 | H156: -2.22096 | I156: -18.3081 | J156: -3.96362 | K156: 0.19 | L156: 2 | M156: 15.57973 | N156: -0.15229 | O156: EUR | P156: 2001-01-22 | Q156: Utländsk | R156: Upphandlad | S156: FI0008802871 | T156: Fondbolaget Fondita Ab | U156: Aktiv | V156: Norden småbolag
A157: 465147 | B157: Spiltan Globalfond Investmentbolag | C157: 0.34056 | D157: 4.92098 | E157: 9.27555 | F157: 0.34056 | G157: 4.64062 | H157: 33.83371 | I157: 76.50046 | J157: 12.03383 | K157: 0.19207 | L157: 0.50035 | M157: 11.2868 | N157: 0.67551 | O157: SEK | P157: 2020-02-11 | Q157: Svensk | S157: SE0008613939 | T157: Spiltan Fonder AB | U157: Aktiv | V157: Global
A158: 403642 | B158: Skandia Försiktig | C158: 4.37317 | D158: 0.96992 | E158: 5.88795 | F158: 4.37317 | G158: 7.55565 | H158: 23.28022 | I158: 21.44449 | J158: 3.96223 | K158: 0.19218 | L158: 0.75378 | M158: 5.13942 | N158: 0.84755 | O158: SEK | P158: 2000-07-05 | Q158: Svensk | S158: SE0000810731 | T158: Skandia Fonder AB | U158: Aktiv | V158: Försiktig
A159: 201111 | B159: GodFond Sverige & Världen | C159: 14.73383 | D159: 3.07937 | E159: 15.15322 | F159: 14.73383 | G159: 25.18484 | H159: 46.41319 | I159: 56.46693 | J159: 9.36655 | K159: 0.19307 | L159: 0.85 | M159: 11.53575 | N159: 0.9221 | O159: SEK | P159: 2012-12-10 | Q159: Svensk | S159: SE0002800276 | T159: Storebrand Asset Management AS | U159: Passiv | V159: Global och Sverige
A160: 104786 | B160: Lannebo Företagsobligationsfond A | C160: 2.31744 | D160: 0.72623 | E160: 2.67704 | F160: 2.31744 | G160: 3.57547 | H160: 17.7111 | I160: 11.38963 | J160: 2.18072 | K160: 0.19339 | L160: 1.01323 | M160: 2.50212 | N160: 1.09408 | O160: SEK | P160: 2004-01-27 | Q160: Svensk | S160: SE0001095506 | T160: Lannebo Kapitalförvaltning AB | U160: Aktiv | V160: Sverige lång och realränta
A161: 572637 | B161: BlackRock - Global High Yield Bond Fund A2 | C161: 7.60387 | D161: 5.205 | E161: 4.49711 | F161: 7.60387 | G161: 8.27142 | H161: 13.5757 | I161: 31.5481 | J161: 5.63721 | K161: 0.19755 | L161: 1.4611 | M161: 10.19141 | N161: 0.19389 | O161: USD | P161: 2020-03-03 | Q161: Utländsk | S161: LU0171284937 | T161: BlackRock Luxembourg S.A. | U161: Aktiv | V161: Global ränta
A162: 901603 | B162: Danske Invest SICAV - Sverige Ränta SI | C162: 2.07397 | D162: 0.74972 | E162: 2.19901 | F162: 2.07397 | G162: 1.94232 | H162: 14.50329 | I162: 3.88876 | J162: 0.76593 | K162: 0.199 | L162: 0.5 | M162: 2.8512 | N162: 0.63428 | O162: SEK | P162: 2000-07-05 | Q162: Utländsk | S162: LU1349499027 | T162: Danske Invest Management A/S | U162: Aktiv | V162: Sverige lång och realränta
A163: 196097 | B163: Nordea European Sustainable Stars Equity Fund | C163: 18.87734 | D163: 5.34937 | E163: 18.85588 | F163: 18.87734 | G163: 25.37303 | K163: 0.2 | L163: 0.20127 | O163: SEK | P163: 2024-05-22 | Q163: Utländsk | R163: Upphandlad | S163: LU2700275808 | T163: Nordea Investment Funds S.A. | U163: Aktiv | V163: Europa
A164: 282517 | B164: Nordea Global | C164: 22.5562 | D164: 6.26078 | E164: 23.12591 | F164: 22.5562 | G164: 35.52591 | H164: 64.25908 | I164: 116.30131 | J164: 16.68414 | K164: 0.20474 | L164: 0.99924 | M164: 14.4466 | N164: 1.02944 | O164: SEK | P164: 2012-03-20 | Q164: Utländsk | S164: FI0008813332 | T164: Nordea Funds Ab | U164: Aktiv | V164: Global
A165: 955435 | B165: Ålandsbanken Euro High Yield B Placeringsfond | C165: 4.34548 | D165: 3.27105 | E165: 3.6764 | F165: 4.34548 | G165: 3.09049 | H165: 13.54979 | I165: 23.74333 | J165: 4.35286 | K165: 0.20773 | L165: 1.01657 | M165: 6.56576 | N165: 0.25441 | O165: EUR | P165: 2010-11-10 | Q165: Utländsk | S165: FI0008809892 | T165: Ålandsbanken Fondbolag Ab | U165: Aktiv | V165: Europa ränta
A166: 984187 | B166: SKAGEN Global E | C166: -5.03531 | D166: 1.82124 | E166: 2.80669 | F166: -5.03531 | G166: -9.30461 | H166: 1.9281 | I166: 25.63184 | J166: 4.66945 | K166: 0.20991 | L166: 1 | M166: 12.95126 | N166: -0.10297 | O166: NOK | P166: 2002-01-17 | Q166: Utländsk | S166: NO0010839780 | T166: Storebrand Asset Management AS | U166: Aktiv | V166: Global
A167: 160267 | B167: Swedbank Robur Europafond A | C167: 8.86211 | D167: 4.84807 | E167: 14.97566 | F167: 8.86211 | G167: 12.10075 | H167: 20.66798 | I167: 36.12589 | J167: 6.3624 | K167: 0.21 | L167: 1.25107 | M167: 11.97828 | N167: 0.3497 | O167: SEK | P167: 2024-05-22 | Q167: Svensk | R167: Upphandlad | S167: SE0000539454 | T167: Swedbank Robur Fonder AB | U167: Aktiv | V167: Europa
A168: 621631 | B168: Evli Short Corporate Bond Placeringsfonden B | C168: 3.62826 | D168: 3.17949 | E168: 3.00794 | F168: 3.62826 | G168: 2.44757 | H168: 8.42479 | I168: 21.48616 | J168: 3.96936 | K168: 0.21145 | L168: 0.55476 | M168: 6.67434 | N168: 0.01928 | O168: EUR | P168: 2001-12-21 | Q168: Utländsk | S168: FI0008800511 | T168: Evli Fondbolag Ab | U168: Aktiv | V168: Europa ränta
A169: 560599 | B169: Spiltan Högräntefond | C169: 2.24186 | D169: 0.57963 | E169: 2.49964 | F169: 2.24186 | G169: 4.08163 | H169: 22.98185 | I169: 16.64071 | J169: 3.12644 | K169: 0.21326 | L169: 0.75136 | M169: 2.38544 | N169: 1.79691 | O169: SEK | P169: 2014-06-17 | Q169: Svensk | S169: SE0005798329 | T169: Spiltan Fonder AB | U169: Aktiv | V169: Norden ränta
A170: 459652 | B170: Handelsbanken Sverige Selektiv (A1 SEK) | C170: 7.80349 | D170: 2.97709 | E170: 11.06599 | F170: 7.80349 | H170: 30.27611 | I170: 52.62672 | J170: 8.82436 | K170: 0.215 | L170: 1.85011 | M170: 12.85364 | N170: 0.53451 | O170: SEK | P170: 2025-10-23 | Q170: Svensk | R170: Upphandlad | S170: SE0005965639 | T170: Handelsbanken Fonder AB | U170: Aktiv | V170: Sverige
A171: 674630 | B171: Handelsbanken Norden Selektiv (A1 SEK) | C171: 7.65622 | D171: 1.27649 | E171: 10.54721 | F171: 7.65622 | G171: 13.33792 | H171: 22.95514 | I171: 38.19961 | J171: 6.68451 | K171: 0.215 | L171: 1.85065 | M171: 10.43247 | N171: 0.44625 | O171: SEK | P171: 2025-04-23 | Q171: Svensk | R171: Upphandlad | S171: SE0005991700 | T171: Handelsbanken Fonder AB | U171: Aktiv | V171: Norden
A172: 295857 | B172: Lannebo Emerging Markets A | C172: 34.35191 | D172: 3.52679 | E172: 31.01709 | F172: 34.35191 | G172: 52.90251 | H172: 69.8722 | I172: 52.7041 | J172: 8.83539 | K172: 0.22075 | L172: 0.94471 | M172: 17.3021 | N172: 0.94655 | O172: SEK | P172: 2012-10-17 | Q172: Svensk | S172: SE0004578615 | T172: Lannebo Kapitalförvaltning AB | U172: Passiv | V172: Nya marknader
A173: 515973 | B173: BL - Global Bond Opportunities B | C173: 4.22897 | D173: 3.89473 | E173: 3.28965 | F173: 4.22897 | G173: 2.22357 | H173: 2.36926 | I173: 9.31137 | J173: 1.79655 | K173: 0.22121 | L173: 0.606 | M173: 7.33376 | N173: -0.23784 | O173: EUR | P173: 2000-07-05 | Q173: Utländsk | S173: LU0093569910 | T173: Banque de Luxembourg Investments | U173: Aktiv | V173: Global ränta
A174: 856682 | B174: Swedbank Robur Småbolagsfond Sverige A | C174: 4.08906 | D174: -1.2767 | E174: 10.8057 | F174: 4.08906 | G174: -0.25555 | H174: 17.08966 | I174: -5.09822 | J174: -1.0411 | K174: 0.22677 | L174: 1.25026 | M174: 15.93778 | N174: 0.2322 | O174: SEK | P174: 2000-07-05 | Q174: Svensk | S174: SE0000602302 | T174: Swedbank Robur Fonder AB | U174: Aktiv | V174: Sverige småbolag
A175: 896761 | B175: Swedbank Robur Small Cap Europe A | C175: 5.43278 | D175: 0.59302 | E175: 12.53071 | F175: 5.43278 | G175: 1.86833 | H175: -0.43478 | I175: -21.66923 | J175: -4.76722 | K175: 0.22686 | L175: 1.25114 | M175: 14.39528 | N175: -0.13417 | O175: SEK | P175: 2000-07-05 | Q175: Svensk | S175: SE0000542771 | T175: Swedbank Robur Fonder AB | U175: Aktiv | V175: Europa småbolag
A176: 968420 | B176: Swedbank Robur Fastighet A | C176: 2.62632 | D176: 1.59647 | E176: 4.40625 | F176: 2.62632 | G176: -3.10325 | H176: 7.53138 | I176: -2.67987 | J176: -0.54181 | K176: 0.22693 | L176: 1.25186 | M176: 15.264 | N176: 0.05033 | O176: SEK | P176: 2000-07-05 | Q176: Svensk | S176: SE0000537763 | T176: Swedbank Robur Fonder AB | U176: Aktiv | V176: Fastighet
A177: 283408 | B177: Swedbank Robur Technology A | C177: 41.29345 | D177: 7.56662 | E177: 46.61358 | F177: 41.29345 | G177: 50.88187 | H177: 107.82908 | I177: 182.02933 | J177: 23.04355 | K177: 0.22721 | L177: 1.25455 | M177: 23.86614 | N177: 1.02962 | O177: SEK | P177: 2000-07-05 | Q177: Svensk | S177: SE0000538944 | T177: Swedbank Robur Fonder AB | U177: Aktiv | V177: IT och kommunikation
A178: 928341 | B178: Swedbank Robur Healthcare A | C178: 5.66968 | D178: 10.35469 | E178: 8.92151 | F178: 5.66968 | G178: 14.99255 | H178: 5.49631 | I178: 32.48626 | J178: 5.78746 | K178: 0.22749 | L178: 1.25734 | M178: 15.34674 | N178: 0.00866 | O178: SEK | P178: 2000-07-05 | Q178: Svensk | S178: SE0000639445 | T178: Swedbank Robur Fonder AB | U178: Aktiv | V178: Läkemedel och bioteknik
A179: 639633 | B179: SEB Asset Selection Fund C | C179: 5.24055 | D179: 0.31354 | E179: 9.74807 | F179: 5.24055 | G179: 10.417 | H179: -16.04374 | I179: -1.83582 | J179: -0.36989 | K179: 0.23065 | L179: 1.207 | M179: 13.8021 | N179: -0.55285 | O179: SEK | P179: 2011-01-31 | Q179: Utländsk | S179: LU0256625632 | T179: SEB Funds AB | U179: Aktiv | V179: Varierande
A180: 307306 | B180: Indecap Guide 1 C | C180: 6.16569 | D180: 2.39464 | E180: 7.17687 | F180: 6.16569 | G180: 8.13454 | H180: 14.92564 | I180: 17.53711 | J180: 3.28446 | K180: 0.23382 | L180: 1.25 | M180: 3.83142 | N180: 0.50085 | O180: SEK | P180: 2016-07-08 | Q180: Svensk | S180: SE0008320857 | T180: Indecap Fonder AB | U180: Aktiv | V180: Försiktig
A181: 423822 | B181: Cliens Sverige | C181: 10.86208 | D181: 3.07542 | E181: 13.23602 | F181: 10.86208 | H181: 27.21552 | I181: 38.50626 | J181: 6.73181 | K181: 0.234 | L181: 0.23398 | M181: 14.38812 | N181: 0.43659 | O181: SEK | P181: 2025-10-23 | Q181: Svensk | R181: Upphandlad | S181: SE0023113659 | T181: Cliens Kapitalförvaltning AB | U181: Aktiv | V181: Sverige
A182: 971010 | B182: Goldman Sachs Green Bond P | C182: 1.0419 | D182: 0.41859 | E182: 2.06001 | F182: 1.0419 | G182: 1.27764 | H182: 9.58048 | I182: -12.1688 | J182: -2.56169 | K182: 0.2348 | L182: 0.62 | M182: 4.71196 | N182: 0.07986 | O182: SEK | P182: 2020-06-15 | Q182: Utländsk | S182: LU1840630427 | T182: Goldman Sachs Asset Management B.V. | U182: Aktiv | V182: Europa ränta
A183: 599795 | B183: Länsförsäkringar Mix Vision A | C183: 7.39418 | D183: 2.00719 | E183: 9.71378 | F183: 7.39418 | G183: 11.59392 | H183: 31.20587 | I183: 32.78946 | J183: 5.83583 | K183: 0.23572 | L183: 1.53864 | M183: 7.89559 | N183: 0.83795 | O183: SEK | P183: 2000-07-05 | Q183: Svensk | S183: SE0000837197 | T183: Länsförsäkringar Fondförvaltning AB (publ) | U183: Aktiv | V183: Balanserad
A184: 879114 | B184: SEB Världenfond | C184: 8.64875 | D184: 2.57243 | E184: 12.36441 | F184: 8.64875 | G184: 14.44044 | H184: 33.02062 | I184: 44.31369 | J184: 7.6122 | K184: 0.23606 | L184: 1.2613 | M184: 8.80367 | N184: 0.8123 | O184: SEK | P184: 2002-11-14 | Q184: Svensk | S184: SE0000984098 | T184: SEB Funds AB | U184: Aktiv | V184: Aggressiv
A185: 997403 | B185: SEB Pension Fund C | C185: 6.03431 | D185: 1.82626 | E185: 8.93601 | F185: 6.03431 | G185: 9.30407 | H185: 27.52377 | I185: 34.92862 | J185: 6.17464 | K185: 0.23606 | L185: 1.4962 | M185: 7.09432 | N185: 0.79068 | O185: SEK | P185: 2013-09-12 | Q185: Utländsk | S185: LU0910517969 | T185: SEB Funds AB | U185: Aktiv | V185: Balanserad
A186: 308908 | B186: Aktie-Ansvar Avkastningsfond A | C186: 1.44928 | D186: 0.28805 | E186: 1.00008 | F186: 1.44928 | G186: 2.86914 | H186: 11.86269 | I186: 13.37732 | J186: 2.54282 | K186: 0.23929 | L186: 0.63431 | M186: 0.76099 | N186: 1.34821 | O186: SEK | P186: 2000-07-05 | Q186: Svensk | S186: SE0000735771 | T186: Aktie-Ansvar AB | U186: Aktiv | V186: Sverige kortränta
A187: 416982 | B187: Seligson & Co Global Top 25 Pharmaceuticals A | C187: 10.72174 | D187: 9.82759 | E187: 4.41659 | F187: 10.72174 | G187: 27.71439 | H187: 9.37032 | I187: 53.87797 | J187: 9.00221 | K187: 0.2427 | L187: 0.60537 | M187: 15.55067 | N187: 0.08729 | O187: EUR | P187: 2001-01-23 | Q187: Utländsk | S187: FI0008801980 | T187: Seligson & Co Fondbolag Abp | U187: Aktiv | V187: Läkemedel och bioteknik
A188: 479550 | B188: Seligson & Co Global Top 25 Brands A | C188: 11.65556 | D188: 3.96937 | E188: 13.53003 | F188: 11.65556 | G188: 26.08873 | H188: 19.88733 | I188: 59.53317 | J188: 9.79188 | K188: 0.24298 | L188: 0.60642 | M188: 14.27216 | N188: 0.29953 | O188: EUR | P188: 2000-07-05 | Q188: Utländsk | S188: FI0008801790 | T188: Seligson & Co Fondbolag Abp | U188: Aktiv | V188: Global
A189: 710467 | B189: SEB Nordic Small Cap Fund | C189: -5.451 | D189: -2.64606 | E189: 1.61932 | F189: -5.451 | G189: -9.9632 | K189: 0.2434 | L189: 0.2434 | O189: SEK | P189: 2025-04-16 | Q189: Utländsk | R189: Upphandlad | S189: LU2815982363 | T189: SEB Funds AB | U189: Aktiv | V189: Norden småbolag
A190: 861104 | B190: Lannebo Mixfond Offensiv A | C190: 5.6955 | D190: 3.71047 | E190: 8.16851 | F190: 5.6955 | G190: 10.56594 | H190: 17.44106 | I190: 25.94071 | J190: 4.72087 | K190: 0.24391 | L190: 1.62432 | M190: 10.15928 | N190: 0.30312 | O190: SEK | P190: 2018-09-21 | Q190: Svensk | S190: SE0005034949 | T190: Lannebo Kapitalförvaltning AB | U190: Aktiv | V190: Varierande
A191: 878520 | B191: Lannebo Mixfond | C191: 4.79285 | D191: 2.73427 | E191: 6.84705 | F191: 4.79285 | G191: 8.52496 | H191: 16.42599 | I191: 22.97426 | J191: 4.22283 | K191: 0.24391 | L191: 1.61864 | M191: 8.20248 | N191: 0.31906 | O191: SEK | P191: 2000-08-14 | Q191: Svensk | S191: SE0000740706 | T191: Lannebo Kapitalförvaltning AB | U191: Aktiv | V191: Varierande
A192: 302760 | B192: BlackRock - Global Allocation A2 | C192: 12.03107 | D192: 4.45344 | E192: 12.13525 | F192: 12.03107 | G192: 16.93313 | H192: 27.42515 | I192: 45.67083 | J192: 7.81384 | K192: 0.2491 | L192: 1.7688 | M192: 10.96307 | N192: 0.53877 | O192: USD | P192: 2004-01-09 | Q192: Utländsk | S192: LU0072462426 | T192: BlackRock Luxembourg S.A. | U192: Aktiv | V192: Varierande
A193: 861757 | B193: Nordea Nordic Fund | C193: 7.18229 | D193: 3.34992 | E193: 11.53951 | F193: 7.18229 | G193: 9.34765 | H193: 11.5141 | I193: 23.21731 | J193: 4.26399 | K193: 0.25 | L193: 1.3999 | M193: 9.43519 | N193: 0.13629 | O193: SEK | P193: 2016-09-07 | Q193: Utländsk | R193: Upphandlad | S193: FI0008813399 | T193: Nordea Funds Ab | U193: Aktiv | V193: Norden
A194: 520759 | B194: SEB Dynamisk Aktiefond | C194: 11.59772 | D194: 4.84006 | E194: 15.91518 | F194: 11.59772 | G194: 16.76146 | H194: 37.85987 | I194: 73.91419 | J194: 11.70356 | K194: 0.25366 | L194: 1.2509 | M194: 12.43413 | N194: 0.70277 | O194: SEK | P194: 2005-02-15 | Q194: Svensk | S194: SE0000775348 | T194: SEB Funds AB | U194: Aktiv | V194: Global
A195: 123679 | B195: Handelsbanken Global Tema A1 | C195: 9.78386 | D195: 2.92376 | E195: 17.22588 | F195: 9.78386 | G195: 11.47495 | H195: 25.8722 | I195: 42.814 | J195: 7.3876 | K195: 0.25565 | L195: 1.40104 | M195: 14.92371 | N195: 0.40268 | O195: SEK | P195: 2000-07-05 | Q195: Svensk | S195: SE0000356263 | T195: Handelsbanken Fonder AB | U195: Aktiv | V195: Global
A196: 698952 | B196: SEB Global Aktiefond | C196: 8.17557 | D196: 3.89385 | E196: 14.66702 | F196: 8.17557 | G196: 14.66935 | H196: 36.00154 | I196: 74.57395 | J196: 11.78818 | K196: 0.25984 | L196: 1.3 | M196: 13.89841 | N196: 0.60968 | O196: SEK | P196: 2019-10-30 | Q196: Svensk | S196: SE0000434151 | T196: SEB Funds AB | U196: Aktiv | V196: Global
A197: 123901 | B197: Ålandsbanken Kapitalförvaltning Placeringsfond | C197: 6.12836 | D197: 1.79379 | E197: 7.71453 | F197: 6.12836 | G197: 11.07629 | H197: 25.50283 | I197: 31.35081 | J197: 5.6055 | K197: 0.2618 | L197: 1.25 | M197: 5.97935 | N197: 0.8345 | O197: SEK | P197: 2016-09-19 | Q197: Utländsk | S197: FI4000087911 | T197: Ålandsbanken Fondbolag Ab | U197: Aktiv | V197: Varierande
A198: 357483 | B198: Carnegie Strategifond A | C198: 2.80839 | D198: 1.41274 | E198: 4.57711 | F198: 2.80839 | G198: 10.00974 | H198: 32.62917 | I198: 37.88589 | J198: 6.63603 | K198: 0.26535 | L198: 1.51 | M198: 7.25382 | N198: 0.95782 | O198: SEK | P198: 2000-07-05 | Q198: Svensk | S198: SE0000429813 | T198: Carnegie Fonder AB | U198: Aktiv | V198: Varierande
A199: 964767 | B199: Lannebo Global A | C199: 12.12109 | D199: 1.03813 | E199: 14.23352 | F199: 12.12109 | G199: 19.35209 | H199: 34.01422 | I199: 62.1411 | J199: 10.14851 | K199: 0.26571 | L199: 1.28355 | M199: 12.59218 | N199: 0.61858 | O199: SEK | P199: 2000-07-05 | Q199: Svensk | S199: SE0000533945 | T199: Lannebo Kapitalförvaltning AB | U199: Aktiv | V199: Global
A200: 184580 | B200: Delphi Global A2 | C200: 14.06023 | D200: 3.18272 | E200: 13.87039 | F200: 14.06023 | G200: 17.76202 | H200: 73.22093 | I200: 73.75048 | J200: 11.68252 | K200: 0.26605 | L200: 1.5 | M200: 14.71158 | N200: 1.13802 | O200: SEK | P200: 2019-05-17 | Q200: Utländsk | S200: NO0010817380 | T200: Storebrand Asset Management AS | U200: Aktiv | V200: Global
A201: 260497 | B201: SKAGEN m2 C | C201: 5.24124 | D201: 1.22667 | E201: 5.56855 | F201: 5.24124 | G201: 4.94588 | H201: 8.19553 | I201: 5.82813 | J201: 1.13937 | K201: 0.26605 | L201: 1.5 | M201: 11.32558 | N201: 0.04126 | O201: NOK | P201: 2019-08-22 | Q201: Utländsk | S201: NO0010723364 | T201: Storebrand Asset Management AS | U201: Aktiv | V201: Fastighet
A202: 644005 | B202: Handelsbanken Hälsovård Tema A1 | C202: 4.50559 | D202: 11.16034 | E202: 8.35973 | F202: 4.50559 | G202: 18.63294 | H202: 8.50031 | I202: 41.45211 | J202: 7.18201 | K202: 0.267 | L202: 1.50171 | M202: 16.23628 | N202: 0.07447 | O202: SEK | P202: 2006-11-27 | Q202: Svensk | S202: SE0000735375 | T202: Handelsbanken Fonder AB | U202: Aktiv | V202: Läkemedel och bioteknik
A203: 504100 | B203: Handelsbanken Asien Tema A1 | C203: 40.91911 | D203: 4.01362 | E203: 37.74504 | F203: 40.91911 | G203: 61.57799 | H203: 80.02791 | I203: 64.96705 | J203: 10.52981 | K203: 0.26743 | L203: 1.50545 | M203: 18.0575 | N203: 1.02151 | O203: SEK | P203: 2014-12-01 | Q203: Svensk | S203: SE0000356073 | T203: Handelsbanken Fonder AB | U203: Aktiv | V203: Asien
A204: 952010 | B204: Handelsbanken Svenska Småbolag A1 | C204: 0.9753 | D204: -1.20743 | E204: 9.86109 | F204: 0.9753 | G204: -2.53007 | H204: 13.74104 | I204: -23.31929 | J204: -5.17186 | K204: 0.26772 | L204: 1.50805 | M204: 16.43038 | N204: 0.17109 | O204: SEK | P204: 2000-07-05 | Q204: Svensk | S204: SE0000356065 | T204: Handelsbanken Fonder AB | U204: Aktiv | V204: Sverige småbolag
A205: 546960 | B205: Skandia Balanserad | C205: 6.87199 | D205: 1.69704 | E205: 9.48745 | F205: 6.87199 | G205: 13.32473 | H205: 31.73798 | I205: 37.6038 | J205: 6.59236 | K205: 0.26856 | L205: 1.40266 | M205: 7.94756 | N205: 0.84977 | O205: SEK | P205: 2000-07-05 | Q205: Svensk | S205: SE0000810905 | T205: Skandia Fonder AB | U205: Aktiv | V205: Balanserad
A206: 687509 | B206: Handelsbanken Hållbar Energi A1 | C206: 25.829 | D206: -9.31004 | E206: 13.93763 | F206: 25.829 | G206: 66.84123 | H206: 7.57962 | I206: 7.24094 | J206: 1.40798 | K206: 0.2689 | L206: 1.51849 | M206: 23.9997 | N206: 0.10078 | O206: SEK | P206: 2014-12-05 | Q206: Svensk | S206: SE0005965662 | T206: Handelsbanken Fonder AB | U206: Aktiv | V206: Råvaror och energi
A207: 995571 | B207: Nordea Globala Tillväxtmarknader | C207: 39.20105 | D207: 6.15107 | E207: 35.09392 | F207: 39.20105 | G207: 63.48204 | H207: 91.63578 | I207: 84.56615 | J207: 13.03955 | K207: 0.26914 | L207: 1.60375 | M207: 17.51194 | N207: 1.16969 | O207: SEK | P207: 2008-04-07 | Q207: Utländsk | S207: FI0008813324 | T207: Nordea Funds Ab | U207: Aktiv | V207: Nya marknader
A208: 313742 | B208: Länsförsäkringar Fastighetsfond A | C208: -7.00284 | D208: -4.71729 | E208: 1.35539 | F208: -7.00284 | G208: -12.41041 | H208: 16.97142 | I208: -29.934 | J208: -6.86746 | K208: 0.27218 | L208: 1.40101 | M208: 23.07673 | N208: 0.21522 | O208: SEK | P208: 2001-04-26 | Q208: Svensk | S208: SE0000837338 | T208: Länsförsäkringar Fondförvaltning AB (publ) | U208: Aktiv | V208: Fastighet
A209: 301580 | B209: SEB Aktiesparfond | C209: 10.06873 | D209: 4.43263 | E209: 16.9819 | F209: 10.06873 | G209: 12.28801 | H209: 42.21695 | I209: 60.84212 | J209: 9.97145 | K209: 0.27244 | L209: 1.4001 | M209: 13.61464 | N209: 0.7299 | O209: SEK | P209: 2002-11-14 | Q209: Svensk | S209: SE0000984130 | T209: SEB Funds AB | U209: Aktiv | V209: Global och Sverige
A210: 183343 | B210: DNB Teknologi S | C210: 11.29653 | D210: -4.66829 | E210: 18.74904 | F210: 11.29653 | G210: 26.47063 | H210: 84.15176 | I210: 139.06455 | J210: 19.04277 | K210: 0.27456 | L210: 1.19858 | M210: 17.20167 | N210: 1.11403 | O210: SEK | P210: 2022-12-13 | Q210: Utländsk | S210: NO0010827819 | T210: DNB Asset Management AS | U210: Aktiv | V210: IT och kommunikation
A211: 255001 | B211: DNB Health Care S | C211: 8.15002 | D211: 9.66052 | E211: 12.20572 | F211: 8.15002 | G211: 23.48957 | H211: 9.22415 | I211: 50.05289 | J211: 8.45482 | K211: 0.27507 | L211: 1.20197 | M211: 14.96993 | N211: 0.08299 | O211: SEK | P211: 2022-12-13 | Q211: Utländsk | S211: NO0010827330 | T211: DNB Asset Management AS | U211: Aktiv | V211: Läkemedel och bioteknik
A212: 290833 | B212: DNB SMB S | C212: 14.0365 | D212: -8.36523 | E212: 3.38761 | F212: 14.0365 | G212: 22.36006 | H212: 63.11115 | I212: 80.05718 | J212: 12.48176 | K212: 0.27516 | L212: 1.2026 | M212: 16.0906 | N212: 0.92262 | O212: SEK | P212: 2022-12-13 | Q212: Utländsk | S212: NO0012740184 | T212: DNB Asset Management AS | U212: Aktiv | V212: Övriga länder
A213: 153007 | B213: SKAGEN Focus D | C213: 12.08007 | D213: -1.99404 | E213: 11.78691 | F213: 12.08007 | G213: 18.24431 | H213: 27.03425 | I213: 53.93982 | J213: 9.01097 | K213: 0.27727 | L213: 1.6 | M213: 15.11708 | N213: 0.4179 | O213: NOK | P213: 2019-09-04 | Q213: Utländsk | S213: NO0010839798 | T213: Storebrand Asset Management AS | U213: Aktiv | V213: Global
A214: 840033 | B214: Handelsbanken Amerika Tema A1 | C214: 12.0611 | D214: 3.28995 | E214: 22.55422 | F214: 12.0611 | G214: 15.77972 | H214: 38.89894 | I214: 69.08076 | J214: 11.07564 | K214: 0.2781 | L214: 1.60009 | M214: 17.04332 | N214: 0.56609 | O214: SEK | P214: 2011-02-28 | Q214: Svensk | S214: SE0000355828 | T214: Handelsbanken Fonder AB | U214: Aktiv | V214: USA och Nordamerika
... 181 more rows

Sheet Fondstatistik - hållbarhet
A5: ="Fondstatistik - Hållbarhet "&TEXT('Fondval & marknadsvärde'!$A$6,"ÅÅÅÅ-MM-DD") -> Fondstatistik - Hållbarhet 2026-06-30
A6: ='Fondval & marknadsvärde'!A7 -> Nästa uppdatering: 2026-08-13
A10: Klicka på resp rubrik för att sortera (stigande eller fallande)
A18: Klicka på kolumnnamnen för att sortera på respektive kolumn.
A20: Fondnummer | B20: Fondnamn | C20: Är fonden en artikel 9 fond enligt SFDR | D20: Är fonden en artikel 8 fond enligt SFDR | E20: Är fonden en artikel 6 fond enligt SFDR | F20: Morningstar - ESG-Risk | G20: ESG-Risk uppdaterad | H20: Fonden väljer bort kontroversiella vapen | I20: Fonden väljer bort kärnvapen | J20: Fonden väljer bort vapen och/eller krigsmateriel | K20: Fonden väljer bort alkohol | L20: Fonden väljer bort tobak | M20: Fonden väljer bort cannabis | N20: Fonden väljer bort kommersiell spelverksamhet | O20: Fonden väljer bort pornografi | P20: Fonden väljer bort fossila bränslen | Q20: Fonden väljer bort olja | R20: Fonden väljer bort kol | S20: Fonden väljer bort uran | T20: Fonden väljer bort övriga fossila bränslen | U20: Fonden väljer bort palmolja | V20: Fonden väljer bort genetiskt modifierade organismer (GMO) | W20: Fonden väljer bort genteknik | X20: Fonden väljer bort djurförsök | Y20: Fonden väljer bort bekämpningsmedel | Z20: Fonden väljer bort forskning på mänskliga foster | AA20: Fonden väljer bort fabriksodling (Industriuppfödning av djur) | AB20: Fonden väljer bort pälsproduktion
A21: 174490 | B21: Amundi Funds Japan Equity Value A2 | E21: Ja | F21: 23 | G21: 2026-05-31 | H21: Ja | I21: Ja | J21: Nej | K21: Nej | L21: Ja | M21: Nej | N21: Nej | O21: Nej | P21: Nej | Q21: Nej | R21: Ja | S21: Ja | T21: Nej | U21: Nej | V21: Nej | W21: Nej | X21: Nej | Y21: Nej | Z21: Nej | AA21: Nej | AB21: Nej
A22: 231100 | B22: BlackRock - Emerging Markets A2 | E22: Ja | F22: 20 | G22: 2026-05-31 | H22: Ja | I22: Ja | J22: Ja | K22: Nej | L22: Nej | M22: Nej | N22: Nej | O22: Nej | P22: Nej | Q22: Nej | R22: Nej | S22: Ja | T22: Nej | U22: Nej | V22: Nej | W22: Nej | X22: Nej | Y22: Nej | Z22: Nej | AA22: Nej | AB22: Nej
A23: 235291 | B23: Baring Latin America A | E23: Ja | F23: 23 | G23: 2026-05-31 | H23: Ja | I23: Nej | J23: Ja | K23: Nej | L23: Nej | M23: Nej | N23: Nej | O23: Nej | P23: Nej | Q23: Nej | R23: Nej | S23: Nej | T23: Nej | U23: Nej | V23: Nej | W23: Nej | X23: Nej | Y23: Nej | Z23: Nej | AA23: Nej | AB23: Nej
A24: 302760 | B24: BlackRock - Global Allocation A2 | E24: Ja | F24: 19 | G24: 2026-05-31 | H24: Ja | I24: Ja | J24: Ja | K24: Nej | L24: Nej | M24: Nej | N24: Nej | O24: Nej | P24: Nej | Q24: Nej | R24: Nej | S24: Ja | T24: Nej | U24: Nej | V24: Nej | W24: Nej | X24: Nej | Y24: Nej | Z24: Nej | AA24: Nej | AB24: Nej
A25: 338590 | B25: BlackRock - World Gold A2 | E25: Ja | F25: 24 | G25: 2026-05-31 | H25: Ja | I25: Ja | J25: Ja | K25: Nej | L25: Nej | M25: Nej | N25: Nej | O25: Nej | P25: Nej | Q25: Nej | R25: Nej | S25: Ja | T25: Nej | U25: Nej | V25: Nej | W25: Nej | X25: Nej | Y25: Nej | Z25: Nej | AA25: Nej | AB25: Nej
A26: 443721 | B26: Seligson & Co Euroobligation A | E26: Ja | F26: 14 | G26: 2026-05-31 | H26: Ja | I26: Ja | J26: Ja | K26: Ja | L26: Ja | M26: Nej | N26: Ja | O26: Ja | P26: Ja | Q26: Nej | R26: Ja | S26: Ja | T26: Nej | U26: Nej | V26: Ja | W26: Nej | X26: Nej | Y26: Nej | Z26: Nej | AA26: Nej | AB26: Nej
A27: 469817 | B27: Skandia Realräntefond | E27: Ja | F27: 11 | G27: 2026-05-31 | H27: Ja | I27: Ja | J27: Nej | K27: Nej | L27: Ja | M27: Ja | N27: Nej | O27: Nej | P27: Nej | Q27: Nej | R27: Ja | S27: Nej | T27: Nej | U27: Nej | V27: Nej | W27: Nej | X27: Nej | Y27: Nej | Z27: Nej | AA27: Nej | AB27: Nej
A28: 481911 | B28: BlackRock - World Mining A2 | E28: Ja | F28: 24 | G28: 2026-05-31 | H28: Ja | I28: Ja | J28: Ja | K28: Nej | L28: Nej | M28: Nej | N28: Nej | O28: Nej | P28: Nej | Q28: Nej | R28: Nej | S28: Ja | T28: Nej | U28: Nej | V28: Nej | W28: Nej | X28: Nej | Y28: Nej | Z28: Nej | AA28: Nej | AB28: Nej
A29: 496497 | B29: SEB Realräntefond D | E29: Ja | F29: 11 | G29: 2026-05-31 | H29: Ja | I29: Ja | J29: Ja | K29: Ja | L29: Ja | M29: Ja | N29: Ja | O29: Ja | P29: Ja | Q29: Ja | R29: Ja | S29: Ja | T29: Ja | U29: Nej | V29: Nej | W29: Nej | X29: Nej | Y29: Nej | Z29: Nej | AA29: Nej | AB29: Nej
A30: 502922 | B30: Allianz Global Metals and Mining A | E30: Ja | F30: 24 | G30: 2026-05-31 | H30: Ja | I30: Ja | J30: Ja | K30: Nej | L30: Nej | M30: Nej | N30: Nej | O30: Nej | P30: Nej | Q30: Nej | R30: Ja | S30: Nej | T30: Nej | U30: Nej | V30: Nej | W30: Nej | X30: Nej | Y30: Nej | Z30: Nej | AA30: Nej | AB30: Nej
A31: 517748 | B31: BlackRock - World Energy A2 | E31: Ja | F31: 32 | G31: 2026-05-31 | H31: Ja | I31: Ja | J31: Ja | K31: Nej | L31: Nej | M31: Nej | N31: Nej | O31: Nej | P31: Nej | Q31: Nej | R31: Nej | S31: Nej | T31: Nej | U31: Nej | V31: Nej | W31: Nej | X31: Nej | Y31: Nej | Z31: Nej | AA31: Nej | AB31: Nej
A32: 532558 | B32: Franklin Natural Resources Fund A | E32: Ja | F32: 29 | G32: 2026-05-31 | H32: Nej | I32: Nej | J32: Nej | K32: Nej | L32: Nej | M32: Nej | N32: Nej | O32: Nej | P32: Nej | Q32: Nej | R32: Nej | S32: Nej | T32: Nej | U32: Nej | V32: Nej | W32: Nej | X32: Nej | Y32: Nej | Z32: Nej | AA32: Nej | AB32: Nej
A33: 536806 | B33: BlackRock - Natural Resources Growth & Income Fund A2 | E33: Ja | F33: 27 | G33: 2026-05-31 | H33: Nej | I33: Nej | J33: Nej | K33: Nej | L33: Nej | M33: Nej | N33: Nej | O33: Nej | P33: Nej | Q33: Nej | R33: Nej | S33: Nej | T33: Nej | U33: Nej | V33: Nej | W33: Nej | X33: Nej | Y33: Nej | Z33: Nej | AA33: Nej | AB33: Nej
A34: 536806 | B34: BlackRock - Natural Resources Growth & Income Fund A2 | E34: Ja | F34: 27 | G34: 2026-05-31 | H34: Nej | I34: Nej | J34: Nej | K34: Nej | L34: Nej | M34: Nej | N34: Nej | O34: Nej | P34: Nej | Q34: Nej | R34: Nej | S34: Nej | T34: Nej | U34: Nej | V34: Nej | W34: Nej | X34: Nej | Y34: Nej | Z34: Nej | AA34: Nej | AB34: Nej
A35: 551804 | B35: BL - Bond Dollar B | E35: Ja | F35: 12 | G35: 2026-05-31 | H35: Nej | I35: Nej | J35: Nej | K35: Nej | L35: Nej | M35: Nej | N35: Nej | O35: Nej | P35: Nej | Q35: Nej | R35: Nej | S35: Nej | T35: Nej | U35: Nej | V35: Nej | W35: Nej | X35: Nej | Y35: Nej | Z35: Nej | AA35: Nej | AB35: Nej
A36: 608463 | B36: BlackRock - Asian Dragon Fund A2 | E36: Ja | F36: 19 | G36: 2026-05-31 | H36: Nej | I36: Nej | J36: Nej | K36: Nej | L36: Nej | M36: Nej | N36: Nej | O36: Nej | P36: Nej | Q36: Nej | R36: Nej | S36: Nej | T36: Nej | U36: Nej | V36: Nej | W36: Nej | X36: Nej | Y36: Nej | Z36: Nej | AA36: Nej | AB36: Nej
A37: 625236 | B37: BlackRock - US Mid-Cap Value Fund A2 | E37: Ja | F37: 20 | G37: 2026-05-31 | H37: Ja | I37: Ja | J37: Ja | K37: Nej | L37: Nej | M37: Nej | N37: Nej | O37: Nej | P37: Nej | Q37: Nej | R37: Nej | S37: Nej | T37: Nej | U37: Nej | V37: Nej | W37: Nej | X37: Nej | Y37: Nej | Z37: Nej | AA37: Nej | AB37: Nej
A38: 639633 | B38: SEB Asset Selection Fund C | E38: Ja | F38: 19 | G38: 2026-05-31 | H38: Ja | I38: Ja | J38: Ja | K38: Ja | L38: Ja | M38: Nej | N38: Ja | O38: Ja | P38: Ja | Q38: Ja | R38: Ja | S38: Ja | T38: Ja | U38: Nej | V38: Nej | W38: Nej | X38: Nej | Y38: Nej | Z38: Nej | AA38: Nej | AB38: Nej
A39: 661066 | B39: BlackRock - Latin American A2 | E39: Ja | F39: 21 | G39: 2026-05-31 | H39: Ja | I39: Ja | J39: Ja | K39: Nej | L39: Nej | M39: Nej | N39: Nej | O39: Nej | P39: Nej | Q39: Nej | R39: Nej | S39: Ja | T39: Nej | U39: Nej | V39: Nej | W39: Nej | X39: Nej | Y39: Nej | Z39: Nej | AA39: Nej | AB39: Nej
A40: 666370 | B40: Goldman Sachs Greater China Equity P | E40: Ja | F40: 21 | G40: 2026-05-31 | H40: Nej | I40: Nej | J40: Nej | K40: Nej | L40: Nej | M40: Nej | N40: Nej | O40: Nej | P40: Nej | Q40: Nej | R40: Nej | S40: Nej | T40: Nej | U40: Nej | V40: Nej | W40: Nej | X40: Nej | Y40: Nej | Z40: Nej | AA40: Nej | AB40: Nej
A41: 715955 | B41: Avanza Emerging Markets | E41: Ja | F41: 21 | G41: 2026-05-31 | H41: Ja | I41: Nej | J41: Nej | K41: Nej | L41: Nej | M41: Nej | N41: Nej | O41: Nej | P41: Nej | Q41: Nej | R41: Nej | S41: Nej | T41: Nej | U41: Nej | V41: Nej | W41: Nej | X41: Nej | Y41: Nej | Z41: Nej | AA41: Nej | AB41: Nej
A42: 734491 | B42: Avanza Zero | E42: Ja | F42: 19 | G42: 2026-05-31 | H42: Ja | I42: Ja | J42: Nej | K42: Nej | L42: Nej | M42: Nej | N42: Nej | O42: Nej | P42: Nej | Q42: Nej | R42: Nej | S42: Nej | T42: Nej | U42: Nej | V42: Nej | W42: Nej | X42: Nej | Y42: Nej | Z42: Nej | AA42: Nej | AB42: Nej
A43: 768499 | B43: BlackRock - India A2 | E43: Ja | F43: 23 | G43: 2026-05-31 | H43: Ja | I43: Ja | J43: Ja | K43: Nej | L43: Nej | M43: Nej | N43: Nej | O43: Nej | P43: Nej | Q43: Nej | R43: Nej | S43: Ja | T43: Nej | U43: Nej | V43: Nej | W43: Nej | X43: Nej | Y43: Nej | Z43: Nej | AA43: Nej | AB43: Nej
A44: 768556 | B44: BlackRock - US Basic Value A2 | E44: Ja | F44: 20 | G44: 2026-05-31 | H44: Ja | I44: Ja | J44: Ja | K44: Nej | L44: Nej | M44: Nej | N44: Nej | O44: Nej | P44: Nej | Q44: Nej | R44: Nej | S44: Nej | T44: Nej | U44: Nej | V44: Nej | W44: Nej | X44: Nej | Y44: Nej | Z44: Nej | AA44: Nej | AB44: Nej
A45: 768556 | B45: BlackRock - US Basic Value A2 | E45: Ja | F45: 20 | G45: 2026-05-31 | H45: Ja | I45: Ja | J45: Ja | K45: Nej | L45: Nej | M45: Nej | N45: Nej | O45: Nej | P45: Nej | Q45: Nej | R45: Nej | S45: Nej | T45: Nej | U45: Nej | V45: Nej | W45: Nej | X45: Nej | Y45: Nej | Z45: Nej | AA45: Nej | AB45: Nej
A46: 863522 | B46: Amundi Funds Volatility World A2 | E46: Ja | F46: 19 | G46: 2026-05-31 | H46: Ja | I46: Ja | J46: Nej | K46: Nej | L46: Ja | M46: Nej | N46: Nej | O46: Nej | P46: Nej | Q46: Nej | R46: Ja | S46: Ja | T46: Nej | U46: Nej | V46: Nej | W46: Nej | X46: Nej | Y46: Nej | Z46: Nej | AA46: Nej | AB46: Nej
A47: 863522 | B47: Amundi Funds Volatility World A2 | E47: Ja | F47: 19 | G47: 2026-05-31 | H47: Ja | I47: Ja | J47: Nej | K47: Nej | L47: Ja | M47: Nej | N47: Nej | O47: Nej | P47: Nej | Q47: Nej | R47: Ja | S47: Ja | T47: Nej | U47: Nej | V47: Nej | W47: Nej | X47: Nej | Y47: Nej | Z47: Nej | AA47: Nej | AB47: Nej
A48: 874271 | B48: Pictet Indian Equities R | E48: Ja | F48: 23 | G48: 2026-05-31 | H48: Ja | I48: Ja | J48: Ja | K48: Nej | L48: Nej | M48: Nej | N48: Nej | O48: Nej | P48: Nej | Q48: Nej | R48: Nej | S48: Nej | T48: Nej | U48: Nej | V48: Nej | W48: Nej | X48: Nej | Y48: Nej | Z48: Nej | AA48: Nej | AB48: Nej
A49: 920439 | B49: Goldman Sachs Japan Equity P (Former NN) | E49: Ja | F49: 23 | G49: 2026-05-31 | H49: Nej | I49: Nej | J49: Nej | K49: Nej | L49: Nej | M49: Nej | N49: Nej | O49: Nej | P49: Nej | Q49: Nej | R49: Nej | S49: Nej | T49: Nej | U49: Nej | V49: Nej | W49: Nej | X49: Nej | Y49: Nej | Z49: Nej | AA49: Nej | AB49: Nej
A50: 958264 | B50: Fidelity - China Focus Fund A | E50: Ja | F50: 22 | G50: 2026-05-31 | H50: Ja | I50: Ja | J50: Nej | K50: Nej | L50: Nej | M50: Nej | N50: Nej | O50: Nej | P50: Nej | Q50: Nej | R50: Nej | S50: Nej | T50: Nej | U50: Nej | V50: Nej | W50: Nej | X50: Nej | Y50: Nej | Z50: Nej | AA50: Nej | AB50: Nej
A51: 958264 | B51: Fidelity - China Focus Fund A | E51: Ja | F51: 22 | G51: 2026-05-31 | H51: Ja | I51: Ja | J51: Nej | K51: Nej | L51: Nej | M51: Nej | N51: Nej | O51: Nej | P51: Nej | Q51: Nej | R51: Nej | S51: Nej | T51: Nej | U51: Nej | V51: Nej | W51: Nej | X51: Nej | Y51: Nej | Z51: Nej | AA51: Nej | AB51: Nej
A52: 992099 | B52: Goldman Sachs Asia Equity Income P | E52: Ja | F52: 22 | G52: 2026-05-31 | H52: Nej | I52: Nej | J52: Nej | K52: Nej | L52: Nej | M52: Nej | N52: Nej | O52: Nej | P52: Nej | Q52: Nej | R52: Nej | S52: Nej | T52: Nej | U52: Nej | V52: Nej | W52: Nej | X52: Nej | Y52: Nej | Z52: Nej | AA52: Nej | AB52: Nej
A53: 994095 | B53: Fidelity - Asian Pacific Opportunities Fund A | E53: Ja | F53: 20 | G53: 2026-05-31 | H53: Ja | I53: Ja | J53: Nej | K53: Nej | L53: Nej | M53: Nej | N53: Nej | O53: Nej | P53: Nej | Q53: Nej | R53: Nej | S53: Nej | T53: Nej | U53: Nej | V53: Nej | W53: Nej | X53: Nej | Y53: Nej | Z53: Nej | AA53: Nej | AB53: Nej
A54: 994095 | B54: Fidelity - Asian Pacific Opportunities Fund A | E54: Ja | F54: 20 | G54: 2026-05-31 | H54: Ja | I54: Ja | J54: Nej | K54: Nej | L54: Nej | M54: Nej | N54: Nej | O54: Nej | P54: Nej | Q54: Nej | R54: Nej | S54: Nej | T54: Nej | U54: Nej | V54: Nej | W54: Nej | X54: Nej | Y54: Nej | Z54: Nej | AA54: Nej | AB54: Nej
A55: 103606 | B55: Skandia Småbolag Sverige | D55: Ja | F55: 21 | G55: 2026-05-31 | H55: Ja | I55: Ja | J55: Nej | K55: Nej | L55: Ja | M55: Ja | N55: Nej | O55: Nej | P55: Nej | Q55: Nej | R55: Ja | S55: Nej | T55: Nej | U55: Nej | V55: Nej | W55: Nej | X55: Nej | Y55: Nej | Z55: Nej | AA55: Nej | AB55: Nej
A56: 104786 | B56: Lannebo Företagsobligationsfond A | D56: Ja | F56: 18 | G56: 2026-01-31 | H56: Ja | I56: Ja | J56: Ja | K56: Ja | L56: Ja | M56: Ja | N56: Ja | O56: Ja | P56: Ja | Q56: Ja | R56: Ja | S56: Nej | T56: Ja | U56: Nej | V56: Nej | W56: Nej | X56: Nej | Y56: Nej | Z56: Nej | AA56: Nej | AB56: Nej
A57: 114819 | B57: Swedbank Robur Access Global A | D57: Ja | F57: 18 | G57: 2026-05-31 | H57: Ja | I57: Ja | J57: Nej | K57: Nej | L57: Ja | M57: Ja | N57: Ja | O57: Ja | P57: Nej | Q57: Ja | R57: Ja | S57: Nej | T57: Nej | U57: Nej | V57: Nej | W57: Nej | X57: Nej | Y57: Nej | Z57: Nej | AA57: Nej | AB57: Nej
A58: 117002 | B58: Lärarfond Balanserad | D58: Ja | F58: 19 | G58: 2026-05-31 | H58: Ja | I58: Ja | J58: Ja | K58: Ja | L58: Ja | M58: Ja | N58: Ja | O58: Ja | P58: Ja | Q58: Ja | R58: Ja | S58: Nej | T58: Ja | U58: Nej | V58: Nej | W58: Nej | X58: Nej | Y58: Nej | Z58: Nej | AA58: Nej | AB58: Nej
A59: 118000 | B59: BL - Equities Dividend B | D59: Ja | F59: 17 | G59: 2026-05-31 | H59: Ja | I59: Ja | J59: Ja | K59: Nej | L59: Nej | M59: Nej | N59: Nej | O59: Nej | P59: Nej | Q59: Nej | R59: Nej | S59: Ja | T59: Nej | U59: Nej | V59: Nej | W59: Nej | X59: Nej | Y59: Nej | Z59: Nej | AA59: Nej | AB59: Nej
A60: 123679 | B60: Handelsbanken Global Tema A1 | D60: Ja | F60: 17 | G60: 2026-05-31 | H60: Ja | I60: Ja | J60: Ja | K60: Ja | L60: Ja | M60: Ja | N60: Ja | O60: Ja | P60: Ja | Q60: Nej | R60: Nej | S60: Ja | T60: Ja | U60: Nej | V60: Nej | W60: Nej | X60: Nej | Y60: Nej | Z60: Nej | AA60: Nej | AB60: Nej
A61: 123901 | B61: Ålandsbanken Kapitalförvaltning Placeringsfond | D61: Ja | F61: 18 | G61: 2026-05-31 | H61: Ja | I61: Ja | J61: Nej | K61: Nej | L61: Ja | M61: Ja | N61: Ja | O61: Ja | P61: Nej | Q61: Nej | R61: Ja | S61: Nej | T61: Nej | U61: Nej | V61: Nej | W61: Nej | X61: Nej | Y61: Nej | Z61: Nej | AA61: Nej | AB61: Nej
A62: 124438 | B62: JPMorgan Funds - Europe Sustainable Equity Fund | D62: Ja | F62: 16 | G62: 2026-05-31 | H62: Ja | I62: Ja | J62: Ja | K62: Nej | L62: Ja | M62: Nej | N62: Nej | O62: Ja | P62: Nej | Q62: Nej | R62: Ja | S62: Nej | T62: Nej | U62: Nej | V62: Nej | W62: Nej | X62: Nej | Y62: Nej | Z62: Nej | AA62: Nej | AB62: Nej
A63: 124438 | B63: JPMorgan Funds - Europe Sustainable Equity Fund | D63: Ja | F63: 16 | G63: 2026-05-31 | H63: Ja | I63: Ja | J63: Ja | K63: Nej | L63: Ja | M63: Nej | N63: Nej | O63: Ja | P63: Nej | Q63: Nej | R63: Ja | S63: Nej | T63: Nej | U63: Nej | V63: Nej | W63: Nej | X63: Nej | Y63: Nej | Z63: Nej | AA63: Nej | AB63: Nej
A64: 126268 | B64: Storebrand Global Corporate Bond IG 4-6Y A SEK H | D64: Ja | F64: 17 | G64: 2026-05-31 | H64: Ja | I64: Ja | J64: Ja | K64: Ja | L64: Ja | M64: Ja | N64: Ja | O64: Ja | P64: Ja | Q64: Ja | R64: Ja | S64: Nej | T64: Ja | U64: Ja | V64: Nej | W64: Nej | X64: Nej | Y64: Nej | Z64: Nej | AA64: Nej | AB64: Nej
A65: 131409 | B65: Nordea Realräntefond | D65: Ja | F65: 11 | G65: 2026-05-31 | H65: Ja | I65: Ja | J65: Nej | K65: Nej | L65: Ja | M65: Nej | N65: Nej | O65: Ja | P65: Nej | Q65: Nej | R65: Ja | S65: Nej | T65: Nej | U65: Ja | V65: Nej | W65: Nej | X65: Nej | Y65: Nej | Z65: Nej | AA65: Nej | AB65: Nej
A66: 134593 | B66: Pareto Räntefond A | D66: Ja | F66: 19 | G66: 2026-04-30 | H66: Ja | I66: Ja | J66: Ja | K66: Ja | L66: Ja | M66: Nej | N66: Ja | O66: Ja | P66: Ja | Q66: Nej | R66: Ja | S66: Nej | T66: Nej | U66: Nej | V66: Nej | W66: Nej | X66: Nej | Y66: Nej | Z66: Nej | AA66: Nej | AB66: Nej
A67: 140491 | B67: D&G Småbolag | D67: Ja | F67: 21 | G67: 2026-05-31 | H67: Ja | I67: Ja | J67: Ja | K67: Nej | L67: Ja | M67: Nej | N67: Ja | O67: Ja | P67: Ja | Q67: Nej | R67: Ja | S67: Ja | T67: Nej | U67: Nej | V67: Nej | W67: Nej | X67: Nej | Y67: Nej | Z67: Nej | AA67: Nej | AB67: Nej
A68: 140673 | B68: Storebrand Europa A | D68: Ja | F68: 16 | G68: 2026-05-31 | H68: Ja | I68: Ja | J68: Ja | K68: Ja | L68: Ja | M68: Ja | N68: Ja | O68: Ja | P68: Ja | Q68: Ja | R68: Ja | S68: Nej | T68: Ja | U68: Ja | V68: Nej | W68: Nej | X68: Nej | Y68: Nej | Z68: Nej | AA68: Nej | AB68: Nej
A69: 142679 | B69: BL - Equities Japan B | D69: Ja | F69: 21 | G69: 2026-05-31 | H69: Ja | I69: Ja | J69: Ja | K69: Nej | L69: Nej | M69: Nej | N69: Nej | O69: Nej | P69: Nej | Q69: Nej | R69: Nej | S69: Ja | T69: Nej | U69: Nej | V69: Nej | W69: Nej | X69: Nej | Y69: Nej | Z69: Nej | AA69: Nej | AB69: Nej
A70: 144501 | B70: Ålandsbanken Euro Bond S Placeringsfond | D70: Ja | F70: 18 | G70: 2026-05-31 | H70: Ja | I70: Ja | J70: Nej | K70: Nej | L70: Ja | M70: Ja | N70: Ja | O70: Ja | P70: Nej | Q70: Nej | R70: Ja | S70: Nej | T70: Nej | U70: Nej | V70: Nej | W70: Nej | X70: Nej | Y70: Nej | Z70: Nej | AA70: Nej | AB70: Nej
A71: 147348 | B71: Alfred Berg Aktiv R | D71: Ja | F71: 22 | G71: 2026-05-31 | H71: Ja | I71: Ja | J71: Ja | K71: Ja | L71: Ja | M71: Nej | N71: Nej | O71: Ja | P71: Nej | Q71: Nej | R71: Nej | S71: Nej | T71: Nej | U71: Nej | V71: Nej | W71: Nej | X71: Nej | Y71: Nej | Z71: Nej | AA71: Nej | AB71: Nej
A72: 150649 | B72: Swedbank Robur Access USA A | D72: Ja | F72: 18 | G72: 2026-05-31 | H72: Ja | I72: Ja | J72: Nej | K72: Nej | L72: Ja | M72: Ja | N72: Ja | O72: Ja | P72: Nej | Q72: Ja | R72: Ja | S72: Nej | T72: Nej | U72: Nej | V72: Nej | W72: Nej | X72: Nej | Y72: Nej | Z72: Nej | AA72: Nej | AB72: Nej
A73: 152181 | B73: Spiltan Småbolagsfond | D73: Ja | F73: 22 | G73: 2026-05-31 | H73: Ja | I73: Ja | J73: Nej | K73: Ja | L73: Ja | M73: Ja | N73: Ja | O73: Ja | P73: Ja | Q73: Ja | R73: Ja | S73: Ja | T73: Ja | U73: Nej | V73: Ja | W73: Nej | X73: Nej | Y73: Nej | Z73: Nej | AA73: Nej | AB73: Nej
A74: 152835 | B74: Lärarfond Offensiv | D74: Ja | F74: 19 | G74: 2026-05-31 | H74: Ja | I74: Ja | J74: Ja | K74: Ja | L74: Ja | M74: Ja | N74: Ja | O74: Ja | P74: Ja | Q74: Ja | R74: Ja | S74: Nej | T74: Ja | U74: Nej | V74: Nej | W74: Nej | X74: Nej | Y74: Nej | Z74: Nej | AA74: Nej | AB74: Nej
A75: 153007 | B75: SKAGEN Focus D | D75: Ja | F75: 22 | G75: 2026-05-31 | H75: Ja | I75: Ja | J75: Nej | K75: Nej | L75: Ja | M75: Ja | N75: Ja | O75: Ja | P75: Nej | Q75: Nej | R75: Ja | S75: Nej | T75: Ja | U75: Nej | V75: Nej | W75: Nej | X75: Nej | Y75: Nej | Z75: Nej | AA75: Nej | AB75: Nej
A76: 153833 | B76: BL - Emerging Markets B | D76: Ja | F76: 20 | G76: 2026-05-31 | H76: Ja | I76: Ja | J76: Ja | K76: Nej | L76: Nej | M76: Nej | N76: Nej | O76: Nej | P76: Nej | Q76: Nej | R76: Nej | S76: Ja | T76: Nej | U76: Nej | V76: Nej | W76: Nej | X76: Nej | Y76: Nej | Z76: Nej | AA76: Nej | AB76: Nej
A77: 159442 | B77: BlackRock - Japan Small & MidCap A2 | D77: Ja | F77: 27 | G77: 2026-05-31 | H77: Ja | I77: Ja | J77: Ja | K77: Nej | L77: Nej | M77: Nej | N77: Nej | O77: Nej | P77: Nej | Q77: Nej | R77: Nej | S77: Ja | T77: Nej | U77: Nej | V77: Nej | W77: Nej | X77: Nej | Y77: Nej | Z77: Nej | AA77: Nej | AB77: Nej
A78: 160267 | B78: Swedbank Robur Europafond A | D78: Ja | F78: 16 | G78: 2026-05-31 | H78: Ja | I78: Ja | J78: Nej | K78: Nej | L78: Ja | M78: Ja | N78: Ja | O78: Ja | P78: Nej | Q78: Ja | R78: Ja | S78: Nej | T78: Nej | U78: Nej | V78: Nej | W78: Nej | X78: Nej | Y78: Nej | Z78: Nej | AA78: Nej | AB78: Nej
A79: 162099 | B79: Storebrand Global Multifactor A | D79: Ja | F79: 18 | G79: 2026-05-31 | H79: Ja | I79: Ja | J79: Ja | K79: Ja | L79: Ja | M79: Ja | N79: Ja | O79: Ja | P79: Ja | Q79: Ja | R79: Ja | S79: Nej | T79: Ja | U79: Ja | V79: Nej | W79: Nej | X79: Nej | Y79: Nej | Z79: Nej | AA79: Nej | AB79: Nej
A80: 163923 | B80: Lannebo Global Growth A | D80: Ja | F80: 19 | G80: 2026-05-31 | H80: Ja | I80: Ja | J80: Ja | K80: Ja | L80: Ja | M80: Ja | N80: Ja | O80: Ja | P80: Ja | Q80: Ja | R80: Ja | S80: Nej | T80: Ja | U80: Nej | V80: Nej | W80: Nej | X80: Nej | Y80: Nej | Z80: Nej | AA80: Nej | AB80: Nej
A81: 165755 | B81: Pareto Aksje Norge B | D81: Ja | F81: 22 | G81: 2026-05-31 | H81: Ja | I81: Ja | J81: Ja | K81: Ja | L81: Ja | M81: Nej | N81: Ja | O81: Ja | P81: Nej | Q81: Nej | R81: Ja | S81: Ja | T81: Nej | U81: Nej | V81: Ja | W81: Nej | X81: Nej | Y81: Nej | Z81: Nej | AA81: Nej | AB81: Nej
A82: 167114 | B82: Handelsbanken Pension 40 A12 | D82: Ja | F82: 18 | G82: 2026-05-31 | H82: Ja | I82: Ja | J82: Ja | K82: Ja | L82: Ja | M82: Ja | N82: Ja | O82: Ja | P82: Ja | Q82: Nej | R82: Nej | S82: Nej | T82: Ja | U82: Nej | V82: Nej | W82: Nej | X82: Nej | Y82: Nej | Z82: Nej | AA82: Nej | AB82: Nej
A83: 167114 | B83: Handelsbanken Pension 40 A12 | D83: Ja | F83: 18 | G83: 2026-05-31 | H83: Ja | I83: Ja | J83: Ja | K83: Ja | L83: Ja | M83: Ja | N83: Ja | O83: Ja | P83: Ja | Q83: Nej | R83: Nej | S83: Nej | T83: Ja | U83: Nej | V83: Nej | W83: Nej | X83: Nej | Y83: Nej | Z83: Nej | AA83: Nej | AB83: Nej
A84: 170894 | B84: Franklin India Fund A | D84: Ja | F84: 23 | G84: 2026-05-31 | H84: Ja | I84: Ja | J84: Ja | K84: Nej | L84: Ja | M84: Nej | N84: Nej | O84: Nej | P84: Nej | Q84: Nej | R84: Ja | S84: Nej | T84: Nej | U84: Nej | V84: Nej | W84: Nej | X84: Nej | Y84: Nej | Z84: Nej | AA84: Nej | AB84: Nej
A85: 170894 | B85: Franklin India Fund A | D85: Ja | F85: 23 | G85: 2026-05-31 | H85: Ja | I85: Ja | J85: Ja | K85: Nej | L85: Ja | M85: Nej | N85: Nej | O85: Nej | P85: Nej | Q85: Nej | R85: Ja | S85: Nej | T85: Nej | U85: Nej | V85: Nej | W85: Nej | X85: Nej | Y85: Nej | Z85: Nej | AA85: Nej | AB85: Nej
A86: 173435 | B86: Pictet Global Emerging Debt R | D86: Ja | F86: 26 | G86: 2026-05-31 | H86: Ja | I86: Ja | J86: Ja | K86: Ja | L86: Ja | M86: Nej | N86: Ja | O86: Ja | P86: Ja | Q86: Ja | R86: Ja | S86: Ja | T86: Ja | U86: Nej | V86: Ja | W86: Nej | X86: Nej | Y86: Ja | Z86: Nej | AA86: Nej | AB86: Nej
A87: 176503 | B87: Storebrand Japan A | D87: Ja | F87: 21 | G87: 2026-05-31 | H87: Ja | I87: Ja | J87: Ja | K87: Ja | L87: Ja | M87: Ja | N87: Ja | O87: Ja | P87: Ja | Q87: Ja | R87: Ja | S87: Nej | T87: Ja | U87: Ja | V87: Nej | W87: Nej | X87: Nej | Y87: Nej | Z87: Nej | AA87: Nej | AB87: Nej
A88: 182584 | B88: Aktia Capital Placeringsfond B | D88: Ja | F88: 18 | G88: 2026-05-31 | H88: Ja | I88: Ja | J88: Ja | K88: Nej | L88: Ja | M88: Ja | N88: Ja | O88: Ja | P88: Nej | Q88: Nej | R88: Nej | S88: Nej | T88: Ja | U88: Nej | V88: Nej | W88: Nej | X88: Nej | Y88: Nej | Z88: Nej | AA88: Nej | AB88: Nej
A89: 182759 | B89: Lannebo Europa Småbolag A | D89: Ja | F89: 20 | G89: 2026-05-31 | H89: Ja | I89: Ja | J89: Ja | K89: Ja | L89: Ja | M89: Ja | N89: Ja | O89: Ja | P89: Ja | Q89: Ja | R89: Ja | S89: Nej | T89: Ja | U89: Nej | V89: Nej | W89: Nej | X89: Nej | Y89: Nej | Z89: Nej | AA89: Nej | AB89: Nej
A90: 183178 | B90: Alfred Berg Norge C | D90: Ja | F90: 22 | G90: 2026-05-31 | H90: Ja | I90: Ja | J90: Ja | K90: Ja | L90: Ja | M90: Nej | N90: Nej | O90: Ja | P90: Nej | Q90: Nej | R90: Nej | S90: Nej | T90: Nej | U90: Nej | V90: Nej | W90: Nej | X90: Nej | Y90: Nej | Z90: Nej | AA90: Nej | AB90: Nej
A91: 183343 | B91: DNB Teknologi S | D91: Ja | F91: 16 | G91: 2026-05-31 | H91: Ja | I91: Ja | J91: Nej | K91: Nej | L91: Ja | M91: Ja | N91: Nej | O91: Ja | P91: Nej | Q91: Nej | R91: Ja | S91: Nej | T91: Nej | U91: Nej | V91: Nej | W91: Nej | X91: Nej | Y91: Nej | Z91: Nej | AA91: Nej | AB91: Nej
A92: 183343 | B92: DNB Teknologi S | D92: Ja | F92: 16 | G92: 2026-05-31 | H92: Ja | I92: Ja | J92: Nej | K92: Nej | L92: Ja | M92: Ja | N92: Nej | O92: Ja | P92: Nej | Q92: Nej | R92: Ja | S92: Nej | T92: Nej | U92: Nej | V92: Nej | W92: Nej | X92: Nej | Y92: Nej | Z92: Nej | AA92: Nej | AB92: Nej
A93: 184119 | B93: Storebrand Global Solutions A | C93: Ja | F93: 19 | G93: 2026-05-31 | H93: Ja | I93: Ja | J93: Ja | K93: Ja | L93: Ja | M93: Ja | N93: Ja | O93: Ja | P93: Ja | Q93: Ja | R93: Ja | S93: Nej | T93: Ja | U93: Ja | V93: Nej | W93: Nej | X93: Nej | Y93: Nej | Z93: Nej | AA93: Nej | AB93: Nej
A94: 184119 | B94: Storebrand Global Solutions A | C94: Ja | F94: 19 | G94: 2026-05-31 | H94: Ja | I94: Ja | J94: Ja | K94: Ja | L94: Ja | M94: Ja | N94: Ja | O94: Ja | P94: Ja | Q94: Ja | R94: Ja | S94: Nej | T94: Ja | U94: Ja | V94: Nej | W94: Nej | X94: Nej | Y94: Nej | Z94: Nej | AA94: Nej | AB94: Nej
A95: 184580 | B95: Delphi Global A2 | D95: Ja | F95: 21 | G95: 2026-05-31 | H95: Ja | I95: Ja | J95: Nej | K95: Nej | L95: Ja | M95: Ja | N95: Nej | O95: Nej | P95: Nej | Q95: Nej | R95: Ja | S95: Nej | T95: Nej | U95: Nej | V95: Nej | W95: Nej | X95: Nej | Y95: Nej | Z95: Nej | AA95: Nej | AB95: Nej
A96: 184580 | B96: Delphi Global A2 | D96: Ja | F96: 21 | G96: 2026-05-31 | H96: Ja | I96: Ja | J96: Nej | K96: Nej | L96: Ja | M96: Ja | N96: Nej | O96: Nej | P96: Nej | Q96: Nej | R96: Ja | S96: Nej | T96: Nej | U96: Nej | V96: Nej | W96: Nej | X96: Nej | Y96: Nej | Z96: Nej | AA96: Nej | AB96: Nej
A97: 189258 | B97: Pictet Water R | C97: Ja | F97: 21 | G97: 2026-05-31 | H97: Ja | I97: Ja | J97: Ja | K97: Ja | L97: Ja | M97: Nej | N97: Ja | O97: Ja | P97: Ja | Q97: Ja | R97: Ja | S97: Ja | T97: Ja | U97: Nej | V97: Ja | W97: Nej | X97: Nej | Y97: Ja | Z97: Nej | AA97: Nej | AB97: Nej
A98: 189258 | B98: Pictet Water R | C98: Ja | F98: 21 | G98: 2026-05-31 | H98: Ja | I98: Ja | J98: Ja | K98: Ja | L98: Ja | M98: Nej | N98: Ja | O98: Ja | P98: Ja | Q98: Ja | R98: Ja | S98: Ja | T98: Ja | U98: Nej | V98: Ja | W98: Nej | X98: Nej | Y98: Ja | Z98: Nej | AA98: Nej | AB98: Nej
A99: 191080 | B99: Baring Global Emerging Markets A | D99: Ja | F99: 20 | G99: 2026-05-31 | H99: Ja | I99: Nej | J99: Ja | K99: Nej | L99: Nej | M99: Nej | N99: Nej | O99: Nej | P99: Nej | Q99: Nej | R99: Nej | S99: Nej | T99: Nej | U99: Nej | V99: Nej | W99: Nej | X99: Nej | Y99: Nej | Z99: Nej | AA99: Nej | AB99: Nej
A100: 192146 | B100: abrdn SICAV I - Japanese Smaller Companies Sustainable Equity Fund A | D100: Ja | F100: 27 | G100: 2026-05-31 | H100: Ja | I100: Ja | J100: Ja | K100: Nej | L100: Ja | M100: Nej | N100: Ja | O100: Nej | P100: Nej | Q100: Ja | R100: Ja | S100: Nej | T100: Nej | U100: Nej | V100: Nej | W100: Nej | X100: Nej | Y100: Nej | Z100: Nej | AA100: Nej | AB100: Nej
A101: 194092 | B101: SEB Teknologifond | D101: Ja | F101: 15 | G101: 2026-05-31 | H101: Ja | I101: Ja | J101: Ja | K101: Ja | L101: Ja | M101: Ja | N101: Ja | O101: Ja | P101: Ja | Q101: Ja | R101: Ja | S101: Ja | T101: Ja | U101: Nej | V101: Nej | W101: Nej | X101: Nej | Y101: Nej | Z101: Nej | AA101: Nej | AB101: Nej
A102: 196097 | B102: Nordea European Sustainable Stars Equity Fund | D102: Ja | F102: 15 | G102: 2026-05-31 | H102: Ja | I102: Ja | J102: Ja | K102: Ja | L102: Ja | M102: Nej | N102: Ja | O102: Ja | P102: Nej | Q102: Nej | R102: Ja | S102: Nej | T102: Nej | U102: Ja | V102: Nej | W102: Nej | X102: Nej | Y102: Nej | Z102: Nej | AA102: Nej | AB102: Nej
A103: 196097 | B103: Nordea European Sustainable Stars Equity Fund | D103: Ja | F103: 15 | G103: 2026-05-31 | H103: Ja | I103: Ja | J103: Ja | K103: Ja | L103: Ja | M103: Nej | N103: Ja | O103: Ja | P103: Nej | Q103: Nej | R103: Ja | S103: Nej | T103: Nej | U103: Ja | V103: Nej | W103: Nej | X103: Nej | Y103: Nej | Z103: Nej | AA103: Nej | AB103: Nej
A104: 201111 | B104: GodFond Sverige & Världen | D104: Ja | F104: 17 | G104: 2026-05-31 | H104: Ja | I104: Ja | J104: Ja | K104: Ja | L104: Ja | M104: Ja | N104: Ja | O104: Ja | P104: Ja | Q104: Ja | R104: Ja | S104: Nej | T104: Ja | U104: Ja | V104: Nej | W104: Nej | X104: Nej | Y104: Nej | Z104: Nej | AA104: Nej | AB104: Nej
A105: 202002 | B105: Fondita Global Megatrends Placeringsfond B | D105: Ja | F105: 18 | G105: 2026-05-31 | H105: Ja | I105: Ja | J105: Nej | K105: Nej | L105: Ja | M105: Ja | N105: Ja | O105: Ja | P105: Ja | Q105: Ja | R105: Ja | S105: Nej | T105: Ja | U105: Nej | V105: Nej | W105: Nej | X105: Nej | Y105: Nej | Z105: Nej | AA105: Nej | AB105: Nej
A106: 214163 | B106: Carnegie Likviditetsfond A | D106: Ja | F106: 18 | G106: 2026-05-31 | H106: Ja | I106: Ja | J106: Ja | K106: Ja | L106: Ja | M106: Ja | N106: Ja | O106: Ja | P106: Ja | Q106: Ja | R106: Ja | S106: Nej | T106: Ja | U106: Nej | V106: Nej | W106: Nej | X106: Nej | Y106: Nej | Z106: Nej | AA106: Nej | AB106: Nej
A107: 214338 | B107: BL - Global Flexible USD B | D107: Ja | F107: 17 | G107: 2026-05-31 | H107: Ja | I107: Ja | J107: Ja | K107: Nej | L107: Nej | M107: Nej | N107: Nej | O107: Nej | P107: Nej | Q107: Nej | R107: Nej | S107: Ja | T107: Nej | U107: Nej | V107: Nej | W107: Nej | X107: Nej | Y107: Nej | Z107: Nej | AA107: Nej | AB107: Nej
A108: 215996 | B108: Nordea Generationsfond 80-tal | D108: Ja | F108: 18 | G108: 2026-05-31 | H108: Ja | I108: Ja | J108: Ja | K108: Ja | L108: Ja | M108: Nej | N108: Ja | O108: Ja | P108: Nej | Q108: Nej | R108: Ja | S108: Nej | T108: Nej | U108: Ja | V108: Nej | W108: Nej | X108: Nej | Y108: Nej | Z108: Nej | AA108: Nej | AB108: Nej
A109: 224493 | B109: KPA Blandfond | D109: Ja | F109: 18 | G109: 2026-05-31 | H109: Ja | I109: Ja | J109: Nej | K109: Ja | L109: Ja | M109: Ja | N109: Ja | O109: Ja | P109: Nej | Q109: Ja | R109: Ja | S109: Nej | T109: Nej | U109: Nej | V109: Nej | W109: Nej | X109: Nej | Y109: Nej | Z109: Nej | AA109: Nej | AB109: Nej
A110: 224493 | B110: KPA Blandfond | D110: Ja | F110: 18 | G110: 2026-05-31 | H110: Ja | I110: Ja | J110: Nej | K110: Ja | L110: Ja | M110: Ja | N110: Ja | O110: Ja | P110: Nej | Q110: Ja | R110: Ja | S110: Nej | T110: Nej | U110: Nej | V110: Nej | W110: Nej | X110: Nej | Y110: Nej | Z110: Nej | AA110: Nej | AB110: Nej
A111: 229625 | B111: Evli Emerging Markets Credit Placeringsfonden B | D111: Ja | F111: 17 | G111: 2026-05-31 | H111: Ja | I111: Ja | J111: Nej | K111: Nej | L111: Ja | M111: Nej | N111: Nej | O111: Ja | P111: Nej | Q111: Nej | R111: Nej | S111: Nej | T111: Ja | U111: Nej | V111: Nej | W111: Nej | X111: Nej | Y111: Nej | Z111: Nej | AA111: Nej | AB111: Nej
A112: 229922 | B112: SEB Läkemedelsfond | D112: Ja | F112: 20 | G112: 2026-05-31 | H112: Ja | I112: Ja | J112: Ja | K112: Ja | L112: Ja | M112: Ja | N112: Ja | O112: Ja | P112: Ja | Q112: Ja | R112: Ja | S112: Ja | T112: Ja | U112: Nej | V112: Ja | W112: Nej | X112: Nej | Y112: Nej | Z112: Nej | AA112: Nej | AB112: Nej
A113: 233585 | B113: JPMorgan China A | D113: Ja | F113: 22 | G113: 2026-05-31 | H113: Ja | I113: Nej | J113: Nej | K113: Nej | L113: Ja | M113: Nej | N113: Nej | O113: Nej | P113: Nej | Q113: Nej | R113: Nej | S113: Nej | T113: Nej | U113: Nej | V113: Nej | W113: Nej | X113: Nej | Y113: Nej | Z113: Nej | AA113: Nej | AB113: Nej
A114: 237834 | B114: Fondita Nordic Small Cap Placeringsfond B | D114: Ja | F114: 21 | G114: 2026-05-31 | H114: Ja | I114: Ja | J114: Nej | K114: Nej | L114: Ja | M114: Ja | N114: Ja | O114: Ja | P114: Ja | Q114: Ja | R114: Ja | S114: Nej | T114: Ja | U114: Nej | V114: Nej | W114: Nej | X114: Nej | Y114: Nej | Z114: Nej | AA114: Nej | AB114: Nej
A115: 241661 | B115: Pictet-Emerging Corporate Bonds R | D115: Ja | F115: 26 | G115: 2026-05-31 | H115: Ja | I115: Ja | J115: Ja | K115: Nej | L115: Nej | M115: Nej | N115: Nej | O115: Nej | P115: Nej | Q115: Nej | R115: Nej | S115: Nej | T115: Nej | U115: Nej | V115: Nej | W115: Nej | X115: Nej | Y115: Nej | Z115: Nej | AA115: Nej | AB115: Nej
A116: 242081 | B116: Länsförsäkringar Lång Räntefond A | D116: Ja | F116: 15 | G116: 2026-05-31 | H116: Ja | I116: Ja | J116: Ja | K116: Ja | L116: Ja | M116: Ja | N116: Ja | O116: Ja | P116: Ja | Q116: Ja | R116: Ja | S116: Ja | T116: Ja | U116: Ja | V116: Ja | W116: Ja | X116: Ja | Y116: Ja | Z116: Ja | AA116: Ja | AB116: Ja
A117: 243022 | B117: Handelsbanken Pension 80 A12 | D117: Ja | F117: 18 | G117: 2026-05-31 | H117: Ja | I117: Ja | J117: Ja | K117: Ja | L117: Ja | M117: Ja | N117: Ja | O117: Ja | P117: Ja | Q117: Nej | R117: Nej | S117: Nej | T117: Ja | U117: Nej | V117: Nej | W117: Nej | X117: Nej | Y117: Nej | Z117: Nej | AA117: Nej | AB117: Nej
A118: 248161 | B118: Storebrand USA A | D118: Ja | F118: 18 | G118: 2026-05-31 | H118: Ja | I118: Ja | J118: Ja | K118: Ja | L118: Ja | M118: Ja | N118: Ja | O118: Ja | P118: Ja | Q118: Ja | R118: Ja | S118: Nej | T118: Ja | U118: Ja | V118: Nej | W118: Nej | X118: Nej | Y118: Nej | Z118: Nej | AA118: Nej | AB118: Nej
A119: 250167 | B119: BL - European Small & Mid Caps B | D119: Ja | F119: 20 | G119: 2026-05-31 | H119: Ja | I119: Ja | J119: Ja | K119: Nej | L119: Nej | M119: Nej | N119: Nej | O119: Nej | P119: Nej | Q119: Nej | R119: Nej | S119: Ja | T119: Nej | U119: Nej | V119: Nej | W119: Nej | X119: Nej | Y119: Nej | Z119: Nej | AA119: Nej | AB119: Nej
A120: 255001 | B120: DNB Health Care S | D120: Ja | F120: 19 | G120: 2026-05-31 | H120: Ja | I120: Ja | J120: Nej | K120: Nej | L120: Ja | M120: Ja | N120: Nej | O120: Ja | P120: Nej | Q120: Nej | R120: Ja | S120: Nej | T120: Nej | U120: Nej | V120: Nej | W120: Nej | X120: Nej | Y120: Nej | Z120: Nej | AA120: Nej | AB120: Nej
A121: 256362 | B121: Skandia Nordamerika Exponering | D121: Ja | F121: 17 | G121: 2026-05-31 | H121: Ja | I121: Ja | J121: Ja | K121: Nej | L121: Ja | M121: Ja | N121: Nej | O121: Nej | P121: Ja | Q121: Ja | R121: Ja | S121: Nej | T121: Ja | U121: Nej | V121: Nej | W121: Nej | X121: Nej | Y121: Nej | Z121: Nej | AA121: Nej | AB121: Nej
A122: 260497 | B122: SKAGEN m2 C | D122: Ja | F122: 15 | G122: 2026-05-31 | H122: Ja | I122: Ja | J122: Nej | K122: Nej | L122: Ja | M122: Ja | N122: Ja | O122: Ja | P122: Nej | Q122: Nej | R122: Ja | S122: Nej | T122: Ja | U122: Nej | V122: Nej | W122: Nej | X122: Nej | Y122: Nej | Z122: Nej | AA122: Nej | AB122: Nej
A123: 260919 | B123: Pictet Biotech R | C123: Ja | F123: 30 | G123: 2026-05-31 | H123: Ja | I123: Ja | J123: Ja | K123: Ja | L123: Ja | M123: Nej | N123: Ja | O123: Ja | P123: Ja | Q123: Ja | R123: Ja | S123: Ja | T123: Ja | U123: Nej | V123: Ja | W123: Nej | X123: Nej | Y123: Ja | Z123: Nej | AA123: Nej | AB123: Nej
A124: 262741 | B124: Baring Global Resources A | D124: Ja | F124: 27 | G124: 2026-05-31 | H124: Ja | I124: Nej | J124: Ja | K124: Nej | L124: Nej | M124: Nej | N124: Nej | O124: Nej | P124: Nej | Q124: Nej | R124: Nej | S124: Nej | T124: Nej | U124: Nej | V124: Nej | W124: Nej | X124: Nej | Y124: Nej | Z124: Nej | AA124: Nej | AB124: Nej
A125: 265512 | B125: AMF Räntefond Mix | D125: Ja | F125: 16 | G125: 2026-05-31 | H125: Ja | I125: Ja | J125: Nej | K125: Nej | L125: Ja | M125: Nej | N125: Ja | O125: Ja | P125: Ja | Q125: Nej | R125: Nej | S125: Nej | T125: Nej | U125: Nej | V125: Nej | W125: Nej | X125: Nej | Y125: Nej | Z125: Nej | AA125: Nej | AB125: Nej
A126: 265512 | B126: AMF Räntefond Mix | D126: Ja | F126: 16 | G126: 2026-05-31 | H126: Ja | I126: Ja | J126: Nej | K126: Nej | L126: Ja | M126: Nej | N126: Ja | O126: Ja | P126: Ja | Q126: Nej | R126: Nej | S126: Nej | T126: Nej | U126: Nej | V126: Nej | W126: Nej | X126: Nej | Y126: Nej | Z126: Nej | AA126: Nej | AB126: Nej
A127: 269357 | B127: AMF Aktiefond Småbolag | D127: Ja | F127: 20 | G127: 2026-05-31 | H127: Ja | I127: Ja | J127: Nej | K127: Nej | L127: Ja | M127: Nej | N127: Ja | O127: Ja | P127: Nej | Q127: Nej | R127: Ja | S127: Nej | T127: Nej | U127: Nej | V127: Nej | W127: Nej | X127: Nej | Y127: Nej | Z127: Nej | AA127: Nej | AB127: Nej
A128: 271478 | B128: Indecap Guide 2 C | D128: Ja | F128: 19 | G128: 2026-05-31 | H128: Ja | I128: Ja | J128: Nej | K128: Ja | L128: Ja | M128: Ja | N128: Ja | O128: Ja | P128: Ja | Q128: Ja | R128: Ja | S128: Nej | T128: Ja | U128: Nej | V128: Nej | W128: Nej | X128: Nej | Y128: Nej | Z128: Nej | AA128: Nej | AB128: Nej
A129: 273839 | B129: Allianz Global Equity Growth AT | D129: Ja | F129: 18 | G129: 2026-05-31 | H129: Ja | I129: Ja | J129: Ja | K129: Nej | L129: Ja | M129: Nej | N129: Nej | O129: Nej | P129: Nej | Q129: Nej | R129: Ja | S129: Nej | T129: Nej | U129: Nej | V129: Nej | W129: Nej | X129: Nej | Y129: Nej | Z129: Nej | AA129: Nej | AB129: Nej
A130: 273839 | B130: Allianz Global Equity Growth AT | D130: Ja | F130: 18 | G130: 2026-05-31 | H130: Ja | I130: Ja | J130: Ja | K130: Nej | L130: Ja | M130: Nej | N130: Nej | O130: Nej | P130: Nej | Q130: Nej | R130: Ja | S130: Nej | T130: Nej | U130: Nej | V130: Nej | W130: Nej | X130: Nej | Y130: Nej | Z130: Nej | AA130: Nej | AB130: Nej
A131: 277491 | B131: Fidelity - Global High Yield Fund A | D131: Ja | F131: 13 | G131: 2026-05-31 | H131: Ja | I131: Ja | J131: Nej | K131: Nej | L131: Nej | M131: Nej | N131: Nej | O131: Nej | P131: Nej | Q131: Nej | R131: Nej | S131: Nej | T131: Nej | U131: Nej | V131: Nej | W131: Nej | X131: Nej | Y131: Nej | Z131: Nej | AA131: Nej | AB131: Nej
A132: 278853 | B132: Handelsbanken Pension 70 A12 | D132: Ja | F132: 18 | G132: 2026-05-31 | H132: Ja | I132: Ja | J132: Ja | K132: Ja | L132: Ja | M132: Ja | N132: Ja | O132: Ja | P132: Ja | Q132: Nej | R132: Nej | S132: Nej | T132: Ja | U132: Nej | V132: Nej | W132: Nej | X132: Nej | Y132: Nej | Z132: Nej | AA132: Nej | AB132: Nej
A133: 278853 | B133: Handelsbanken Pension 70 A12 | D133: Ja | F133: 18 | G133: 2026-05-31 | H133: Ja | I133: Ja | J133: Ja | K133: Ja | L133: Ja | M133: Ja | N133: Ja | O133: Ja | P133: Ja | Q133: Nej | R133: Nej | S133: Nej | T133: Ja | U133: Nej | V133: Nej | W133: Nej | X133: Nej | Y133: Nej | Z133: Nej | AA133: Nej | AB133: Nej
A134: 280925 | B134: Pictet EUR Bonds R | D134: Ja | F134: 14 | G134: 2026-05-31 | H134: Ja | I134: Ja | J134: Ja | K134: Ja | L134: Ja | M134: Nej | N134: Ja | O134: Ja | P134: Nej | Q134: Nej | R134: Ja | S134: Nej | T134: Nej | U134: Nej | V134: Nej | W134: Nej | X134: Nej | Y134: Nej | Z134: Nej | AA134: Nej | AB134: Nej
A135: 282517 | B135: Nordea Global | D135: Ja | F135: 17 | G135: 2026-05-31 | H135: Ja | I135: Ja | J135: Nej | K135: Nej | L135: Ja | M135: Nej | N135: Nej | O135: Ja | P135: Nej | Q135: Nej | R135: Ja | S135: Nej | T135: Nej | U135: Ja | V135: Nej | W135: Nej | X135: Nej | Y135: Nej | Z135: Nej | AA135: Nej | AB135: Nej
A136: 282632 | B136: Holberg Global A | D136: Ja | F136: 20 | G136: 2026-05-31 | H136: Ja | I136: Ja | J136: Nej | K136: Nej | L136: Ja | M136: Ja | N136: Ja | O136: Ja | P136: Nej | Q136: Nej | R136: Ja | S136: Nej | T136: Nej | U136: Nej | V136: Nej | W136: Nej | X136: Nej | Y136: Nej | Z136: Nej | AA136: Nej | AB136: Nej
A137: 283408 | B137: Swedbank Robur Technology A | D137: Ja | F137: 16 | G137: 2026-05-31 | H137: Ja | I137: Ja | J137: Nej | K137: Nej | L137: Ja | M137: Ja | N137: Ja | O137: Ja | P137: Nej | Q137: Ja | R137: Ja | S137: Nej | T137: Nej | U137: Nej | V137: Nej | W137: Nej | X137: Nej | Y137: Nej | Z137: Nej | AA137: Nej | AB137: Nej
A138: 285990 | B138: BL - American Small & Mid Caps B | D138: Ja | F138: 20 | G138: 2026-05-31 | H138: Ja | I138: Ja | J138: Ja | K138: Nej | L138: Nej | M138: Nej | N138: Nej | O138: Nej | P138: Nej | Q138: Nej | R138: Nej | S138: Ja | T138: Nej | U138: Nej | V138: Nej | W138: Nej | X138: Nej | Y138: Nej | Z138: Nej | AA138: Nej | AB138: Nej
A139: 286294 | B139: Nordea Småbolagsfond Norden | D139: Ja | F139: 20 | G139: 2026-05-31 | H139: Ja | I139: Ja | J139: Nej | K139: Nej | L139: Ja | M139: Nej | N139: Nej | O139: Ja | P139: Nej | Q139: Nej | R139: Ja | S139: Nej | T139: Nej | U139: Ja | V139: Nej | W139: Nej | X139: Nej | Y139: Nej | Z139: Nej | AA139: Nej | AB139: Nej
A140: 287656 | B140: Nordea Generationsfond 70-tal | D140: Ja | F140: 18 | G140: 2026-05-31 | H140: Ja | I140: Ja | J140: Ja | K140: Ja | L140: Ja | M140: Nej | N140: Ja | O140: Ja | P140: Nej | Q140: Nej | R140: Ja | S140: Nej | T140: Nej | U140: Ja | V140: Nej | W140: Nej | X140: Nej | Y140: Nej | Z140: Nej | AA140: Nej | AB140: Nej
A141: 290072 | B141: Aktiespararna Topp Sverige | D141: Ja | F141: 19 | G141: 2026-05-31 | H141: Ja | I141: Ja | J141: Ja | K141: Ja | L141: Ja | M141: Nej | N141: Ja | O141: Ja | P141: Ja | Q141: Ja | R141: Ja | S141: Nej | T141: Ja | U141: Nej | V141: Nej | W141: Nej | X141: Nej | Y141: Nej | Z141: Nej | AA141: Nej | AB141: Nej
A142: 290833 | B142: DNB SMB S | D142: Ja | F142: 23 | G142: 2024-10-31 | H142: Ja | I142: Ja | J142: Nej | K142: Nej | L142: Ja | M142: Ja | N142: Nej | O142: Ja | P142: Nej | Q142: Nej | R142: Ja | S142: Nej | T142: Nej | U142: Nej | V142: Nej | W142: Nej | X142: Nej | Y142: Nej | Z142: Nej | AA142: Nej | AB142: Nej
A143: 291906 | B143: D&G Aktiefond | D143: Ja | F143: 22 | G143: 2026-05-31 | H143: Ja | I143: Ja | J143: Ja | K143: Ja | L143: Ja | M143: Nej | N143: Ja | O143: Ja | P143: Ja | Q143: Nej | R143: Ja | S143: Ja | T143: Nej | U143: Nej | V143: Nej | W143: Nej | X143: Nej | Y143: Nej | Z143: Nej | AA143: Nej | AB143: Nej
A144: 294918 | B144: Lannebo Kort ränta | D144: Ja | F144: 11 | G144: 2026-05-31 | H144: Ja | I144: Ja | J144: Ja | K144: Ja | L144: Ja | M144: Ja | N144: Ja | O144: Ja | P144: Ja | Q144: Ja | R144: Ja | S144: Nej | T144: Ja | U144: Nej | V144: Nej | W144: Nej | X144: Nej | Y144: Nej | Z144: Nej | AA144: Nej | AB144: Nej
A145: 295857 | B145: Lannebo Emerging Markets A | D145: Ja | F145: 19 | G145: 2026-05-31 | H145: Ja | I145: Ja | J145: Ja | K145: Ja | L145: Ja | M145: Ja | N145: Ja | O145: Ja | P145: Ja | Q145: Ja | R145: Ja | S145: Nej | T145: Ja | U145: Nej | V145: Nej | W145: Nej | X145: Nej | Y145: Nej | Z145: Nej | AA145: Nej | AB145: Nej
A146: 296327 | B146: SKAGEN Vekst C | D146: Ja | F146: 20 | G146: 2026-05-31 | H146: Ja | I146: Ja | J146: Nej | K146: Nej | L146: Ja | M146: Ja | N146: Ja | O146: Ja | P146: Nej | Q146: Nej | R146: Ja | S146: Nej | T146: Ja | U146: Nej | V146: Nej | W146: Nej | X146: Nej | Y146: Nej | Z146: Nej | AA146: Nej | AB146: Nej
A147: 296749 | B147: Pictet Digital R | D147: Ja | F147: 16 | G147: 2026-05-31 | H147: Ja | I147: Ja | J147: Ja | K147: Ja | L147: Ja | M147: Nej | N147: Ja | O147: Ja | P147: Ja | Q147: Ja | R147: Ja | S147: Ja | T147: Ja | U147: Nej | V147: Ja | W147: Nej | X147: Nej | Y147: Ja | Z147: Nej | AA147: Nej | AB147: Nej
A148: 296749 | B148: Pictet Digital R | D148: Ja | F148: 16 | G148: 2026-05-31 | H148: Ja | I148: Ja | J148: Ja | K148: Ja | L148: Ja | M148: Nej | N148: Ja | O148: Ja | P148: Ja | Q148: Ja | R148: Ja | S148: Ja | T148: Ja | U148: Nej | V148: Ja | W148: Nej | X148: Nej | Y148: Ja | Z148: Nej | AA148: Nej | AB148: Nej
A149: 300996 | B149: BL - Equities America B | D149: Ja | F149: 17 | G149: 2026-05-31 | H149: Ja | I149: Ja | J149: Ja | K149: Nej | L149: Nej | M149: Nej | N149: Nej | O149: Nej | P149: Nej | Q149: Nej | R149: Nej | S149: Ja | T149: Nej | U149: Nej | V149: Nej | W149: Nej | X149: Nej | Y149: Nej | Z149: Nej | AA149: Nej | AB149: Nej
A150: 300996 | B150: BL - Equities America B | D150: Ja | F150: 17 | G150: 2026-05-31 | H150: Ja | I150: Ja | J150: Ja | K150: Nej | L150: Nej | M150: Nej | N150: Nej | O150: Nej | P150: Nej | Q150: Nej | R150: Nej | S150: Ja | T150: Nej | U150: Nej | V150: Nej | W150: Nej | X150: Nej | Y150: Nej | Z150: Nej | AA150: Nej | AB150: Nej
A151: 301580 | B151: SEB Aktiesparfond | D151: Ja | F151: 17 | G151: 2026-05-31 | H151: Ja | I151: Ja | J151: Nej | K151: Ja | L151: Ja | M151: Ja | N151: Ja | O151: Ja | P151: Ja | Q151: Ja | R151: Ja | S151: Ja | T151: Ja | U151: Nej | V151: Nej | W151: Nej | X151: Nej | Y151: Nej | Z151: Nej | AA151: Nej | AB151: Nej
A152: 303701 | B152: Sensor Sverige Select | D152: Ja | F152: 18 | G152: 2026-05-31 | H152: Ja | I152: Ja | J152: Nej | K152: Ja | L152: Ja | M152: Nej | N152: Nej | O152: Ja | P152: Ja | Q152: Ja | R152: Ja | S152: Ja | T152: Ja | U152: Nej | V152: Nej | W152: Nej | X152: Nej | Y152: Nej | Z152: Nej | AA152: Nej | AB152: Nej
A153: 305185 | B153: AMF Räntefond Kort | D153: Ja | F153: 11 | G153: 2026-05-31 | H153: Ja | I153: Ja | J153: Nej | K153: Nej | L153: Ja | M153: Nej | N153: Ja | O153: Ja | P153: Ja | Q153: Nej | R153: Nej | S153: Nej | T153: Nej | U153: Nej | V153: Nej | W153: Nej | X153: Nej | Y153: Nej | Z153: Nej | AA153: Nej | AB153: Nej
A154: 305243 | B154: JPMorgan Emerging Markets Equity A | D154: Ja | F154: 20 | G154: 2026-05-31 | H154: Ja | I154: Nej | J154: Nej | K154: Nej | L154: Ja | M154: Nej | N154: Nej | O154: Nej | P154: Nej | Q154: Nej | R154: Nej | S154: Nej | T154: Nej | U154: Nej | V154: Nej | W154: Nej | X154: Nej | Y154: Nej | Z154: Nej | AA154: Nej | AB154: Nej
A155: 307306 | B155: Indecap Guide 1 C | D155: Ja | F155: 18 | G155: 2026-05-31 | H155: Ja | I155: Ja | J155: Nej | K155: Ja | L155: Ja | M155: Ja | N155: Ja | O155: Ja | P155: Ja | Q155: Ja | R155: Ja | S155: Nej | T155: Ja | U155: Nej | V155: Nej | W155: Nej | X155: Nej | Y155: Nej | Z155: Nej | AA155: Nej | AB155: Nej
A156: 308908 | B156: Aktie-Ansvar Avkastningsfond A | D156: Ja | F156: 18 | G156: 2026-05-31 | H156: Ja | I156: Ja | J156: Ja | K156: Ja | L156: Ja | M156: Ja | N156: Ja | O156: Ja | P156: Ja | Q156: Ja | R156: Ja | S156: Nej | T156: Ja | U156: Nej | V156: Nej | W156: Nej | X156: Nej | Y156: Nej | Z156: Nej | AA156: Nej | AB156: Nej
A157: 308908 | B157: Aktie-Ansvar Avkastningsfond A | D157: Ja | F157: 18 | G157: 2026-05-31 | H157: Ja | I157: Ja | J157: Ja | K157: Ja | L157: Ja | M157: Ja | N157: Ja | O157: Ja | P157: Ja | Q157: Ja | R157: Ja | S157: Nej | T157: Ja | U157: Nej | V157: Nej | W157: Nej | X157: Nej | Y157: Nej | Z157: Nej | AA157: Nej | AB157: Nej
A158: 309666 | B158: Allianz Pet and Animal Wellbeing AT | D158: Ja | F158: 20 | G158: 2026-05-31 | H158: Ja | I158: Ja | J158: Ja | K158: Nej | L158: Nej | M158: Nej | N158: Nej | O158: Nej | P158: Nej | Q158: Nej | R158: Ja | S158: Nej | T158: Nej | U158: Nej | V158: Nej | W158: Nej | X158: Nej | Y158: Nej | Z158: Nej | AA158: Nej | AB158: Nej
A159: 309666 | B159: Allianz Pet and Animal Wellbeing AT | D159: Ja | F159: 20 | G159: 2026-05-31 | H159: Ja | I159: Ja | J159: Ja | K159: Nej | L159: Nej | M159: Nej | N159: Nej | O159: Nej | P159: Nej | Q159: Nej | R159: Ja | S159: Nej | T159: Nej | U159: Nej | V159: Nej | W159: Nej | X159: Nej | Y159: Nej | Z159: Nej | AA159: Nej | AB159: Nej
A160: 313320 | B160: Fidelity - Emerging Asia Fund A | D160: Ja | F160: 19 | G160: 2026-05-31 | H160: Ja | I160: Ja | J160: Nej | K160: Nej | L160: Nej | M160: Nej | N160: Nej | O160: Nej | P160: Nej | Q160: Nej | R160: Nej | S160: Nej | T160: Nej | U160: Nej | V160: Nej | W160: Nej | X160: Nej | Y160: Nej | Z160: Nej | AA160: Nej | AB160: Nej
A161: 313742 | B161: Länsförsäkringar Fastighetsfond A | D161: Ja | F161: 14 | G161: 2026-05-31 | H161: Ja | I161: Ja | J161: Ja | K161: Ja | L161: Ja | M161: Ja | N161: Ja | O161: Ja | P161: Ja | Q161: Ja | R161: Ja | S161: Ja | T161: Ja | U161: Ja | V161: Ja | W161: Ja | X161: Ja | Y161: Ja | Z161: Ja | AA161: Ja | AB161: Ja
A162: 314682 | B162: Handelsbanken Pension 50 A12 | D162: Ja | F162: 18 | G162: 2026-05-31 | H162: Ja | I162: Ja | J162: Ja | K162: Ja | L162: Ja | M162: Ja | N162: Ja | O162: Ja | P162: Ja | Q162: Nej | R162: Nej | S162: Nej | T162: Ja | U162: Nej | V162: Nej | W162: Nej | X162: Nej | Y162: Nej | Z162: Nej | AA162: Nej | AB162: Nej
A163: 314682 | B163: Handelsbanken Pension 50 A12 | D163: Ja | F163: 18 | G163: 2026-05-31 | H163: Ja | I163: Ja | J163: Ja | K163: Ja | L163: Ja | M163: Ja | N163: Ja | O163: Ja | P163: Ja | Q163: Nej | R163: Nej | S163: Nej | T163: Ja | U163: Nej | V163: Nej | W163: Nej | X163: Nej | Y163: Nej | Z163: Nej | AA163: Nej | AB163: Nej
A164: 318469 | B164: Holberg Norge | D164: Ja | F164: 22 | G164: 2026-05-31 | H164: Ja | I164: Ja | J164: Nej | K164: Nej | L164: Ja | M164: Ja | N164: Ja | O164: Ja | P164: Nej | Q164: Nej | R164: Ja | S164: Nej | T164: Nej | U164: Nej | V164: Nej | W164: Nej | X164: Nej | Y164: Nej | Z164: Nej | AA164: Nej | AB164: Nej
A165: 320176 | B165: Carnegie Fastighetsfond Norden A | D165: Ja | F165: 16 | G165: 2026-05-31 | H165: Ja | I165: Ja | J165: Ja | K165: Ja | L165: Ja | M165: Ja | N165: Ja | O165: Ja | P165: Ja | Q165: Ja | R165: Ja | S165: Nej | T165: Ja | U165: Nej | V165: Nej | W165: Nej | X165: Nej | Y165: Nej | Z165: Nej | AA165: Nej | AB165: Nej
A166: 320358 | B166: BL - Global Equities B | D166: Ja | F166: 17 | G166: 2026-05-31 | H166: Ja | I166: Ja | J166: Ja | K166: Nej | L166: Nej | M166: Nej | N166: Nej | O166: Nej | P166: Nej | Q166: Nej | R166: Nej | S166: Ja | T166: Nej | U166: Nej | V166: Nej | W166: Nej | X166: Nej | Y166: Nej | Z166: Nej | AA166: Nej | AB166: Nej
A167: 320762 | B167: Swedbank Robur Transfer 90 | D167: Ja | F167: 18 | G167: 2026-05-31 | H167: Ja | I167: Ja | J167: Nej | K167: Nej | L167: Ja | M167: Ja | N167: Ja | O167: Ja | P167: Nej | Q167: Ja | R167: Ja | S167: Nej | T167: Nej | U167: Nej | V167: Nej | W167: Nej | X167: Nej | Y167: Nej | Z167: Nej | AA167: Nej | AB167: Nej
A168: 321828 | B168: BL - Equities Asia B | D168: Ja | F168: 20 | G168: 2026-05-31 | H168: Ja | I168: Ja | J168: Ja | K168: Nej | L168: Nej | M168: Nej | N168: Nej | O168: Nej | P168: Nej | Q168: Nej | R168: Nej | S168: Ja | T168: Nej | U168: Nej | V168: Nej | W168: Nej | X168: Nej | Y168: Nej | Z168: Nej | AA168: Nej | AB168: Nej
A169: 324665 | B169: S-Banken Fenno Aktie A | D169: Ja | F169: 17 | G169: 2026-05-31 | H169: Ja | I169: Ja | J169: Nej | K169: Nej | L169: Ja | M169: Ja | N169: Nej | O169: Nej | P169: Nej | Q169: Nej | R169: Nej | S169: Nej | T169: Nej | U169: Nej | V169: Nej | W169: Nej | X169: Nej | Y169: Nej | Z169: Nej | AA169: Nej | AB169: Nej
A170: 326660 | B170: DNB Global Emerging Markets S | D170: Ja | F170: 19 | G170: 2026-05-31 | H170: Ja | I170: Ja | J170: Ja | K170: Nej | L170: Ja | M170: Nej | N170: Nej | O170: Ja | P170: Nej | Q170: Nej | R170: Ja | S170: Nej | T170: Nej | U170: Nej | V170: Nej | W170: Nej | X170: Nej | Y170: Nej | Z170: Nej | AA170: Nej | AB170: Nej
A171: 326660 | B171: DNB Global Emerging Markets S | D171: Ja | F171: 19 | G171: 2026-05-31 | H171: Ja | I171: Ja | J171: Ja | K171: Nej | L171: Ja | M171: Nej | N171: Nej | O171: Ja | P171: Nej | Q171: Nej | R171: Ja | S171: Nej | T171: Nej | U171: Nej | V171: Nej | W171: Nej | X171: Nej | Y171: Nej | Z171: Nej | AA171: Nej | AB171: Nej
A172: 330324 | B172: CPR Invest Global Gold Mines A2 | D172: Ja | F172: 25 | G172: 2026-05-31 | H172: Ja | I172: Ja | J172: Nej | K172: Nej | L172: Ja | M172: Nej | N172: Nej | O172: Nej | P172: Nej | Q172: Nej | R172: Ja | S172: Ja | T172: Nej | U172: Nej | V172: Nej | W172: Nej | X172: Nej | Y172: Nej | Z172: Nej | AA172: Nej | AB172: Nej
A173: 330324 | B173: CPR Invest Global Gold Mines A2 | D173: Ja | F173: 25 | G173: 2026-05-31 | H173: Ja | I173: Ja | J173: Nej | K173: Nej | L173: Ja | M173: Nej | N173: Nej | O173: Nej | P173: Nej | Q173: Nej | R173: Ja | S173: Ja | T173: Nej | U173: Nej | V173: Nej | W173: Nej | X173: Nej | Y173: Nej | Z173: Nej | AA173: Nej | AB173: Nej
A174: 331686 | B174: Storebrand FRN Företagsobligation A | D174: Ja | F174: 18 | G174: 2026-05-31 | H174: Ja | I174: Ja | J174: Ja | K174: Ja | L174: Ja | M174: Ja | N174: Ja | O174: Ja | P174: Ja | Q174: Ja | R174: Ja | S174: Nej | T174: Ja | U174: Ja | V174: Nej | W174: Nej | X174: Nej | Y174: Nej | Z174: Nej | AA174: Nej | AB174: Nej
A175: 331983 | B175: Skandia Korträntefond | D175: Ja | F175: 18 | G175: 2026-05-31 | H175: Ja | I175: Ja | J175: Nej | K175: Nej | L175: Ja | M175: Ja | N175: Nej | O175: Nej | P175: Nej | Q175: Nej | R175: Ja | S175: Nej | T175: Nej | U175: Nej | V175: Nej | W175: Nej | X175: Nej | Y175: Nej | Z175: Nej | AA175: Nej | AB175: Nej
A176: 332156 | B176: Odin Fastighet C | D176: Ja | F176: 16 | G176: 2026-05-31 | H176: Ja | I176: Ja | J176: Ja | K176: Ja | L176: Ja | M176: Ja | N176: Ja | O176: Ja | P176: Nej | Q176: Nej | R176: Ja | S176: Ja | T176: Nej | U176: Nej | V176: Nej | W176: Nej | X176: Nej | Y176: Nej | Z176: Nej | AA176: Nej | AB176: Nej
A177: 334409 | B177: Baring Hong Kong China A | D177: Ja | F177: 23 | G177: 2026-05-31 | H177: Ja | I177: Nej | J177: Ja | K177: Nej | L177: Nej | M177: Nej | N177: Nej | O177: Nej | P177: Nej | Q177: Nej | R177: Nej | S177: Nej | T177: Nej | U177: Nej | V177: Nej | W177: Nej | X177: Nej | Y177: Nej | Z177: Nej | AA177: Nej | AB177: Nej
A178: 341362 | B178: Carnegie Listed Private Equity A | D178: Ja | F178: 22 | G178: 2026-05-31 | H178: Ja | I178: Ja | J178: Ja | K178: Ja | L178: Ja | M178: Ja | N178: Ja | O178: Ja | P178: Ja | Q178: Ja | R178: Ja | S178: Nej | T178: Ja | U178: Nej | V178: Nej | W178: Nej | X178: Nej | Y178: Nej | Z178: Nej | AA178: Nej | AB178: Nej
A179: 343665 | B179: Mercer Passive Sustainable Global Equity UCITS CCF | D179: Ja | H179: Ja | I179: Ja | J179: Nej | K179: Ja | L179: Ja | M179: Nej | N179: Ja | O179: Ja | P179: Ja | Q179: Nej | R179: Nej | S179: Nej | T179: Nej | U179: Nej | V179: Nej | W179: Nej | X179: Nej | Y179: Nej | Z179: Nej | AA179: Nej | AB179: Nej
A180: 349150 | B180: Fidelity - Emerging Markets Funds A | D180: Ja | F180: 20 | G180: 2026-05-31 | H180: Ja | I180: Ja | J180: Nej | K180: Nej | L180: Nej | M180: Nej | N180: Nej | O180: Nej | P180: Nej | Q180: Nej | R180: Nej | S180: Nej | T180: Nej | U180: Nej | V180: Nej | W180: Nej | X180: Nej | Y180: Nej | Z180: Nej | AA180: Nej | AB180: Nej
A181: 350512 | B181: Handelsbanken Pension 60 A12 | D181: Ja | F181: 18 | G181: 2026-05-31 | H181: Ja | I181: Ja | J181: Ja | K181: Ja | L181: Ja | M181: Ja | N181: Ja | O181: Ja | P181: Ja | Q181: Nej | R181: Nej | S181: Nej | T181: Ja | U181: Nej | V181: Nej | W181: Nej | X181: Nej | Y181: Nej | Z181: Nej | AA181: Nej | AB181: Nej
A182: 350512 | B182: Handelsbanken Pension 60 A12 | D182: Ja | F182: 18 | G182: 2026-05-31 | H182: Ja | I182: Ja | J182: Ja | K182: Ja | L182: Ja | M182: Ja | N182: Ja | O182: Ja | P182: Ja | Q182: Nej | R182: Nej | S182: Nej | T182: Ja | U182: Nej | V182: Nej | W182: Nej | X182: Nej | Y182: Nej | Z182: Nej | AA182: Nej | AB182: Nej
A183: 357483 | B183: Carnegie Strategifond A | D183: Ja | F183: 20 | G183: 2026-05-31 | H183: Ja | I183: Ja | J183: Ja | K183: Ja | L183: Ja | M183: Nej | N183: Ja | O183: Ja | P183: Nej | Q183: Nej | R183: Ja | S183: Nej | T183: Nej | U183: Nej | V183: Nej | W183: Nej | X183: Nej | Y183: Nej | Z183: Nej | AA183: Nej | AB183: Nej
A184: 359315 | B184: Nordea Generationsfond 60-tal | D184: Ja | F184: 18 | G184: 2026-05-31 | H184: Ja | I184: Ja | J184: Ja | K184: Ja | L184: Ja | M184: Nej | N184: Ja | O184: Ja | P184: Nej | Q184: Nej | R184: Ja | S184: Nej | T184: Nej | U184: Ja | V184: Nej | W184: Nej | X184: Nej | Y184: Nej | Z184: Nej | AA184: Nej | AB184: Nej
A185: 360495 | B185: S-Banken USA Aktie A | D185: Ja | F185: 18 | G185: 2026-05-31 | H185: Ja | I185: Ja | J185: Nej | K185: Nej | L185: Ja | M185: Ja | N185: Nej | O185: Nej | P185: Nej | Q185: Nej | R185: Nej | S185: Nej | T185: Nej | U185: Nej | V185: Nej | W185: Nej | X185: Nej | Y185: Nej | Z185: Nej | AA185: Nej | AB185: Nej
A186: 366154 | B186: CPR Invest Global Lifestyles A2 | D186: Ja | F186: 17 | G186: 2026-05-31 | H186: Ja | I186: Ja | J186: Nej | K186: Nej | L186: Ja | M186: Nej | N186: Nej | O186: Nej | P186: Nej | Q186: Nej | R186: Ja | S186: Ja | T186: Nej | U186: Nej | V186: Nej | W186: Nej | X186: Nej | Y186: Nej | Z186: Nej | AA186: Nej | AB186: Nej
A187: 367987 | B187: Evli GEM Placeringsfonden B | D187: Ja | F187: 23 | G187: 2026-05-31 | H187: Ja | I187: Ja | J187: Nej | K187: Nej | L187: Ja | M187: Nej | N187: Nej | O187: Ja | P187: Nej | Q187: Nej | R187: Nej | S187: Nej | T187: Ja | U187: Nej | V187: Nej | W187: Nej | X187: Nej | Y187: Nej | Z187: Nej | AA187: Nej | AB187: Nej
A188: 374421 | B188: BlackRock - World Healthscience A2 | D188: Ja | F188: 18 | G188: 2026-05-31 | H188: Ja | I188: Ja | J188: Ja | K188: Nej | L188: Nej | M188: Nej | N188: Nej | O188: Nej | P188: Nej | Q188: Nej | R188: Nej | S188: Ja | T188: Nej | U188: Nej | V188: Nej | W188: Nej | X188: Nej | Y188: Nej | Z188: Nej | AA188: Nej | AB188: Nej
A189: 383159 | B189: SEB Östeuropafond Små och Medelstora Bolag ex Ryssland C | D189: Ja | F189: 21 | G189: 2026-05-31 | H189: Ja | I189: Ja | J189: Ja | K189: Ja | L189: Ja | M189: Ja | N189: Ja | O189: Ja | P189: Ja | Q189: Ja | R189: Ja | S189: Ja | T189: Ja | U189: Nej | V189: Nej | W189: Nej | X189: Nej | Y189: Nej | Z189: Nej | AA189: Nej | AB189: Nej
A190: 384107 | B190: Franklin U.S. Opportunities Fund A | D190: Ja | F190: 18 | G190: 2026-05-31 | H190: Ja | I190: Nej | J190: Ja | K190: Nej | L190: Ja | M190: Nej | N190: Nej | O190: Nej | P190: Nej | Q190: Nej | R190: Ja | S190: Nej | T190: Nej | U190: Nej | V190: Nej | W190: Nej | X190: Nej | Y190: Nej | Z190: Nej | AA190: Nej | AB190: Nej
A191: 384750 | B191: Cicero Avkastning A | D191: Ja | F191: 19 | G191: 2026-05-31 | H191: Ja | I191: Ja | J191: Ja | K191: Ja | L191: Ja | M191: Ja | N191: Ja | O191: Ja | P191: Ja | Q191: Ja | R191: Ja | S191: Nej | T191: Ja | U191: Nej | V191: Nej | W191: Nej | X191: Nej | Y191: Nej | Z191: Nej | AA191: Nej | AB191: Nej
A192: 386870 | B192: Coeli High Yield Opportunities | D192: Ja | F192: 11 | G192: 2025-11-30 | H192: Ja | I192: Ja | J192: Ja | K192: Ja | L192: Ja | M192: Nej | N192: Ja | O192: Ja | P192: Ja | Q192: Nej | R192: Ja | S192: Ja | T192: Nej | U192: Nej | V192: Ja | W192: Nej | X192: Nej | Y192: Nej | Z192: Nej | AA192: Nej | AB192: Nej
A193: 389239 | B193: Franklin Biotechnology Discovery Fund | D193: Ja | F193: 27 | G193: 2026-05-31 | H193: Ja | I193: Ja | J193: Ja | K193: Nej | L193: Ja | M193: Nej | N193: Nej | O193: Nej | P193: Nej | Q193: Nej | R193: Ja | S193: Nej | T193: Nej | U193: Nej | V193: Nej | W193: Nej | X193: Nej | Y193: Nej | Z193: Nej | AA193: Nej | AB193: Nej
A194: 391482 | B194: SPP Generation 40-tal | D194: Ja | F194: 18 | G194: 2026-05-31 | H194: Ja | I194: Ja | J194: Ja | K194: Ja | L194: Ja | M194: Ja | N194: Ja | O194: Ja | P194: Ja | Q194: Ja | R194: Ja | S194: Nej | T194: Ja | U194: Ja | V194: Nej | W194: Nej | X194: Nej | Y194: Nej | Z194: Nej | AA194: Nej | AB194: Nej
A195: 391896 | B195: BlackRock - China A2 | D195: Ja | F195: 23 | G195: 2026-05-31 | H195: Ja | I195: Ja | J195: Ja | K195: Nej | L195: Nej | M195: Nej | N195: Nej | O195: Nej | P195: Nej | Q195: Nej | R195: Nej | S195: Ja | T195: Nej | U195: Nej | V195: Nej | W195: Nej | X195: Nej | Y195: Nej | Z195: Nej | AA195: Nej | AB195: Nej
A196: 393314 | B196: Carnegie Sverigefond A | D196: Ja | F196: 20 | G196: 2026-05-31 | H196: Ja | I196: Ja | J196: Ja | K196: Ja | L196: Ja | M196: Ja | N196: Ja | O196: Ja | P196: Ja | Q196: Ja | R196: Ja | S196: Nej | T196: Ja | U196: Nej | V196: Nej | W196: Nej | X196: Nej | Y196: Nej | Z196: Nej | AA196: Nej | AB196: Nej
A197: 401695 | B197: Goldman Sachs Global Social Impact Equity P | C197: Ja | F197: 17 | G197: 2026-05-31 | H197: Ja | I197: Ja | J197: Ja | K197: Ja | L197: Ja | M197: Nej | N197: Ja | O197: Ja | P197: Ja | Q197: Ja | R197: Ja | S197: Nej | T197: Ja | U197: Ja | V197: Nej | W197: Nej | X197: Nej | Y197: Nej | Z197: Nej | AA197: Nej | AB197: Nej
A198: 403642 | B198: Skandia Försiktig | D198: Ja | F198: 18 | G198: 2026-05-31 | H198: Ja | I198: Ja | J198: Nej | K198: Nej | L198: Ja | M198: Ja | N198: Nej | O198: Nej | P198: Nej | Q198: Nej | R198: Ja | S198: Nej | T198: Nej | U198: Nej | V198: Nej | W198: Nej | X198: Nej | Y198: Nej | Z198: Nej | AA198: Nej | AB198: Nej
A199: 404236 | B199: Pictet Emerging Markets R | D199: Ja | F199: 20 | G199: 2026-05-31 | H199: Ja | I199: Ja | J199: Ja | K199: Ja | L199: Ja | M199: Nej | N199: Ja | O199: Ja | P199: Nej | Q199: Nej | R199: Ja | S199: Nej | T199: Nej | U199: Nej | V199: Nej | W199: Nej | X199: Nej | Y199: Nej | Z199: Nej | AA199: Nej | AB199: Nej
A200: 405704 | B200: SEB Green Bond Fund C | C200: Ja | F200: 16 | G200: 2026-05-31 | H200: Ja | I200: Ja | J200: Ja | K200: Ja | L200: Ja | M200: Ja | N200: Ja | O200: Ja | P200: Ja | Q200: Ja | R200: Ja | S200: Ja | T200: Ja | U200: Nej | V200: Nej | W200: Nej | X200: Nej | Y200: Nej | Z200: Nej | AA200: Nej | AB200: Nej
A201: 405704 | B201: SEB Green Bond Fund C | C201: Ja | F201: 16 | G201: 2026-05-31 | H201: Ja | I201: Ja | J201: Ja | K201: Ja | L201: Ja | M201: Ja | N201: Ja | O201: Ja | P201: Ja | Q201: Ja | R201: Ja | S201: Ja | T201: Ja | U201: Nej | V201: Nej | W201: Nej | X201: Nej | Y201: Nej | Z201: Nej | AA201: Nej | AB201: Nej
A202: 408062 | B202: C WorldWide Asia 1A | D202: Ja | F202: 18 | G202: 2026-05-31 | H202: Ja | I202: Ja | J202: Ja | K202: Nej | L202: Nej | M202: Nej | N202: Nej | O202: Nej | P202: Nej | Q202: Nej | R202: Nej | S202: Nej | T202: Nej | U202: Nej | V202: Nej | W202: Nej | X202: Nej | Y202: Nej | Z202: Nej | AA202: Nej | AB202: Nej
A203: 408484 | B203: BL - Global 75 B | D203: Ja | F203: 17 | G203: 2026-05-31 | H203: Ja | I203: Ja | J203: Ja | K203: Nej | L203: Nej | M203: Nej | N203: Nej | O203: Nej | P203: Nej | Q203: Nej | R203: Nej | S203: Ja | T203: Nej | U203: Nej | V203: Nej | W203: Nej | X203: Nej | Y203: Nej | Z203: Nej | AA203: Nej | AB203: Nej
A204: 408898 | B204: Danske Invest SICAV - Euro Investment Grade Corporate Bond A | D204: Ja | F204: 17 | G204: 2026-05-31 | H204: Ja | I204: Nej | J204: Nej | K204: Nej | L204: Ja | M204: Nej | N204: Nej | O204: Ja | P204: Nej | Q204: Nej | R204: Ja | S204: Nej | T204: Ja | U204: Nej | V204: Nej | W204: Nej | X204: Nej | Y204: Nej | Z204: Nej | AA204: Nej | AB204: Nej
A205: 410258 | B205: BlackRock - World Financials A2 | D205: Ja | F205: 19 | G205: 2026-05-31 | H205: Ja | I205: Ja | J205: Ja | K205: Nej | L205: Nej | M205: Nej | N205: Nej | O205: Nej | P205: Nej | Q205: Nej | R205: Nej | S205: Nej | T205: Nej | U205: Nej | V205: Nej | W205: Nej | X205: Nej | Y205: Nej | Z205: Nej | AA205: Nej | AB205: Nej
A206: 416867 | B206: Lannebo Sweden Micro Cap | D206: Ja | F206: 21 | G206: 2026-05-31 | H206: Ja | I206: Ja | J206: Ja | K206: Ja | L206: Ja | M206: Ja | N206: Ja | O206: Ja | P206: Ja | Q206: Ja | R206: Ja | S206: Nej | T206: Ja | U206: Nej | V206: Nej | W206: Nej | X206: Nej | Y206: Nej | Z206: Nej | AA206: Nej | AB206: Nej
A207: 416867 | B207: Lannebo Sweden Micro Cap | D207: Ja | F207: 21 | G207: 2026-05-31 | H207: Ja | I207: Ja | J207: Ja | K207: Ja | L207: Ja | M207: Ja | N207: Ja | O207: Ja | P207: Ja | Q207: Ja | R207: Ja | S207: Nej | T207: Ja | U207: Nej | V207: Nej | W207: Nej | X207: Nej | Y207: Nej | Z207: Nej | AA207: Nej | AB207: Nej
A208: 416982 | B208: Seligson & Co Global Top 25 Pharmaceuticals A | D208: Ja | F208: 18 | G208: 2026-05-31 | H208: Ja | I208: Ja | J208: Ja | K208: Ja | L208: Ja | M208: Nej | N208: Ja | O208: Ja | P208: Ja | Q208: Nej | R208: Ja | S208: Ja | T208: Nej | U208: Nej | V208: Ja | W208: Nej | X208: Nej | Y208: Nej | Z208: Nej | AA208: Nej | AB208: Nej
A209: 418699 | B209: Simplicity Likviditet A | D209: Ja | F209: 18 | G209: 2026-05-31 | H209: Ja | I209: Ja | J209: Ja | K209: Ja | L209: Ja | M209: Ja | N209: Ja | O209: Ja | P209: Ja | Q209: Ja | R209: Ja | S209: Nej | T209: Ja | U209: Nej | V209: Nej | W209: Nej | X209: Nej | Y209: Nej | Z209: Nej | AA209: Nej | AB209: Nej
A210: 419101 | B210: Odin Emerging Markets C | D210: Ja | F210: 19 | G210: 2026-05-31 | H210: Ja | I210: Ja | J210: Ja | K210: Ja | L210: Ja | M210: Ja | N210: Ja | O210: Ja | P210: Ja | Q210: Ja | R210: Ja | S210: Ja | T210: Ja | U210: Nej | V210: Nej | W210: Nej | X210: Nej | Y210: Nej | Z210: Nej | AA210: Nej | AB210: Nej
A211: 420463 | B211: Evli Sverige Småbolag | D211: Ja | F211: 21 | G211: 2026-05-31 | H211: Ja | I211: Ja | J211: Ja | K211: Ja | L211: Ja | M211: Nej | N211: Ja | O211: Ja | P211: Ja | Q211: Ja | R211: Ja | S211: Nej | T211: Ja | U211: Nej | V211: Nej | W211: Nej | X211: Nej | Y211: Nej | Z211: Nej | AA211: Nej | AB211: Nej
A212: 420646 | B212: Länsförsäkringar Kort Räntefond | D212: Ja | F212: 11 | G212: 2026-02-28 | H212: Ja | I212: Ja | J212: Nej | K212: Nej | L212: Ja | M212: Ja | N212: Ja | O212: Ja | P212: Ja | Q212: Ja | R212: Ja | S212: Nej | T212: Ja | U212: Nej | V212: Nej | W212: Nej | X212: Nej | Y212: Nej | Z212: Nej | AA212: Nej | AB212: Nej
A213: 422709 | B213: BMC Global Select fund | D213: Ja | F213: 18 | G213: 2026-05-31 | H213: Ja | I213: Ja | J213: Ja | K213: Ja | L213: Ja | M213: Nej | N213: Ja | O213: Ja | P213: Ja | Q213: Nej | R213: Ja | S213: Nej | T213: Nej | U213: Nej | V213: Nej | W213: Nej | X213: Nej | Y213: Nej | Z213: Nej | AA213: Nej | AB213: Nej
A214: 423822 | B214: Cliens Sverige | D214: Ja | F214: 19 | G214: 2026-05-31 | H214: Ja | I214: Ja | J214: Ja | K214: Ja | L214: Ja | M214: Ja | N214: Ja | O214: Ja | P214: Ja | Q214: Ja | R214: Ja | S214: Nej | T214: Ja | U214: Nej | V214: Nej | W214: Nej | X214: Nej | Y214: Nej | Z214: Nej | AA214: Nej | AB214: Nej
A215: 425067 | B215: Templeton Emerging Markets Fund A | D215: Ja | F215: 19 | G215: 2026-05-31 | H215: Ja | I215: Ja | J215: Ja | K215: Nej | L215: Ja | M215: Nej | N215: Nej | O215: Nej | P215: Nej | Q215: Nej | R215: Ja | S215: Nej | T215: Nej | U215: Nej | V215: Nej | W215: Nej | X215: Nej | Y215: Nej | Z215: Nej | AA215: Nej | AB215: Nej
... 238 more rows

Sheet Värdeutveckling - konto
C8: ='Fondval & marknadsvärde'!A7 -> Nästa uppdatering: 2026-08-13
C42: Bilden visar årlig värdeutveckling och spridningen i värdeutveckling på de individuella kontona.
C43: Observera att kontona i staplarna har olika startår, beroende på när pensionsspararen fått sin första insättning till premiepensionen.
C44: Internräntan (IR), är den kapitalviktade avkastningen under perioden uttryckt i årstakt. Den anger årlig genomsnittlig värdeutveckling för en persons
C45: premiepension och kan jämföras med räntan på ett bankkonto. Internräntan kan däremot inte jämföras med marknadsindex eller med den enskilda fondens avkastning.

Sheet Värdeutv. Premiepensionssystem
B5: ='Värdeutveckling - konto'!C8 -> Nästa uppdatering: 2026-08-13
C44: Diagrammet visar den årliga värdeutvecklingen för spararnas totala premiepension inom fondförsäkring sedan 1995 (orangea kurva) och hur motsvarande utveckling varit
C45: om insättningarna till premiepension istället avsatts till inkomstpensionen och haft samma värdeutveckling som balansindex (röd kurva).
C47: Inkomstindex
C48: För år 2024 är inkomstindex/balansindex beräknat till 208,41. Källa "Historik beräkningsfaktorer inkomstpension", http://www.pensionsmyndigheten.se/BasbeloppOchVarderegler.html
C49: Vid omräkning av ålderspensionen för 2024 används inkomstindex.
C50: Om balanstalet är mindre än 1 går pensionssystemet med underskott. För att återställa balansen i systemet används balansindex i stället för inkomstindex.
C52: Så här har vi räknat
C53: Beräkningen av värdeutvecklingen i premiepensionssystemet är beräknad som internränta. Det innebär att man vid beräkningen tar hänsyn till alla flöden in och ut ur systemet
C54: och vid vilka tidpunkter som flödena har skett samt det totala marknadsvärdet i fonderna vid tidpunkten för beräkningen.
C55: De första flödena till premiepensionssystemet kom in under 1995 då det nya pensionssystemet startade.
C57: När vi gör motsvarande internränteberäkning med hjälp av inkomstindex/balansindex använder vi samma flöden och marknadvärden som vid beräkning av värdeutvecklingen
C58: i premiepensionen.

Sheet Värdeutv. fondrörelse per år
B5: ='Fondval & marknadsvärde'!A7 -> Nästa uppdatering: 2026-08-13
C45: Avkastningen i fondrörelsen, inklusive Sjunde AP-fonden, mäter avkastningen på en genomsnittlig krona som sattes in i början på året. Det kan jämföras med marknadsindex
C46: och enskilda fonders avkastning. Rabatter på fondavgifter, myndighetens avgift och arvsvinster är inte medräknade.
C48: 1) I beräkningen av värdeutvecklingen i fondrörelsen ingår alla fonder på fondtorget inklusive AP7 Aktiefond och AP7 Räntefond.
C49: 2) Fram till 2010-04-21 beräkningen av värdeutvecklingen gjord för Premiesparfonden, därefter är det beräknat för AP7 Såfa.

Sheet Marknadsv. & tillfört kapital
B7: ='Värdeutveckling - konto'!C8 -> Nästa uppdatering: 2026-08-13
C44: Tillfört kapital är pengar från den tillfälliga förvaltningen (inklusive ränta) samt återförda fondavgifter och arvsvinster. Från det tillförda kapitalet har det dragits
C45: av för pensionsutbetalningar, myndighetens avgift, samt överföringar till traditionell försäkring. Jämförelsen mellan marknadsvärde och tillfört kapital ger alltså
C46: inte en fullständig bild av utvecklingen av de inbetalda pensionsrätterna.

Sheet Värdeutveckling - fondrörelse
B5: ='Värdeutveckling - konto'!C8 -> Nästa uppdatering: 2026-08-13
C39: Diagrammet visar värdeutvecklingen för fondrörelsen och traditionell försäkring sedan start 2000-12-13.
C41: Måttet är tidsviktad avkastning, TVA som mäter avkastningen på en genomsnittlig krona som sattes in i premiepensionssystemet 2000-12-13. Premiepensionsindex
C42: kan jämföras med marknadsindex och enskilda fonders avkastning. Rabatten på fondavgiften, myndighetens avgift och arvsvinster är inte medräknade.
C44: Real avkastning = avkastning justerad för inflation (KPI)

Sheet Värdeutv fondrörelse genomsnitt
B5: ='Värdeutveckling - konto'!C8 -> Nästa uppdatering: 2026-08-13
C39: Diagrammet visar värdeutvecklingen för fondrörelsen, dvs alla fonder inklusive Premiesparfonden och AP7 Såfa sedan systemets start 2000-12-13.
C41: Måttet är tidsviktad avkastning, TVA som mäter avkastningen på en genomsnittlig krona som sattes in i premiepensionssystemet 2000-12-13. Premiepensionsindex
C42: kan jämföras med marknadsindex och enskilda fonders avkastning. Rabatten på fondavgiften, myndighetens avgift och arvsvinster är inte medräknade.
C44: Real avkastning = avkastning/inflation (KPI)
C45: Med årsavkastning menas genomsnittlig avkastning sedan start.

Sheet Avkastning pp-systemet
B5: Värdeutveckling - Premiepensionssystemet
B6: ='Värdeutveckling - konto'!C8 -> Nästa uppdatering: 2026-08-13
B7: Siffrorna omfattar både avkastningen i fondrörelsen och avkastningen av pengarna fram till tidpunkten då de placerades i fonderna.
B8: Kapitalviktad avkastning anger genomsnittlig årlig utveckling för en genomsnittlig persons premiepensionskonto.
B9: Måttet kan jämföras med räntan på ett bankkonto.
B10: Den kapitalviktade avkastningen kan inte jämföras med marknadsindex eller med enskilda fonders avkastning.
B11: Balansindex är den siffra med vilken inkomstpensionen räknas upp årligen och är jämförbar med den kapitalviktade årsavkastningen.
B13: I tabellen nedan kan man därför jämföra den genomsnittlige personens avkastning i premiepensionssystemet
B14: med personens avkastning i inkomstpensionen.
B16: Med årsavkastning avses genomsnittlig årsavkastning sedan start.
B25: Datum | C25: Kapitalviktad årsavkastning (IR) | D25: Real kapitalviktad årsavkastning (IR) | E25: Inkomstindex, (IR) | F25: Inkomstindex, realt (IR) *
B27: 2000-12-13 | C27: 0.04194448544 | D27: 0.03418508149
B28: 2000-12-31 | C28: 0.02917223454 | D28: 0.02154862942 | E28: 0.02279721737 | F28: 0.01438543557
B29: 2001-01-31 | C29: 0.03447044499 | D29: 0.02740468244
B30: 2001-02-28 | C30: 0.01526580087 | D30: 0.00785035179
B31: 2001-03-31 | C31: -0.001841056816 | D31: -0.0102672393
B32: 2001-04-30 | C32: 0.02069123801 | D32: 0.01077120066
B33: 2001-05-31 | C33: 0.0298537111 | D33: 0.01888110847
B34: 2001-06-30 | C34: 0.02183225676 | D34: 0.01132547594
B35: 2001-07-31 | C35: 0.009904870149 | D35: 0.0004702835101
B36: 2001-08-31 | C36: -0.005852035871 | D36: -0.01541773442
B37: 2001-09-30 | C37: -0.0283529784 | D37: -0.03883469921
B38: 2001-10-31 | C38: -0.01585379731 | D38: -0.0259047183
B39: 2001-11-30 | C39: 0.001501129769 | D39: -0.008655967642
B40: 2001-12-31 | C40: 0.004038754106 | D40: -0.00617313364 | E40: 0.02398296833 | F40: 0.01285850194
B41: 2002-01-31 | C41: -0.0056673579 | D41: -0.01529828795
B42: 2002-02-28 | C42: -0.003290312031 | D42: -0.01314427499
B43: 2002-03-31 | C43: 0.002398288647 | D43: -0.008637984743
B44: 2002-04-30 | C44: -0.01295282013 | D44: -0.02424446902
B45: 2002-05-31 | C45: -0.02236065983 | D45: -0.03375834022
B46: 2002-06-30 | C46: -0.04542765597 | D46: -0.056242413
B47: 2002-07-31 | C47: -0.06122487546 | D47: -0.07132874721
B48: 2002-08-31 | C48: -0.06199754562 | D48: -0.07202695907
B49: 2002-09-30 | C49: -0.08560565057 | D49: -0.09619152535
B50: 2002-10-31 | C50: -0.06703261911 | D50: -0.07811047611
B51: 2002-11-30 | C51: -0.05266964976 | D51: -0.06349032591
B52: 2002-12-31 | C52: -0.07074138865 | D52: -0.08136348814 | E52: 0.02788063526 | F52: 0.01731618596
B53: 2003-01-31 | C53: -0.0701350715 | D53: -0.08108208356
B54: 2003-02-28 | C54: -0.07257154186 | D54: -0.08436828869
B55: 2003-03-31 | C55: -0.07106368683 | D55: -0.08332758972
B56: 2003-04-30 | C56: -0.05495481421 | D56: -0.06689591498
B57: 2003-05-31 | C57: -0.05186675271 | D57: -0.06360443033
B58: 2003-06-30 | C58: -0.04072686364 | D58: -0.05215728686
B59: 2003-07-31 | C59: -0.03208010983 | D59: -0.04313107146
B60: 2003-08-31 | C60: -0.0235251792 | D60: -0.03452409257
B61: 2003-09-30 | C61: -0.03324087806 | D61: -0.04482702028
B62: 2003-10-31 | C62: -0.0203713641 | D62: -0.03207964601
B63: 2003-11-30 | C63: -0.02082832776 | D63: -0.03218217666
B64: 2003-12-31 | C64: -0.01662637337 | D64: -0.02807213645 | E64: 0.03048714161 | F64: 0.01946856297
B65: 2004-01-31 | C65: -0.004765073458 | D65: -0.0159716904
B66: 2004-02-29 | C66: 0.001037653706 | D66: -0.00985318795
B67: 2004-03-31 | C67: 0.0006923192316 | D67: -0.01091728419
B68: 2004-04-30 | C68: -0.0005928219834 | D68: -0.0120827177
B69: 2004-05-31 | C69: -0.004463351574 | D69: -0.01607242707
B70: 2004-06-30 | C70: 0.0006494845644 | D70: -0.01046054273
B71: 2004-07-31 | C71: -0.004080777973 | D71: -0.01489083908
B72: 2004-08-31 | C72: -0.005081345603 | D72: -0.01567466196
B73: 2004-09-30 | C73: -0.003510254022 | D73: -0.01476524488
B74: 2004-10-31 | C74: -0.003418184624 | D74: -0.01486831833
B75: 2004-11-30 | C75: 0.0003449380875 | D75: -0.01047139795
B76: 2004-12-31 | C76: 0.003236398101 | D76: -0.007520763267 | E76: 0.02985473156 | F76: 0.01946168073
B77: 2005-01-31 | C77: 0.01024151859 | D77: 4.349182334e-05
B78: 2005-02-28 | C78: 0.01482239235 | D78: 0.004194293176
B79: 2005-03-31 | C79: 0.01447704485 | D79: 0.003726199445
B80: 2005-04-30 | C80: 0.01252528384 | D80: 0.001741840458
B81: 2005-05-31 | C81: 0.02292213745 | D81: 0.01208083478
B82: 2005-06-30 | C82: 0.03160821103 | D82: 0.02072732215
B83: 2005-07-31 | C83: 0.03737351528 | D83: 0.0268710267
B84: 2005-08-31 | C84: 0.03454759909 | D84: 0.0239820481
B85: 2005-09-30 | C85: 0.04261007974 | D85: 0.03135152285
B86: 2005-10-31 | C86: 0.03959962046 | D86: 0.02828995455
B87: 2005-11-30 | C87: 0.04724047469 | D87: 0.03617471468
B88: 2005-12-31 | C88: 0.05099965632 | D88: 0.03996912085 | E88: 0.02932195187 | F88: 0.01890571283
B89: 2006-01-31 | C89: 0.05013657127 | D89: 0.03992469616
B90: 2006-02-28 | C90: 0.05674425974 | D90: 0.04605714906
B91: 2006-03-31 | C91: 0.05938088383 | D91: 0.04814196478
B92: 2006-04-30 | C92: 0.05789389521 | D92: 0.0462688147
B93: 2006-05-31 | C93: 0.044 | D93: 0.03226648281
B94: 2006-06-30 | C94: 0.0438 | D94: 0.03237641578
B95: 2006-07-31 | C95: 0.04359794933 | D95: 0.03241526373
B96: 2006-08-31 | C96: 0.047822287 | D96: 0.03661501658
B97: 2006-09-30 | C97: 0.05176092742 | D97: 0.04006929388
B98: 2006-10-31 | C98: 0.0551493687 | D98: 0.04349400475
B99: 2006-11-30 | C99: 0.05327180328 | D99: 0.04160774736
B100: 2006-12-31 | C100: 0.05883512795 | D100: 0.04724820463 | E100: 0.02868438965 | F100: 0.01818778609
B101: 2007-01-31 | C101: 0.062 | D101: 0.05064314021
B102: 2007-02-28 | C102: 0.06019352873 | D102: 0.04868998586
B103: 2007-03-31 | C103: 0.06456432483 | D103: 0.0525226207
B104: 2007-04-30 | C104: 0.06746389678 | D104: 0.05503355308
B105: 2007-05-31 | C105: 0.07234940432 | D105: 0.06003923834
B106: 2007-06-30 | C106: 0.0703438273 | D106: 0.05800005583
B107: 2007-07-31 | C107: 0.0673 | D107: 0.05520271321
B108: 2007-08-31 | C108: 0.06548915125 | D108: 0.05352136787
B109: 2007-09-28 | C109: 0.06539416255 | D109: 0.05267468969
B110: 2007-10-31 | C110: 0.06682105829 | D110: 0.0537277852
B111: 2007-11-30 | C111: 0.05959016435 | D111: 0.0461411603
B112: 2007-12-31 | C112: 0.05781260431 | D112: 0.04454552771 | E112: 0.03092156738 | F112: 0.01794431779
B113: 2008-01-31 | C113: 0.03859890251 | D113: 0.02602427186
B114: 2008-02-29 | C114: 0.04030390591 | D114: 0.02746167286
B115: 2008-03-31 | C115: 0.03244250437 | D115: 0.01903755529
B116: 2008-04-30 | C116: 0.03976405471 | D116: 0.02600725656
B117: 2008-05-31 | C117: 0.0425 | D117: 0.02848788223
B118: 2008-06-30 | C118: 0.0276728736 | D118: 0.0135850162
B119: 2008-07-31 | C119: 0.02569802551 | D119: 0.01187891779
B120: 2008-08-31 | C120: 0.02744533504 | D120: 0.01355815751
B121: 2008-09-30 | C121: 0.01250261343 | D121: -0.001849989871
B122: 2008-10-31 | C122: -0.007538387515 | D122: -0.02163427678
B123: 2008-11-30 | C123: -0.01150430572 | D123: -0.02487693972
B124: 2008-12-31 | C124: -0.00787725335 | D124: -0.02052577468 | E124: 0.03510504395 | F124: 0.02218424609
B125: 2009-01-31 | C125: -0.01090581747 | D125: -0.02291770718
B126: 2009-02-28 | C126: -0.01142118765 | D126: -0.02337218074
B127: 2009-03-31 | C127: -0.01143367936 | D127: -0.02351177632
B128: 2009-04-30 | C128: 0.005847546816 | D128: -0.006477728634
B129: 2009-05-31 | C129: 0.01117052494 | D129: -0.001192448454
B130: 2009-06-30 | C130: 0.01302909325 | D130: 0.0005473128673
B131: 2009-07-31 | C131: 0.01890128873 | D131: 0.006738672331
B132: 2009-08-31 | C132: 0.02109228312 | D132: 0.00882892057
B133: 2009-09-30 | C133: 0.02427038129 | D133: 0.0118235324
B134: 2009-10-31 | C134: 0.02666807298 | D134: 0.01408779323
B135: 2009-11-30 | C135: 0.02838551653 | D135: 0.01587325112
B136: 2009-12-31 | C136: 0.03296210468 | D136: 0.01930838572 | E136: 0.02892503418 | F136: 0.01632604094
B137: 2010-01-31 | C137: 0.03070385256 | D137: 0.01858447168
B138: 2010-02-28 | C138: 0.0273903508 | D138: 0.01497151174
B139: 2010-03-31 | C139: 0.03669809625 | D139: 0.02407141071
B140: 2010-04-30 | C140: 0.03862851017 | D140: 0.02603844629
B141: 2010-05-31 | C141: 0.03322523478 | D141: 0.02064484531
B142: 2010-06-30 | C142: 0.03056628815 | D142: 0.0180750962
B143: 2010-07-31 | C143: 0.03231278236 | D143: 0.02007104503
B144: 2010-08-31 | C144: 0.02950699937 | D144: 0.0173594368
B145: 2010-09-30 | C145: 0.03335931018 | D145: 0.02068249655
B146: 2010-10-31 | C146: 0.03597520902 | D146: 0.0231258335
B147: 2010-11-30 | C147: 0.03747387155 | D147: 0.02445890945
B148: 2010-12-31 | C148: 0.04284377396 | D148: 0.02894999498 | E148: 0.02244537598 | F148: 0.008340141747
B149: 2011-01-31 | C149: 0.03844239632 | D149: 0.02564128206
B150: 2011-02-28 | C150: 0.03862557191 | D150: 0.02549809837
B151: 2011-03-31 | C151: 0.03905410892 | D151: 0.02555754145
B152: 2011-04-30 | C152: 0.03985156822 | D152: 0.02614213816
B153: 2011-05-31 | C153: 0.03889010536 | D153: 0.02514574494
B154: 2011-06-30 | C154: 0.03743645072 | D154: 0.02392972824
B155: 2011-07-31 | C155: 0.03427737585 | D155: 0.02090966474
B156: 2011-08-31 | C156: 0.02317624454 | D156: 0.009998698681
B157: 2011-09-30 | C157: 0.0169911828 | D157: 0.003536204909
B158: 2011-10-31 | C158: 0.02461376465 | D158: 0.01112333394
B159: 2011-11-30 | C159: 0.02337111816 | D159: 0.009821457897
B160: 2011-12-31 | C160: 0.02492214739 | D160: 0.01051591024 | E160: 0.02540424316 | F160: 0.01177592069
B161: 2012-01-31 | C161: 0.03101526855 | D161: 0.01794199691
B162: 2012-02-29 | C162: 0.03518996582 | D162: 0.02172999245
B163: 2012-03-31 | C163: 0.03463105957 | D163: 0.02107621873
B164: 2012-04-30 | C164: 0.0335692334 | D164: 0.02028899206
B165: 2012-05-31 | C165: 0.02828848145 | D165: 0.01486573843
B166: 2012-06-30 | C166: 0.0288592627 | D166: 0.01563292395
B167: 2012-07-31 | C167: 0.03093500488 | D167: 0.01797760135
B168: 2012-08-31 | C168: 0.03104756348 | D168: 0.01809066091
B169: 2012-09-30 | C169: 0.03255430176 | D169: 0.01940703995
B170: 2012-10-31 | C170: 0.032 | D170: 0.019
B171: 2012-11-30 | C171: 0.03428434082 | D171: 0.02141915606
B172: 2012-12-31 | C172: 0.03464633301 | D172: 0.022 | E172: 0.02864683105 | F172: 0.01576797162
B173: 2013-01-31 | C173: 0.03850179199 | D173: 0.026
B174: 2013-02-28 | C174: 0.03943130371 | D174: 0.027
B175: 2013-03-31 | C175: 0.04099356934 | D175: 0.028
B176: 2013-04-30 | C176: 0.04293130371 | D176: 0.03021634961
B177: 2013-05-31 | C177: 0.04528789551 | D177: 0.03251023511
B178: 2013-06-30 | C178: 0.041 | D178: 0.029
B179: 2013-07-31 | C179: 0.045 | D179: 0.032
B180: 2013-08-31 | C180: 0.04301992676 | D180: 0.03056534677
B181: 2013-09-30 | C181: 0.04522941895 | D181: 0.03259024931
B182: 2013-10-31 | C182: 0.049 | D182: 0.036
B183: 2013-11-30 | C183: 0.051 | D183: 0.039
B184: 2013-12-31 | C184: 0.051 | D184: 0.038 | E184: 0.024 | F184: 0.012
B185: 2014-01-31 | C185: 0.04750977051 | D185: 0.03570447585
B186: 2014-02-28 | C186: 0.05170895996 | D186: 0.03967828736
B187: 2014-03-31 | C187: 0.052 | D187: 0.04
B188: 2014-04-30 | C188: 0.05313870605 | D188: 0.04098952101
B189: 2014-05-31 | C189: 0.05703397949 | D189: 0.04486468104
B190: 2014-06-30 | C190: 0.058 | D190: 0.046
B191: 2014-07-31 | C191: 0.05889824707 | D191: 0.04687680434
B192: 2014-08-31 | C192: 0.06008700684 | D192: 0.04815807091
B193: 2014-09-30 | C193: 0.05930885254 | D193: 0.04735383755
B194: 2014-10-31 | C194: 0.0612388916 | D194: 0.04928366574
B195: 2014-11-30 | C195: 0.06314500488 | D195: 0.05129658593
B196: 2014-12-31 | C196: 0.06425755371 | D196: 0.05236343765 | E196: 0.02482589355 | F196: 0.01337246475
B197: 2015-01-31 | C197: 0.06807697754 | D197: 0.05675017613
B198: 2015-02-28 | C198: 0.07354827637 | D198: 0.06183941816
B199: 2015-03-31 | C199: 0.075 | D199: 0.063
B200: 2015-04-30 | C200: 0.07410958496 | D200: 0.06245218889
B201: 2015-05-31 | C201: 0.0752548291 | D201: 0.06345195003
B202: 2015-06-30 | C202: 0.069 | D202: 0.058
B203: 2015-07-31 | C203: 0.07223196777 | D203: 0.06069190334
B204: 2015-08-31 | C204: 0.0648535791 | D204: 0.05354101861
B205: 2015-09-30 | C205: 0.06022035645 | D205: 0.04879914866
B206: 2015-10-31 | C206: 0.06694932129 | D206: 0.05546433344
B207: 2015-11-30 | C207: 0.06824416504 | D207: 0.05687875522
B208: 2015-12-31 | C208: 0.06404405762 | D208: 0.05269434507 | E208: 0.02820394043 | F208: 0.01723651941
B209: 2016-01-31 | C209: 0.05763399902 | D209: 0.0465696285
B210: 2016-02-29 | C210: 0.05737012207 | D210: 0.04619173422
B211: 2016-03-31 | C211: 0.05867251465 | D211: 0.04727826919
B212: 2016-04-30 | C212: 0.05848415527 | D212: 0.04714595015
B213: 2016-05-31 | C213: 0.06122179199 | D213: 0.04980946428
B214: 2016-06-30 | C214: 0.05969402832 | D214: 0.04829114994
B215: 2016-07-31 | C215: 0.06409812012 | D215: 0.05266267097
... 119 more rows

Sheet Värdeutveckling per år
B5: Värdeutveckling - fondrörelsen per kalenderår
B6: ='Fondval & marknadsvärde'!A7 -> Nästa uppdatering: 2026-08-13
B7: Avkastningen i fondrörelsen mäter avkastningen på en genomsnittlig krona som sattes in i början på året.
B8: Det kan jämföras med marknadsindex och enskilda fonders avkastning.
B9: Rabatter på fondavgifter, myndighetens avgift och arvsvinster är inte medräknade.
B14: Värdeutveckling | C14: 2001 | D14: 2002 | E14: 2003 | F14: 2004 | G14: 2005 | H14: 2006 | I14: 2007 | J14: 2008 | K14: 2009 | L14: 2010 | M14: 2011 | N14: 2012 | O14: 2013 | P14: 2014 | Q14: 2015 | R14: 2016 | S14: 2017 | T14: 2018 | U14: 2019 | V14: 2020 | W14: 2021 | X14: 2022 | Y14: 2023 | Z14: 2024 | AA14: 2025 | AB14: 2026-06-30
B15: Fondrörelsen 1) | C15: -0.111 | D15: -0.3122307984 | E15: 0.1782730775 | F15: 0.08750175883 | G15: 0.3055264801 | H15: 0.1214011645 | I15: 0.05663680561 | J15: -0.34156819 | K15: 0.3468550579 | L15: 0.1215129304 | M15: -0.1068742668 | N15: 0.1212547346 | O15: 0.211 | P15: 0.207 | Q15: 0.064 | R15: 0.1085550196 | S15: 0.1256948922 | T15: -0.03406068922 | U15: 0.2953294601 | V15: 0.06356462732 | W15: 0.2907239622 | X15: -0.124405078 | Y15: 0.1757916746 | Z15: 0.2335423628 | AA15: 0.04443504555 | AB15: 0.1585981988
B16: Sjunde AP-fonden 2) | C16: -0.106 | D16: -0.267 | E16: 0.187 | F16: 0.101 | G16: 0.251 | H16: 0.105 | I16: 0.047 | J16: -0.362 | K16: 0.3514180025 | L16: 0.1464445335 | M16: -0.1053624661 | N16: 0.1749798846 | O16: 0.318 | P16: 0.291 | Q16: 0.062 | R16: 0.1513875138 | S16: 0.1635153049 | T16: -0.02727587289 | U16: 0.3217239641 | V16: 0.0441371221 | W16: 0.3148433345 | X16: -0.09475818942 | Y16: 0.1844295691 | Z16: 0.2734569457 | AA16: 0.04166733088 | AB16: 0.1792408694
B17: Fondrörelsen exkl Sjunde AP-fonden | C17: -0.1137872053 | D17: -0.3301637503 | E17: 0.1746491443 | F17: 0.08100640034 | G17: 0.3313517704 | H17: 0.1285854162 | I17: 0.06078082089 | J17: -0.3345610778 | K17: 0.3454809812 | L17: 0.1129565808 | M17: -0.1073752371 | N17: 0.1016296209 | O17: 0.168473066 | P17: 0.1700161621 | Q17: 0.06465013528 | R17: 0.08634211299 | S17: 0.1040397665 | T17: -0.03794307268 | U17: 0.2762746656 | V17: 0.08033071826 | W17: 0.2705078412 | X17: -0.1505281188 | Y17: 0.1674589719 | Z17: 0.1917202663 | AA17: 0.04763487508 | AB17: 0.134544321
B18: Traditionell försäkring 3) | C18: 0.04169182692 | D18: 0.03868586559 | E18: 0.03333172779 | F18: 0.04835405298 | G18: 0.0516647055 | H18: 0.05999999376 | I18: 0.05664696471 | J18: 0.02152362077 | K18: 0.01075018837 | L18: 0.04585134901 | M18: 0.03747805265 | N18: 0.05000001243 | O18: 0.0441154182 | P18: 0.06823484677 | Q18: 0.1260167277 | R18: 0.04990535181 | S18: 0.05085651896 | T18: 0.07499188088 | U18: 0.06502953284 | V18: 0.05818167121 | W18: 0.08059091917 | X18: 0.01824641862 | Y18: 0.01046467042 | Z18: 0.1201328213 | AA18: 0.01458703667 | AB18: 0.09474269934
B21: 1) I beräkningen av värdeutvecklingen i fondrörelsen ingår alla fonder på fondtorget inklusive AP7 Aktiefond och AP7 Räntefond.
B22: 2) Fram till och med 2010-04-21 är beräkningen gjord för Premiesparfonden, därefter är beräkningen gjord för AP7 Såfa
B23: I beräkningen av värdeutveckling för Sjunde AP-fondens förvaltning ingår AP7 Aktiefond och AP7 Räntefond.
B24: 3) Pensionsmyndigheten införde avkastningsränta i den traditionella försäkringen per 2023-06-01. Avkastningsräntan förändras månadsvis i takt med tillgångarnas värdeutveckling under samma period.
B25: Värdering av tillgångarna sker månadsvis med viss eftersläpning. Värden för perioden 2023-05-31 till och med 2024-04-30 har ändrats retroaktivt så att redovisning av avkastningsräntan följer tillgångarnas utveckling.

Sheet Index, fondrörelsen
B5: Index för fondrörelsen sedan start
B6: ='Fondval & marknadsvärde'!A7 -> Nästa uppdatering: 2026-08-13
B7: Index är lika med 100 vid premiepensionens starttidpunkt.
B8: Det kan jämföras med marknadsindex och enskilda fonders avkastning.
B9: Rabatter på fondavgifter, myndighetens avgift och arvsvinster är inte medräknade.
B14: Datum | C14: Fondrörelsen 1)3) | D14: Sjunde AP-fonden 2) | E14: Fondrörelse utan Sjunde AP-fonden
B15: 2000-12-13 | C15: 100 | D15: 100 | E15: 100
B16: 2000-12-14 | C16: 98.39527861 | D16: 98.54156056 | E16: 98.3335084
B17: 2000-12-15 | C17: 96.29937235 | D17: 96.64918896 | E17: 96.15227407
B18: 2000-12-16 | C18: 96.29937235 | D18: 96.64918896 | E18: 96.15227407
B19: 2000-12-17 | C19: 96.29937235 | D19: 96.64918896 | E19: 96.15227407
B20: 2000-12-18 | C20: 96.3902672 | D20: 97.08611172 | E20: 96.09813859
B21: 2000-12-19 | C21: 96.87784784 | D21: 97.48136266 | E21: 96.62441472
B22: 2000-12-20 | C22: 93.67787994 | D22: 94.32506854 | E22: 93.40627045
B23: 2000-12-21 | C23: 92.14272594 | D23: 92.92482481 | E23: 91.81522639
B24: 2000-12-22 | C24: 93.36659662 | D24: 94.35073452 | E24: 92.95537287
B25: 2000-12-23 | C25: 93.36659662 | D25: 94.35073452 | E25: 92.95537287
B26: 2000-12-24 | C26: 93.36659662 | D26: 94.35073452 | E26: 92.95537287
B27: 2000-12-25 | C27: 93.36659662 | D27: 94.35073452 | E27: 92.95537287
B28: 2000-12-26 | C28: 93.36659662 | D28: 94.35073452 | E28: 92.95537287
B29: 2000-12-27 | C29: 94.45803443 | D29: 95.41197085 | E29: 94.05926669
B30: 2000-12-28 | C30: 95.45623357 | D30: 96.21279075 | E30: 95.13912142
B31: 2000-12-29 | C31: 95.46118448 | D31: 96.19191066 | E31: 95.15470727
B32: 2000-12-30 | C32: 95.46118448 | D32: 96.19191066 | E32: 95.15470727
B33: 2000-12-31 | C33: 95.46118448 | D33: 96.19191066 | E33: 95.15470727
B34: 2001-01-01 | C34: 95.46118448 | D34: 96.19191066 | E34: 95.15470727
B35: 2001-01-02 | C35: 94.30827779 | D35: 95.03481351 | E35: 94.00359995
B36: 2001-01-03 | C36: 91.59996863 | D36: 93.16259585 | E36: 90.95245543
B37: 2001-01-04 | C37: 94.87102923 | D37: 96.20644122 | E37: 94.31612798
B38: 2001-01-05 | C38: 94.87114277 | D38: 96.20644122 | E38: 94.31628793
B39: 2001-01-06 | C39: 94.87114277 | D39: 96.20644122 | E39: 94.31628793
B40: 2001-01-07 | C40: 94.87114321 | D40: 96.20644122 | E40: 94.31628855
B41: 2001-01-08 | C41: 93.10950133 | D41: 94.41617289 | E41: 92.56651481
B42: 2001-01-09 | C42: 93.02176549 | D42: 94.6139458 | E42: 92.36228788
B43: 2001-01-10 | C43: 92.36133935 | D43: 93.69869602 | E43: 91.80591074
B44: 2001-01-11 | C44: 92.55194058 | D44: 93.92751471 | E44: 91.9809148
B45: 2001-01-12 | C45: 93.85138294 | D45: 94.94733292 | E45: 93.39408258
B46: 2001-01-13 | C46: 93.85138294 | D46: 94.94733292 | E46: 93.39408258
B47: 2001-01-14 | C47: 93.85138294 | D47: 94.94733292 | E47: 93.39408258
B48: 2001-01-15 | C48: 94.65205193 | D48: 95.73802032 | E48: 94.19871972
B49: 2001-01-16 | C49: 94.2952447 | D49: 95.36349029 | E49: 93.84916726
B50: 2001-01-17 | C50: 96.19908244 | D50: 97.16307861 | E50: 95.79518512
B51: 2001-01-18 | C51: 96.02794585 | D51: 96.74705172 | E51: 95.7236984
B52: 2001-01-19 | C52: 96.02794766 | D52: 96.74705172 | E52: 95.72370095
B53: 2001-01-20 | C53: 96.02794766 | D53: 96.74705172 | E53: 95.72370095
B54: 2001-01-21 | C54: 96.02794766 | D54: 96.74705172 | E54: 95.72370095
B55: 2001-01-22 | C55: 96.69904383 | D55: 97.35044887 | E55: 96.42223475
B56: 2001-01-23 | C56: 96.41316642 | D56: 97.1424043 | E56: 96.10475945
B57: 2001-01-24 | C57: 97.67088793 | D57: 98.0993866 | E57: 97.48453132
B58: 2001-01-25 | C58: 98.04149456 | D58: 98.6611115 | E58: 97.77744582
B59: 2001-01-26 | C59: 96.79892367 | D59: 97.54810102 | E59: 96.48240413
B60: 2001-01-27 | C60: 96.79892367 | D60: 97.54810102 | E60: 96.48240413
B61: 2001-01-28 | C61: 96.79892367 | D61: 97.54810102 | E61: 96.48240413
B62: 2001-01-29 | C62: 96.79816765 | D62: 97.31925738 | E62: 96.57428136
B63: 2001-01-30 | C63: 97.34586777 | D63: 97.57932328 | E63: 97.23870288
B64: 2001-01-31 | C64: 97.69381645 | D64: 98.26586779 | E64: 97.44915053
B65: 2001-02-01 | C65: 97.08702783 | D65: 97.60014366 | E65: 96.8663611
B66: 2001-02-02 | C66: 97.2010489 | D66: 98.10983676 | E66: 96.81978931
B67: 2001-02-03 | C67: 97.2010489 | D67: 98.10983676 | E67: 96.81978931
B68: 2001-02-04 | C68: 97.2010489 | D68: 98.10983676 | E68: 96.81978931
B69: 2001-02-05 | C69: 95.49151511 | D69: 96.46639844 | E69: 95.08365399
B70: 2001-02-06 | C70: 96.2463901 | D70: 97.05930863 | E70: 95.90414542
B71: 2001-02-07 | C71: 95.45337616 | D71: 96.47681928 | E71: 95.02582845
B72: 2001-02-08 | C72: 95.4822587 | D72: 96.5080235 | E72: 95.05376548
B73: 2001-02-09 | C73: 94.03137277 | D73: 95.25994043 | E73: 93.5208034
B74: 2001-02-10 | C74: 94.03137277 | D74: 95.25994043 | E74: 93.5208034
B75: 2001-02-11 | C75: 94.03137277 | D75: 95.25994043 | E75: 93.5208034
B76: 2001-02-12 | C76: 93.57598496 | D76: 94.86466281 | E76: 93.04109558
B77: 2001-02-13 | C77: 95.06414497 | D77: 96.04004015 | E77: 94.65590485
B78: 2001-02-14 | C78: 93.55719972 | D78: 94.8230907 | E78: 93.03156339
B79: 2001-02-15 | C79: 94.77658745 | D79: 95.71755004 | E79: 94.38254958
B80: 2001-02-16 | C80: 92.99234448 | D80: 94.0740433 | E80: 92.54148211
B81: 2001-02-17 | C81: 92.99234448 | D81: 94.0740433 | E81: 92.54148211
B82: 2001-02-18 | C82: 92.99234448 | D82: 94.0740433 | E82: 92.54148211
B83: 2001-02-19 | C83: 92.78807682 | D83: 93.88682103 | E83: 92.33033105
B84: 2001-02-20 | C84: 93.40973712 | D84: 94.63570235 | E84: 92.90033474
B85: 2001-02-21 | C85: 91.65487818 | D85: 92.86752009 | E85: 91.15111026
B86: 2001-02-22 | C86: 90.96717642 | D86: 92.00424909 | E86: 90.53466846
B87: 2001-02-23 | C87: 89.97306923 | D87: 91.51538156 | E87: 89.33590683
B88: 2001-02-24 | C88: 89.97306923 | D88: 91.51538156 | E88: 89.33590683
B89: 2001-02-25 | C89: 89.97306923 | D89: 91.51538156 | E89: 89.33590683
B90: 2001-02-26 | C90: 90.67042374 | D90: 92.01468119 | E90: 90.1134296
B91: 2001-02-27 | C91: 91.06074952 | D91: 92.40994673 | E91: 90.50170083
B92: 2001-02-28 | C92: 90.66637859 | D92: 92.25392465 | E92: 90.01081708
B93: 2001-03-01 | C93: 88.7296817 | D93: 90.06967566 | E93: 88.17467357
B94: 2001-03-02 | C94: 88.23846403 | D94: 89.59124552 | E94: 87.67834268
B95: 2001-03-03 | C95: 88.23846403 | D95: 89.59124552 | E95: 87.67834268
B96: 2001-03-04 | C96: 88.23846403 | D96: 89.59124552 | E96: 87.67834268
B97: 2001-03-05 | C97: 89.47520656 | D97: 90.83941117 | E97: 88.91028755
B98: 2001-03-06 | C98: 91.10702679 | D98: 92.3581034 | E98: 90.58769734
B99: 2001-03-07 | C99: 91.05096783 | D99: 92.28529859 | E99: 90.53842814
B100: 2001-03-08 | C100: 90.7285604 | D100: 92.31650279 | E100: 90.07287911
B101: 2001-03-09 | C101: 89.65406314 | D101: 91.24520253 | E101: 88.99723788
B102: 2001-03-10 | C102: 89.65406314 | D102: 91.24520253 | E102: 88.99723788
B103: 2001-03-11 | C103: 89.65406314 | D103: 91.24520253 | E103: 88.99723788
B104: 2001-03-12 | C104: 87.20075244 | D104: 89.01845459 | E104: 86.45257669
B105: 2001-03-13 | C105: 85.84671244 | D105: 87.77027164 | E105: 85.0558901
B106: 2001-03-14 | C106: 84.93996602 | D106: 86.89649524 | E106: 84.13593427
B107: 2001-03-15 | C107: 86.02642066 | D107: 87.68703044 | E107: 85.34196027
B108: 2001-03-16 | C108: 85.17768382 | D108: 87.0525689 | E108: 84.40665687
B109: 2001-03-17 | C109: 85.17768382 | D109: 87.0525689 | E109: 84.40665687
B110: 2001-03-18 | C110: 85.17768382 | D110: 87.0525689 | E110: 84.40665687
B111: 2001-03-19 | C111: 84.54279276 | D111: 86.54291301 | E111: 83.72119535
B112: 2001-03-20 | C112: 85.23181141 | D112: 87.11497418 | E112: 84.45742366
B113: 2001-03-21 | C113: 83.95361521 | D113: 86.13729112 | E113: 83.05786127
B114: 2001-03-22 | C114: 82.65246582 | D114: 84.64996183 | E114: 81.83221102
B115: 2001-03-23 | C115: 83.5737924 | D115: 85.46122872 | E115: 82.79791482
B116: 2001-03-24 | C116: 83.5737924 | D116: 85.46122872 | E116: 82.79791482
B117: 2001-03-25 | C117: 83.5737924 | D117: 85.46122872 | E117: 82.79791482
B118: 2001-03-26 | C118: 85.1643065 | D118: 86.77173911 | E118: 84.50143626
B119: 2001-03-27 | C119: 85.91567079 | D119: 87.42699841 | E119: 85.29155419
B120: 2001-03-28 | C120: 86.39033256 | D120: 88.31107787 | E120: 85.60057783
B121: 2001-03-29 | C121: 84.9015233 | D121: 87.04216965 | E121: 84.0230708
B122: 2001-03-30 | C122: 84.54405129 | D122: 86.55328502 | E122: 83.71878824
B123: 2001-03-31 | C123: 84.54405129 | D123: 86.55328502 | E123: 83.71878824
B124: 2001-04-01 | C124: 84.54405129 | D124: 86.55328502 | E124: 83.71878824
B125: 2001-04-02 | C125: 84.37803044 | D125: 86.80291695 | E125: 83.38474191
B126: 2001-04-03 | C126: 82.78787414 | D126: 85.44040268 | E126: 81.7027982
B127: 2001-04-04 | C127: 81.34367336 | D127: 83.86987315 | E127: 80.30989009
B128: 2001-04-05 | C128: 83.4194253 | D128: 86.147638 | E128: 82.30365764
B129: 2001-04-06 | C129: 83.40514714 | D129: 86.28284497 | E129: 82.22895234
B130: 2001-04-07 | C130: 83.40514714 | D130: 86.28284497 | E130: 82.22895234
B131: 2001-04-08 | C131: 83.40514714 | D131: 86.28284497 | E131: 82.22895234
B132: 2001-04-09 | C132: 83.90818262 | D132: 86.57905433 | E132: 82.8163872
B133: 2001-04-10 | C133: 84.99584604 | D133: 87.51392114 | E133: 83.96504758
B134: 2001-04-11 | C134: 86.3689588 | D134: 88.56304946 | E134: 85.46728582
B135: 2001-04-12 | C135: 86.36898053 | D135: 88.56304946 | E135: 85.46731625
B136: 2001-04-13 | C136: 86.36898053 | D136: 88.56304946 | E136: 85.46731625
B137: 2001-04-14 | C137: 86.36898053 | D137: 88.56304946 | E137: 85.46731625
B138: 2001-04-15 | C138: 86.36898053 | D138: 88.56304946 | E138: 85.46731625
B139: 2001-04-16 | C139: 86.36898053 | D139: 88.56304946 | E139: 85.46731625
B140: 2001-04-17 | C140: 85.69410738 | D140: 88.11634495 | E140: 84.70148955
B141: 2001-04-18 | C141: 88.11935965 | D141: 90.30827364 | E141: 87.21923396
B142: 2001-04-19 | C142: 89.51782085 | D142: 91.60670177 | E142: 88.65710681
B143: 2001-04-20 | C143: 89.15803023 | D143: 91.41970707 | E143: 88.22859093
B144: 2001-04-21 | C144: 89.15803023 | D144: 91.41970707 | E144: 88.22859093
B145: 2001-04-22 | C145: 89.15803023 | D145: 91.41970707 | E145: 88.22859093
B146: 2001-04-23 | C146: 88.10769694 | D146: 90.36013588 | E146: 87.18227311
B147: 2001-04-24 | C147: 88.09386832 | D147: 90.44324011 | E147: 87.12983743
B148: 2001-04-25 | C148: 87.95364925 | D148: 90.28742258 | E148: 86.99587638
B149: 2001-04-26 | C149: 88.81870274 | D149: 91.2119301 | E149: 87.83697176
B150: 2001-04-27 | C150: 89.70060393 | D150: 92.0741151 | E150: 88.72644185
B151: 2001-04-28 | C151: 89.70060393 | D151: 92.0741151 | E151: 88.72644185
B152: 2001-04-29 | C152: 89.70060393 | D152: 92.0741151 | E152: 88.72644185
B153: 2001-04-30 | C153: 89.70157477 | D153: 92.0741151 | E153: 88.72779904
B154: 2001-05-01 | C154: 89.70157477 | D154: 92.0741151 | E154: 88.72779904
B155: 2001-05-02 | C155: 92.31779206 | D155: 94.06870936 | E155: 91.59070573
B156: 2001-05-03 | C156: 90.93650784 | D156: 92.59364401 | E156: 90.24720662
B157: 2001-05-04 | C157: 90.15991175 | D157: 92.08461704 | E157: 89.3643629
B158: 2001-05-05 | C158: 90.15991175 | D158: 92.08461704 | E158: 89.3643629
B159: 2001-05-06 | C159: 90.15991175 | D159: 92.08461704 | E159: 89.3643629
B160: 2001-05-07 | C160: 92.08163843 | D160: 94.13102053 | E160: 91.23584
B161: 2001-05-08 | C161: 91.80921113 | D161: 93.51814712 | E161: 91.09898111
B162: 2001-05-09 | C162: 90.96188047 | D162: 92.69751945 | E162: 90.24130486
B163: 2001-05-10 | C163: 91.91378669 | D163: 93.73627678 | E163: 91.15834269
B164: 2001-05-11 | C164: 91.18888339 | D164: 92.99875877 | E164: 90.43869769
B165: 2001-05-12 | C165: 91.18888339 | D165: 92.99875877 | E165: 90.43869769
B166: 2001-05-13 | C166: 91.2087402 | D166: 92.99875877 | E166: 90.46644749
B167: 2001-05-14 | C167: 90.50196288 | D167: 92.37549777 | E167: 89.72668172
B168: 2001-05-15 | C168: 90.3524317 | D168: 92.4585985 | E168: 89.48466703
B169: 2001-05-16 | C169: 89.96247364 | D169: 91.88727891 | E169: 89.16697134
B170: 2001-05-17 | C170: 92.5106756 | D170: 94.52573344 | E170: 91.67842917
B171: 2001-05-18 | C171: 93.05022535 | D171: 94.84774418 | E171: 92.30431706
B172: 2001-05-19 | C172: 93.05022535 | D172: 94.84774418 | E172: 92.30431706
B173: 2001-05-20 | C173: 93.05022535 | D173: 94.84774418 | E173: 92.30431706
B174: 2001-05-21 | C174: 93.57146219 | D174: 95.34634308 | E174: 92.83438348
B175: 2001-05-22 | C175: 95.21276079 | D175: 96.69694806 | E175: 94.59070463
B176: 2001-05-23 | C176: 95.21276079 | D176: 96.69694806 | E176: 94.59070463
B177: 2001-05-24 | C177: 95.21034651 | D177: 96.69694806 | E177: 94.5873313
B178: 2001-05-25 | C178: 94.51434603 | D178: 95.25295269 | E178: 94.18886508
B179: 2001-05-26 | C179: 94.51434603 | D179: 95.25295269 | E179: 94.18886508
B180: 2001-05-27 | C180: 94.51434603 | D180: 95.25295269 | E180: 94.18886508
B181: 2001-05-28 | C181: 94.12914665 | D181: 95.25295269 | E181: 93.65071846
B182: 2001-05-29 | C182: 94.05955735 | D182: 95.23217645 | E182: 93.56175994
B183: 2001-05-30 | C183: 92.77226392 | D183: 94.31802976 | E183: 92.12671322
B184: 2001-05-31 | C184: 92.98386212 | D184: 94.28686487 | E184: 92.43461648
B185: 2001-06-01 | C185: 93.24716086 | D185: 94.00640378 | E185: 92.91369882
B186: 2001-06-02 | C186: 93.24716086 | D186: 94.00640378 | E186: 92.91369882
B187: 2001-06-03 | C187: 93.24716086 | D187: 94.00640378 | E187: 92.91369882
B188: 2001-06-04 | C188: 93.24716086 | D188: 94.00640378 | E188: 92.91369882
B189: 2001-06-05 | C189: 94.89434148 | D189: 95.59582158 | E189: 94.58323425
B190: 2001-06-06 | C190: 95.09596102 | D190: 95.84512952 | E190: 94.76586294
B191: 2001-06-07 | C191: 95.01058845 | D191: 95.59592506 | E191: 94.74555423
B192: 2001-06-08 | C192: 94.88424592 | D192: 95.45077023 | E192: 94.62673608
B193: 2001-06-09 | C193: 94.88424592 | D193: 95.45077023 | E193: 94.62673608
B194: 2001-06-10 | C194: 94.88424592 | D194: 95.45077023 | E194: 94.62673608
B195: 2001-06-11 | C195: 93.83890336 | D195: 94.71590402 | E195: 93.45603803
B196: 2001-06-12 | C196: 91.71787205 | D196: 92.55493495 | E196: 91.35185269
B197: 2001-06-13 | C197: 91.88259611 | D197: 93.16789685 | E197: 91.33398799
B198: 2001-06-14 | C198: 90.29128238 | D198: 91.65102261 | E198: 89.71279788
B199: 2001-06-15 | C199: 88.32552333 | D199: 89.66664269 | E199: 87.75516126
B200: 2001-06-16 | C200: 88.32552333 | D200: 89.66664269 | E200: 87.75516126
B201: 2001-06-17 | C201: 88.32552333 | D201: 89.66664269 | E201: 87.75516126
B202: 2001-06-18 | C202: 88.13145587 | D202: 89.83287309 | E202: 87.414447
B203: 2001-06-19 | C203: 88.49432747 | D203: 90.20687372 | E203: 87.7726874
B204: 2001-06-20 | C204: 87.89620103 | D204: 89.62509496 | E204: 87.16807028
B205: 2001-06-21 | C205: 88.52524078 | D205: 90.10302009 | E205: 87.85845168
B206: 2001-06-22 | C206: 88.52524078 | D206: 90.10302009 | E206: 87.85845168
B207: 2001-06-23 | C207: 88.52524078 | D207: 90.10302009 | E207: 87.85845168
B208: 2001-06-24 | C208: 88.52524078 | D208: 90.10302009 | E208: 87.85845168
... 9132 more rows

Sheet Marknadsv. och tillfört kapital
B6: Marknadsvärde och tillfört kapital till fondrörelsen
B7: ='Värdeutveckling - konto'!C8 -> Nästa uppdatering: 2026-08-13
B8: Tillfört kapital är pengar från den tillfälliga förvaltningen (inklusive ränta) samt återförda fondavgifter och arvsvinster.
B9: Från det tillförda kapitalet har det dragits av för pensionsutbetalningar, myndighetens avgift, samt överföringar till
B10: traditionell försäkring. Jämförelsen mellan marknadsvärde och tillfört kapital ger alltså inte en fullständig bild av
B11: utvecklingen av de inbetalda pensionsrätterna.
B15: Fondrörelsen | C15: 2000-12-31 | D15: 2001-12-31 | E15: 2002-12-31 | F15: 2003-12-31 | G15: 2004-12-31 | H15: 2005-12-31 | I15: 2006-12-31 | J15: 2007-12-31 | K15: 2008-12-31 | L15: 2009-12-31 | M15: 2010-12-31 | N15: 2011-12-31 | O15: 2012-12-31 | P15: 2013-12-31 | Q15: 2014-12-31 | R15: 2015-12-31 | S15: 2016-12-31 | T15: 2017-12-31 | U15: 2018-12-31 | V15: 2019-12-31 | W15: 2020-12-31 | X15: 2021-12-31 | Y15: 2022-12-31 | Z15: 2023-12-31 | AA15: 2024-12-31 | AB15: 2025-12-31 | AC15: 2026-06-30
B16: Netto tillfört kapital, mdr | C16: 55.83161602 | D16: 74.033548 | E16: 93.93715098 | F16: 114.6495672 | G16: 136.6202115 | H16: 159.7777984 | I16: 209 | J16: 235.5015907 | K16: 263.9865717 | L16: 293.3968317 | M16: 323.0432483 | N16: 354.2969777 | O16: 387 | P16: 421 | Q16: 456 | R16: 496 | S16: 538.2149405 | T16: 584.9636681 | U16: 634.8794232 | V16: 685.0905343 | W16: 727.9149449 | X16: 772.0066259 | Y16: 818.2391068 | Z16: 869.4281252 | AA16: 924.6001921 | AB16: 984.2721686 | AC16: 988.443271
B17: Marknadsvärde, mdr | C17: 52.73519948 | D17: 65.02359367 | E17: 59.27535819 | F17: 93.92007642 | G17: 124.7562853 | H17: 192.3569621 | I17: 267 | J17: 308.2956846 | K17: 230.2349376 | L17: 340.1622721 | M17: 408.4775127 | N17: 393.1568928 | O17: 471 | P17: 602 | Q17: 759 | R17: 839 | S17: 959.8476563 | T17: 1110.001111 | U17: 1102.591405 | V17: 1458.048544 | W17: 1578.669462 | X17: 2060.590938 | Y17: 1827.451575 | Z17: 2178.714728 | AA17: 2711.052812 | AB17: 2856.978524 | AC17: 3294.403296

Sheet Avkastning sedan 2000
B5: Värdeutveckling - fondrörelsen och traditionell försäkring i genomsnitt per år
B6: ='Värdeutveckling - konto'!C8 -> Nästa uppdatering: 2026-08-13
B8: Tidsviktad avkastning (TVA), mäter avkastningen på en genomsnittlig krona som sattes in i premiepensionssystemet 2000-12-13. | H8: 1) Pensionsmyndigheten införde avkastningsränta i den traditionella försäkringen per 2023-06-01. Avkastningsräntan förändras månadsvis i takt med tillgångarnas värdeutveckling under samma period. Värdering av tillgångarna sker månadsvis med viss eftersläpning. Värden för perioden 2023-05-31 till och med 2024-04-30 har ändrats retroaktivt så att redovisning av avkastningsräntan följer tillgångarnas utveckling.
B9: Premiepensionsindex kan jämföras med marknadsindex och enskilda fonders avkastning. Rabatten på fondavgiften,
B10: myndighetens avgift och arvsvinster är inte medräknade.
B12: Real avkastning = avkastning/inflation (KPI)
B13: Med årsavkastningn menas genomsnittlig avkastning sedan start.
B20: Fondförsäkring | H20: Traditionell försäkring 1)
C23: Tidsviktad årlig genomsnittlig avkastning (TVA) | D23: Real tidsviktad genomsnittlig årlig avkastning (TVA) | E23: Tidsviktad avkastning sedan start (TVA) | F23: Real tidsviktad avkastning sedan start (TVA) | H23: Tidsviktad årlig genomsnittlig avkastning (TVA) | I23: Real tidsviktad genomsnittlig årlig avkastning (TVA) | J23: Tidsviktad avkastning sedan start (TVA) | K23: Real tidsviktad avkastning sedan start (TVA)
B26: Datum | C26: Fondförsäkring | D26: Fondförsäkring, realt | E26: Fondförsäkring | F26: Fondförsäkring, realt | H26: Traditionell försäkring | I26: Traditionell försäkring, realt | J26: Traditionell försäkring | K26: Traditionell försäkring, realt
B27: 2000-12-13 | C27: 0 | D27: 0 | E27: 0 | H27: 0 | I27: 0 | J27: 0 | K27: 0
B28: 2000-12-31 | C28: -0.04538815517 | D28: -0.04466083186 | E28: -0.04538815517 | F28: -0.04466083186 | H28: 0.01164049932 | I28: 0.01579507459 | J28: 0.001930739804 | K28: 0.002694115605
B29: 2001-01-31 | C29: -0.02306183555 | D29: -0.01932878945 | E29: -0.02306183555 | F29: -0.01932878945 | H29: 0.03206304193 | I29: 0.02501372271 | J29: 0.005273816592 | K29: 0.009115138016
B30: 2001-02-28 | C30: -0.0933362141 | D30: -0.0929909499 | E30: -0.0933362141 | F30: -0.0929909499 | H30: 0.03362761737 | I30: 0.02607805453 | J30: 0.008302922969 | K30: 0.008686892094
B31: 2001-03-31 | C31: -0.1545594871 | D31: -0.1606302995 | E31: -0.1545594871 | F31: -0.1606302995 | H31: 0.0354118376 | I31: 0.02667117645 | J31: 0.01166729079 | K31: 0.004402862016
B32: 2001-04-30 | C32: -0.1029842523 | D32: -0.1170998992 | E32: -0.1029842523 | F32: -0.1170998992 | H32: 0.03621648055 | I32: 0.0261455543 | J32: 0.01493377768 | K32: -0.001037454493
B33: 2001-05-31 | C33: -0.07016137882 | D33: -0.09092442954 | E33: -0.07016137882 | F33: -0.09092442954 | H33: 0.03697604447 | I33: 0.02592755676 | J33: 0.01832020724 | K33: -0.004418613914
B34: 2001-06-30 | C34: -0.09557327691 | D34: -0.1144506144 | E34: -0.09557327691 | F34: -0.1144506144 | H34: 0.03732787165 | I34: 0.02666176035 | J34: 0.02160817784 | K34: 0.0002850105011
B35: 2001-07-31 | C35: -0.1338448141 | D35: -0.147474832 | E35: -0.1338448141 | F35: -0.147474832 | H35: 0.03902496203 | I35: 0.02931833389 | J35: 0.02585029478 | K35: 0.009707277781
B36: 2001-08-31 | C36: -0.1855033816 | D36: -0.2004175574 | E36: -0.1855033816 | F36: -0.2004175574 | H36: 0.04034686098 | I36: 0.03033663633 | J36: 0.03011004186 | K36: 0.01124778773
B37: 2001-09-30 | C37: -0.2567612372 | D37: -0.2765882809 | E37: -0.2567612372 | F37: -0.2765882809 | H37: 0.04025625783 | I37: 0.02903440933 | J37: 0.03343606656 | K37: 0.005867560893
B38: 2001-10-31 | C38: -0.2191256817 | D38: -0.2376972003 | E38: -0.2191256817 | F38: -0.2376972003 | H38: 0.04030408256 | I38: 0.02967963051 | J38: 0.03688424974 | K38: 0.01222405205
B39: 2001-11-30 | C39: -0.1609062419 | D39: -0.1811666781 | E39: -0.1609062419 | F39: -0.1811666781 | H39: 0.0402321435 | I39: 0.02968224106 | J39: 0.0402321435 | K39: 0.01511509694
B40: 2001-12-31 | C40: -0.1516303016 | D40: -0.1730362903 | E40: -0.1516303016 | F40: -0.1730362903 | H40: 0.04027451989 | I40: 0.02968435747 | J40: 0.0437030628 | K40: 0.01736844006
B41: 2002-01-31 | C41: -0.162261254 | D41: -0.1798254829 | E41: -0.1866202249 | F41: -0.2050786201 | H41: 0.04067406497 | I41: 0.03059428009 | J41: 0.04761213411 | K41: 0.02383819803
B42: 2002-02-28 | C42: -0.1599528258 | D42: -0.1778924072 | E42: -0.1957712507 | F42: -0.2157724854 | H42: 0.04071929312 | I42: 0.03043022952 | J42: 0.05115559705 | K42: 0.02501327151
B43: 2002-03-31 | C43: -0.1366875857 | D43: -0.1598893653 | E43: -0.1779643582 | F43: -0.2054865229 | H43: 0.04104124202 | I43: 0.02957951479 | J43: 0.05509260682 | K43: 0.01976757841
B44: 2002-04-30 | C44: -0.1658885801 | D44: -0.1893815765 | E44: -0.2266060652 | F44: -0.2555126908 | H44: 0.04123672664 | I44: 0.02932515871 | J44: 0.05891661036 | K44: 0.01933819547
B45: 2002-05-31 | C45: -0.1792589235 | D45: -0.2024772207 | E45: -0.2564515813 | F45: -0.2860739415 | H45: 0.04149429705 | I45: 0.029352172 | J45: 0.06288271466 | K45: 0.02053833751
B46: 2002-06-30 | C46: -0.2205097622 | D46: -0.2406122291 | E46: -0.3259373799 | F46: -0.3518438862 | H46: 0.04164548025 | I46: 0.02984423453 | J46: 0.06673504202 | K46: 0.02573680651
B47: 2002-07-31 | C47: -0.2441677684 | D47: -0.2611085728 | E47: -0.3728438579 | F47: -0.3949543939 | H47: 0.04185688167 | I47: 0.03064355907 | J47: 0.07073033718 | K47: 0.03298148945
B48: 2002-08-31 | C48: -0.2378062418 | D48: -0.2542089459 | E48: -0.3782519544 | F48: -0.400392028 | H48: 0.04131730555 | I48: 0.03018321764 | J48: 0.07342177363 | K48: 0.03519787053
B49: 2002-09-30 | C49: -0.2743923406 | D49: -0.292383908 | E49: -0.444581842 | F49: -0.468457741 | H49: 0.0407810151 | I49: 0.02873197137 | J49: 0.0760327666 | K49: 0.02977707755
B50: 2002-10-31 | C50: -0.2334355486 | D50: -0.2529240597 | E50: -0.3992160878 | F50: -0.426921083 | H50: 0.04033557099 | I50: 0.02798284685 | J50: 0.0787374979 | K50: 0.02899179629
B51: 2002-11-30 | C51: -0.2007097331 | D51: -0.219121397 | E51: -0.3611350692 | F51: -0.389043257 | H51: 0.03988532863 | I51: 0.02800746325 | J51: 0.08136149671 | K51: 0.03412328062
B52: 2002-12-31 | C52: -0.2278583859 | D52: -0.2454609859 | E52: -0.4165074284 | F52: -0.442808075 | H52: 0.03951166281 | I52: 0.0275727702 | J52: 0.0840796192 | K52: 0.0352152525
B53: 2003-01-31 | C53: -0.2346032741 | D53: -0.2525346317 | E53: -0.4396995556 | F53: -0.4666995408 | H53: 0.03916686313 | I53: 0.02693307321 | J53: 0.08680458179 | K53: 0.03443320158
B54: 2003-02-28 | C54: -0.2324038607 | D54: -0.252695176 | E54: -0.4484958828 | F54: -0.4795972285 | H54: 0.03873554681 | I54: 0.025522991 | J54: 0.0892717399 | K54: 0.02784369997
B55: 2003-03-31 | C55: -0.2251280204 | D55: -0.2465443858 | E55: -0.4485113672 | F55: -0.4822156404 | H55: 0.0384433317 | I55: 0.02473370704 | J55: 0.09200980466 | K55: 0.02527153569
B56: 2003-04-30 | C56: -0.1971770271 | D56: -0.2173841564 | E56: -0.4118368258 | F56: -0.4458017724 | H56: 0.03813654591 | I56: 0.02501919099 | J56: 0.0946660772 | K56: 0.03145185968
B57: 2003-05-31 | C57: -0.1883333309 | D57: -0.2077143361 | E57: -0.4064678065 | F57: -0.440140369 | H57: 0.03788389516 | I57: 0.02503512459 | J57: 0.09741762949 | K57: 0.03515838875
B58: 2003-06-30 | C58: -0.1681384433 | D58: -0.1864116303 | E58: -0.3784655234 | F58: -0.4120377853 | H58: 0.03761507149 | I58: 0.02525114827 | J58: 0.1000870042 | K58: 0.040665668
B59: 2003-07-31 | C59: -0.151803126 | D59: -0.1687967298 | E59: -0.3553493174 | F59: -0.3881873761 | H59: 0.03739463609 | I59: 0.02555046549 | J59: 0.1028522367 | K59: 0.04667370875
B60: 2003-08-31 | C60: -0.135743465 | D60: -0.1524081644 | E60: -0.3304741519 | F60: -0.3643496918 | H60: 0.03718759817 | I60: 0.02550482224 | J60: 0.1056244056 | K60: 0.04968388639
B61: 2003-09-30 | C61: -0.1468132295 | D61: -0.1649604228 | E61: -0.3622874176 | F61: -0.3988981148 | H61: 0.03725381498 | I61: 0.02482282783 | J61: 0.1091942656 | K61: 0.04551608746
B62: 2003-10-31 | C62: -0.1251331818 | D62: -0.1434167971 | E62: -0.3228825498 | F62: -0.3622131439 | H62: 0.03735447285 | I62: 0.02495626586 | J62: 0.1128952436 | K62: 0.04825235029
B63: 2003-11-30 | C63: -0.1230169325 | D63: -0.14019184 | E63: -0.325512936 | F63: -0.3633210503 | H63: 0.03741239434 | I63: 0.02538322324 | J63: 0.1164886104 | K63: 0.05390426861
B64: 2003-12-31 | C64: -0.1143751987 | D64: -0.1315541242 | E64: -0.31237215 | F64: -0.3516158069 | H64: 0.03750332058 | I64: 0.02546085145 | J64: 0.120213866 | K64: 0.05628206242
B65: 2004-01-31 | C65: -0.09870644995 | D65: -0.1151027623 | E65: -0.2804242817 | F65: -0.3200268302 | H65: 0.03758651908 | I65: 0.02590301165 | J65: 0.1239414337 | K65: 0.06208422528
B66: 2004-02-29 | C66: -0.08908895237 | D66: -0.1045153645 | E66: -0.2615911381 | F66: -0.3004687774 | H66: 0.03759699437 | I66: 0.02630840345 | J66: 0.1274396171 | K66: 0.06807929102
B67: 2004-03-31 | C67: -0.08740660554 | D67: -0.1045496152 | E67: -0.262790251 | F67: -0.306853969 | H67: 0.03792603627 | I67: 0.02588446322 | J67: 0.1321084216 | K67: 0.06444123966
B68: 2004-04-30 | C68: -0.08698861527 | D68: -0.1037146573 | E68: -0.2672424094 | F68: -0.3110400177 | H68: 0.03819859624 | I68: 0.02626272679 | J68: 0.1366449521 | K68: 0.06870661742
B69: 2004-05-31 | C69: -0.08993188566 | D69: -0.1068553722 | E69: -0.2809507385 | F69: -0.3256185613 | H69: 0.0384978245 | I69: 0.02638777344 | J69: 0.1413519071 | K69: 0.07045036054
B70: 2004-06-30 | C70: -0.08159411149 | D70: -0.09716291347 | E70: -0.2628754704 | F70: -0.3056915959 | H70: 0.03874455735 | I70: 0.02721156746 | J70: 0.1459255282 | K70: 0.07936405975
B71: 2004-07-31 | C71: -0.08570451729 | D71: -0.1004859856 | E71: -0.2800249641 | F71: -0.3208709446 | H71: 0.03901789602 | I71: 0.0277400266 | J71: 0.1506708263 | K71: 0.08539039886
B72: 2004-08-31 | C72: -0.08521527079 | D72: -0.0994065151 | E72: -0.2839457971 | F72: -0.323840981 | H72: 0.03927917732 | I72: 0.02821353586 | J72: 0.1554358741 | K72: 0.09106040302
B73: 2004-09-30 | C73: -0.08159684411 | D73: -0.09725612203 | E73: -0.2784032391 | F73: -0.3234708455 | H73: 0.03949299882 | I73: 0.0277523018 | J73: 0.1600659502 | K73: 0.08761357997
B74: 2004-10-31 | C74: -0.07988214941 | D74: -0.0959051394 | E74: -0.2782498708 | F74: -0.3252535269 | H74: 0.039733143 | I74: 0.02778722615 | J74: 0.1648698227 | K74: 0.08900819368
B75: 2004-11-30 | C75: -0.07371952938 | D75: -0.08818118112 | E75: -0.2638437044 | F75: -0.3078444565 | H75: 0.03992867379 | I75: 0.0286843344 | J75: 0.1695376639 | K75: 0.099633301
B76: 2004-12-31 | C76: -0.06869645965 | D76: -0.08293594417 | E76: -0.252193412 | F76: -0.296890513 | H76: 0.04015021379 | I76: 0.0289982775 | J76: 0.1743807466 | K76: 0.1041869081
B77: 2005-01-31 | C77: -0.06341088664 | D77: -0.07622411276 | E77: -0.238877421 | F77: -0.2805077312 | H77: 0.04036576842 | I77: 0.02986364813 | J77: 0.1792572591 | K77: 0.1147566821
B78: 2005-02-28 | C78: -0.05691076848 | D78: -0.07059821104 | E78: -0.2204403707 | F78: -0.2665103345 | H78: 0.04047474957 | I78: 0.02957799668 | J78: 0.1836793382 | K78: 0.1137269418
B79: 2005-03-31 | C79: -0.05593086189 | D79: -0.06983573524 | E79: -0.2207386507 | F79: -0.2683632721 | H79: 0.04067583836 | I79: 0.02964735318 | J79: 0.1885944829 | K79: 0.1159534334
B80: 2005-04-30 | C80: -0.05687378658 | D80: -0.07080595499 | E80: -0.2278825753 | F80: -0.2761054694 | H80: 0.04083785611 | I80: 0.02975288246 | J80: 0.193370417 | K80: 0.1188380034
B81: 2005-05-31 | C81: -0.04398525942 | D81: -0.05791941285 | E81: -0.1832471685 | F81: -0.2345309709 | H81: 0.04102484294 | I81: 0.02999168118 | J81: 0.1983258315 | K81: 0.1230831108
B82: 2005-06-30 | C82: -0.03301801451 | D82: -0.04692844351 | E82: -0.1426313671 | F82: -0.1967519976 | H82: 0.04117469397 | I82: 0.0301929026 | J82: 0.2031409758 | K82: 0.1271937744
B83: 2005-07-31 | C83: -0.02532525926 | D83: -0.03834391303 | E83: -0.1128195039 | F83: -0.165847114 | H83: 0.04134902334 | I83: 0.03080628626 | J83: 0.2081368529 | K83: 0.1359253803
B84: 2005-08-31 | C84: -0.02746217415 | D84: -0.04058949886 | E84: -0.1238955558 | F84: -0.1777326278 | H84: 0.04151727524 | I84: 0.03088054486 | J84: 0.2131535394 | K84: 0.138604626
B85: 2005-09-30 | C85: -0.01725606436 | D85: -0.03174243636 | E85: -0.0806903888 | F85: -0.1433038848 | H85: 0.04165095808 | I85: 0.03040275821 | J85: 0.2180283178 | K85: 0.1350693122
B86: 2005-10-31 | C86: -0.0196854986 | D86: -0.03424287804 | E86: -0.09312655963 | F86: -0.1563893315 | H86: 0.04180842846 | I86: 0.03047473323 | J86: 0.2230860449 | K86: 0.1377645326
B87: 2005-11-30 | C87: -0.009980029589 | D87: -0.02394161275 | E87: -0.04891402875 | F87: -0.1130625323 | H87: 0.04209518714 | I87: 0.03108379528 | J87: 0.2289577444 | K87: 0.1460674457
B88: 2005-12-31 | C88: -0.004711067454 | D88: -0.01858432175 | E88: -0.02371869735 | F88: -0.08988964441 | H88: 0.042405355 | I88: 0.03144117525 | J88: 0.235054782 | K88: 0.1513445395
B89: 2006-01-31 | C89: -0.002026159252 | D89: -0.01418466019 | E89: -0.01042439465 | F89: -0.07020454406 | H89: 0.04270559005 | I89: 0.03256597626 | J89: 0.2411819738 | K89: 0.1662023124
B90: 2006-02-28 | C90: 0.00564876532 | D90: -0.007305353856 | E90: 0.03001418304 | F90: -0.03672222897 | H90: 0.042901262 | I90: 0.03239738892 | J90: 0.2467424968 | K90: 0.16596388
B91: 2006-03-31 | C91: 0.00922497159 | D91: -0.004909121222 | E91: 0.0501933614 | F91: -0.02475946113 | H91: 0.04318450124 | I91: 0.03209878494 | J91: 0.252927685 | K91: 0.1635056129
B92: 2006-04-30 | C92: 0.008099227696 | D92: -0.006739519598 | E92: 0.04466275443 | F92: -0.03477453014 | H92: 0.04342835818 | I92: 0.03195628277 | J92: 0.2589426413 | K92: 0.1632112826
B93: 2006-05-31 | C93: -0.005407495283 | D93: -0.02010362233 | E93: -0.02938164178 | F93: -0.1045742285 | H93: 0.04369517245 | I93: 0.03216281355 | J93: 0.265188427 | K93: 0.1671758666
B94: 2006-06-30 | C94: -0.004840301267 | D94: -0.01927354189 | E94: -0.02672697199 | F94: -0.1018728943 | H94: 0.04392423998 | I94: 0.03249929605 | J94: 0.2712622468 | K94: 0.1731087264
B95: 2006-07-31 | C95: -0.004374145236 | D95: -0.01829731802 | E95: -0.02453518884 | F95: -0.09829830082 | H95: 0.04417602721 | I95: 0.03298714721 | J95: 0.2775691118 | K95: 0.1809613486
B96: 2006-08-31 | C96: 0.000693044147 | D96: -0.01321301131 | E96: 0.003991568766 | F96: -0.07254875478 | H96: 0.04442057738 | I96: 0.03324969089 | J96: 0.2839072871 | K96: 0.1860273026
B97: 2006-09-30 | C97: 0.005453048197 | D97: -0.009321348374 | E97: 0.03223157121 | F97: -0.05199540708 | H97: 0.04462961331 | I97: 0.03301725321 | J97: 0.2900709916 | K97: 0.1848050954
B98: 2006-10-31 | C98: 0.009658551819 | D98: -0.004985127655 | E98: 0.05852054395 | F98: -0.02795348378 | H98: 0.04486098847 | I98: 0.03331927176 | J98: 0.2964712096 | K98: 0.1905582087
B99: 2006-11-30 | C99: 0.008414155792 | D99: -0.006218220662 | E99: 0.05155889457 | F99: -0.03556009635 | H99: 0.04505818267 | I99: 0.03348508536 | J99: 0.3026952226 | K99: 0.194770223
B100: 2006-12-31 | C100: 0.01500756009 | D100: 0.0004825969898 | E100: 0.09485036765 | F100: 0.004144787838 | H100: 0.04527743587 | I100: 0.03378297844 | J100: 0.3091580612 | K100: 0.2006976318
B101: 2007-01-31 | C101: 0.01851819489 | D101: 0.004961928416 | E101: 0.11980108 | F101: 0.03214534124 | H101: 0.04549080979 | I101: 0.03450531875 | J101: 0.3156529809 | K101: 0.2126663559
B102: 2007-02-28 | C102: 0.01744491727 | D102: 0.003264471703 | E102: 0.114148721 | F102: 0.02177297612 | H102: 0.04561840655 | I102: 0.03427300984 | J102: 0.3215470312 | K102: 0.2119755807
B103: 2007-03-31 | C103: 0.02224375243 | D103: 0.007130396002 | E103: 0.149506977 | F103: 0.04732592123 | H103: 0.04582174464 | I103: 0.03399204518 | J103: 0.3281034154 | K103: 0.2100467077
B104: 2007-04-30 | C104: 0.02567347988 | D104: 0.009901757965 | E104: 0.1766353571 | F104: 0.0666417347 | H104: 0.04599381396 | I104: 0.03381348387 | J104: 0.3344792595 | K104: 0.2097301545
B105: 2007-05-31 | C105: 0.02913708347 | D105: 0.01368512399 | E105: 0.2052467798 | F105: 0.09374854581 | H105: 0.04618719464 | I105: 0.03400461268 | J105: 0.3410998059 | K105: 0.2157318024
B106: 2007-06-30 | C106: 0.02951440349 | D106: 0.01400036922 | E106: 0.2110539148 | F106: 0.09723698372 | H106: 0.04635033143 | I106: 0.03433862498 | J106: 0.3475379816 | K106: 0.2228762877
B107: 2007-07-31 | C107: 0.02709372622 | D107: 0.01205467686 | E107: 0.1950897169 | F107: 0.08449365653 | H107: 0.04653448922 | I107: 0.03467813275 | J107: 0.3542233645 | K107: 0.2289007491
B108: 2007-08-31 | C108: 0.02589368555 | D108: 0.01110052908 | E108: 0.1883405251 | F108: 0.07866713638 | H108: 0.04671411711 | I108: 0.0349572186 | J108: 0.3609417918 | K108: 0.2353388228
B109: 2007-09-28 | C109: 0.02610558919 | D109: 0.01000287467 | E109: 0.1925566825 | F109: 0.07179144881 | H109: 0.04674559283 | I109: 0.03498834078 | J109: 0.3664103105 | K109: 0.2403026453
B110: 2007-10-31 | C110: 0.02817733468 | D110: 0.01145421275 | E110: 0.2119104017 | F110: 0.08344006302 | H110: 0.04679654408 | I110: 0.0339490352 | J110: 0.372084225 | K110: 0.2266344254
B111: 2007-11-30 | C111: 0.02149200508 | D111: 0.004140063831 | E111: 0.1604990872 | F111: 0.03081355948 | H111: 0.04682629421 | I111: 0.03353929747 | J111: 0.3775975416 | K111: 0.2236513074
B112: 2007-12-31 | C112: 0.02078367998 | D112: 0.003372426343 | E112: 0.1568591951 | F112: 0.02560377481 | H112: 0.04687509893 | I112: 0.0335181441 | J112: 0.3833178917 | K112: 0.2263688248
B113: 2008-01-31 | C113: 0.004079077549 | D113: -0.0118083797 | E113: 0.02960365593 | F113: -0.08038596351 | H113: 0.0468027235 | I113: 0.03412876671 | J113: 0.3879208964 | K113: 0.239653269
B114: 2008-02-29 | C114: 0.005864438632 | D114: -0.01043938118 | E114: 0.04330441231 | F114: -0.07199814074 | H114: 0.04670107003 | I114: 0.03377986596 | J114: 0.3922407593 | K114: 0.2383749153
B115: 2008-03-31 | C115: -0.0005137677195 | D115: -0.01781774347 | E115: -0.003761505864 | F115: -0.122243586 | H115: 0.04663232663 | I115: 0.03304314081 | J115: 0.3968734366 | K115: 0.2307440696
B116: 2008-04-30 | C116: 0.006229002163 | D116: -0.01158651872 | E116: 0.04713215072 | F116: -0.08143848802 | H116: 0.04643826799 | I116: 0.03259316538 | J116: 0.4002619856 | K116: 0.2283328
B117: 2008-05-31 | C117: 0.009038913686 | D117: -0.00915290945 | E117: 0.06981667723 | F117: -0.06522254745 | H117: 0.04614455028 | I117: 0.03208344654 | J117: 0.4026125729 | K117: 0.2255656841
B118: 2008-06-30 | C118: -0.003392887442 | D118: -0.0217818219 | E118: -0.02544385145 | F118: -0.1524897371 | H118: 0.04584990635 | I118: 0.03151286904 | J118: 0.4048910983 | K118: 0.221745536
B119: 2008-07-31 | C119: -0.004817213397 | D119: -0.02271519318 | E119: -0.03634430466 | F119: -0.160245634 | H119: 0.04568182589 | I119: 0.0315934788 | J119: 0.4084127885 | K119: 0.2273271397
B120: 2008-08-31 | C120: -0.003015438448 | D120: -0.02097277936 | E120: -0.0231331823 | F120: -0.1501989767 | H120: 0.04529335651 | I120: 0.03116494119 | J120: 0.4096002691 | K120: 0.2262467405
B121: 2008-09-30 | C121: -0.01532819546 | D121: -0.03414844291 | E121: -0.113966583 | F121: -0.2370493685 | H121: 0.04490967224 | I121: 0.03009768676 | J121: 0.4107504664 | K121: 0.2147769356
B122: 2008-10-31 | C122: -0.0315024942 | D122: -0.05000922494 | E122: -0.223848483 | F122: -0.3327169672 | H122: 0.04453777836 | I122: 0.02970225357 | J122: 0.4119398738 | K122: 0.2138912319
B123: 2008-11-30 | C123: -0.03445214819 | D123: -0.05172660829 | E123: -0.244576631 | F123: -0.3451800995 | H123: 0.04417021535 | I123: 0.03004440154 | J123: 0.4130919014 | K123: 0.2249034597
B124: 2008-12-31 | C124: -0.03316856837 | D124: -0.04868096414 | E124: -0.2386483086 | F124: -0.3310575961 | H124: 0.04370504409 | I124: 0.0306768959 | J124: 0.4130919014 | K124: 0.2415774524
B125: 2009-01-31 | C125: -0.03523066303 | D125: -0.05011469386 | E125: -0.2539089147 | F125: -0.3420232036 | H125: 0.04324956705 | I125: 0.03057999629 | J125: 0.4130919014 | K125: 0.2462039832
B126: 2009-02-28 | C126: -0.03536845377 | D126: -0.05012699772 | E126: -0.257011573 | F126: -0.3449133755 | H126: 0.04280348436 | I126: 0.03019696571 | J126: 0.4130919014 | K126: 0.2459112016
B127: 2009-03-31 | C127: -0.03511727728 | D127: -0.05005975991 | E127: -0.2576288552 | F127: -0.3473196127 | H127: 0.04236650839 | I127: 0.02963109196 | J127: 0.4130919014 | K127: 0.2423669428
B128: 2009-04-30 | C128: -0.02124211284 | D128: -0.03642695417 | E128: -0.1653259798 | F128: -0.2672964476 | H128: 0.04193836311 | I128: 0.02917084444 | J128: 0.4130919014 | K128: 0.2404572696
B129: 2009-05-31 | C129: -0.01691360123 | D129: -0.03208874549 | E129: -0.1349736351 | F129: -0.2411339921 | H129: 0.04151878355 | I129: 0.02878476026 | J129: 0.4130919014 | K129: 0.2396702037
B130: 2009-06-30 | C130: -0.01514425694 | D130: -0.03047277571 | E130: -0.1227669133 | F130: -0.2322712733 | H130: 0.04110751524 | I130: 0.02827977372 | J130: 0.4130919014 | K130: 0.2366966802
B131: 2009-07-31 | C131: -0.01020663273 | D131: -0.02508746482 | E131: -0.08507392156 | F131: -0.1956121794 | H131: 0.04070431368 | I131: 0.02828143476 | J131: 0.4130919014 | K131: 0.2423669428
B132: 2009-08-31 | C132: -0.008135718473 | D132: -0.0231399257 | E132: -0.06898388992 | F132: -0.1831610042 | H132: 0.04030894388 | I132: 0.0278147884 | J132: 0.4130919014 | K132: 0.2397944109
B133: 2009-09-30 | C133: -0.005267994077 | D133: -0.02052253213 | E133: -0.04558524671 | F133: -0.1652247189 | H133: 0.04011281139 | I133: 0.0274734466 | J133: 0.415393741 | K133: 0.2379688222
B134: 2009-10-31 | C134: -0.003020602529 | D134: -0.01844864087 | E134: -0.02661390435 | F134: -0.1507803549 | H134: 0.04002335468 | I134: 0.02727942595 | J134: 0.4189515585 | K134: 0.2379481731
B135: 2009-11-30 | C135: -0.001316070654 | D135: -0.01659623148 | E135: -0.01178247348 | F135: -0.137611719 | H135: 0.04001796294 | I135: 0.0273641667 | J135: 0.4235330795 | K135: 0.2422753213
B136: 2009-12-31 | C136: 0.002768493536 | D136: -0.01267439773 | E136: 0.02543037639 | F136: -0.1070948328 | H136: 0.04002497705 | I136: 0.0272900671 | J136: 0.4282829055 | K136: 0.2436935904
B137: 2010-01-31 | C137: 0.001996791143 | D137: -0.01259954498 | E137: 0.01845387508 | F137: -0.1075491745 | H137: 0.04003185981 | I137: 0.02780279691 | J137: 0.4330485313 | K137: 0.2557518569
B138: 2010-02-28 | C138: -0.0003342578177 | D138: -0.0154130988 | E138: -0.003087625123 | F138: -0.131639375 | H138: 0.04000237621 | I138: 0.02743108612 | J138: 0.4373666601 | K138: 0.2520183747
B139: 2010-03-31 | C139: 0.007271477433 | D139: -0.008046650084 | E139: 0.06996032168 | F139: -0.07026139023 | H139: 0.04000934064 | I139: 0.0273423251 | J139: 0.4421626328 | K139: 0.2531626212
B140: 2010-04-30 | C140: 0.008971059837 | D140: -0.006115060054 | E140: 0.08773853774 | F140: -0.05493810734 | H140: 0.04000431218 | I140: 0.02739757108 | J140: 0.4468191059 | K140: 0.2570425292
B141: 2010-05-31 | C141: 0.004988742758 | D141: -0.01010038069 | E141: 0.04841052552 | F141: -0.09079147942 | H141: 0.04010011768 | I141: 0.0274360207 | J141: 0.4528269331 | K141: 0.2599288107
B142: 2010-06-30 | C142: 0.003136826544 | D142: -0.01181053139 | E142: 0.03046917092 | F142: -0.1064981642 | H142: 0.0401797502 | I142: 0.02757203629 | J142: 0.4586646248 | K142: 0.2647826416
B143: 2010-07-31 | C143: 0.004701809477 | D143: -0.009822056189 | E143: 0.04638807782 | F143: -0.08990150959 | H143: 0.0402724101 | I143: 0.02793628309 | J143: 0.4647216815 | K143: 0.2739451255
B144: 2010-08-31 | C144: 0.002652198892 | D144: -0.01172475669 | E144: 0.02616105507 | F144: -0.1075531048 | H144: 0.04036348661 | I144: 0.02808782402 | J144: 0.4708037864 | K144: 0.2791503499
B145: 2010-09-30 | C145: 0.006015019665 | D145: -0.009139108067 | E145: 0.06074396555 | F145: -0.08516927199 | H145: 0.04043888325 | I145: 0.02767522042 | J145: 0.4767137327 | K145: 0.2735807537
B146: 2010-10-31 | C146: 0.008390460304 | D146: -0.006992812351 | E146: 0.08638782667 | F146: -0.06602715559 | H146: 0.0405270518 | I146: 0.027621219 | J146: 0.4828457415 | K146: 0.2748096223
B147: 2010-11-30 | C147: 0.009787384082 | D147: -0.005819609201 | E147: 0.102298978 | F147: -0.05547021489 | H147: 0.0405998385 | I147: 0.02754566159 | J147: 0.4888040502 | K147: 0.2757153891
B148: 2010-12-31 | C148: 0.01395888521 | D148: -0.002280479714 | E148: 0.1500193503 | F148: -0.02144241465 | H148: 0.04060134621 | I148: 0.0271619665 | J148: 0.4937716035 | K148: 0.271058207
B149: 2011-01-31 | C149: 0.01140805074 | D149: -0.003828931456 | E149: 0.1222384138 | F149: -0.03703403136 | H149: 0.04060283548 | I149: 0.02777508899 | J149: 0.4987558236 | K149: 0.2860465617
B150: 2011-02-28 | C150: 0.01175797124 | D150: -0.003312240811 | E150: 0.127289614 | F150: -0.03222555029 | H150: 0.04057156948 | I150: 0.02741949994 | J150: 0.5032719301 | K150: 0.2820905656
B151: 2011-03-31 | C151: 0.01231168622 | D151: -0.003942462673 | E151: 0.1347858738 | F151: -0.0387015928 | H151: 0.04049063657 | I151: 0.02697540963 | J151: 0.5070505577 | K151: 0.2766508062
B152: 2011-04-30 | C152: 0.01309588314 | D152: -0.003453537071 | E152: 0.1451434714 | F152: -0.0340701582 | H152: 0.04040291859 | I152: 0.02668621952 | J152: 0.5107163718 | K152: 0.2742910059
B153: 2011-05-31 | C153: 0.01259729846 | D153: -0.003990644298 | E153: 0.1404756732 | F153: -0.03979565617 | H153: 0.04032462631 | I153: 0.02656128739 | J153: 0.5145137857 | K153: 0.2751194522
B154: 2011-06-30 | C154: 0.0116853702 | D154: -0.004532088006 | E154: 0.1308314767 | F154: -0.04565205304 | H154: 0.04023961391 | I154: 0.02669639613 | J154: 0.5181978079 | K154: 0.2812598437
B155: 2011-07-31 | C155: 0.009460104279 | D155: -0.006550041944 | E155: 0.1056500792 | F155: -0.06645365025 | H155: 0.04024385233 | I155: 0.02679902637 | J155: 0.5232634349 | K155: 0.286154676
B156: 2011-08-31 | C156: 0.001192315922 | D156: -0.01459331682 | E156: 0.01289215748 | F156: -0.145047811 | H156: 0.04024802845 | I156: 0.02685061411 | J156: 0.5283460176 | K156: 0.2900314841
B157: 2011-09-30 | C157: -0.003225890676 | D157: -0.01945787061 | E157: -0.03439809694 | F157: -0.1906332921 | H157: 0.04024182372 | I157: 0.02647923563 | J157: 0.5332808155 | K157: 0.2851946978
B158: 2011-10-31 | C158: 0.002786201317 | D158: -0.01342199432 | E158: 0.03083972491 | F158: -0.1359785727 | H158: 0.04024594594 | I158: 0.02654969635 | J158: 0.5383967316 | K158: 0.2894417121
B159: 2011-11-30 | C159: 0.001777800122 | D159: -0.01450440507 | E159: 0.01973056328 | F159: -0.1473032246 | H159: 0.04027712889 | I159: 0.02650362929 | J159: 0.5439724762 | K159: 0.2910668751
B160: 2011-12-31 | C160: 0.002417633474 | D160: -0.0139292963 | E160: 0.02712444714 | F160: -0.1428121473 | H160: 0.0403191598 | I160: 0.0264926079 | J160: 0.5497552543 | K160: 0.2933499756
B161: 2012-01-31 | C161: 0.007476858661 | D161: -0.007993387049 | E161: 0.08673849925 | F161: -0.08453999117 | H161: 0.04039728575 | I161: 0.02720505015 | J161: 0.5561729097 | K161: 0.3109078832
B162: 2012-02-29 | C162: 0.0107167546 | D162: -0.005277821406 | E162: 0.1274089592 | F162: -0.0565420057 | H162: 0.04044959649 | I162: 0.0269212352 | J162: 0.5622004865 | K162: 0.3073078103
B163: 2012-03-31 | C163: 0.01046996168 | D163: -0.005650649671 | E163: 0.1252921459 | F163: -0.06094584905 | H163: 0.04052562421 | I163: 0.02689355788 | J163: 0.5686696836 | K163: 0.3090518611
B164: 2012-04-30 | C164: 0.01048442659 | D164: -0.005710927297 | E164: 0.1264533594 | F164: -0.06203271887 | H164: 0.04058839343 | I164: 0.02689027063 | J164: 0.5749556429 | K164: 0.3114230162
B165: 2012-05-31 | C165: 0.006388437163 | D165: -0.009552953053 | E165: 0.07598159041 | F165: -0.1033202303 | H165: 0.04066232185 | I165: 0.02707805715 | J165: 0.581477634 | K165: 0.3179398358
B166: 2012-06-30 | C166: 0.006904749445 | D166: -0.008716626672 | E166: 0.08296771613 | F166: -0.09525959921 | H166: 0.04072321387 | I166: 0.02734986945 | J166: 0.5878149422 | K166: 0.326503372
B167: 2012-07-31 | C167: 0.008411395226 | D167: -0.006788411307 | E167: 0.1026567848 | F167: -0.07522287978 | H167: 0.04079512842 | I167: 0.027713797 | J167: 0.5943901127 | K167: 0.3371844415
B168: 2012-08-31 | C168: 0.008 | D168: -0.007 | E168: 0.095 | F168: -0.083 | H168: 0.04086602977 | I168: 0.02778574113 | J168: 0.6009925473 | K168: 0.3413514341
B169: 2012-09-30 | C169: 0.009949458496 | D169: -0.005485173163 | E169: 0.1242918986 | F169: -0.06181035621 | H169: 0.0409242137 | I169: 0.02767037984 | J169: 0.6074080832 | K169: 0.3413363726
B170: 2012-10-31 | C170: 0.009996745605 | D170: -0.005271974196 | E170: 0.1258478299 | F170: -0.05985497026 | H170: 0.04099323153 | I170: 0.02784131463 | J170: 0.6140644679 | K170: 0.3478328482
B171: 2012-11-30 | C171: 0.012 | D171: -0.003 | E171: 0.148 | F171: -0.039 | H171: 0.04104972715 | I171: 0.02810038957 | J171: 0.6205323162 | K171: 0.3565542013
B172: 2012-12-31 | C172: 0.01175501885 | D172: -0.00333471876 | E172: 0.1516681494 | F172: -0.03835471585 | H172: 0.04111693479 | I172: 0.02808194721 | J172: 0.6272430363 | K172: 0.3587512973
B173: 2013-01-31 | C173: 0.015 | D173: 0 | E173: 0.194 | F173: 0.005 | H173: 0.04118419248 | I173: 0.02868680542 | J173: 0.6339999994 | K173: 0.3758070508
B174: 2013-02-28 | C174: 0.016 | D174: 0.001 | E174: 0.207 | F174: 0.012 | H174: 0.0412164546 | I174: 0.02852216078 | J174: 0.6401271913 | K174: 0.374840975
B175: 2013-03-31 | C175: 0.017 | D175: 0.002 | E175: 0.228 | F175: 0.026 | H175: 0.04121352091 | I175: 0.02834920087 | J175: 0.6455996599 | K175: 0.3739044356
B176: 2013-04-30 | C176: 0.018 | D176: 0.004 | E176: 0.254 | F176: 0.049 | H176: 0.04120162061 | I176: 0.02850775403 | J176: 0.650913072 | K176: 0.3810618859
B177: 2013-05-31 | C177: 0.02 | D177: 0.006 | E177: 0.286 | F177: 0.074 | H177: 0.04123275712 | I177: 0.02850466697 | J177: 0.6570964298 | K177: 0.3839868764
B178: 2013-06-30 | C178: 0.017 | D178: 0.003 | E178: 0.243 | F178: 0.04 | H178: 0.0413182799 | I178: 0.02874485072 | J178: 0.6644047438 | K178: 0.3925256416
B179: 2013-07-31 | C179: 0.02029816142 | D179: 0.006051189694 | E179: 0.2898622067 | F179: 0.08067868504 | H179: 0.04141474359 | I179: 0.02897505125 | J179: 0.6719905156 | K179: 0.4008353004
B180: 2013-08-31 | C180: 0.01911642387 | D180: 0.004905577714 | E180: 0.2730734419 | F180: 0.06562704939 | H180: 0.04141061121 | I180: 0.02897524788 | J180: 0.677569343 | K180: 0.4042106373
B181: 2013-09-30 | C181: 0.021 | D181: 0.006 | E181: 0.304 | F181: 0.088 | H181: 0.04139781297 | I181: 0.02880497605 | J181: 0.6829859347 | K181: 0.40333409
B182: 2013-10-31 | C182: 0.024 | D182: 0.01 | E182: 0.357 | F182: 0.134 | H182: 0.04136084324 | I182: 0.02893816594 | J182: 0.6879104243 | K182: 0.4103500905
B183: 2013-11-30 | C183: 0.026 | D183: 0.012 | E183: 0.392 | F183: 0.164 | H183: 0.04131679686 | I183: 0.02898444634 | J183: 0.6926897303 | K183: 0.4152437688
B184: 2013-12-31 | C184: 0.026 | D184: 0.011 | E184: 0.394 | F184: 0.163 | H184: 0.04134581399 | I184: 0.02892149188 | J184: 0.6990295434 | K184: 0.4167567961
B185: 2014-01-31 | C185: 0.0234680428 | D185: 0.01025291964 | E185: 0.3572028838 | F185: 0.1449860226 | H185: 0.04137446695 | I185: 0.02963831634 | J185: 0.7053931523 | K185: 0.4387320759
B186: 2014-02-28 | C186: 0.02663739494 | D186: 0.01314162115 | E186: 0.4166948009 | F186: 0.1901686095 | H186: 0.04137432437 | I186: 0.02946187138 | J186: 0.7111613832 | K186: 0.4375506727
B187: 2014-03-31 | C187: 0.027 | D187: 0.014 | E187: 0.43 | F187: 0.202 | H187: 0.04140243887 | I187: 0.02954483844 | J187: 0.7175703681 | K187: 0.4430271705
B188: 2014-04-30 | C188: 0.028 | D188: 0.014 | E188: 0.448 | F188: 0.212 | H188: 0.04142084739 | I188: 0.02940684153 | J188: 0.7237955372 | K188: 0.4426744643
B189: 2014-05-31 | C189: 0.031 | D189: 0.017 | E189: 0.511 | F189: 0.264 | H189: 0.04147960527 | I189: 0.02948937942 | J189: 0.7309534652 | K189: 0.4479270031
B190: 2014-06-30 | C190: 0.032 | D190: 0.018 | E190: 0.536 | F190: 0.282 | H190: 0.04158713233 | I190: 0.02953694921 | J190: 0.7392632283 | K190: 0.4518730539
B191: 2014-07-31 | C191: 0.03189057286 | D191: 0.01850691676 | E191: 0.5357710602 | F191: 0.2862149951 | H191: 0.0417663159 | I191: 0.02993936828 | J191: 0.7492863893 | K191: 0.4650350192
B192: 2014-08-31 | C192: 0.034 | D192: 0.021 | E192: 0.579 | F192: 0.324 | H192: 0.04194335961 | I192: 0.03021859032 | J192: 0.759367354 | K192: 0.4749826197
B193: 2014-09-30 | C193: 0.033 | D193: 0.02 | E193: 0.575 | F193: 0.318 | H193: 0.04221900688 | I193: 0.03045686234 | J193: 0.7718733764 | K193: 0.4831006404
B194: 2014-10-31 | C194: 0.035 | D194: 0.022 | E194: 0.614 | F194: 0.35 | H194: 0.04250910904 | I194: 0.03076488071 | J194: 0.7848896128 | K194: 0.4931867438
B195: 2014-11-30 | C195: 0.037 | D195: 0.023 | E195: 0.654 | F195: 0.386 | H195: 0.04277825245 | I195: 0.03115681459 | J195: 0.7975770425 | K195: 0.5060067899
B196: 2014-12-31 | C196: 0.038 | D196: 0.025 | E196: 0.683 | F196: 0.408 | H196: 0.04323256772 | I196: 0.03157342638 | J196: 0.8149625639 | K196: 0.5181998584
B197: 2015-01-31 | C197: 0.041 | D197: 0.028 | E197: 0.759 | F197: 0.487 | H197: 0.04368173507 | I197: 0.03261364166 | J197: 0.8325162941 | K197: 0.5491618036
B198: 2015-02-28 | C198: 0.04498745072 | D198: 0.03125045426 | E198: 0.8721162764 | F198: 0.5727692543 | H198: 0.04405758558 | I198: 0.03211443832 | J198: 0.8485170317 | K198: 0.5529434737
B199: 2015-03-31 | C199: 0.04577097501 | D199: 0.03211455468 | E199: 0.8992889303 | F199: 0.5956991236 | H199: 0.04466068942 | I199: 0.03276598995 | J199: 0.8705900476 | K199: 0.5715875832
B200: 2015-04-30 | C200: 0.046 | D200: 0.032 | E200: 0.902 | F200: 0.592 | H200: 0.04522939884 | I200: 0.03317145689 | J200: 0.8922018863 | K200: 0.5836166668
B201: 2015-05-31 | C201: 0.047 | D201: 0.033 | E201: 0.937 | F201: 0.62 | H201: 0.04581949696 | I201: 0.0337793073 | J201: 0.9147965806 | K201: 0.6017101153
B202: 2015-06-30 | C202: 0.042 | D202: 0.029 | E202: 0.833 | F202: 0.53 | H202: 0.0463757017 | I202: 0.03427011934 | J202: 0.9369192113 | K202: 0.616869008
B203: 2015-07-31 | C203: 0.045 | D203: 0.032 | E203: 0.899 | F203: 0.591 | H203: 0.04695320986 | I203: 0.03568521202 | J203: 0.9600478191 | K203: 0.6428056091
B204: 2015-08-31 | C204: 0.039 | D204: 0.027 | E204: 0.766 | F204: 0.483 | H204: 0.04752450342 | I204: 0.0363960398 | J204: 0.9834525358 | K204: 0.6657171483
B205: 2015-09-30 | C205: 0.036 | D205: 0.024 | E205: 0.689 | F205: 0.413 | H205: 0.04806263298 | I205: 0.03677239408 | J205: 1.006368426 | K205: 0.6782557011
B206: 2015-10-31 | C206: 0.041 | D206: 0.029 | E206: 0.825 | F206: 0.526 | H206: 0.04862193825 | I206: 0.03733423228 | J206: 1.030326324 | K206: 0.6970528026
B207: 2015-11-30 | C207: 0.042 | D207: 0.03 | E207: 0.861 | F207: 0.558 | H207: 0.04857071035 | I207: 0.03741461305 | J207: 1.036881841 | K207: 0.705462501
B208: 2015-12-31 | C208: 0.039 | D208: 0.027 | E208: 0.791 | F208: 0.497 | H208: 0.04852752383 | I208: 0.03734331965 | J208: 1.043678207 | K208: 0.7086479267
B209: 2016-01-31 | C209: 0.035 | D209: 0.023 | E209: 0.682 | F209: 0.411 | H209: 0.04848418225 | I209: 0.03751553195 | J209: 1.050478523 | K209: 0.7202462492
B210: 2016-02-29 | C210: 0.03481479458 | D210: 0.02268522299 | E210: 0.6852141388 | F210: 0.4092626035 | H210: 0.04842658287 | I210: 0.03734274502 | J210: 1.056860629 | K210: 0.7200524839
B211: 2016-03-31 | C211: 0.036 | D211: 0.023 | E211: 0.717 | F211: 0.429 | H211: 0.04838426407 | I211: 0.03710074866 | J211: 1.06370478 | K211: 0.7172481647
B212: 2016-04-30 | C212: 0.036 | D212: 0.024 | E212: 0.722 | F212: 0.433 | H212: 0.04833511949 | I212: 0.03710562818 | J212: 1.070349893 | K212: 0.7231051729
B213: 2016-05-31 | C213: 0.038 | D213: 0.026 | E213: 0.782 | F213: 0.48 | H213: 0.0482937545 | I213: 0.03702045428 | J213: 1.077239033 | K213: 0.7257224442
B214: 2016-06-30 | C214: 0.037 | D214: 0.025 | E214: 0.761 | F214: 0.461 | H214: 0.04824562256 | I214: 0.03696593519 | J214: 1.083927692 | K214: 0.7294743307
B215: 2016-07-31 | C215: 0.04033353233 | D215: 0.02792169598 | E215: 0.8579642502 | F215: 0.541019823 | H215: 0.04820517413 | I215: 0.0369405203 | J215: 1.09086192 | K215: 0.7341881927
B216: 2016-08-31 | C216: 0.041 | D216: 0.029 | E216: 0.883 | F216: 0.563 | H216: 0.04816515678 | I216: 0.03699768524 | J216: 1.097819269 | K216: 0.7418835638
... 118 more rows

Sheet Beskrivning av mått
B5: Beskrivning av mått
B10: Snitt 5 år: | C10: Geometriska medelvärdet av fondernas värdeutveckling i SEK för de senaste 60 månaderna (5 år).
B12: Risk: | C12: Standardavvikelse, 36 månader, anger hur kursutvecklingen avviker från medelvärdet.
B14: Fondavgift, % netto: | C14: TER minus myndighetens rabatt, pensionsspararens avgift till förvaltaren.
B16: Fondavgift, % brutto: | C16: Motsvarar TER.
B18: TER: | C18: (Total expence ratio) När myndighetens rabatt på fondavgiften beräknas används TER. I TER ingår fondens alla kostnader utom transaktionskostnader, kupongskatt, räntekostnader eller valutaförluster.
B21: Sharpe-kvot: | C21: Ett mått på riskjusterad avkastning. Sharpe-kvot = (Värdeutvecklingen hos fonden - riskfria räntan) / Standardavvikelsen hos fonden (risk).
B23: Hållbarhetsinfomation: | C23: Hållbarhetsinformationen finns för att fondsparare ska kunna få information och underlag om fondernas hållbarhetsarbete och inriktning. Den gör det också lättare att jämföra olika fonder. För att få en helhetsbild finns även indikatorerna Hållbarhetsrisk (ESG-risk) och låg CO2-risk.
C24: Informationen tillhandahålls och upprättas av fondförvaltaren. Fondförvaltaren är själv ansvarig för att informationen följer Fondbolagens förenings riktlinjer, att angiven information är riktig samt att den uppdateras minst en gång om året.
C25: Hållbarhetsfonder är kategoriserade som artikel 9 fonder, också kallade mörkgröna fonder, enligt EU-Regelverket SFDR. Fonderna investerar i bolag eller projekt som bidrar till antingen ett miljömässigt eller ett socialt hållbart mål.
C26: Pensionsmyndigheten har upphandlat indikatorer av Morningstar och Sustainalytics för att presentera och sortera fondernas olika hållbarhetsprofil och göra det enklare att göra hållbara fondval. Dessa bygger på standardiserade metoder och kommer att utvecklas över tid.
C27: Låg CO2-risk (koldioxidrisk) är en indikator från Morningstar. För att en fond skall anses ha låg koldioxidrisk behöver fonden ha en låg risk i omställningen till en världsekonomi med låga koldioxidutsläpp samt en begränsad exponering mot fossila bränslen. Beräkningen går främst att göra för aktiefonder och sker kvartalsvis.
C28: Hållbarhetsrisk är ett värde mellan 0-100 på hur väl fondens innehav hanterar finansiella risker kopplade till ESG - miljö, arbetsförhållanden och ägarfrågor. Lägre värde visar på lägre risk att fonden kan få oväntade förluster kopplat till ESG. Innehavsanalysen utförs av Sustainalytics utifrån börsdata och frågeformulär och sammanställs av Morningstar till fondnivå. Samma betygsskala används för alla typer av företag och branscher. Hållbarhetsrisken uppdateras månatligen och bygger på analys av fondens underliggande innehav de senaste tolv månaderna och där senaste innehaven väger tyngre än äldre
C29: Mer information finns här:
C30: https://www.pensionsmyndigheten.se/forsta-din-pension/valj-och-byt-fonder/hallbara-fonder
B32: Fotnot om Rysslandsfonderna och östeuropafonderna | C32: De fyra rysslandsfonder som handelsstoppades i februari 2022 avregistreras från premiepensionens fondtorg. Förvaltningen av fondandelarna har tagits över av Pensionsmyndigheten. Värdet i fonderna nedan avspeglar en kraftigt nedskriven fondkurs. Fondkurserna i de aktuella fonderna skrevs ned från och med 2022-04-01.
C33: Läs mer här
C34: Pensionsmyndigheten avregistrerar även tre östeuropafonder på premiepensionens fondtorg som också varit stängda för handel sedan i slutet av februari 2022.
C35: Läs mer här

Sheet Info Makro
B5: För att kunna få tillgång till enkel sorteringsfunktionalitet i vissa blad behöver man aktivera makron.
B6: Detta görs genom att klicka på "Aktivera makron" när detta dokument öppnas (se nedan).
B7: Har du valt att klicka på "Inaktivera makron" när detta dokument öppnades och vill kunna använda
B8: sorteringsfunktionaliteten måste du stänga dokumentet och öppna på nytt med valet "Aktivera makron".
B10: Man kan även sortera manuellt om man inte vill utnyttja makrofunktionaliteten. Gå då direkt till
B11: innehållsförteckningen genom att klicka på knappen här bredvid.
B25: Kan du ändå inte sortera?
B26: Då kan inställningarna till säkerhetsnivån för makron vara för hög på din dator. Ett alternativ
B27: kan då vara att kontakta nätverksadministratören på din arbetsplats.
